Workbook

Sheet AER NRs (hidden)
B1: AER NAMED RANGES
B3: DROP DOWN SELECTORS USED IN WORKBOOKS
B5: COVER SHEET | C5: dms_DataQuality_List | D5: dms_Confid_status_List
C6: -- select -- | D6: -- select --
C7: Actual | D7: Public
C8: Estimate | D8: Confidential
C9: Consolidated
C12: For all files either AER or business needs to be able to specify the type of submission | D12: For PTRM & RFM templates we must provide a choice in case they change their form of control - otherwise it is drawn from the business specific lookup table above.
C13: dms_SourceList | D13: dms_FormControl_Choices
C14: -- select -- | D14: Revenue cap
C15: After appeal | D15: Revenue yield
C16: Draft decision | D16: Weighted average price cap
C17: Final decision
C18: Regulatory proposal
C19: Revised regulatory proposal
K22: This is used to create an image to insert on 6.3 STPIS sheet - not for dropdown lists. | N22: GAS
B23: CA & RESET RINS DNSP | C23: dms_DNSP_020301_SubstationType | D23: dms_DNSP_020301_ProjectType | E23: dms_DNSP_020301_ProjectTrigger | F23: dms_DNSP_020302_ProjectType | G23: dms_DNSP_020302_ProjectTrigger | H23: dms_STPIS_Exclusion_List | I23: dms_Reason_Interruption | J23: dms_Reason_Interruption_Detailed | K23: Reason for interruption | N23: dms_N0205_AssetType
C24: Subtransmission substation | D24: New substation establishment | E24: Demand growth | F24: New line on new route - single circuit | G24: Demand growth | H24: Weather | I24: Animal | J24: Animal impact | K24: Animal | L24: Animal impact | N24: Cast Iron
C25: Zone substation | D25: Substation upgrade - capacity | E25: Voltage issues | F25: New line on new route - dual circuit | G25: Voltage issues | H25: Equipment failure | I25: Asset failure | J25: Animal nesting/burrowing, etc and other | L25: Animal nesting/burrowing, etc and other | N25: PVC
C26: Switching station | D26: Substation upgrade - voltage | E26: Reactive power issue | F26: New line on new route - other | G26: Reactive power issue | H26: Operational error | I26: Other | J26: Other | L26: Other | N26: Polyamide
C27: Other | D27: Other | E27: Fault level issues | F27: Line rebuild over existing route - single circuit | G27: Fault level issues | H27: Vegetation | I27: Overloads | J27: LV | K27: Asset failure | L27: LV | N27: High density polyethylene (80)
E28: Safety | F28: Line rebuild over existing route - dual circuit | G28: Net market benefit | H28: Animals | I28: Planned | J28: Distribution substation | L28: Distribution substation | N28: High density polyethylene (100)
E29: Environment | F29: Reconductor - Single circuit | G29: Safety | H29: Third party impacts | I29: Network business | J29: HV | L29: HV | N29: High density polyethylene (250)
E30: Other | F30: Reconductor - Dual circuit | G30: Environment | H30: Transmission failure | I30: Third party | J30: Zone substation | L30: Zone substation | N30: High density polyethylene (575)
F31: Reconductor - Other | G31: Other | H31: Load shedding | I31: Unknown | J31: Subtransmission | L31: Subtransmission | N31: Medium density polyethylene
F32: Line upgrade - raising/retensoring | H32: Inter-distributor connection failure | I32: Vegetation | J32: insert description of 'other' | K32: Other | L32: insert description of 'other' | N32: Unprotected steel
F33: Line upgrade - voltage upgrade | H33: Other | I33: Weather | J33: Network error | K33: Overloads | N33: Protected steel
F34: Line upgrade - capacity | I34: 2 - STPIS Exclusion (3.3)(a) | J34: Switching and protection error | K34: Planned | N34: Other
F35: String spare circuit | I35: 3 - STPIS Exclusion (3.3)(a) | J35: Fire | K35: Network business | L35: Network error
F36: Other | I36: 4 - STPIS Exclusion (3.3)(a) | J36: Other | L36: Switching and protection error
I37: 5 - STPIS Exclusion (3.3)(a) | J37: Dig-in | K37: Third party | L37: Fire
I38: 6 - STPIS Exclusion (3.3)(a) | J38: Unauthorised access | L38: Other
I39: 7 - STPIS Exclusion (3.3)(a) | J39: Vehicle impact | L39: Dig-in
J40: Unknown | L40: Unauthorised access
J41: Blow-in/Fall-in - NSP responsibility | L41: Vehicle impact
J42: Grow-in - NSP responsibility | K42: Unknown | L42: Unknown
J43: Blow-in/Fall-in - Other responsible party | K43: Vegetation | L43: Blow-in/Fall-in - NSP responsibility
J44: Grow-in - Other responsible party | L44: Grow-in - NSP responsibility
L45: Blow-in/Fall-in - Other responsible party
L46: Grow-in - Other responsible party
K47: Weather
K48: 2 - STPIS Exclusion (3.3)(a)
K49: 3 - STPIS Exclusion (3.3)(a)
K50: 4 - STPIS Exclusion (3.3)(a)
K51: 5 - STPIS Exclusion (3.3)(a)
K52: 6 - STPIS Exclusion (3.3)(a)
K53: 7 - STPIS Exclusion (3.3)(a)
B56: CA & RESET RINS TNSP | C56: dms_TNSP_0203_SubstationType | D56: dms_TNSP_020301_ProjectType | E56: dms_TNSP_020301_ProjectTrigger | F56: dms_TNSP_020302_ProjectType | G56: dms_TNSP_0203_ProjectTrigger
C57: Terminal station | D57: New substation establishment | E57: Demand growth | F57: New line on new route - single circuit | G57: Demand growth
C58: Switching station | D58: Capacity upgrade | E58: Voltage issues | F58: New line on new route - dual circuit | G58: Voltage issues
C59: Transmission substation | D59: Voltage upgrade | E59: Reactive power issue | F59: New line on new route - other | G59: Reactive power issue
C60: Other | D60: Other | E60: Fault level issues | F60: Line rebuild over existing route - single circuit | G60: Fault level issues
E61: Net market benefit | F61: Line rebuild over existing route - dual circuit | G61: Net market benefit
E62: Safety | F62: Reconductor - Single circuit | G62: Safety
E63: Environment | F63: Reconductor - Dual circuit | G63: Environment
E64: Other | F64: Reconductor - Other | G64: Other
F65: Line upgrade - raising/retensoring
F66: Line upgrade - voltage upgrade
F67: Line upgrade - capacity
F68: String spare circuit
F69: Other
B73: NAMED RANGES USED IN ETL PROCESS
M74: GAS ARR & RESET
B75: CA & RESET RINS DNSP ONLY | C75: dms_020303_01_UOM | D75: dms_020501_01_UOM | E75: dms_020501_02_UOM | F75: dms_020501_03_UOM | G75: dms_020501_04_UOM | H75: dms_020701_01_UOM | I75: dms_020701_02_UOM | J75: dms_020701_01_Rows | K75: dms_040102_01_UOM | L75: dms_040102_04_UOM | M75: dms_S140101_UOM | N75: dms_S140201_UOM | O75: dms_E050201_UOM | P75: dms_E050202_UOM
C76: Circuit line length in km | D76: 0's | E76: 0's | F76: 0's | G76: 0's | H76: km | I76: km | J76: Route line length within zone | K76: 0's | L76: days | M76: number | N76: number per km | O76: per metre per connection | P76: metres per connection
C77: Circuit line length in km | D77: 0's | E77: 0's | F77: 0's | G77: 0's | H77: 0's | I77: 0's | J77: Number of maintenance spans | K77: 0's | L77: 0's | M77: number | N77: number | O77: per service per connection | P77: number per connection
C78: Circuit line length in km | D78: MVA added | E78: MVA added | F78: MVA added | G78: MVA added | H78: km | I78: km | J78: Total length of maintenance spans | K78: 0's | L78: $0s | M78: number | N78: number | O78: number per connection | P78: number per connection
C79: Circuit line length in km | D79: 0's | E79: 0's | F79: 0's | G79: 0's | H79: km | I79: km | J79: Length of vegetation corridors | K79: $0s | L79: 0's | M79: km
C80: Number | D80: total spend $0s | E80: total spend $0s | F80: total spend $0s | G80: total spend $0s | H80: 0's | I80: 0's | J80: Average number of trees per maintenance span
C81: Number | D81: net circuit km added | E81: net circuit km added | F81: net circuit km added | G81: net circuit km added | H81: years | I81: years | J81: Average frequency of cutting cycle
C82: Number | D82: total spend $0s | E82: total spend $0s | F82: total spend $0s | G82: total spend $0s
D83: net circuit km added | E83: net circuit km added | F83: net circuit km added | G83: net circuit km added
D84: total spend $0s | E84: total spend $0s | F84: total spend $0s | G84: total spend $0s
D85: 0's | F85: $0s
D86: 0's
D87: 0's
D88: $0s
B91: CA & RESET RINS TNSP ONLY | C91: dms_020701_01_UOM
C92: km
C93: 0's
C94: km
C95: 0's
C96: km
C97: metres
C98: years
B101: CA & RESET RINS DNSP & TNSP | C101: dms_020603_01_UOM
C102: 0's
C103: 0's
C104: 0's
C105: 0's
C106: (per cent)
B109: EB & RESET RINS DNSP ONLY | C109: dms_030601_01_UOM | D109: dms_030601_02_UOM | E109: dms_030701_01_UOM | F109: dms_030702_01_UOM | G109: dms_030703_01_UOM
C110: minutes/customer | D110: minutes/customer | E110: Customer / km | F110: % | G110: km
C111: minutes/customer | D111: minutes/customer | E111: MWh/customer | F111: Number of spans
C112: interruptions/customer | D112: interruptions/customer | E112: kVA / customer | F112: Number of spans
C113: interruptions/customer | D113: interruptions/customer | F113: Number of spans
F114: Number of spans
F115: Years
F116: Years
F117: Trees
F118: Trees
F119: Defects
F120: Defects
F121: Spans
F122: km
F123: Spans
C125: WHEN INSERTING COVER SHEET INTO A TNSP FILE - APPLY THESE NAMED RANGES
B126: EB & RESET RINS TNSP ONLY | C126: dms_030601_01_UOM | E126: dms_030701_01_UOM | F126: dms_030702_01_UOM
C127: % | E127: Number of spans | F127: km
C128: number | E128: Years | F128: %
C129: number | E129: Trees | F129: km
C130: % | E130: Defects | F130: number
C131: number | E131: Number of spans
C132: number | E132: km
C133: % | E133: km
C134: number | E134: Number of spans
C135: number
C136: %
C137: number
C138: %
C139: number
C140: %
C141: number
B143: EB & RESET RINS DNSP & TNSP | C143: dms_EB_RAB_PIT
C144: Beginning of year
C145: End of year
C146: End of year
C147: End of year
C148: End of year
C149: End of year
B151: ARR DNSP ONLY | C151: dms_030605_UOM | D151: dms_03060703_UOM | E151: dms_E020202_UOM | F151: Spare
C152: number | D152: number | E152: Length of mains replaced
C153: number | D153: number | E153: Number of services replaced
C154: number | D154: number
C155: number | D155: number
C156: number | D156: (per cent)
C157: number
C158: number
C159: number
C160: number
C161: number
C162: number
C163: number
C164: (per cent)
C165: (per cent)
B167: RFM | C167: dms_Beg | D167: dms_Mid | E167: dms_End
C168: Beginning of year | D168: Mid year | E168: End of Year
B170: PTRM | C170: dms_PTRM_RAB_PIT | D170: dms_PTRM_TAB_PIT | E170: DMS_Xfactor
C171: Beginning of year | D171: Beginning of year | E171: x factors
C172: End of year | D172: End of year
C173: End of year | D173: End of year
C174: End of year | D174: End of year
C175: End of year
B178: STPIS & MIC NAMED RANGES
B180: These "row descriptions" are the column headings in the various templates but become row descriptions in the ETL process
B182: Table 6.3 sustained interruptions - row descriptions | C182: dms_060301_CustNo_Affected_Row | D182: dms_060301_Avg_Duration_Sustained_Int_Row | E182: dms_060301_Effect_unplanned_SAIDI_Row | F182: dms_060301_Effect_unplanned_SAIFI_Row
C183: Number of customers affected by the interruption | D183: Average duration of sustained customer interruption | E183: Effect on unplanned SAIDI | F183: Effect on unplanned SAIFI
B186: Table 6.1 telephone answering - row descriptions and start date | C186: dms_060101_Rows | D186: dms_060102_Rows | E186: dms_060101_StartDateTxt
C187: Total number of calls (after removing excluded events) | D187: Number of calls answered within 30 seconds (after excluding excluded events) | E187: =dms_060701_StartDateTxt -> 1-Jan-2014
B190: Table 6.8.1 - row descriptions | C190: dms_060801_01_Rows | D190: dms_060801_02_Rows | E190: dms_060801_03_Rows | F190: dms_060801_04_Rows
C191: Number of interruptions | D191: Duration of interruptions | E191: Total unplanned minutes off supply | F191: Effect on unplanned MAIFI
B194: Table 7.9.4 - market impact component - row descriptions | C194: dms_070904_01_Rows | D194: without exclusions | E194: with exclusions
B197: These headings (Lists) are determined from the INDEX/MATCH function on the NSP selected on the Business & other details sheet
B199: Table 6.7.1 - daily performance data - unplanned - MAIFI -- row descriptions and header named range values | C199: dms_060701_Feeder_Header_Lvl4 | D199: =INDEX(dms_FeederName_1,MATCH(dms_TradingName,dms_TradingName_List)) -> CBD | E199: =INDEX(dms_FeederName_1,MATCH(dms_TradingName,dms_TradingName_List)) -> CBD | F199: =INDEX(dms_FeederName_2,MATCH(dms_TradingName,dms_TradingName_List)) -> Urban | G199: =INDEX(dms_FeederName_2,MATCH(dms_TradingName,dms_TradingName_List)) -> Urban | H199: =INDEX(dms_FeederName_3,MATCH(dms_TradingName,dms_TradingName_List)) -> Short rural | I199: =INDEX(dms_FeederName_3,MATCH(dms_TradingName,dms_TradingName_List)) -> Short rural | J199: =INDEX(dms_FeederName_4,MATCH(dms_TradingName,dms_TradingName_List)) -> Long rural | K199: =INDEX(dms_FeederName_4,MATCH(dms_TradingName,dms_TradingName_List)) -> Long rural | L199: =IF((INDEX(dms_FeederName_5,MATCH(dms_TradingName,dms_TradingName_List))=0),"Network",(INDEX(dms_FeederName_5,MATCH(dms_TradingName,dms_TradingName_List)))) -> Network | M199: =IF((INDEX(dms_FeederName_5,MATCH(dms_TradingName,dms_TradingName_List))=0),"Network",(INDEX(dms_FeederName_5,MATCH(dms_TradingName,dms_TradingName_List)))) -> Network | N199: Network | O199: Network
C201: dms_060701_Rows | D201: All events | E201: After removing excluded events | F201: All events | G201: After removing excluded events | H201: All events | I201: After removing excluded events | J201: All events | K201: After removing excluded events | L201: All events | M201: After removing excluded events | N201: All events | O201: After removing excluded events
D202: the number of column headings changes from 10 to 12 depending on the number of feeder categories for the NSP
C204: dms_0603_FeederList | D204: =INDEX(dms_FeederName_1,MATCH(dms_TradingName,dms_TradingName_List)) -> CBD | E204: =INDEX(dms_FeederName_2,MATCH(dms_TradingName,dms_TradingName_List)) -> Urban | F204: =INDEX(dms_FeederName_3,MATCH(dms_TradingName,dms_TradingName_List)) -> Short rural | G204: =INDEX(dms_FeederName_4,MATCH(dms_TradingName,dms_TradingName_List)) -> Long rural
B207: Use these to add to specific worksheets in existing files | C207: Use these to add to specific worksheets in existing files
B210: ARRs 6.7 STPIS daily performance | C210: dms_060101_Values | D210: dms_060102_Values | E210: dms_060701_Values
C211: dms_LeapYear
B214: ARR's 6.8 STPIS exclusions | C214: dms_060801_Event_Date | D214: dms_060801_OutageID | E214: dms_060801_FeederID | F214: dms_060801_FeederClass | G214: dms_060801_CauseID | H214: dms_060801_01_Values | I214: dms_060801_02_Values | J214: dms_060801_03_Values | K214: dms_060801_Excl_Cat | L214: dms_060801_04_Values
C215: dms_060801_StartCell
B218: CA 6.3 sustained interruptions | C218: dms_060301_Event_Date | D218: dms_060301_Event_Time | E218: dms_060301_AssetID | F218: dms_060301_FeederClass | G218: dms_060301_Reason | H218: dms_060301_DetailedReason | I218: dms_060301_CustNo_Affected_Values | J218: dms_060301_Avg_Duration_Sustained_Int_Values | K218: dms_060301_Effect_unplanned_SAIDI_Values | L218: dms_060301_Effect_unplanned_SAIFI_Values | M218: dms_060301_MED

Sheet AER lookups (hidden)
B1: AER LOOKUP TABLES
B3: Data in these columns used for data validation and database purposes.
B4: Date last modified: | C4: 2017-01-16 | D4: added (Albury and Victora) for AGN
C5: 2016-10-17 | D5: updated TransGrid's correct legal name, corrected TasNetworks (T) to June financial year
C6: 2017-02-01 | D6: inserted Power and Water, added NRs (dms_FeederCat_1 and dms_FeederCat_2)
C7: 2017-03-03 | D7: inserted AEMO as a business
C8: 2018-03-28 | D8: major changes to accommodate STPIS
C9: Template Version | D9: 5
Z11: FOR ELECTRICITY BUSINESSES ONLY
Z12: Feeder Types | AD12: TasNetworks (D) | AE12: Feeder Names
Z14: CBD | AA14: Urban | AB14: Short rural | AC14: long rural | AD14: EXTRA
B15: dms_TradingName_List | C15: dms_TradingNameFull_List | D15: dms_ABN_List | E15: dms_JurisdictionList | F15: dms_Sector_List | G15: dms_Segment_List | H15: dms_FormControl_List | I15: dms_RPT_List | J15: dms_RPTMonth_List | K15: dms_CRCPlength_List | L15: dms_FRCPlength_List | M15: dms_PRCPlength_List | N15: dms_663_List | O15: dms_DeterminationRef_List | P15: dms_Addr1_List | Q15: dms_Addr2_List | R15: dms_Suburb_List | S15: dms_State_List | T15: dms_PostCode_List | U15: dms_PAddr1_List | V15: dms_PAddr2_List | W15: dms_PSuburb_List | X15: dms_PState_List | Y15: dms_PPostCode_List | Z15: dms_CBD_flag | AA15: dms_Urban_flag | AB15: dms_ShortRural_flag | AC15: dms_LongRural_flag | AD15: dms_FeederType_5_flag | AE15: dms_FeederName_1 | AF15: dms_FeederName_2 | AG15: dms_FeederName_3 | AH15: dms_FeederName_4 | AI15: dms_FeederName_5 | AJ15: dms_Public_Lighting_List | AK15: Name
B16: Ausgrid | C16: Ausgrid | D16: 67505337385 | E16: NSW | F16: Electricity | G16: Distribution | H16: Revenue cap | I16: Financial | J16: June | K16: 5 | L16: 5 | M16: 5 | N16: 5 | O16: 2014-19 Distribution Determination | P16: 570 George St | R16: SYDNEY | S16: NSW | T16: 2000 | U16: GPO Box 4009 | W16: SYDNEY | X16: NSW | Y16: 2001 | Z16: YES | AA16: YES | AB16: YES | AC16: YES | AD16: NO | AE16: CBD | AF16: Urban | AG16: Short rural | AH16: Long rural | AJ16: YES | AK16: =B16 -> Ausgrid
B17: Ausgrid (Tx Assets) | C17: Ausgrid (Tx Assets) | D17: 67505337385 | E17: NSW | F17: Electricity | G17: Distribution | H17: Revenue cap | I17: Financial | J17: June | K17: 5 | L17: 5 | M17: 5 | N17: 5 | O17: distribution determination | P17: 570 George St | R17: SYDNEY | S17: NSW | T17: 2000 | U17: GPO Box 4009 | W17: SYDNEY | X17: NSW | Y17: 2001 | Z17: YES | AA17: YES | AB17: YES | AC17: YES | AD17: NO | AE17: CBD | AF17: Urban | AG17: Short rural | AH17: Long rural | AJ17: NO | AK17: Ausgrid (Tx Assets)
B18: AusNet (D) | C18: AusNet Electricity Services Pty Ltd | D18: 91064651118 | E18: Vic | F18: Electricity | G18: Distribution | H18: Revenue cap | I18: Calendar | J18: December | K18: 5 | L18: 5 | M18: 5 | N18: 2 | O18: 2016-20 Distribution Determination | P18: Level 32 | Q18: 2 Southbank Boulevard | R18: SOUTHBANK | S18: Vic | T18: 3006 | U18: Locked Bag 14051 | W18: MELBOURNE CITY MAIL CENTRE | X18: Vic | Y18: 8001 | Z18: NO | AA18: YES | AB18: YES | AC18: YES | AD18: NO | AE18: CBD | AF18: Urban | AG18: Short rural | AH18: Long rural | AJ18: YES | AK18: AusNet (D)
B19: Australian Distribution Co. | C19: Australian Distribution Co. | D19: 11222333444 | E19: NSW | F19: Electricity | G19: Distribution | H19: Revenue cap | I19: Financial | J19: June | K19: 5 | L19: 5 | M19: 5 | N19: 2 | O19: distribution determination | P19: 123 Straight Street | R19: SYDNEY | S19: NSW | T19: 2000 | U19: PO Box 123 | W19: SYDNEY | X19: NSW | Y19: 2000 | Z19: YES | AA19: YES | AB19: YES | AC19: YES | AD19: NO | AE19: CBD | AF19: Urban | AG19: Short rural | AH19: Long rural | AJ19: YES | AK19: Australian Distribution Co.
B20: Australian Distribution Co. (Vic) | C20: Australian Distribution Co. (Victoria) | D20: 11222333444 | E20: Vic | F20: Electricity | G20: Distribution | H20: Revenue cap | I20: Calendar | J20: December | K20: 5 | L20: 5 | M20: 5 | N20: 2 | O20: distribution determination | P20: 123 Straight Street | R20: MELBOURNE | S20: Vic | T20: 3000 | U20: PO Box 123 | W20: MELBOURNE | X20: Vic | Y20: 3000 | Z20: NO | AA20: NO | AB20: NO | AC20: NO | AD20: NO | AE20: CBD | AF20: Urban | AG20: Short rural | AH20: Long rural | AJ20: YES | AK20: Australian Distribution Co. (Vic)
B21: CitiPower | C21: CitiPower | D21: 76064651056 | E21: Vic | F21: Electricity | G21: Distribution | H21: Revenue cap | I21: Calendar | J21: December | K21: 5 | L21: 5 | M21: 5 | N21: 2 | O21: 2016-20 Distribution Determination | P21: 40 Market Street | R21: MELBOURNE | S21: Vic | T21: 3000 | U21: Locked Bag 14090 | W21: MELBOURNE | X21: Vic | Y21: 8001 | Z21: YES | AA21: YES | AB21: NO | AC21: NO | AD21: NO | AE21: CBD | AF21: Urban | AG21: Short rural | AH21: Long rural | AJ21: YES | AK21: CitiPower
B22: Endeavour Energy | C22: Endeavour Energy | D22: 11247365823 | E22: NSW | F22: Electricity | G22: Distribution | H22: Revenue cap | I22: Financial | J22: June | K22: 5 | L22: 5 | M22: 5 | N22: 5 | O22: 2014-19 Distribution Determination | P22: 51 Huntingwood Drive | R22: HUNTINGWOOD | S22: NSW | T22: 2148 | U22: PO Box 811 | W22: SEVEN HILLS | X22: NSW | Y22: 1730 | Z22: YES | AA22: YES | AB22: YES | AC22: YES | AD22: NO | AE22: CBD | AF22: Urban | AG22: Short rural | AH22: Long rural | AJ22: YES | AK22: Endeavour Energy
B23: Energex | C23: Energex | D23: 40078849055 | E23: Qld | F23: Electricity | G23: Distribution | H23: Revenue cap | I23: Financial | J23: June | K23: 5 | L23: 5 | M23: 5 | N23: 5 | O23: 2015-20 Distribution Determination | P23: 26 Reddacliff Street | R23: NEWSTEAD | S23: Qld | T23: 4006 | U23: 26 Reddacliff Street | W23: NEWSTEAD | X23: QLD | Y23: 4006 | Z23: YES | AA23: YES | AB23: YES | AC23: NO | AD23: NO | AE23: CBD | AF23: Urban | AG23: Short rural | AH23: Long rural | AJ23: YES | AK23: Energex
B24: Ergon Energy | C24: Ergon Energy | D24: 50087646062 | E24: Qld | F24: Electricity | G24: Distribution | H24: Revenue cap | I24: Financial | J24: June | K24: 5 | L24: 5 | M24: 5 | N24: 5 | O24: 2015-20 Distribution Determination | P24: 22 Walker Street | R24: TOWNSVILLE | S24: Qld | T24: 4810 | U24: Po Box 264 | W24: FORTITUDE VALLEY | X24: QLD | Y24: 4006 | Z24: NO | AA24: YES | AB24: YES | AC24: YES | AD24: NO | AE24: CBD | AF24: Urban | AG24: Short rural | AH24: Long rural | AJ24: YES | AK24: Ergon Energy
B25: Essential Energy | C25: Essential Energy | D25: 37428185226 | E25: NSW | F25: Electricity | G25: Distribution | H25: Revenue cap | I25: Financial | J25: June | K25: 5 | L25: 5 | M25: 5 | N25: 5 | O25: 2014-19 Distribution Determination | P25: 8 Buller Street | R25: PORT MACQUARIE | S25: NSW | T25: 2444 | U25: PO Box 5730 | W25: PORT MACQUARIE | X25: NSW | Y25: 2444 | Z25: NO | AA25: YES | AB25: YES | AC25: YES | AD25: NO | AE25: CBD | AF25: Urban | AG25: Short rural | AH25: Long rural | AJ25: YES | AK25: Essential Energy
B26: Evoenergy Distribution | C26: Evoenergy Distribution | D26: 76670568688 | E26: ACT | F26: Electricity | G26: Distribution | H26: Revenue cap | I26: Financial | J26: June | K26: 5 | L26: 5 | M26: 5 | N26: 5 | O26: 2014-19 Distribution Determination | P26: 40 Bunda Street | R26: CANBERRA | S26: ACT | T26: 2600 | U26: GPO BOX 366 | W26: CANBERRA | X26: ACT | Y26: 2601 | Z26: NO | AA26: YES | AB26: YES | AC26: NO | AD26: NO | AE26: CBD | AF26: Urban | AG26: Short rural | AH26: Long rural | AJ26: NO | AK26: Evoenergy Distribution
B27: Evoenergy Distribution (Tx Assets) | C27: Evoenergy Distribution (Tx Assets) | D27: 76670568688 | E27: ACT | F27: Electricity | G27: Distribution | H27: Revenue cap | I27: Financial | J27: June | K27: 5 | L27: 5 | M27: 5 | N27: 5 | O27: distribution determination | P27: 40 Bunda Street | R27: CANBERRA | S27: ACT | T27: 2600 | U27: GPO BOX 366 | W27: CANBERRA | X27: ACT | Y27: 2601 | Z27: NO | AA27: YES | AB27: YES | AC27: NO | AD27: NO | AE27: CBD | AF27: Urban | AG27: Short rural | AH27: Long rural | AJ27: NO | AK27: Evoenergy Distribution (Tx Assets)
B28: Jemena Electricity | C28: Jemena Electricity | D28: 82064651083 | E28: Vic | F28: Electricity | G28: Distribution | H28: Revenue cap | I28: Calendar | J28: December | K28: 5 | L28: 5 | M28: 5 | N28: 2 | O28: 2016-20 Distribution Determination | P28: Level 16 | Q28: 567 Collins Street | R28: MELBOURNE | S28: Vic | T28: 3000 | U28: PO Box 16182 | W28: MELBOURNE | X28: Vic | Y28: 8001 | Z28: NO | AA28: YES | AB28: YES | AC28: NO | AD28: NO | AE28: CBD | AF28: Urban | AG28: Short rural | AH28: Long rural | AJ28: YES | AK28: Jemena Electricity
B29: Power and Water | C29: Power and Water Corporation | D29: 15947352360 | E29: NT | F29: Electricity | G29: Distribution | H29: Revenue cap | I29: Financial | J29: June | K29: 5 | L29: 5 | M29: 5 | N29: x | O29: distribution determination | P29: GPO Box 1921 | R29: DARWIN | S29: NT | T29: 801 | U29: GPO Box 1921 | W29: DARWIN | X29: NT | Y29: 801 | Z29: YES | AA29: YES | AB29: YES | AC29: YES | AD29: NO | AE29: CBD | AF29: Urban | AG29: Short rural | AH29: Long rural | AJ29: NO | AK29: Power and Water
B30: Powercor Australia | C30: Powercor Australia | D30: 89064651109 | E30: Vic | F30: Electricity | G30: Distribution | H30: Revenue cap | I30: Calendar | J30: December | K30: 5 | L30: 5 | M30: 5 | N30: 2 | O30: 2016-20 Distribution Determination | P30: 40 Market Street | R30: MELBOURNE | S30: Vic | T30: 3000 | U30: Locked bag 14090 | W30: MELBOURNE | X30: Vic | Y30: 8001 | Z30: NO | AA30: YES | AB30: YES | AC30: YES | AD30: NO | AE30: CBD | AF30: Urban | AG30: Short rural | AH30: Long rural | AJ30: YES | AK30: Powercor Australia
B31: SA Power Networks | C31: SA Power Networks | D31: 13332330749 | E31: SA | F31: Electricity | G31: Distribution | H31: Revenue cap | I31: Financial | J31: June | K31: 5 | L31: 5 | M31: 5 | N31: 5 | O31: 2015-20 Distribution Determination | P31: 1 Anzac Highway | R31: KESWICK | S31: SA | T31: 5035 | U31: GPO Box 77 | W31: ADELAIDE | X31: SA | Y31: 5000 | Z31: YES | AA31: YES | AB31: YES | AC31: YES | AD31: NO | AE31: CBD | AF31: Urban | AG31: Short rural | AH31: Long rural | AJ31: YES | AK31: SA Power Networks
B32: TasNetworks (D) | C32: TasNetworks (D) | D32: 24167357299 | E32: Tas | F32: Electricity | G32: Distribution | H32: Revenue cap | I32: Financial | J32: June | K32: 5 | L32: 5 | M32: 5 | N32: 5 | O32: distribution determination | P32: 1-7 Maria Street | R32: LENAH VALLEY | S32: Tas | T32: 7008 | U32: PO Box 606 | W32: MOONAH | X32: Tas | Y32: 7009 | Z32: YES | AA32: YES | AB32: YES | AC32: YES | AD32: YES | AE32: Critical Infrastructure | AF32: High density commercial | AG32: Urban | AH32: High density rural | AI32: Low density rural | AJ32: YES | AK32: TasNetworks (D)
B33: United Energy | C33: United Energy | D33: 70064651029 | E33: Vic | F33: Electricity | G33: Distribution | H33: Revenue cap | I33: Calendar | J33: December | K33: 5 | L33: 5 | M33: 5 | N33: 2 | O33: 2016-20 Distribution Determination | P33: 43-45 Centreway | R33: MOUNT WAVERLEY | S33: Vic | T33: 3149 | U33: PO Box 449 | W33: MOUNT WAVERLEY | X33: Vic | Y33: 3170 | Z33: NO | AA33: YES | AB33: YES | AC33: NO | AD33: NO | AE33: CBD | AF33: Urban | AG33: Short rural | AH33: Long rural | AJ33: YES | AK33: United Energy
B38: The Reg Year Ending (dms_RYE) must be set to the last year of the regulatory period. For forecast data is is usually (FRCP_y5) for actual it is a single year (CRY). For historical actual data the RYE will need to be set manually in the business details sheet by setting the dms_Multiyear_flag to 1 and putting the correct value in 'dms_Specified_FinalYear. See cells C67:C68
B39: dms_Model_List | C39: dms_Model_Name_Format1 | D39: dms_Worksheet_List | E39: dms_Model_Span_List
B40: ARR | C40: Annual Reporting | D40: =IF(dms_MultiYear_ResponseFlag="yes","NEW HISTORICAL ANNUAL REPORTING","ANNUAL REPORTING") -> ANNUAL REPORTING | E40: 1
B41: CA | C41: Category Analysis | D41: =IF(dms_MultiYear_ResponseFlag="yes","NEW HISTORICAL CATEGORY ANALYSIS","CATEGORY ANALYSIS") -> CATEGORY ANALYSIS | E41: 1
B42: CESS | C42: Capitlal Expenditure | D42: CAPITLAL EXPENDITURE SHARING SCHEMING | E42: 5
B43: CPI | C43: CPI | D43: CPI | E43: 5
B44: EB | C44: Economic Benchmarking | D44: =IF(dms_MultiYear_ResponseFlag="yes","NEW HISTORICAL ECONOMIC BENCHMARKING","ECONOMIC BENCHMARKING") -> ECONOMIC BENCHMARKING | E44: 1
B45: Pricing | C45: Pricing Proposal | D45: PRICING PROPOSAL | E45: 5
B46: PTRM | C46: Post Tax Revenue Model | D46: POST TAX REVENUE MODEL | E46: 5
B47: Reset | C47: Regulatory Reporting (Reset) | D47: REGULATORY REPORTING STATEMENT | E47: 5
B48: RFM | C48: Roll Forward Model | D48: ROLL FORWARD MODEL | E48: 5
B49: WACC | C49: Weighted Average Cost of Capital | D49: WEIGHTED AVERAGE COST OF CAPITAL | E49: 1
B53: Financial | C53: Calendar | E53: PREVIOUS | G53: CURRENT | I53: FORTHCOMING
B54: 1987-88 | C54: 1988 | D54: PRCP_y1 | E54: =INDEX(INDIRECT(dms_RPT),dms_PRCP_start_row) -> 2011 | F54: CRCP_y1 | G54: =INDEX(INDIRECT(dms_RPT),dms_CRCP_start_row) -> 2016 | H54: =FRCP_y1 -> 2021 | I54: =INDEX(INDIRECT(dms_RPT),dms_FRCP_start_row) -> 2021
B55: 1988-89 | C55: 1989 | D55: PRCP_y2 | E55: =INDEX(INDIRECT(dms_RPT),dms_PRCP_start_row+1) -> 2012 | F55: CRCP_y2 | G55: =INDEX(INDIRECT(dms_RPT),dms_CRCP_start_row+1) -> 2017 | H55: FRCP_y2 | I55: =INDEX(INDIRECT(dms_RPT),dms_FRCP_start_row+1) -> 2022
B56: 1989-90 | C56: 1990 | D56: PRCP_y3 | E56: =INDEX(INDIRECT(dms_RPT),dms_PRCP_start_row+2) -> 2013 | F56: CRCP_y3 | G56: =INDEX(INDIRECT(dms_RPT),dms_CRCP_start_row+2) -> 2018 | H56: FRCP_y3 | I56: =INDEX(INDIRECT(dms_RPT),dms_FRCP_start_row+2) -> 2023
B57: 1990-91 | C57: 1991 | D57: PRCP_y4 | E57: =INDEX(INDIRECT(dms_RPT),dms_PRCP_start_row+3) -> 2014 | F57: CRCP_y4 | G57: =INDEX(INDIRECT(dms_RPT),dms_CRCP_start_row+3) -> 2019 | H57: FRCP_y4 | I57: =INDEX(INDIRECT(dms_RPT),dms_FRCP_start_row+3) -> 2024
B58: 1991-92 | C58: 1992 | D58: PRCP_y5 | E58: =INDEX(INDIRECT(dms_RPT),dms_PRCP_start_row+4) -> 2015 | F58: CRCP_y5 | G58: =INDEX(INDIRECT(dms_RPT),dms_CRCP_start_row+4) -> 2020 | H58: FRCP_y5 | I58: =INDEX(INDIRECT(dms_RPT),dms_FRCP_start_row+4) -> 2025
B59: 1992-93 | C59: 1993 | D59: PRCP_y6 | E59: =INDEX(INDIRECT(dms_RPT),dms_PRCP_start_row+5) -> 2016 | F59: CRCP_y6 | G59: =INDEX(INDIRECT(dms_RPT),dms_CRCP_start_row+5) -> 2021 | H59: FRCP_y6 | I59: =INDEX(INDIRECT(dms_RPT),dms_FRCP_start_row+5) -> 2026
B60: 1993-94 | C60: 1994 | D60: PRCP_y7 | E60: =INDEX(INDIRECT(dms_RPT),dms_PRCP_start_row+6) -> 2017 | F60: CRCP_y7 | G60: =INDEX(INDIRECT(dms_RPT),dms_CRCP_start_row+6) -> 2022 | H60: FRCP_y7 | I60: =INDEX(INDIRECT(dms_RPT),dms_FRCP_start_row+6) -> 2027
B61: 1994-95 | C61: 1995 | D61: PRCP_y8 | E61: =INDEX(INDIRECT(dms_RPT),dms_PRCP_start_row+7) -> 2018 | F61: CRCP_y8 | G61: =INDEX(INDIRECT(dms_RPT),dms_CRCP_start_row+7) -> 2023 | H61: FRCP_y8 | I61: =INDEX(INDIRECT(dms_RPT),dms_FRCP_start_row+7) -> 2028
B62: 1995-96 | C62: 1996 | D62: PRCP_y9 | E62: =INDEX(INDIRECT(dms_RPT),dms_PRCP_start_row+8) -> 2019 | F62: CRCP_y9 | G62: =INDEX(INDIRECT(dms_RPT),dms_CRCP_start_row+8) -> 2024 | H62: FRCP_y9 | I62: =INDEX(INDIRECT(dms_RPT),dms_FRCP_start_row+8) -> 2029
B63: 1996-97 | C63: 1997 | D63: PRCP_y10 | E63: =INDEX(INDIRECT(dms_RPT),dms_PRCP_start_row+9) -> 2020 | F63: CRCP_y10 | G63: =INDEX(INDIRECT(dms_RPT),dms_CRCP_start_row+9) -> 2025 | H63: FRCP_y10 | I63: =INDEX(INDIRECT(dms_RPT),dms_FRCP_start_row+9) -> 2030
B64: 1997-98 | C64: 1998 | D64: PRCP_y11 | E64: =INDEX(INDIRECT(dms_RPT),dms_PRCP_start_row+10) -> 2021 | F64: CRCP_y11 | G64: =INDEX(INDIRECT(dms_RPT),dms_CRCP_start_row+10) -> 2026 | H64: FRCP_y11 | I64: =INDEX(INDIRECT(dms_RPT),dms_FRCP_start_row+10) -> 2031
B65: 1998-99 | C65: 1999 | D65: PRCP_y12 | E65: =INDEX(INDIRECT(dms_RPT),dms_PRCP_start_row+11) -> 2022 | F65: CRCP_y12 | G65: =INDEX(INDIRECT(dms_RPT),dms_CRCP_start_row+11) -> 2027 | H65: FRCP_y12 | I65: =INDEX(INDIRECT(dms_RPT),dms_FRCP_start_row+11) -> 2032
B66: 1999-00 | C66: 2000 | D66: PRCP_y13 | E66: =INDEX(INDIRECT(dms_RPT),dms_PRCP_start_row+12) -> 2023 | F66: CRCP_y13 | G66: =INDEX(INDIRECT(dms_RPT),dms_CRCP_start_row+12) -> 2028 | H66: FRCP_y13 | I66: =INDEX(INDIRECT(dms_RPT),dms_FRCP_start_row+12) -> 2033
B67: 2000-01 | C67: 2001 | D67: PRCP_y14 | E67: =INDEX(INDIRECT(dms_RPT),dms_PRCP_start_row+13) -> 2024 | F67: CRCP_y14 | G67: =INDEX(INDIRECT(dms_RPT),dms_CRCP_start_row+13) -> 2029 | H67: FRCP_y14 | I67: =INDEX(INDIRECT(dms_RPT),dms_FRCP_start_row+13) -> 2034
B68: 2001-02 | C68: 2002 | D68: PRCP_y15 | E68: =INDEX(INDIRECT(dms_RPT),dms_PRCP_start_row+14) -> 2025 | F68: CRCP_y15 | G68: =INDEX(INDIRECT(dms_RPT),dms_CRCP_start_row+14) -> 2030 | H68: FRCP_y15 | I68: =INDEX(INDIRECT(dms_RPT),dms_FRCP_start_row+14) -> 2035
B69: 2002-03 | C69: 2003 | D69: PRCP_y16 | E69: =INDEX(INDIRECT(dms_RPT),dms_PRCP_start_row+15) -> 2026 | F69: CRCP_y16 | G69: =INDEX(INDIRECT(dms_RPT),dms_CRCP_start_row+15) -> 2031 | H69: FRCP_y16 | I69: =INDEX(INDIRECT(dms_RPT),dms_FRCP_start_row+15) -> 2036
B70: 2003-04 | C70: 2004
B71: 2004-05 | C71: 2005
B72: 2005-06 | C72: 2006 | E72: CRY - FRY
B73: 2006-07 | C73: 2007 | D73: dms_y1 | E73: =IFERROR(INDEX(INDIRECT(dms_RPT),dms_CRY_start_row),0) -> 2019
B74: 2007-08 | C74: 2008 | D74: dms_y2 | E74: =IFERROR(INDEX(INDIRECT(dms_RPT),dms_CRY_start_row+1),0) -> 2020
B75: 2008-09 | C75: 2009 | D75: dms_y3 | E75: =IFERROR(INDEX(INDIRECT(dms_RPT),dms_CRY_start_row+2),0) -> 2021
B76: 2009-10 | C76: 2010 | D76: dms_y4 | E76: =IFERROR(INDEX(INDIRECT(dms_RPT),dms_CRY_start_row+3),0) -> 2022
B77: 2010-11 | C77: 2011 | D77: dms_y5 | E77: =IFERROR(INDEX(INDIRECT(dms_RPT),dms_CRY_start_row+4),0) -> 2023
B78: 2011-12 | C78: 2012 | D78: dms_y6 | E78: =IFERROR(INDEX(INDIRECT(dms_RPT),dms_CRY_start_row+5),0) -> 2024
B79: 2012-13 | C79: 2013 | D79: dms_y7 | E79: =IFERROR(INDEX(INDIRECT(dms_RPT),dms_CRY_start_row+6),0) -> 2025
B80: 2013-14 | C80: 2014 | D80: dms_y8 | E80: =IFERROR(INDEX(INDIRECT(dms_RPT),dms_CRY_start_row+7),0) -> 2026
B81: 2014-15 | C81: 2015 | D81: dms_y9 | E81: =IFERROR(INDEX(INDIRECT(dms_RPT),dms_CRY_start_row+8),0) -> 2027
B82: 2015-16 | C82: 2016 | D82: dms_y10 | E82: =IFERROR(INDEX(INDIRECT(dms_RPT),dms_CRY_start_row+9),0) -> 2028
B83: 2016-17 | C83: 2017 | D83: dms_y11 | E83: =IFERROR(INDEX(INDIRECT(dms_RPT),dms_CRY_start_row+10),0) -> 2029
B84: 2017-18 | C84: 2018 | D84: dms_y12 | E84: =IFERROR(INDEX(INDIRECT(dms_RPT),dms_CRY_start_row+11),0) -> 2030
B85: 2018-19 | C85: 2019 | D85: dms_y13 | E85: =IFERROR(INDEX(INDIRECT(dms_RPT),dms_CRY_start_row+12),0) -> 2031
B86: 2019-20 | C86: 2020 | D86: dms_y14 | E86: =IFERROR(INDEX(INDIRECT(dms_RPT),dms_CRY_start_row+13),0) -> 2032
B87: 2020-21 | C87: 2021 | D87: dms_y15 | E87: =IFERROR(INDEX(INDIRECT(dms_RPT),dms_CRY_start_row+14),0) -> 2033
B88: 2021-22 | C88: 2022 | D88: dms_y16 | E88: =IFERROR(INDEX(INDIRECT(dms_RPT),dms_CRY_start_row+15),0) -> 2034
B89: 2022-23 | C89: 2023
B90: 2023-24 | C90: 2024
B91: 2024-25 | C91: 2025
B92: 2025-26 | C92: 2026
B93: 2026-27 | C93: 2027
B94: 2027-28 | C94: 2028
B95: 2028-29 | C95: 2029
B96: 2029-30 | C96: 2030
B97: 2030-31 | C97: 2031
B98: 2031-32 | C98: 2032
B99: 2032-33 | C99: 2033
B100: 2033-34 | C100: 2034
B101: 2034-35 | C101: 2035
B102: 2035-36 | C102: 2036
B103: 2036-37 | C103: 2037

Sheet AER ETL (hidden)
B1: AER ETL INFORMATION
B3: USES NAMED RANGES FLAG | C3: yes | D3: dms_Defined_Names_Used
B5: IF THIS IS AN ABC RIN - make sure the the named range CRY is applied and the named range dms_dollar_nom_UOM is applied
B6: IF THIS IS A RESET RIN - make sure the named ranges CRY and dms_dollar_nom_UOM are NOT present in the workbook
B7: FOR ABC RINS THAT SPAN MULTIPLE YEARS - make sure MultiYear Flag is set and final year entered as required
B9: Full trading name | C9: =INDEX(dms_TradingNameFull_List,MATCH(dms_TradingName,dms_TradingName_List)) -> AusNet Electricity Services Pty Ltd | E9: dms_TradingNameFull
B10: Trading name | C10: =dms_TradingName -> AusNet (D)
A11: Selected here | B11: Model / RIN | C11: RFM | D11: dms_Model
A12: Read from Business & other details | B12: Source | C12: =dms_Selected_Source -> Regulatory proposal | D12: dms_Source
B13: Data quality | C13: Consolidated | D13: For DB purposes this is always Consoldiated
B14: Data status | C14: Public | D14: For DB purposes this is always Public
B15: Amendment reason | C15: =dms_Amendment_Text -> . | F15: dms_AmendmentReason
B16: Submission date | C16: =dms_Typed_Submission_Date -> dd/mm/yy | D16: dms_SubmissionDate
A18: Redundant | B18: EBSS - First application of scheme in forthcoming period? | C18: No
A19: Pre-populated from lookup table | B19: Data ingestion data quality | C19: Consolidated | D19: dms_DataQuality | E19: Always Consolidated
B20: Sector | C20: =INDEX(dms_Sector_List,MATCH(dms_TradingName,dms_TradingName_List)) -> Electricity | D20: dms_Sector | E20: =INDEX(dms_Sector_List,MATCH(dms_TradingName,dms_TradingName_List))
B21: Segment | C21: =INDEX(dms_Segment_List,MATCH(dms_TradingName,dms_TradingName_List)) -> Distribution | D21: dms_Segment | E21: =INDEX(dms_Segment_List,MATCH(dms_TradingName,dms_TradingName_List))
B22: Regulatory Year Ending | C22: =dms_RYE_result -> 2020 | D22: dms_RYE | E22: =IF(dms_MultiYear_Flag=1,LEFT(dms_Specified_FinalYear,2)&RIGHT(dms_Specified_FinalYear,2),INDEX(dms_RYE_Formula_Result,MATCH(dms_Model,dms_Model_List)))
B23: Reporting Period Type | C23: =INDEX(dms_RPT_List,MATCH(dms_TradingName,dms_TradingName_List)) -> Calendar | D23: dms_RPT | E23: =INDEX(dms_RPT_List,MATCH(dms_TradingName,dms_TradingName_List))
B24: EB/CA Unit of Measure for Monetary Values | C24: $0s | D24: dms_dollar_nom_UOM | E24: If the cover sheet is attached to an ABC RIN apply the NAMED RANGE to the cell
B25: Security Classification | C25: Public | D25: dms_Classification | E25: Always Public
B26: Jurisdiction | C26: =INDEX(dms_JurisdictionList,MATCH(dms_TradingName,dms_TradingName_List)) -> Vic | D26: dms_Jurisdiction | E26: =INDEX(dms_JurisdictionList,MATCH(dms_TradingName,dms_TradingName_List))
A27: Relevant for PTRM, RFMs and Reset RINS | B27: $ REAL REFERENCES
B28: Does the named range CRY exist in this file? | C28: =IFERROR(CRY,"NO") -> NO
B29: CRY-1 (last full calendar year before CRY) | C29: =IFERROR(IF(dms_RPT="calendar",CRY-1,LEFT(CRY,4)),"CRY not present") -> CRY not present | D29: dms_Cal_Year_B4_CRY | E29: '=IF(dms_RPT="financial",VALUE(LEFT(dms_SingleYear_FinalYear_Result,4)),VALUE(LEFT(dms_SingleYear_FinalYear_Result,4)-1))
B30: Dollar $ real month | C30: =INDEX(dms_RPTMonth_List,MATCH(dms_TradingName,dms_TradingName_List)) -> December | D30: dms_RPTMonth | E30: =INDEX(dms_RPTMonth_List,MATCH(dms_TradingName,dms_TradingName_List))
B31: Dollar $ real (the last month before the FRCP_y1) | C31: =IF(dms_SingleYearModel="yes",CONCATENATE(dms_RPTMonth)&" "&VALUE((LEFT(dms_CRY_start_year,2)&RIGHT(dms_CRY_start_year,2))),CONCATENATE(dms_RPTMonth)&" "&dms_DollarReal_year) -> December 2020 | D31: dms_DollarReal | E31: =IF(SUM(dms_SingleYear_Model)>0,CONCATENATE(dms_RPTMonth)&" "&VALUE((LEFT(CRY,2))&RIGHT(CRY,2)),CONCATENATE(dms_RPTMonth)&" "&VALUE((LEFT(dms_RYE,2)&RIGHT(dms_RYE,2))))
B32: Dollar $ real previous year (PRCP_y5) | C32: =CONCATENATE(dms_RPTMonth)&" "&dms_Previous_DollarReal_year -> December 2015 | D32: dms_DollarReal_Prev | E32: =IF(SUM(dms_SingleYear_Model)>0,CONCATENATE(dms_RPTMonth)&" "&VALUE(((LEFT(CRY,2))&RIGHT(CRY,2))-1),CONCATENATE(dms_RPTMonth)&" "&VALUE(((LEFT(dms_CRCP_FirstYear_Result,2)&RIGHT(dms_CRCP_FirstYear_Result,2))))-1)
B33: PTRM/ RFMs
B34: Form of control | C34: =INDEX(dms_FormControl_List,MATCH(dms_TradingName,dms_TradingName_List)) -> Revenue cap | D34: dms_FormControl | E34: =INDEX(dms_FormControl_List,MATCH(dms_TradingName,dms_TradingName_List))
A35: All potential values for Regulatory Years or RYEs as calculated | B35: This block works out the various RYE's for ALL RIN types and MODELS
B36: dms_start_year | C36: =FRCP_y1 -> 2021 | D36: =FRCP_y1 | E36: FRCP_y1 from cover sheet
B37: dms_CRY_start_year | C37: =IFERROR(CRY,CRCP_y4) -> 2019 | D37: =IFERROR(CRY,CRCP_y4)
B38: dms_CRY_start_row | C38: =IFERROR(MATCH(dms_CRY_start_year,INDIRECT(dms_RPT),0),0) -> 32 | D38: =IFERROR(MATCH(dms_CRY_start_year,INDIRECT(dms_RPT),0),0)
B39: dms_FRCP_start_row | C39: =MATCH(dms_start_year,INDIRECT(dms_RPT),0) -> 34 | D39: =MATCH(dms_start_year,INDIRECT(dms_RPT),0) | E39: Uses FRCP_y1 as a start reference
B40: dms_CRCP_start_row | C40: =dms_FRCP_start_row-dms_CRCPlength_Num -> 29 | D40: =dms_FRCP_start_row-dms_CRCPlength_Num | E40: Uses the value in dms_CRCPlength_Num
B41: dms_PRCP_start_row | C41: =dms_FRCP_start_row-dms_CRCPlength_Num-dms_PRCPlength_Num -> 24 | D41: =dms_FRCP_start_row-dms_CRCPlength_Num-dms_PRCPlength_Num | E41: Uses the value in dms_CRCPlength_Num and dms_PRCPlength_Num
B42: dms_RYE_start_row | C42: =dms_FRCP_start_row+(dms_FRCPlength_Num-1) -> 38 | D42: =dms_FRCP_start_row+(dms_FRCPlength_Num-1) | E42: Uses the value in dms_FRCPlength_Num-1
B43: FRCP_start_year | C43: =INDEX(INDIRECT(dms_RPT),dms_FRCP_start_row) -> 2021 | D43: =INDEX(INDIRECT(dms_RPT),dms_FRCP_start_row) | E43: Converts the FRCP start row to display the year
B44: CRCP_start_year | C44: =INDEX(INDIRECT(dms_RPT),dms_CRCP_start_row) -> 2016 | D44: =INDEX(INDIRECT(dms_RPT),dms_CRCP_start_row) | E44: Converts the CRCP start row to display the year
B45: PRCP_start_year | C45: =INDEX(INDIRECT(dms_RPT),dms_PRCP_start_row) -> 2011 | D45: =INDEX(INDIRECT(dms_RPT),dms_PRCP_start_row) | E45: Converts the PRCP start row to display the year
B46: FRCP_final_year | C46: =INDEX(INDIRECT(dms_RPT),dms_FRCP_start_row+dms_FRCPlength_Num-1) -> 2025 | D46: =INDEX(INDIRECT(dms_RPT),dms_FRCP_start_row+dms_FRCPlength_Num-1) | E46: Finds the FRCP final year
B47: CRCP_final_year | C47: =INDEX(INDIRECT(dms_RPT),dms_CRCP_start_row+dms_CRCPlength_Num-1) -> 2020 | D47: =INDEX(INDIRECT(dms_RPT),dms_CRCP_start_row+dms_CRCPlength_Num-1) | E47: Finds the CRCP final year
B48: PRCP_final_year | C48: =INDEX(INDIRECT(dms_RPT),dms_PRCP_start_row+dms_FRCPlength_Num-1) -> 2015 | D48: =INDEX(INDIRECT(dms_RPT),dms_PRCP_start_row+dms_FRCPlength_Num-1) | E48: Finds the PRCP final year
B49: dms_Reset_final_year | C49: =INDEX(INDIRECT(dms_RPT),dms_RYE_start_row) -> 2025 | D49: =INDEX(INDIRECT(dms_RPT),dms_RYE_start_row) | E49: For Resets and PTRM/RFMs (same as FRCP_final_year)
B50: dms_SpecifiedYear_final_year | C50: =FRY ->  | D50: =FRY | E50: FRY from cover sheet
B51: dms_DollarReal_year | C51: =LEFT(CRCP_final_year,2)&RIGHT(CRCP_final_year,2) -> 2020 | D51: =LEFT(CRCP_final_year,2)&RIGHT(CRCP_final_year,2) | E51: Uses the value in CRCP_final_year
B52: dms_Previous_DollarReal_year | C52: =LEFT(PRCP_final_year,2)&RIGHT(PRCP_final_year,2) -> 2015 | D52: =LEFT(PRCP_final_year,2)&RIGHT(PRCP_final_year,2) | E52: Uses the value in PRCP_final_year
B53: dms_CRY_RYE | C53: =IFERROR(LEFT(CRY,2)&RIGHT(CRY,2),0) -> 0 | D53: =IFERROR(LEFT(CRY,2)&RIGHT(CRY,2),0) | E53: For ABC single year RINS
B54: dms_Reset_RYE | C54: =IF(dms_Model_Span>1,IF(dms_Model="RFM",(LEFT(dms_DollarReal_year,2)&RIGHT(dms_DollarReal_year,2)),(LEFT(dms_Reset_final_year,2)&RIGHT(dms_Reset_final_year,2))),0) -> 2020 | D54: =IF(dms_Model_Span>1,IF(dms_Model="RFM",(LEFT(dms_DollarReal_year,2)&RIGHT(dms_DollarReal_year,2)),(LEFT(dms_Reset_final_year,2)&RIGHT(dms_Reset_final_year,2))),0) | E54: If model span > 1 then uses dms_Reset_RYE otherwise it's a multi year ABC and uses dms_Specified_RYE
B55: dms_Specified_RYE | C55: =IF(dms_MultiYear_ResponseFlag="Yes",(LEFT(dms_Specified_FinalYear,2)&RIGHT(dms_Specified_FinalYear,2)),0) -> 0 | D55: =IF(dms_MultiYear_ResponseFlag="Yes",(LEFT(dms_Specified_FinalYear,2)&RIGHT(dms_Specified_FinalYear,2)),0) | E55: If multi year ABC - uses dms_Specified_FinalYear
B56: dms_Model_Span | C56: =INDEX(dms_Model_Span_List,MATCH(dms_Model,dms_Model_List)) -> 5 | D56: =INDEX(dms_Model_Span_List,MATCH(dms_Model,dms_Model_List)) | E56: A result of 5 is used to signify that it is more than 1 year span
B57: dms_RYE_result | C57: =IF(dms_MultiYear_ResponseFlag="yes",dms_Specified_RYE,(IF(dms_Model_Span>1,dms_Reset_RYE,dms_CRY_RYE))) -> 2020 | D57: =IF(dms_MultiYear_ResponseFlag="yes",dms_Specified_RYE,(IF(dms_Model_Span>1,dms_Reset_RYE,dms_CRY_RYE))) | E57: Nested IF - feeds into dms_RYE
B58: dms_Reset_Span | C58: =IF(dms_Reset_RYE>0,CONCATENATE(FRCP_y1," to ",FRCP_final_year),0) -> 2021 to 2025 | D58: =IF(dms_Reset_RYE>0,CONCATENATE(FRCP_y1," to ",FRCP_final_year),0) | E58: Reset span of years as text
B59: dms_SpecifiedYear_Span | C59: =IF(dms_Specified_RYE>0,CONCATENATE(CRY," to ",dms_Specified_FinalYear),0) -> 0 | D59: =IF(dms_Specified_RYE>0,CONCATENATE(CRY," to ",dms_Specified_FinalYear),0) | E59: Multi year ABC span of years as text
B60: dms_Header_Span | C60: =IF(dms_MultiYear_Flag=1,dms_SpecifiedYear_Span,IF(dms_Model_Span>1,dms_y1&" - "&FRCP_final_year,CRY)) -> 2019 - 2025 | D60: =IF(dms_MultiYear_Flag=1,dms_SpecifiedYear_Span,IF(dms_Model_Span>1,dms_Reset_Span,CRY)) | E60: NESTED IF - for Sheet Headers
B61: ABC RINS THAT SPAN MULTIPLE YEARS
B62: This is a multi year ABC RIN? | C62: No
C63: =IF(dms_MultiYear_ResponseFlag="No",0,1) -> 0 | D63: dms_MultiYear_Flag | E63: This is set from the answer provided above
C64: =IF(dms_MultiYear_Flag=1,FRY,"not a Multiple year submission") -> not a Multiple year submission | D64: dms_Specified_FinalYear | E64: The result here is returned to dms_CRCP_FinalYear_Result if response to Q in C73 is "yes" and dms_MultiYear_Flag is set to 1
B65: Start year for 5.2 in Multi year ABC RINS | C65: =IFERROR(IF(dms_MultiYear_Flag=1,FRY,CRY),"not an ABC") -> not an ABC | D65: dms_0502_Inst_Year | E65: =IF(dms_MultiYear_Flag=1,FRY,CRY) | G65: For single year RINS this is CRY - multi year RINS need to start a the end of the span of years (ie. FRY)
B66: WHAT IS THE RYE?
B67: Reg Period Lengths
B68: PRCP length in years | C68: =INDEX(dms_PRCPlength_List,MATCH(dms_TradingName,dms_TradingName_List)) -> 5 | D68: dms_PRCPlength_Num | E68: =INDEX(dms_PRCPlength_List,MATCH(dms_TradingName,dms_TradingName_List))
B69: CRCP length in years | C69: =INDEX(dms_CRCPlength_List,MATCH(dms_TradingName,dms_TradingName_List)) -> 5 | D69: dms_CRCPlength_Num | E69: =INDEX(dms_CRCPlength_List,MATCH(dms_TradingName,dms_TradingName_List))
B70: FRCP length in years | C70: =INDEX(dms_FRCPlength_List,MATCH(dms_TradingName,dms_TradingName_List)) -> 5 | D70: dms_FRCPlength_Num | E70: =INDEX(dms_FRCPlength_List,MATCH(dms_TradingName,dms_TradingName_List))
B71: Single year RIN?
B72: Single Year ABC RIN ? | C72: =IF(dms_Model="EB",1,0) -> 0 | D72: dms_EB
C73: =IF(dms_Model="CA",1,0) -> 0 | D73: dms_CA | E73: =dms_SingleYear_Model
C74: =IF(dms_Model="ARR",1,0) -> 0 | D74: dms_ARR
B75: Is this a single Year ABC RIN? | C75: =IF(SUM(dms_SingleYear_Model)=1,"yes","no") -> no | D75: dms_SingleYearModel | E75: =IF(SUM(dms_SingleYear_Model)=1,"yes","no")
B76: Single Year Final Year Result | C76: =IF(AND(dms_SingleYearModel="yes",dms_MultiYear_Flag=0),CRY,0) -> 0 | D76: dms_SingleYear_FinalYear_Result | E76: =IFERROR(IF(SUM(dms_SingleYear_Model)<>0,(INDIRECT(dms_SingleYear_FinalYear_Ref)),"not a single year RIN"),"CRY not present")
B77: Multi year RIN?
B79: Multi Year Reset/Model? | C79: =IF(dms_Model_Span>1,"yes","no") -> yes
B80: Final year result for Reset/Model | C80: =IF(dms_Model_Span>1,dms_Reset_final_year,0) -> 2025 | D80: dms_MultiYear_FinalYear_Result | E80: dms_CRCP_FinalYear_Result
B82: Multi Year ABC RIN? | C82: =IF(dms_MultiYear_Flag=1,"yes","no") -> no | D82: dms_MultiYear_ABC_RIN
B83: Final year result for ABC multi year | C83: =IF(dms_MultiYear_Flag=1,C50,0) -> 0
B85: EB RINS
B86: Calendar Year for table 3.6 data | C86: =IFERROR(IF(dms_Segment="Transmission",dms_Cal_Year_B4_CRY,CRY),"CRY not present") -> CRY not present | D86: dms_0306_Year | E86: =IF(dms_Segment="Transmission",dms_Cal_Year_B4_CRY,CRY)
B87: CA RINS
B88: Find how many rows in tables 6.3 sustained interruptions? | E88: dms_060301_MaxRows only returns a valid value when cover sheet is attached to a CA file
C89: =IF(dms_Model<>"CA","not a CA","Is a CA") -> not a CA | E89: =IF(dms_Model<>"CA","not a CA","Is a CA")
B90: dms_060301_Avg_Duration_Sustained_Int_Values present? | C90: =IFERROR(IF(INDEX(dms_060301_Avg_Duration_Sustained_Int_Values,1,1)<>"","yes","no"),"no") -> no | D90: dms_060301_checkvalue | E90: =IFERROR(IF(INDEX(dms_060301_Avg_Duration_Sustained_Int_Values,1,1)<>"","yes","no"),"no")
C91: =IF(AND(dms_Model="CA",(dms_060301_checkvalue="no")),"error - NR not present","no errors") -> no errors | E91: =IF(AND(dms_Model="CA",(dms_060301_checkvalue="no")),"error - NR not present","no errors")
B92: Table 6.3.1 - last row reference | C92: =IFERROR(IF(dms_Model="CA",LOOKUP(2,1/(dms_060301_Avg_Duration_Sustained_Int_Values<>""),(ROW(dms_060301_Avg_Duration_Sustained_Int_Values))),"not a CA"),"6.3 not present") -> not a CA | D92: dms_060301_LastRow | E92: =IFERROR(IF(dms_Model="CA",LOOKUP(2,1/(dms_060301_Avg_Duration_Sustained_Int_Values<>""),(ROW(dms_060301_Avg_Duration_Sustained_Int_Values))),"not a CA"),"6.3 not present")
B93: Table 6.3.1 - max number rows | C93: =IFERROR(IF(dms_Model="CA",(dms_060301_LastRow-15),"not a CA"),"error") -> not a CA | D93: dms_060301_MaxRows | E93: =IFERROR(IF(dms_Model="CA",(dms_060301_LastRow-15),"not a CA"),"error")
B94: Table 6.6.3 - Public lighting repair - no. business days | C94: =INDEX(dms_663_List,MATCH(dms_TradingName,dms_TradingName_List)) -> 2 | D94: dms_663 | E94: =INDEX(dms_663_List,MATCH(dms_TradingName,dms_TradingName_List))
B95: ARR or RESET RINS
B96: How many rows in tables 6.1 or 6.7? (leap year?) | C96: insert dms_LeapYear NR if required | E96: 'dms_LeapYear is used to determine dms_060701_Max_Rows BUT it is only found on worksheet 6.1 or 6.7 and the date value in the cell is used to determine whether it is a leap year
B97: Is dms_LeapYear named range present? | C97: =IFERROR(IF(dms_LeapYear,"yes"),"no") -> no
B98: Table 6.7.1 - includes a leap year? | C98: =IFERROR(IF(MONTH(DATE(YEAR(dms_LeapYear),2,29))=2,"is a leap year","not a leap year"), "dms_LeapYear not present") -> dms_LeapYear not present | D98: dms_LeapYear_Result | E98: =IFERROR(IF(MONTH(DATE(YEAR(dms_LeapYear),2,29))=2,"is a leap year","not a leap year"),"dms_LeapYear not present")
B99: MaxRows if Reset and leap year | C99: =IF(dms_LeapYear_Result="is a leap year",1827,1826) -> 1826 | D99: dms_060701_Reset_MaxRows | E99: =IF(dms_LeapYear_Result="is a leap year",1827,1826) | H99: number of days present in Reset RIN table
B100: MaxRows if ARR and leap year | C100: =IF(dms_LeapYear_Result="is a leap year",366,365) -> 365 | D100: dms_060701_ARR_MaxRows | E100: =IF(dms_LeapYear_Result="is a leap year",366,365) | H100: number of days present in ARR RIN table
B101: Table 6.7.1 - Max Rows (leap year/ non leap year) | C101: =IF(dms_Model="ARR",dms_060701_ARR_MaxRows,IF(dms_Model="Reset",dms_060701_Reset_MaxRows,"not a relevant RIN type")) -> not a relevant RIN type | D101: dms_060701_MaxRows | E101: =IF(dms_Model="ARR",dms_060701_ARR_MaxRows,IF(dms_Model="Reset",dms_060701_Reset_MaxRows,"not a relevant RIN type"))
B102: How many columns in 6.7? (4 or 5 feeder categories) | C102: =IF(dms_FifthFeeder_flag_NSP="NO","This NSP has only 4 feeder categories","This NSP has 5 feeder categories") -> This NSP has only 4 feeder categories
B103: Table 6.7.1 - Last column (# of feeder categories > 4) | C103: =IF(dms_FifthFeeder_flag_NSP="NO",10,12) -> 10 | D103: dms_060701_MaxCols | E103: =IF(dms_FifthFeeder_flag_NSP="NO",8,10)
B104: Table 6.7.1 - Number of offset rows | C104: =IF(dms_Model="ARR",15,9) -> 9 | D104: dms_060701_OffsetRows | E104: =IF(dms_Model="ARR",15,9)
B105: Start date for telephone answering in 6.1 or 6.7? | E105: Using 060101 as naming standard not 060701 for start dates
B106: Table 6.1.1 and 6.7.1 - Start Date as Text | C106: =IF(dms_SingleYearModel="yes",(CONCATENATE(IF(LEN(CRY)=4,"1-Jan-","1-Jul-"),LEFT(CRY,4))),(CONCATENATE(IF(LEN(PRCP_y4)=4,"1-Jan-","1-Jul-"),LEFT(PRCP_y4,4)))) -> 1-Jan-2014 | D106: dms_060101_StartDateTxt | E106: =IF(SUM(dms_SingleYear_Model)>1,(CONCATENATE(IF(LEN(CRY)=4,"1-Jan-","1-Jul-"),LEFT(CRY,4))),(CONCATENATE(IF(LEN(CRCP_y4)=4,"1-Jan-","1-Jul-"),LEFT(CRCP_y4,4))))
B107: Table 6.1.1 and 6.7.1 - Start Date as Date Value | C107: =DATEVALUE(dms_060701_StartDateTxt) -> 41640 | D107: dms_060101_StartDateVal | E107: =DATEVALUE(dms_060701_StartDateTxt)
B108: ARRs
B109: How many rows in table 6.8? | C109: insert dms_060801_StartCell NR if required | E109: dms_060801_StartCell is only found on worksheet 6.8 and is used to determine the starting date for the date range
B110: Is dms_060801_StartCell named range present? | C110: yes | E110: =IFERROR(IF((ROW(dms_060801_StartCell)-1)=1,"yes","yes"),"no")
B111: Table 6.8 - Number of offset rows | C111: 12 | D111: dms_0608_OffsetRows | E111: =IFERROR(IF(dms_Model="ARR",(ROW(dms_060801_StartCell)-1),"not an ARR"),"6.8 error")
B112: Table 6.8 - Last row | C112: 0 | D112: dms_0608_LastRow | E112: =IFERROR(IF(dms_060801_StartCell<>"",IF(dms_Model="ARR",(LOOKUP(2,1/(dms_060801_01_Values<>""),(ROW(dms_060801_01_Values)))),"not an ARR"),0),"0")
B113: Table 6.8 - MaxRows | C113: =IFERROR(IF(dms_Model="ARR",(MAX(0,dms_0608_LastRow-dms_0608_OffsetRows)),"not an ARR"),"0") -> not an ARR | D113: dms_060801_MaxRows | E113: =IFERROR(IF(dms_Model="ARR",(MAX(0,dms_0608_LastRow-dms_0608_OffsetRows)),"not an ARR"),"0")
B114: TNSP RESET RINS
B115: Table 7.9.4 only appears in TNSPs Reset RIN
B116: Table 7.9.4 - first year | C116: =LEFT(PRCP_y3,4) -> 2013 | D116: dms_070904_Start_Year | E116: =LEFT(PRCP_y3,4)
B118: MISC
B119: Distribution Determination Reference | C119: =INDEX(dms_DeterminationRef_List,MATCH(dms_TradingName,dms_TradingName_List)) -> 2016-20 Distribution Determination | D119: dms_DeterminationRef
B120: Public lighting NSP? | C120: =INDEX(dms_Public_Lighting_List,MATCH(dms_TradingName,dms_TradingName_List)) -> YES | D120: dms_Public_Lighting | E120: =INDEX(dms_Public_Lighting_List,MATCH(dms_TradingName,dms_TradingName_List))
B121: CBD Feeder for this business | C121: =INDEX(dms_CBD_flag,MATCH(dms_TradingName,dms_TradingName_List)) -> NO | D121: dms_CBD_flag_NSP
B122: Urban Feeder for this business | C122: =INDEX(dms_Urban_flag,MATCH(dms_TradingName,dms_TradingName_List)) -> YES | D122: dms_Urban_flag_NSP
B123: Short rural Feeder for this business | C123: =INDEX(dms_ShortRural_flag,MATCH(dms_TradingName,dms_TradingName_List)) -> YES | D123: dms_ShortRural_flag_NSP
B124: Long rural Feeder for this business | C124: =INDEX(dms_LongRural_flag,MATCH(dms_TradingName,dms_TradingName_List)) -> YES | D124: dms_LongRural_flag_NSP
B125: Fifth Feeder Category (eg. TasNetworks (D)) | C125: =INDEX(dms_FeederType_5_flag,MATCH(dms_TradingName,dms_TradingName_List)) -> NO | D125: dms_FifthFeeder_flag_NSP | E125: =INDEX(dms_FeederType_5_flag,MATCH(dms_TradingName,dms_TradingName_List))
B127: DISCARD FILES
B128: discard this record? | C128: NO | D128: dms_DISCARD | E128: If record is to be discarded from DB set this flag to YES
B130: SUBSET FILES
B131: Is this Submission File a Subset File | C131: NO | D131: dms_Partial
B134: REGULATORY YEARS FOR MULTI RYE SUBMISSIONS
B135: Multiple RYE flag | C135: NO | D135: dms_Multi_RYE_flag
C136: Manually specify RYE | D136: Named ranges to apply
C137: 2013 | D137: dms_RYE_01
C138: 2014 | D138: dms_RYE_02
C139: 2015 | D139: dms_RYE_03
C140: 2016 | D140: dms_RYE_04
C141: 2017 | D141: dms_RYE_05
C142: 2018 | D142: dms_RYE_06
C143: 2019 | D143: dms_RYE_07
C144: 2020 | D144: dms_RYE_08
C145: 2021 | D145: dms_RYE_09

Sheet Business & other details (hidden)
V1: =INDEX(dms_Worksheet_List,MATCH(dms_Model,dms_Model_List)) -> ROLL FORWARD MODEL
V2: =INDEX(dms_TradingNameFull_List,MATCH(dms_TradingName,dms_TradingName_List)) -> AusNet Electricity Services Pty Ltd
V3: =dms_Header_Span -> 2019 - 2025
V4: BUSINESS & OTHER DETAILS
V6: INSTRUCTIONS
V7: Complete the following business details regulatory template before entering data or values in any other regulatory template. This regulatory template is linked to other cells within the spreadsheet and automatically generates column headings and conditional formatting to distinguish business specific input and non-input cells.
Q9: SUBMISSION PARTICULARS INPUT SHEET
V12: ENTITY DETAILS
V14: Business Name
V16: Short name | AL16: ='DMS input'!C14 -> AusNet (D)
V17: ACN/ABN | AL17: =INDEX(dms_ABN_List,MATCH(dms_TradingName,dms_TradingName_List)) -> 91064651118
V21: Business Address | BQ21: Postal Address
V23: Address 1 | AL23: =INDEX(dms_Addr1_List,MATCH(dms_TradingName,dms_TradingName_List)) -> Level 32 | BI23: Address 1 | BQ23: =INDEX(dms_PAddr1_List,MATCH(dms_TradingName,dms_TradingName_List)) -> Locked Bag 14051
V24: Address 2 | AL24: =IF(ISBLANK(INDEX(dms_Addr2_List,MATCH(dms_TradingName,dms_TradingName_List))),"",(INDEX(dms_Addr2_List,MATCH(dms_TradingName,dms_TradingName_List)))) -> 2 Southbank Boulevard | BI24: Address 2 | BQ24: =IF(ISBLANK(INDEX(dms_PAddr2_List,MATCH(dms_TradingName,dms_TradingName_List))),"",(INDEX(dms_PAddr2_List,MATCH(dms_TradingName,dms_TradingName_List)))) -> 
V25: Suburb | AL25: =INDEX(dms_Suburb_List,MATCH(dms_TradingName,dms_TradingName_List)) -> SOUTHBANK | BI25: Suburb | BQ25: =INDEX(dms_PSuburb_List,MATCH(dms_TradingName,dms_TradingName_List)) -> MELBOURNE CITY MAIL CENTRE
V26: State | AL26: =INDEX(dms_State_List,MATCH(dms_TradingName,dms_TradingName_List)) -> Vic | AV26: Post code | BI26: State | BQ26: =INDEX(dms_PState_List,MATCH(dms_TradingName,dms_TradingName_List)) -> Vic | CA26: Post code
BA28: `
V30: Contact Names
V32: Name | AL32: -- enter name -- | BI32: Name | BQ32: -- enter name --
V33: Phone | AL33: -- enter phone number -- | BI33: Phone | BQ33: -- enter phone number --
V34: Email | AL34: -- enter email address -- | BI34: Email | BQ34: -- enter email address --
Q39: REGULATORY CONTROL PERIODS
Z42: Forthcoming period | AL42: 2021 | AU42: =FRCP_y2 -> 2022 | BD42: =FRCP_y3 -> 2023 | BM42: =FRCP_y4 -> 2024 | BV42: =FRCP_y5 -> 2025
AL43: =FRCP_y6 -> 2026 | AU43: =FRCP_y7 -> 2027 | BD43: =FRCP_y8 -> 2028 | BM43: =FRCP_y9 -> 2029 | BV43: =FRCP_y10 -> 2030
AL44: =FRCP_y11 -> 2031 | AU44: =FRCP_y12 -> 2032 | BD44: =FRCP_y13 -> 2033 | BM44: =FRCP_y14 -> 2034 | BV44: =FRCP_y15 -> 2035
X46: RESETS | Z46: Current period | AL46: =CRCP_y1 -> 2016 | AU46: =CRCP_y2 -> 2017 | BD46: =CRCP_y3 -> 2018 | BM46: =CRCP_y4 -> 2019 | BV46: =CRCP_y5 -> 2020
AL47: =CRCP_y6 -> 2021 | AU47: =CRCP_y7 -> 2022 | BD47: =CRCP_y8 -> 2023 | BM47: =CRCP_y9 -> 2024 | BV47: =CRCP_y10 -> 2025
AL48: =CRCP_y11 -> 2026 | AU48: =CRCP_y12 -> 2027 | BD48: =CRCP_y13 -> 2028 | BM48: =CRCP_y14 -> 2029 | BV48: =CRCP_y15 -> 2030
Z50: Previous period | AL50: =PRCP_y1 -> 2011 | AU50: =PRCP_y2 -> 2012 | BD50: =PRCP_y3 -> 2013 | BM50: =PRCP_y4 -> 2014 | BV50: =PRCP_y5 -> 2015
AL51: =PRCP_y6 -> 2016 | AU51: =PRCP_y7 -> 2017 | BD51: =PRCP_y8 -> 2018 | BM51: =PRCP_y9 -> 2019 | BV51: =PRCP_y10 -> 2020
Q54: SUBMISSION DETAILS
Z56: RIN type | AL56: =INDIRECT(dms_Model) -> Roll Forward Model
Z58: Source | AL58: Regulatory proposal
X60: THIS FILE | Z60: Data Quality | AL60: Consolidated
Z62: Confidentiality Status | AL62: Public
Z64: Amended RIN Amendment Reason | AL64: .
Z68: Submission Date | AL68: dd/mm/yy | BD68: Please enter date this file submitted to AER

Sheet Intro
G2: Electricity Distribution Network Service Provider
I3: Roll Forward Model
L4: Version: | M4: 3
L5: Date: | M5: April 2020
B8: Introduction | J8: Electricity Distribution Model
C14: This model is used by the AER to determine the opening regulatory and tax asset bases for a distribution network service provider. It also calculates the weighted average remaining asset lives for regulatory and tax purposes using the asset values as weights.
C15: The roll forward of the asset base is undertaken in nominal terms.
C17: INSTRUCTIONS FOR USE
C18: The RFM handbook is available on the AER website at http://www.aer.gov.au
C20: a. Fill out input cells on the 'DMS Input' sheet. These input cells are highlighted blue.
C21: This provides information on the service provider submitting the RFM and the context for the RFM preparation.
C22: This information also controls the automatic import of the RFM into the AER's Data Management System (DMS).
C24: b. Fill out input cells on the 'RFM Input' sheet. These input cells are highlighted blue.
C25: This provides the data for the RFM calculations.
C26: In general, input expenditure data should be valued in nominal dollar terms of the year indicated.
C27: Units and basis for entry are specified where required for each data table.
C29: c. The values in the 'PTRM input summary' sheet
C30: This sheet summarises the key outputs of the RFM. These include the opening regulatory and tax asset values, and remaining asset lives. They become the inputs to the PTRM.
C33: VERSION RECORD
C35: Version | D35: Date | F35: Description
C36: 1 | D36: June 2008 | F36: Initial model
C38: 2 | D38: December 2016 | F38: Added new input sections for end of period adjustments, and removed redundant inputs
F39: Built-in option to select actual or forecast depreciation approach for the RAB roll forward
F40: Adjusted depreciation calculation formula in the RAB roll forward and TAB roll forward period start date
F41: Updated inputs to handle different annual WACCs due to time-varying return on debt
F42: Added calculations of weighted average remaining lives for RAB and TAB to individually track capex over multiple periods
F43: Enabled automatic import into AER DMS
C45: 3 | D45: April 2020 | F45: Changes made to accommodate the final tax report findings including immediiate expensing and diminishing value approach to tax depreciation
F46: Built-in option to select actual or forecasat depreciation approach for the TAB roll forward
F47: Added t-2 ex-post review of capex true-up calculations
F48: Attached an additional file to the RFM for the AER approach to year-by-year tracked depreciation

Sheet DMS input
B2: =$C$16&" - DMS Input"&" - DNSP RFM - version "&Intro!$M$4 -> AusNet (D) - DMS Input - DNSP RFM - version 3 | G2: Input cells are in blue
B6: This sheet requests information that allows the AER to automatically import the RFM into our data management system (DMS).
B7: This sheet's metadata relates to the business and context for the RFM (rather than the RFM itself).
B8: Only change blue input cells. To facilitate the automatic import, please do not delete or add rows on this sheet.
B9: Throughout the rest of the workbook, defined name ranges are used to identify data that is imported into the DMS.
B12: Entity details
B14: Trading name | C14: AusNet (D)
B15: ACN / ABN | C15: =INDEX(dms_ABN_List,MATCH(dms_TradingName,dms_TradingName_List)) -> 91064651118
B16: Business short name | C16: AusNet (D)
B19: Regulatory process details
B22: Source | C22: Final decision
B23: Amended model submission - reason

Sheet AER amendments
A1: The AER's final decision amendments are highlighted in blue
A2: # | B2: Sheet | C2: Reference | D2: Notes
A3: 1 | B3: Inputs working | C3: E6, E7, G7, H61:H109 | D3: Minor corrections to align with annual RIN reporting FY2022, FY2024 and AIO FY2025.
A4: 2 | B4: RFM input | C4: I358:L359 | D4: Updated slightly to match the depreciation model.
A5: 3 | B5: RFM input | C5: L361, L406 | D5: Updated to be consistent with FTA CTP update.
A6: 4 | B6: RFM input | C6: I358:L359 | D6: Updated to be consistent with the updated depreciation model

Sheet RFM input
E2: ='DMS input'!$C$16&" - RFM Input"&" - DNSP RFM - version "&Intro!$M$4 -> AusNet (D) - RFM Input - DNSP RFM - version 3 | G2: Input cells are in blue
J3: Modifications to base AER model | K3: Final decision
E5: ="Opening Regulatory Asset Base for "&IF(LEN($Y$7)>4,CONCATENATE(LEFT($Y$7,4)-1&"-"&IF($Y$7>"2009-10",,"0")&RIGHT($Y$7,2)-1),$Y$7-1)&" and Opening Tax Asset Base for "&$Y$7&" ($m Nominal)" -> Opening Regulatory Asset Base for 2020-21 and Opening Tax Asset Base for 2021-22 ($m Nominal)
F6: Asset Class Name | I6: Opening Asset Value (2020) | J6: Average Remaining Life (Year) | K6: Standard Life (Year) | L6: Forecast Net Capex (2020) | M6: Forecast Regulatory Depreciation (2020) | N6: Forecast Capital Contributions (2020) | O6: Forecast Net Capex (HY2021) | P6: Forecast Regulatory Depreciation (HY2021) | Q6: Forecast Capital Contributions (HY2021) | R6: Difference in Final Year (2015) Capex in 2020 terms | S6: Return on Difference in Final Year (2015) Capex in 2020 terms | T6: Other Final Year Adjustments | U6: Opening Tax Asset Value | V6: Average Tax Remaining Life (Year) | W6: Tax Standard Life (Year) | X6: Tax Standard Life for Previous Regulatory Control Period (Year) | Y6: Base Regulatory Year | Z6: Length of Regulatory Control Period (Year)
E7: Asset Class 1 | F7: Subtransmission | I7: 600.3583924 | J7: n/a | K7: 45 | L7: 67.241073 | M7: 11.50471944 | N7: 10.93820359 | O7: 30.04909793 | P7: 1.601281529 | Q7: 5.102221286 | R7: -49.70335168 | S7: -15.14124546 | T7: -55.36724338 | U7: 458.3632802 | V7: 36.11336441 | W7: 43 | X7: 43 | Y7: 2021-22 | Z7: 5
E8: Asset Class 2 | F8: Distribution system assets | I8: 3518.810572 | J8: n/a | K8: 50 | L8: 172.1389848 | M8: 63.55815131 | N8: 58.17653043 | O8: 100.832092 | P8: 17.34617451 | Q8: 28.54938187 | R8: -2.320930759 | S8: -0.7070304343 | T8: -153.7335426 | U8: 2770.338816 | V8: 34.86250044 | W8: 46 | X8: 46
E9: Asset Class 3 | F9: SCADA/Network control | I9: 79.64960265 | J9: n/a | K9: 10 | L9: 39.51483962 | M9: 7.146405808 | N9: 0 | O9: 16.63523412 | P9: 4.378322566 | Q9: 0 | R9: -2.860586473 | S9: -0.8714269861 | T9: 0 | U9: 119.2707798 | V9: 8.323247143 | W9: 10 | X9: 10
E10: Asset Class 4 | F10: Non-network general assets - IT | I10: 82.53134486 | J10: n/a | K10: 5 | L10: 66.05548783 | M10: 40.84142105 | N10: 0 | O10: 47.67890781 | P10: 17.39478652 | Q10: 0 | R10: 13.12469867 | S10: 3.99820691 | T10: 0 | U10: 147.6669587 | V10: 3.215956204 | W10: 4 | X10: 4
E11: Asset Class 5 | F11: Non-network general assets - Other | I11: 11.65156776 | J11: n/a | K11: 5 | L11: 3.558000272 | M11: 5.201386659 | N11: 0 | O11: 3.421783725 | P11: 3.419778356 | Q11: 0 | R11: 3.70616263 | S11: 1.129016781 | T11: 0 | U11: 27.22200339 | V11: 7.187385551 | W11: 12 | X11: 12
E12: Asset Class 6 | F12: Land | I12: 0.05772524373 | J12: n/a | K12: n/a | L12: 0 | M12: -0.0009195171567 | N12: 0 | O12: 0.02075534136 | P12: -0.0007151800108 | Q12: 0 | R12: 0 | S12: 0 | T12: 0 | U12: 11.38990038 | V12: n/a | W12: n/a | X12: n/a
E13: Asset Class 7 | F13: Secondary systems (pre 2016) | I13: 0 | J13: n/a | K13: 15 | L13: 0 | M13: 0 | N13: 0 | O13: 0 | P13: 0 | Q13: 0 | R13: 0 | S13: 0 | T13: 196.6445137 | U13: 114.7418478 | V13: 5.3 | W13: n/a | X13: n/a
E14: Asset Class 8 | F14: Accelerated Depr - Subtr (forecast period) | I14: 0.1253509022 | J14: n/a | K14: n/a | L14: 0 | M14: 0.1253509022 | N14: 0 | O14: 0 | P14: 3.384826295e-19 | Q14: 0 | R14: 0 | S14: 0 | T14: 0 | U14: 0 | V14: 0 | W14: n/a | X14: n/a
E15: Asset Class 9 | F15: Accelerated Depr - Distr (forecast period) | I15: 7.515607366 | J15: n/a | K15: n/a | L15: 0 | M15: 7.515607366 | N15: 0 | O15: 0 | P15: 1.083144414e-17 | Q15: 0 | R15: 0 | S15: 0 | T15: 0 | U15: 0 | V15: 0 | W15: n/a | X15: n/a
E16: Asset Class 10 | F16: Accelerated Depr - Distr assets (Contingent Project 1) | I16: -2.158771799 | J16: n/a | K16: n/a | L16: 0 | M16: 0.76544062 | N16: 0 | O16: 0 | P16: 0.03566112706 | Q16: 0 | R16: 0 | S16: 0 | T16: 2.959873546 | U16: 0 | V16: 0 | W16: n/a | X16: n/a
E17: Asset Class 11 | F17: Accelerated Depr - Distr assets (Contingent Project 2) | I17: -2.550481022 | J17: n/a | K17: n/a | L17: 0 | M17: 2.631735285 | N17: 0 | O17: 0 | P17: 0.06319775984 | Q17: 0 | R17: 0 | S17: 0 | T17: 5.245414067 | U17: 0 | V17: 0 | W17: n/a | X17: n/a
E18: Asset Class 12 | F18: Accelerated Depr - Distr assets (Contingent Project 3) | I18: -0.1612409061 | J18: n/a | K18: n/a | L18: 0 | M18: 0.1663777845 | N18: 0 | O18: 0 | P18: 0.003995349886 | Q18: 0 | R18: 0 | S18: 0 | T18: 2.868221151 | U18: 2.248971933 | V18: 2 | W18: n/a | X18: n/a
E19: Asset Class 13 | F19: Accelerated Depr - Distr assets (Other) | J19: n/a | K19: n/a | L19: 0 | M19: 0 | N19: 0 | O19: 0 | P19: 0 | Q19: 0 | R19: 0 | S19: 0 | T19: 1.382763522 | U19: 1.225392075 | V19: 2 | W19: n/a | X19: n/a
E20: Asset Class 14 | F20: Non-network leasehold land & buildings - 1 July 2021 | J20: n/a | K20: n/a | L20: 0 | M20: 0 | N20: 0 | O20: 0 | P20: 0 | Q20: 0 | R20: 0 | S20: 0 | T20: 34.7891046 | U20: 27.7558581 | V20: 9.293075494 | W20: n/a | X20: n/a
E21: Asset Class 15 | F21: Non- Network Leasehold Land & Buildings - 2021-22 | K21: 23.68978467 | W21: =A15stdlife -> 23.68978467 | X21: n/a
E22: Asset Class 16 | F22: Non- Network Leasehold Land & Buildings - 2025-26 | K22: 5 | W22: =A16stdlife -> 5 | X22: n/a
E23: Asset Class 17 | F23: Heavy vehicles and plant | K23: 15 | W23: 15 | X23: n/a
E24: Asset Class 18 | F24: Critical spares - network assets | K24: n/a | W24: n/a | X24: n/a
E25: Asset Class 19 | F25: Non-Network Leasehold Land & Buildings – short term | K25: n/a | W25: n/a | X25: n/a
E26: Asset Class 20 | F26: Motor Vehicle and plant Leases - short term | K26: n/a | W26: n/a | X26: n/a
E27: Asset Class 21
E28: Asset Class 22
E29: Asset Class 23
E30: Asset Class 24
E31: Asset Class 25
E32: Asset Class 26
E33: Asset Class 27
E34: Asset Class 28
E35: Asset Class 29
E36: Asset Class 30
E37: Asset Class 31
E38: Asset Class 32
E39: Asset Class 33
E40: Asset Class 34
E41: Asset Class 35
E42: Asset Class 36
E43: Asset Class 37
E44: Asset Class 38
E45: Asset Class 39
E46: Asset Class 40
E47: Asset Class 41
E48: Asset Class 42
E49: Asset Class 43
E50: Asset Class 44
E51: Asset Class 45
E52: Asset Class 46
E53: Asset Class 47
E54: Asset Class 48 | F54: Buildings - capital works | K54: 40 | U54: 0 | V54: n/a | W54: 40 | X54: n/a
E55: Asset Class 49 | F55: in-house software | J55: n/a | K55: 5 | U55: 0 | V55: n/a | W55: 5 | X55: n/a
E56: Asset Class 50 | F56: Equity raising costs | I56: 12.24414747 | J56: n/a | K56: n/a | L56: 0 | M56: 0.0876411321 | N56: 0 | O56: 1.472767277 | P56: -0.005186090116 | Q56: 0 | R56: 0 | S56: 0 | T56: 0 | U56: 2.515467002 | V56: 3.103258421 | W56: 5 | X56: 5
E57: Total | I57: =SUM(I7:I56) -> 4308.073817 | L57: =SUM(L7:L56) -> 348.5083855 | M57: 139.5433178 | N57: 69.11473402 | O57: 200.1106382 | P57: 44.23729645 | Q57: 33.65160315 | R57: -38.05400762 | S57: -11.59247919 | T57: 34.7891046 | U57: 3682.739275
E59: Actual Capital Expenditure – As Incurred ($m Nominal)
E60: Year | F60: 2020 | G60: HY2021 | H60: =Y7 -> 2021-22 | I60: =IF(LEN(H60)>4,CONCATENATE(LEFT(H60,4)+1&"-"&IF(H60>"2007-08",,"0")&RIGHT(H60,2)+1),H60+1) -> 2022-23 | J60: =IF(LEN(I60)>4,CONCATENATE(LEFT(I60,4)+1&"-"&IF(I60>"2007-08",,"0")&RIGHT(I60,2)+1),I60+1) -> 2023-24 | K60: 2024-25 | L60: 2025-26 | M60: 2026-27 | N60: 2027-28 | O60: 2028-29 | P60: 2029-30 | Q60: 2030-31
E61: =Asset1 -> Subtransmission | F61: ='Inputs working'!C116 -> 97.46415532 | G61: ='Inputs working'!D116 -> 42.56067921 | H61: ='Inputs working'!E116 -> 84.04094676 | I61: ='Inputs working'!F116 -> 86.72233883 | J61: ='Inputs working'!G116 -> 56.54135762 | K61: ='Inputs working'!H116 -> 77.45228032 | L61: ='Inputs working'!I116 -> 71.04142409
E62: =Asset2 -> Distribution system assets | F62: ='Inputs working'!C117 -> 220.0181772 | G62: ='Inputs working'!D117 -> 119.9859461 | H62: ='Inputs working'!E117 -> 165.7081231 | I62: ='Inputs working'!F117 -> 184.3472806 | J62: ='Inputs working'!G117 -> 239.5712562 | K62: ='Inputs working'!H117 -> 318.5268297 | L62: ='Inputs working'!I117 -> 368.4274824
E63: =Asset3 -> SCADA/Network control | F63: ='Inputs working'!C118 -> 16.9824132 | G63: ='Inputs working'!D118 -> 5.30994281 | H63: ='Inputs working'!E118 -> 16.61829471 | I63: ='Inputs working'!F118 -> 17.15070353 | J63: ='Inputs working'!G118 -> 26.122524 | K63: ='Inputs working'!H118 -> 8.680923034 | L63: ='Inputs working'!I118 -> 10.17449178
E64: =Asset4 -> Non-network general assets - IT | F64: ='Inputs working'!C119 -> 57.71406353 | G64: ='Inputs working'!D119 -> 32.77384726 | H64: ='Inputs working'!E119 -> 4.030748168 | I64: ='Inputs working'!F119 -> 7.513717211 | J64: ='Inputs working'!G119 -> 15.11639856 | K64: ='Inputs working'!H119 -> 16.2573471 | L64: ='Inputs working'!I119 -> 15.20611947
E65: =Asset5 -> Non-network general assets - Other | F65: ='Inputs working'!C120 -> 4.653779429 | G65: ='Inputs working'!D120 -> 1.971420416 | H65: ='Inputs working'!E120 -> 0.5454286934 | I65: ='Inputs working'!F120 -> 2.215016195 | J65: ='Inputs working'!G120 -> 2.964329481 | K65: ='Inputs working'!H120 -> 7.832811017 | L65: ='Inputs working'!I120 -> 6.91053564
E66: =Asset6 -> Land | F66: ='Inputs working'!C121 -> 0 | G66: ='Inputs working'!D121 -> 0 | H66: ='Inputs working'!E121 -> 15.86627141 | I66: ='Inputs working'!F121 -> 3.02404255 | J66: ='Inputs working'!G121 -> 0.63806717 | K66: ='Inputs working'!H121 -> 0 | L66: ='Inputs working'!I121 -> 13.41696288
E67: =Asset7 -> Secondary systems (pre 2016) | F67: ='Inputs working'!C122 -> 0 | G67: ='Inputs working'!D122 -> 0 | H67: ='Inputs working'!E122 -> 0 | I67: ='Inputs working'!F122 -> 0 | J67: ='Inputs working'!G122 -> 0 | K67: ='Inputs working'!H122 -> 0 | L67: ='Inputs working'!I122 -> 0
E68: =Asset8 -> Accelerated Depr - Subtr (forecast period) | F68: ='Inputs working'!C123 -> 0 | G68: ='Inputs working'!D123 -> 0 | H68: ='Inputs working'!E123 -> 0 | I68: ='Inputs working'!F123 -> 0 | J68: ='Inputs working'!G123 -> 0 | K68: ='Inputs working'!H123 -> 0 | L68: ='Inputs working'!I123 -> 0
E69: =Asset9 -> Accelerated Depr - Distr (forecast period) | F69: ='Inputs working'!C124 -> 0 | G69: ='Inputs working'!D124 -> 0 | H69: ='Inputs working'!E124 -> 0 | I69: ='Inputs working'!F124 -> 0 | J69: ='Inputs working'!G124 -> 0 | K69: ='Inputs working'!H124 -> 0 | L69: ='Inputs working'!I124 -> 0
E70: =Asset10 -> Accelerated Depr - Distr assets (Contingent Project 1) | F70: ='Inputs working'!C125 -> 0 | G70: ='Inputs working'!D125 -> 0 | H70: ='Inputs working'!E125 -> 0 | I70: ='Inputs working'!F125 -> 0 | J70: ='Inputs working'!G125 -> 0 | K70: ='Inputs working'!H125 -> 0 | L70: ='Inputs working'!I125 -> 0
E71: =Asset11 -> Accelerated Depr - Distr assets (Contingent Project 2) | F71: ='Inputs working'!C126 -> 0 | G71: ='Inputs working'!D126 -> 0 | H71: ='Inputs working'!E126 -> 0 | I71: ='Inputs working'!F126 -> 0 | J71: ='Inputs working'!G126 -> 0 | K71: ='Inputs working'!H126 -> 0 | L71: ='Inputs working'!I126 -> 0
E72: =Asset12 -> Accelerated Depr - Distr assets (Contingent Project 3) | F72: ='Inputs working'!C127 -> 0 | G72: ='Inputs working'!D127 -> 0 | H72: ='Inputs working'!E127 -> 0 | I72: ='Inputs working'!F127 -> 0 | J72: ='Inputs working'!G127 -> 0 | K72: ='Inputs working'!H127 -> 0 | L72: ='Inputs working'!I127 -> 0
E73: =Asset13 -> Accelerated Depr - Distr assets (Other) | F73: ='Inputs working'!C128 -> 0 | G73: ='Inputs working'!D128 -> 0 | H73: ='Inputs working'!E128 -> 0 | I73: ='Inputs working'!F128 -> 0 | J73: ='Inputs working'!G128 -> 0 | K73: ='Inputs working'!H128 -> 0 | L73: ='Inputs working'!I128 -> 0
E74: =Asset14 -> Non-network leasehold land & buildings - 1 July 2021 | F74: ='Inputs working'!C129 -> 0 | G74: ='Inputs working'!D129 -> 0 | H74: ='Inputs working'!E129 -> 0 | I74: ='Inputs working'!F129 -> 0 | J74: ='Inputs working'!G129 -> 0 | K74: ='Inputs working'!H129 -> 0 | L74: ='Inputs working'!I129 -> 0
E75: =Asset15 -> Non- Network Leasehold Land & Buildings - 2021-22 | F75: ='Inputs working'!C130 -> 0 | G75: ='Inputs working'!D130 -> 0 | H75: ='Inputs working'!E130 -> 0 | I75: ='Inputs working'!F130 -> 0 | J75: ='Inputs working'!G130 -> 0.2429223966 | K75: ='Inputs working'!H130 -> 0 | L75: ='Inputs working'!I130 -> 55.8642106
E76: =Asset16 -> Non- Network Leasehold Land & Buildings - 2025-26 | F76: ='Inputs working'!C131 -> 0 | G76: ='Inputs working'!D131 -> 0 | H76: ='Inputs working'!E131 -> 0 | I76: ='Inputs working'!F131 -> 0.170220025 | J76: ='Inputs working'!G131 -> 0 | K76: ='Inputs working'!H131 -> 0.377268363 | L76: ='Inputs working'!I131 -> 8.346287017
E77: =Asset17 -> Heavy vehicles and plant | F77: ='Inputs working'!C132 -> 0 | H77: ='Inputs working'!E132 -> 0 | I77: ='Inputs working'!F132 -> 0 | J77: ='Inputs working'!G132 -> 0 | K77: ='Inputs working'!H132 -> 0 | L77: ='Inputs working'!I132 -> 0
E78: =Asset18 -> Critical spares - network assets | H78: ='Inputs working'!E133 -> 0 | I78: ='Inputs working'!F133 -> 0 | J78: ='Inputs working'!G133 -> 0 | K78: ='Inputs working'!H133 -> 0 | L78: ='Inputs working'!I133 -> 0
E79: =Asset19 -> Non-Network Leasehold Land & Buildings – short term | H79: ='Inputs working'!E134 -> 0 | I79: ='Inputs working'!F134 -> 0 | J79: ='Inputs working'!G134 -> 0 | K79: ='Inputs working'!H134 -> 0 | L79: ='Inputs working'!I134 -> 0
E80: =Asset20 -> Motor Vehicle and plant Leases - short term | H80: ='Inputs working'!E135 -> 0 | I80: ='Inputs working'!F135 -> 0 | J80: ='Inputs working'!G135 -> 0 | K80: ='Inputs working'!H135 -> 0 | L80: ='Inputs working'!I135 -> 0
E81: =Asset21 -> 0
E82: =Asset22 -> 0
E83: =Asset23 -> 0
E84: =Asset24 -> 0
E85: =Asset25 -> 0
E86: =Asset26 -> 0
E87: =Asset27 -> 0
E88: =Asset28 -> 0
E89: =Asset29 -> 0
E90: =Asset30 -> 0
E91: =Asset31 -> 0
E92: =Asset32 -> 0
E93: =Asset33 -> 0
E94: =Asset34 -> 0
E95: =Asset35 -> 0
E96: =Asset36 -> 0
E97: =Asset37 -> 0
E98: =Asset38 -> 0
E99: =Asset39 -> 0
E100: =Asset40 -> 0
E101: =Asset41 -> 0
E102: =Asset42 -> 0
E103: =Asset43 -> 0
E104: =Asset44 -> 0
E105: =Asset45 -> 0
E106: =Asset46 -> 0
E107: =Asset47 -> 0
E108: =Asset48 -> Buildings - capital works | F108: ='Inputs working'!C163 -> 0 | G108: ='Inputs working'!D163 -> 0 | H108: ='Inputs working'!E163 -> 15.91732257 | I108: ='Inputs working'!F163 -> 1.655039853 | J108: ='Inputs working'!G163 -> 0.008900852568 | K108: ='Inputs working'!H163 -> 0.6904967453 | L108: ='Inputs working'!I163 -> 0.1219568
E109: =Asset49 -> in-house software | F109: ='Inputs working'!C164 -> 0 | G109: ='Inputs working'!D164 -> 0 | H109: ='Inputs working'!E164 -> 59.65479569 | I109: ='Inputs working'!F164 -> 46.5654111 | J109: ='Inputs working'!G164 -> 51.85958251 | K109: ='Inputs working'!H164 -> 88.68905623 | L109: ='Inputs working'!I164 -> 79.1327061
E110: =Asset50 -> Equity raising costs | F110: ='Inputs working'!C165 -> 0 | G110: ='Inputs working'!D165 -> 1.455202368 | H110: ='Inputs working'!E165 -> 0 | I110: ='Inputs working'!F165 -> 0 | J110: ='Inputs working'!G165 -> 0 | K110: ='Inputs working'!H165 -> 0 | L110: ='Inputs working'!I165 -> 0
E111: Total | F111: =SUM(F61:F110) -> 396.8325887 | G111: =SUM(G61:G110) -> 204.0570382 | H111: =SUM(H61:H110) -> 362.3819311 | I111: 349.3637698 | J111: 393.0653388 | K111: 518.5070126 | L111: 628.6421768 | M111: 0 | N111: 0 | O111: 0 | P111: 0 | Q111: 0
R112: =SUM(G111:Q111) -> 2456.017267
E113: Actual Asset Disposal – As Incurred ($m Nominal)
E114: Year | F114: =F$60 -> 2020 | G114: =G$60 -> HY2021 | H114: =H$60 -> 2021-22 | I114: 2022-23 | J114: 2023-24 | K114: 2024-25 | L114: 2025-26 | M114: 2026-27 | N114: 2027-28 | O114: 2028-29 | P114: 2029-30 | Q114: 2030-31
E115: =Asset1 -> Subtransmission | F115: 0 | G115: 0 | H115: 0 | I115: 0 | J115: 0 | K115: 0 | L115: 0
E116: =Asset2 -> Distribution system assets | F116: 0 | G116: 0 | H116: 0 | I116: 0 | J116: 0 | K116: 0 | L116: 0
E117: =Asset3 -> SCADA/Network control | F117: 0 | G117: 0 | H117: 0 | I117: 0 | J117: 0 | K117: 0 | L117: 0
E118: =Asset4 -> Non-network general assets - IT | F118: 0 | G118: 0 | H118: 0 | I118: 0 | J118: 0 | K118: 0 | L118: 0.009797456171
E119: =Asset5 -> Non-network general assets - Other | F119: 0.56387384 | G119: 0.20044384 | H119: 0.19891502 | I119: 1.06238977 | J119: 0.08203511 | K119: 0.57928502 | L119: 1.608000697
E120: =Asset6 -> Land | F120: 0 | G120: 0 | H120: 0 | I120: 0 | J120: 0 | K120: 0 | L120: 0
E121: =Asset7 -> Secondary systems (pre 2016) | F121: 0 | G121: 0 | H121: 0 | I121: 0 | J121: 0 | K121: 0 | L121: 0
E122: =Asset8 -> Accelerated Depr - Subtr (forecast period) | F122: 0 | G122: 0 | H122: 0 | I122: 0 | J122: 0 | K122: 0 | L122: 0
E123: =Asset9 -> Accelerated Depr - Distr (forecast period) | F123: 0 | G123: 0 | H123: 0 | I123: 0 | J123: 0 | K123: 0 | L123: 0
E124: =Asset10 -> Accelerated Depr - Distr assets (Contingent Project 1) | F124: 0 | G124: 0 | H124: 0 | I124: 0 | J124: 0 | K124: 0 | L124: 0
E125: =Asset11 -> Accelerated Depr - Distr assets (Contingent Project 2) | F125: 0 | G125: 0 | H125: 0 | I125: 0 | J125: 0 | K125: 0 | L125: 0
E126: =Asset12 -> Accelerated Depr - Distr assets (Contingent Project 3) | F126: 0 | G126: 0 | H126: 0 | I126: 0 | J126: 0 | K126: 0 | L126: 0
E127: =Asset13 -> Accelerated Depr - Distr assets (Other) | F127: 0 | G127: 0 | H127: 0 | I127: 0 | J127: 0 | K127: 0 | L127: 0
E128: =Asset14 -> Non-network leasehold land & buildings - 1 July 2021 | F128: 0 | G128: 0 | J128: 0 | K128: 0 | L128: 0
E129: =Asset15 -> Non- Network Leasehold Land & Buildings - 2021-22 | F129: 0 | G129: 0 | H129: 0 | I129: 0 | J129: 0 | K129: 0 | L129: 0
E130: =Asset16 -> Non- Network Leasehold Land & Buildings - 2025-26 | F130: 0 | G130: 0 | H130: 0 | I130: 0 | J130: 0 | K130: 0 | L130: 0
E131: =Asset17 -> Heavy vehicles and plant | H131: 0 | I131: 0 | J131: 0 | K131: 0 | L131: 0
E132: =Asset18 -> Critical spares - network assets | H132: 0 | I132: 0 | J132: 0 | K132: 0 | L132: 0
E133: =Asset19 -> Non-Network Leasehold Land & Buildings – short term | H133: 0 | I133: 0 | J133: 0 | K133: 0 | L133: 0
E134: =Asset20 -> Motor Vehicle and plant Leases - short term | H134: 0 | I134: 0 | J134: 0 | K134: 0 | L134: 0
E135: =Asset21 -> 0
E136: =Asset22 -> 0
E137: =Asset23 -> 0
E138: =Asset24 -> 0
E139: =Asset25 -> 0
E140: =Asset26 -> 0
E141: =Asset27 -> 0
E142: =Asset28 -> 0
E143: =Asset29 -> 0
E144: =Asset30 -> 0
E145: =Asset31 -> 0
E146: =Asset32 -> 0
E147: =Asset33 -> 0
E148: =Asset34 -> 0
E149: =Asset35 -> 0
E150: =Asset36 -> 0
E151: =Asset37 -> 0
E152: =Asset38 -> 0
E153: =Asset39 -> 0
E154: =Asset40 -> 0
E155: =Asset41 -> 0
E156: =Asset42 -> 0
E157: =Asset43 -> 0
E158: =Asset44 -> 0
E159: =Asset45 -> 0
E160: =Asset46 -> 0
E161: =Asset47 -> 0
E162: =Asset48 -> Buildings - capital works | F162: 0 | G162: 0 | H162: 0 | I162: 0 | J162: 0 | K162: 0 | L162: 0
E163: =Asset49 -> in-house software | F163: 0 | G163: 0 | H163: 0 | I163: 0 | J163: 0 | K163: 0 | L163: 0
E164: =Asset50 -> Equity raising costs | F164: 0 | G164: 0 | H164: 0 | I164: 0 | J164: 0 | K164: 0 | L164: 0
E165: Total | F165: =SUM(F115:F164) -> 0.56387384 | G165: =SUM(G115:G164) -> 0.20044384 | H165: =SUM(H115:H164) -> 0.19891502 | I165: 1.06238977 | J165: 0.08203511 | K165: 0.57928502 | L165: 1.617798153 | M165: 0 | N165: 0 | O165: 0 | P165: 0 | Q165: 0
R166: =SUM(G165:Q165) -> 3.740866913
E167: Actual Capital Contributions – As Incurred ($m Nominal)
E168: Year | F168: =F$60 -> 2020 | G168: =G$60 -> HY2021 | H168: =H$60 -> 2021-22 | I168: 2022-23 | J168: 2023-24 | K168: 2024-25 | L168: 2025-26 | M168: 2026-27 | N168: 2027-28 | O168: 2028-29 | P168: 2029-30 | Q168: 2030-31
E169: =Asset1 -> Subtransmission | F169: 5.75 | G169: 1.47634844 | H169: 0 | I169: 0 | J169: 0 | K169: 9.13611396 | L169: 8.655784384
E170: =Asset2 -> Distribution system assets | F170: 55.85073021 | G170: 34.62043219 | H170: 24.05042697 | I170: 24.71404065 | J170: 24.81716703 | K170: 34.13118267 | L170: 39.79112794
E171: =Asset3 -> SCADA/Network control | F171: 0 | G171: 0 | H171: 0 | I171: 0 | J171: 0 | K171: 0 | L171: 0
E172: =Asset4 -> Non-network general assets - IT | F172: 0 | G172: 0 | H172: 0 | I172: 0 | J172: 0 | K172: 0.857509 | L172: 0
E173: =Asset5 -> Non-network general assets - Other | F173: 0 | G173: 0 | H173: 0 | I173: 0 | J173: 0 | K173: 0 | L173: 0
E174: =Asset6 -> Land | F174: 0 | G174: 0 | H174: 0 | I174: 0 | J174: 0 | K174: 0 | L174: 0
E175: =Asset7 -> Secondary systems (pre 2016) | F175: 0 | G175: 0 | H175: 0 | I175: 0 | J175: 0 | K175: 0 | L175: 0
E176: =Asset8 -> Accelerated Depr - Subtr (forecast period) | F176: 0 | G176: 0 | H176: 0 | I176: 0 | J176: 0 | K176: 0 | L176: 0
E177: =Asset9 -> Accelerated Depr - Distr (forecast period) | F177: 0 | G177: 0 | H177: 0 | I177: 0 | J177: 0 | K177: 0 | L177: 0
E178: =Asset10 -> Accelerated Depr - Distr assets (Contingent Project 1) | F178: 0 | G178: 0 | H178: 0 | I178: 0 | J178: 0 | K178: 0 | L178: 0
E179: =Asset11 -> Accelerated Depr - Distr assets (Contingent Project 2) | F179: 0 | G179: 0 | H179: 0 | I179: 0 | J179: 0 | K179: 0 | L179: 0
E180: =Asset12 -> Accelerated Depr - Distr assets (Contingent Project 3) | F180: 0 | G180: 0 | H180: 0 | I180: 0 | J180: 0 | K180: 0 | L180: 0
E181: =Asset13 -> Accelerated Depr - Distr assets (Other) | F181: 0 | G181: 0 | H181: 0 | I181: 0 | J181: 0 | K181: 0 | L181: 0
E182: =Asset14 -> Non-network leasehold land & buildings - 1 July 2021 | F182: 0 | G182: 0 | H182: 0 | I182: 0 | J182: 0 | K182: 0 | L182: 0
E183: =Asset15 -> Non- Network Leasehold Land & Buildings - 2021-22 | F183: 0 | G183: 0 | H183: 0 | I183: 0 | J183: 0 | K183: 0 | L183: 0
E184: =Asset16 -> Non- Network Leasehold Land & Buildings - 2025-26 | F184: 0 | G184: 0 | H184: 0 | I184: 0 | J184: 0 | K184: 0 | L184: 0
E185: =Asset17 -> Heavy vehicles and plant | H185: 0 | I185: 0 | J185: 0 | K185: 0 | L185: 0
E186: =Asset18 -> Critical spares - network assets
E187: =Asset19 -> Non-Network Leasehold Land & Buildings – short term
E188: =Asset20 -> Motor Vehicle and plant Leases - short term
E189: =Asset21 -> 0
E190: =Asset22 -> 0
E191: =Asset23 -> 0
E192: =Asset24 -> 0
E193: =Asset25 -> 0
E194: =Asset26 -> 0
E195: =Asset27 -> 0
E196: =Asset28 -> 0
E197: =Asset29 -> 0
E198: =Asset30 -> 0
E199: =Asset31 -> 0
E200: =Asset32 -> 0
E201: =Asset33 -> 0
E202: =Asset34 -> 0
E203: =Asset35 -> 0
... 254 more rows

Sheet Adjustment for previous period
B2: ='DMS input'!$C$16&" - Adjustment For Previous Period"&" - DNSP RFM - version "&Intro!$M$4 -> AusNet (D) - Adjustment For Previous Period - DNSP RFM - version 3
B4: Year | F4: ='RFM input'!F281 -> 2020 | G4: ='RFM input'!G60 -> HY2021 | H4: ='RFM input'!H60 -> 2021-22 | I4: ='RFM input'!I60 -> 2022-23 | J4: ='RFM input'!J60 -> 2023-24 | K4: ='RFM input'!K60 -> 2024-25 | L4: ='RFM input'!L60 -> 2025-26 | M4: ='RFM input'!M60 -> 2026-27 | N4: ='RFM input'!N60 -> 2027-28 | O4: ='RFM input'!O60 -> 2028-29 | P4: ='RFM input'!P60 -> 2029-30 | Q4: ='RFM input'!Q60 -> 2030-31
B6: Actual CPI Inflation Rate | F6: ='RFM input'!F$282 -> 0.01592920354 | G6: ='RFM input'!G$282 -> 0.01219512195 | H6: ='RFM input'!H$282 -> 0.008605851979 | I6: ='RFM input'!I$282 -> 0.03498293515 | J6: ='RFM input'!J$282 -> 0.07831821929 | K6: ='RFM input'!K$282 -> 0.04051987768 | L6: ='RFM input'!L$282 -> 0.0242468773 | M6: ='RFM input'!M$282 -> 0 | N6: ='RFM input'!N$282 -> 0 | O6: ='RFM input'!O$282 -> 0 | P6: ='RFM input'!P$282 -> 0 | Q6: ='RFM input'!Q$282 -> 0
B7: Actual CPI (one year lagged) | F7: ='RFM input'!F$283 -> 0.9879518072 | G7: ='RFM input'!G$283 -> 1 | H7: ='RFM input'!H$283 -> 1.008605852 | I7: ='RFM input'!I$283 -> 1.043889845 | J7: ='RFM input'!J$283 -> 1.125645439 | K7: ='RFM input'!K$283 -> 1.171256454 | L7: ='RFM input'!L$283 -> 1.199655766 | M7: ='RFM input'!M$283 -> 1.199655766 | N7: ='RFM input'!N$283 -> 1.199655766 | O7: ='RFM input'!O$283 -> 1.199655766 | P7: ='RFM input'!P$283 -> 1.199655766 | Q7: ='RFM input'!Q$283 -> 1.199655766
B8: Nominal Vanilla WACC (fixed real time varying) | F8: ='RFM input'!F289 -> 0.05276536977 | G8: ='RFM input'!G289 -> 0.02428654141 | H8: =vanilla1 -> 0.03662410607 | I8: =vanilla2 -> 0.0628776369 | J8: =vanilla3 -> 0.1079514421 | K8: =vanilla4 -> 0.06968597346 | L8: =vanilla5 -> 0.05316920529 | M8: =vanilla6 -> -0.01960195354 | N8: =vanilla7 -> -0.01960195354 | O8: =vanilla8 -> -0.01960195354 | P8: =vanilla9 -> -0.01960195354 | Q8: =vanilla10 -> -0.01960195354
B11: Nominal Adjustments for Difference Between Forecast and Actual Net Capex in HY2021
B13: Nominal Forecast Net Capex (previous regulatory control period) | G13: =SUM(G14:G63) -> 200.1106382
C14: =Asset1 -> Subtransmission | G14: ='RFM input'!O7 -> 30.04909793
C15: =Asset2 -> Distribution system assets | G15: ='RFM input'!O8 -> 100.832092
C16: =Asset3 -> SCADA/Network control | G16: ='RFM input'!O9 -> 16.63523412
C17: =Asset4 -> Non-network general assets - IT | G17: ='RFM input'!O10 -> 47.67890781
C18: =Asset5 -> Non-network general assets - Other | G18: ='RFM input'!O11 -> 3.421783725
C19: =Asset6 -> Land | G19: ='RFM input'!O12 -> 0.02075534136
C20: =Asset7 -> Secondary systems (pre 2016) | G20: ='RFM input'!O13 -> 0
C21: =Asset8 -> Accelerated Depr - Subtr (forecast period) | G21: ='RFM input'!O14 -> 0
C22: =Asset9 -> Accelerated Depr - Distr (forecast period) | G22: ='RFM input'!O15 -> 0
C23: =Asset10 -> Accelerated Depr - Distr assets (Contingent Project 1) | G23: ='RFM input'!O16 -> 0
C24: =Asset11 -> Accelerated Depr - Distr assets (Contingent Project 2) | G24: ='RFM input'!O17 -> 0
C25: =Asset12 -> Accelerated Depr - Distr assets (Contingent Project 3) | G25: ='RFM input'!O18 -> 0
C26: =Asset13 -> Accelerated Depr - Distr assets (Other) | G26: ='RFM input'!O19 -> 0
C27: =Asset14 -> Non-network leasehold land & buildings - 1 July 2021 | G27: ='RFM input'!O20 -> 0
C28: =Asset15 -> Non- Network Leasehold Land & Buildings - 2021-22 | G28: ='RFM input'!O21 -> 0
C29: =Asset16 -> Non- Network Leasehold Land & Buildings - 2025-26 | G29: ='RFM input'!O22 -> 0
C30: =Asset17 -> Heavy vehicles and plant | G30: ='RFM input'!O23 -> 0
C31: =Asset18 -> Critical spares - network assets | G31: ='RFM input'!O24 -> 0
C32: =Asset19 -> Non-Network Leasehold Land & Buildings – short term | G32: ='RFM input'!O25 -> 0
C33: =Asset20 -> Motor Vehicle and plant Leases - short term | G33: ='RFM input'!O26 -> 0
C34: =Asset21 -> 0 | G34: ='RFM input'!O27 -> 0
C35: =Asset22 -> 0 | G35: ='RFM input'!O28 -> 0
C36: =Asset23 -> 0 | G36: ='RFM input'!O29 -> 0
C37: =Asset24 -> 0 | G37: ='RFM input'!O30 -> 0
C38: =Asset25 -> 0 | G38: ='RFM input'!O31 -> 0
C39: =Asset26 -> 0 | G39: ='RFM input'!O32 -> 0
C40: =Asset27 -> 0 | G40: ='RFM input'!O33 -> 0
C41: =Asset28 -> 0 | G41: ='RFM input'!O34 -> 0
C42: =Asset29 -> 0 | G42: ='RFM input'!O35 -> 0
C43: =Asset30 -> 0 | G43: ='RFM input'!O36 -> 0
C44: =Asset31 -> 0 | G44: ='RFM input'!O37 -> 0
C45: =Asset32 -> 0 | G45: ='RFM input'!O38 -> 0
C46: =Asset33 -> 0 | G46: ='RFM input'!O39 -> 0
C47: =Asset34 -> 0 | G47: ='RFM input'!O40 -> 0
C48: =Asset35 -> 0 | G48: ='RFM input'!O41 -> 0
C49: =Asset36 -> 0 | G49: ='RFM input'!O42 -> 0
C50: =Asset37 -> 0 | G50: ='RFM input'!O43 -> 0
C51: =Asset38 -> 0 | G51: ='RFM input'!O44 -> 0
C52: =Asset39 -> 0 | G52: ='RFM input'!O45 -> 0
C53: =Asset40 -> 0 | G53: ='RFM input'!O46 -> 0
C54: =Asset41 -> 0 | G54: ='RFM input'!O47 -> 0
C55: =Asset42 -> 0 | G55: ='RFM input'!O48 -> 0
C56: =Asset43 -> 0 | G56: ='RFM input'!O49 -> 0
C57: =Asset44 -> 0 | G57: ='RFM input'!O50 -> 0
C58: =Asset45 -> 0 | G58: ='RFM input'!O51 -> 0
C59: =Asset46 -> 0 | G59: ='RFM input'!O52 -> 0
C60: =Asset47 -> 0 | G60: ='RFM input'!O53 -> 0
C61: =Asset48 -> Buildings - capital works | G61: ='RFM input'!O54 -> 0
C62: =Asset49 -> in-house software | G62: ='RFM input'!O55 -> 0
C63: =Asset50 -> Equity raising costs | G63: ='RFM input'!O56 -> 1.472767277
B65: Nominal Actual Net Capex | G65: =SUM(G66:G115) -> 169.7847457
C66: =Asset1 -> Subtransmission | G66: ='RFM input'!G223*(1+previous_vanilla)^0.5 -> 41.58023603
C67: =Asset2 -> Distribution system assets | G67: ='RFM input'!G224*(1+previous_vanilla)^0.5 -> 86.39591181
C68: =Asset3 -> SCADA/Network control | G68: ='RFM input'!G225*(1+previous_vanilla)^0.5 -> 5.374036067
C69: =Asset4 -> Non-network general assets - IT | G69: ='RFM input'!G226*(1+previous_vanilla)^0.5 -> 33.16944146
C70: =Asset5 -> Non-network general assets - Other | G70: ='RFM input'!G227*(1+previous_vanilla)^0.5 -> 1.792353012
C71: =Asset6 -> Land | G71: ='RFM input'!G228*(1+previous_vanilla)^0.5 -> 0
C72: =Asset7 -> Secondary systems (pre 2016) | G72: ='RFM input'!G229*(1+previous_vanilla)^0.5 -> 0
C73: =Asset8 -> Accelerated Depr - Subtr (forecast period) | G73: ='RFM input'!G230*(1+previous_vanilla)^0.5 -> 0
C74: =Asset9 -> Accelerated Depr - Distr (forecast period) | G74: ='RFM input'!G231*(1+previous_vanilla)^0.5 -> 0
C75: =Asset10 -> Accelerated Depr - Distr assets (Contingent Project 1) | G75: ='RFM input'!G232*(1+previous_vanilla)^0.5 -> 0
C76: =Asset11 -> Accelerated Depr - Distr assets (Contingent Project 2) | G76: ='RFM input'!G233*(1+previous_vanilla)^0.5 -> 0
C77: =Asset12 -> Accelerated Depr - Distr assets (Contingent Project 3) | G77: ='RFM input'!G234*(1+previous_vanilla)^0.5 -> 0
C78: =Asset13 -> Accelerated Depr - Distr assets (Other) | G78: ='RFM input'!G235*(1+previous_vanilla)^0.5 -> 0
C79: =Asset14 -> Non-network leasehold land & buildings - 1 July 2021 | G79: ='RFM input'!G236*(1+previous_vanilla)^0.5 -> 0
C80: =Asset15 -> Non- Network Leasehold Land & Buildings - 2021-22 | G80: ='RFM input'!G237*(1+previous_vanilla)^0.5 -> 0
C81: =Asset16 -> Non- Network Leasehold Land & Buildings - 2025-26 | G81: ='RFM input'!G238*(1+previous_vanilla)^0.5 -> 0
C82: =Asset17 -> Heavy vehicles and plant | G82: ='RFM input'!G239*(1+previous_vanilla)^0.5 -> 0
C83: =Asset18 -> Critical spares - network assets | G83: ='RFM input'!G240*(1+previous_vanilla)^0.5 -> 0
C84: =Asset19 -> Non-Network Leasehold Land & Buildings – short term | G84: ='RFM input'!G241*(1+previous_vanilla)^0.5 -> 0
C85: =Asset20 -> Motor Vehicle and plant Leases - short term | G85: ='RFM input'!G242*(1+previous_vanilla)^0.5 -> 0
C86: =Asset21 -> 0 | G86: ='RFM input'!G243*(1+previous_vanilla)^0.5 -> 0
C87: =Asset22 -> 0 | G87: ='RFM input'!G244*(1+previous_vanilla)^0.5 -> 0
C88: =Asset23 -> 0 | G88: ='RFM input'!G245*(1+previous_vanilla)^0.5 -> 0
C89: =Asset24 -> 0 | G89: ='RFM input'!G246*(1+previous_vanilla)^0.5 -> 0
C90: =Asset25 -> 0 | G90: ='RFM input'!G247*(1+previous_vanilla)^0.5 -> 0
C91: =Asset26 -> 0 | G91: ='RFM input'!G248*(1+previous_vanilla)^0.5 -> 0
C92: =Asset27 -> 0 | G92: ='RFM input'!G249*(1+previous_vanilla)^0.5 -> 0
C93: =Asset28 -> 0 | G93: ='RFM input'!G250*(1+previous_vanilla)^0.5 -> 0
C94: =Asset29 -> 0 | G94: ='RFM input'!G251*(1+previous_vanilla)^0.5 -> 0
C95: =Asset30 -> 0 | G95: ='RFM input'!G252*(1+previous_vanilla)^0.5 -> 0
C96: =Asset31 -> 0 | G96: ='RFM input'!G253*(1+previous_vanilla)^0.5 -> 0
C97: =Asset32 -> 0 | G97: ='RFM input'!G254*(1+previous_vanilla)^0.5 -> 0
C98: =Asset33 -> 0 | G98: ='RFM input'!G255*(1+previous_vanilla)^0.5 -> 0
C99: =Asset34 -> 0 | G99: ='RFM input'!G256*(1+previous_vanilla)^0.5 -> 0
C100: =Asset35 -> 0 | G100: ='RFM input'!G257*(1+previous_vanilla)^0.5 -> 0
C101: =Asset36 -> 0 | G101: ='RFM input'!G258*(1+previous_vanilla)^0.5 -> 0
C102: =Asset37 -> 0 | G102: ='RFM input'!G259*(1+previous_vanilla)^0.5 -> 0
C103: =Asset38 -> 0 | G103: ='RFM input'!G260*(1+previous_vanilla)^0.5 -> 0
C104: =Asset39 -> 0 | G104: ='RFM input'!G261*(1+previous_vanilla)^0.5 -> 0
C105: =Asset40 -> 0 | G105: ='RFM input'!G262*(1+previous_vanilla)^0.5 -> 0
C106: =Asset41 -> 0 | G106: ='RFM input'!G263*(1+previous_vanilla)^0.5 -> 0
C107: =Asset42 -> 0 | G107: ='RFM input'!G264*(1+previous_vanilla)^0.5 -> 0
C108: =Asset43 -> 0 | G108: ='RFM input'!G265*(1+previous_vanilla)^0.5 -> 0
C109: =Asset44 -> 0 | G109: ='RFM input'!G266*(1+previous_vanilla)^0.5 -> 0
C110: =Asset45 -> 0 | G110: ='RFM input'!G267*(1+previous_vanilla)^0.5 -> 0
C111: =Asset46 -> 0 | G111: ='RFM input'!G268*(1+previous_vanilla)^0.5 -> 0
C112: =Asset47 -> 0 | G112: ='RFM input'!G269*(1+previous_vanilla)^0.5 -> 0
C113: =Asset48 -> Buildings - capital works | G113: ='RFM input'!G270*(1+previous_vanilla)^0.5 -> 0
C114: =Asset49 -> in-house software | G114: ='RFM input'!G271*(1+previous_vanilla)^0.5 -> 0
C115: =Asset50 -> Equity raising costs | G115: ='RFM input'!G272*(1+previous_vanilla)^0.5 -> 1.472767277
B118: Nominal Adjustments for Difference Between Forecast and Actual Net Capex in 2020
B120: Nominal Forecast Net Capex (previous regulatory control period) | F120: =SUM(F121:F170) -> 348.5083855 | G120: =SUM(G121:G170) -> 356.9724488
C121: =Asset1 -> Subtransmission | F121: ='RFM input'!L7 -> 67.241073 | G121: =F121*(1+$G$8) -> 68.8741261
C122: =Asset2 -> Distribution system assets | F122: ='RFM input'!L8 -> 172.1389848 | G122: =F122*(1+$G$8) -> 176.3196454
C123: =Asset3 -> SCADA/Network control | F123: ='RFM input'!L9 -> 39.51483962 | G123: 40.4745184
C124: =Asset4 -> Non-network general assets - IT | F124: ='RFM input'!L10 -> 66.05548783 | G124: 67.65974717
C125: =Asset5 -> Non-network general assets - Other | F125: ='RFM input'!L11 -> 3.558000272 | G125: 3.644411793
C126: =Asset6 -> Land | F126: ='RFM input'!L12 -> 0 | G126: 0
C127: =Asset7 -> Secondary systems (pre 2016) | F127: ='RFM input'!L13 -> 0 | G127: 0
C128: =Asset8 -> Accelerated Depr - Subtr (forecast period) | F128: ='RFM input'!L14 -> 0 | G128: 0
C129: =Asset9 -> Accelerated Depr - Distr (forecast period) | F129: ='RFM input'!L15 -> 0 | G129: 0
C130: =Asset10 -> Accelerated Depr - Distr assets (Contingent Project 1) | F130: ='RFM input'!L16 -> 0 | G130: 0
C131: =Asset11 -> Accelerated Depr - Distr assets (Contingent Project 2) | F131: ='RFM input'!L17 -> 0 | G131: 0
C132: =Asset12 -> Accelerated Depr - Distr assets (Contingent Project 3) | F132: ='RFM input'!L18 -> 0 | G132: 0
C133: =Asset13 -> Accelerated Depr - Distr assets (Other) | F133: ='RFM input'!L19 -> 0 | G133: 0
C134: =Asset14 -> Non-network leasehold land & buildings - 1 July 2021 | F134: ='RFM input'!L20 -> 0 | G134: 0
C135: =Asset15 -> Non- Network Leasehold Land & Buildings - 2021-22 | F135: ='RFM input'!L21 -> 0 | G135: 0
C136: =Asset16 -> Non- Network Leasehold Land & Buildings - 2025-26 | F136: ='RFM input'!L22 -> 0 | G136: 0
C137: =Asset17 -> Heavy vehicles and plant | F137: ='RFM input'!L23 -> 0 | G137: 0
C138: =Asset18 -> Critical spares - network assets | F138: ='RFM input'!L24 -> 0 | G138: 0
C139: =Asset19 -> Non-Network Leasehold Land & Buildings – short term | F139: ='RFM input'!L25 -> 0 | G139: 0
C140: =Asset20 -> Motor Vehicle and plant Leases - short term | F140: ='RFM input'!L26 -> 0 | G140: 0
C141: =Asset21 -> 0 | F141: ='RFM input'!L27 -> 0 | G141: 0
C142: =Asset22 -> 0 | F142: ='RFM input'!L28 -> 0 | G142: 0
C143: =Asset23 -> 0 | F143: ='RFM input'!L29 -> 0 | G143: 0
C144: =Asset24 -> 0 | F144: ='RFM input'!L30 -> 0 | G144: 0
C145: =Asset25 -> 0 | F145: ='RFM input'!L31 -> 0 | G145: 0
C146: =Asset26 -> 0 | F146: ='RFM input'!L32 -> 0 | G146: 0
C147: =Asset27 -> 0 | F147: ='RFM input'!L33 -> 0 | G147: 0
C148: =Asset28 -> 0 | F148: ='RFM input'!L34 -> 0 | G148: 0
C149: =Asset29 -> 0 | F149: ='RFM input'!L35 -> 0 | G149: 0
C150: =Asset30 -> 0 | F150: ='RFM input'!L36 -> 0 | G150: 0
C151: =Asset31 -> 0 | F151: ='RFM input'!L37 -> 0 | G151: 0
C152: =Asset32 -> 0 | F152: ='RFM input'!L38 -> 0 | G152: 0
C153: =Asset33 -> 0 | F153: ='RFM input'!L39 -> 0 | G153: 0
C154: =Asset34 -> 0 | F154: ='RFM input'!L40 -> 0 | G154: 0
C155: =Asset35 -> 0 | F155: ='RFM input'!L41 -> 0 | G155: 0
C156: =Asset36 -> 0 | F156: ='RFM input'!L42 -> 0 | G156: 0
C157: =Asset37 -> 0 | F157: ='RFM input'!L43 -> 0 | G157: 0
C158: =Asset38 -> 0 | F158: ='RFM input'!L44 -> 0 | G158: 0
C159: =Asset39 -> 0 | F159: ='RFM input'!L45 -> 0 | G159: 0
C160: =Asset40 -> 0 | F160: ='RFM input'!L46 -> 0 | G160: 0
C161: =Asset41 -> 0 | F161: ='RFM input'!L47 -> 0 | G161: 0
C162: =Asset42 -> 0 | F162: ='RFM input'!L48 -> 0 | G162: 0
C163: =Asset43 -> 0 | F163: ='RFM input'!L49 -> 0 | G163: 0
C164: =Asset44 -> 0 | F164: ='RFM input'!L50 -> 0 | G164: 0
C165: =Asset45 -> 0 | F165: ='RFM input'!L51 -> 0 | G165: 0
C166: =Asset46 -> 0 | F166: ='RFM input'!L52 -> 0 | G166: 0
C167: =Asset47 -> 0 | F167: ='RFM input'!L53 -> 0 | G167: 0
C168: =Asset48 -> Buildings - capital works | F168: ='RFM input'!L54 -> 0 | G168: 0
C169: =Asset49 -> in-house software | F169: ='RFM input'!L55 -> 0 | G169: 0
C170: =Asset50 -> Equity raising costs | F170: ='RFM input'!L56 -> 0 | G170: 0
B172: Nominal Actual Net Capex | F172: =SUM(F173:F222) -> 343.3839276 | G172: =SUM(G173:G222) -> 351.7235356
C173: =Asset1 -> Subtransmission | F173: =('RFM input'!F61-'RFM input'!F115-'RFM input'!F169)*(1+'RFM input'!$F$289)^0.5 -> 94.10271766 | G173: =F173*(1+$G$8) -> 96.3881472
C174: =Asset2 -> Distribution system assets | F174: =('RFM input'!F62-'RFM input'!F116-'RFM input'!F170)*(1+'RFM input'!$F$289)^0.5 -> 168.4429504 | G174: =F174*(1+$G$8) -> 172.5338471
C175: =Asset3 -> SCADA/Network control | F175: =('RFM input'!F63-'RFM input'!F117-'RFM input'!F171)*(1+'RFM input'!$F$289)^0.5 -> 17.42469556 | G175: 17.84788115
C176: =Asset4 -> Non-network general assets - IT | F176: =('RFM input'!F64-'RFM input'!F118-'RFM input'!F172)*(1+'RFM input'!$F$289)^0.5 -> 59.21714272 | G176: 60.65532231
C177: =Asset5 -> Non-network general assets - Other | F177: =('RFM input'!F65-'RFM input'!F119-'RFM input'!F173)*(1+'RFM input'!$F$289)^0.5 -> 4.196421256 | G177: 4.298337814
C178: =Asset6 -> Land | F178: =('RFM input'!F66-'RFM input'!F120-'RFM input'!F174)*(1+'RFM input'!$F$289)^0.5 -> 0 | G178: 0
C179: =Asset7 -> Secondary systems (pre 2016) | F179: =('RFM input'!F67-'RFM input'!F121-'RFM input'!F175)*(1+'RFM input'!$F$289)^0.5 -> 0 | G179: 0
C180: =Asset8 -> Accelerated Depr - Subtr (forecast period) | F180: =('RFM input'!F68-'RFM input'!F122-'RFM input'!F176)*(1+'RFM input'!$F$289)^0.5 -> 0 | G180: 0
C181: =Asset9 -> Accelerated Depr - Distr (forecast period) | F181: =('RFM input'!F69-'RFM input'!F123-'RFM input'!F177)*(1+'RFM input'!$F$289)^0.5 -> 0 | G181: 0
C182: =Asset10 -> Accelerated Depr - Distr assets (Contingent Project 1) | F182: =('RFM input'!F70-'RFM input'!F124-'RFM input'!F178)*(1+'RFM input'!$F$289)^0.5 -> 0 | G182: 0
C183: =Asset11 -> Accelerated Depr - Distr assets (Contingent Project 2) | F183: =('RFM input'!F71-'RFM input'!F125-'RFM input'!F179)*(1+'RFM input'!$F$289)^0.5 -> 0 | G183: 0
C184: =Asset12 -> Accelerated Depr - Distr assets (Contingent Project 3) | F184: =('RFM input'!F72-'RFM input'!F126-'RFM input'!F180)*(1+'RFM input'!$F$289)^0.5 -> 0 | G184: 0
C185: =Asset13 -> Accelerated Depr - Distr assets (Other) | F185: =('RFM input'!F73-'RFM input'!F127-'RFM input'!F181)*(1+'RFM input'!$F$289)^0.5 -> 0 | G185: 0
C186: =Asset14 -> Non-network leasehold land & buildings - 1 July 2021 | F186: =('RFM input'!F74-'RFM input'!F128-'RFM input'!F182)*(1+'RFM input'!$F$289)^0.5 -> 0 | G186: 0
C187: =Asset15 -> Non- Network Leasehold Land & Buildings - 2021-22 | F187: =('RFM input'!F75-'RFM input'!F129-'RFM input'!F183)*(1+'RFM input'!$F$289)^0.5 -> 0 | G187: 0
C188: =Asset16 -> Non- Network Leasehold Land & Buildings - 2025-26 | F188: =('RFM input'!F76-'RFM input'!F130-'RFM input'!F184)*(1+'RFM input'!$F$289)^0.5 -> 0 | G188: 0
C189: =Asset17 -> Heavy vehicles and plant | F189: =('RFM input'!F77-'RFM input'!F131-'RFM input'!F185)*(1+'RFM input'!$F$289)^0.5 -> 0 | G189: 0
C190: =Asset18 -> Critical spares - network assets | F190: =('RFM input'!F78-'RFM input'!F132-'RFM input'!F186)*(1+'RFM input'!$F$289)^0.5 -> 0 | G190: 0
C191: =Asset19 -> Non-Network Leasehold Land & Buildings – short term | F191: =('RFM input'!F79-'RFM input'!F133-'RFM input'!F187)*(1+'RFM input'!$F$289)^0.5 -> 0 | G191: 0
C192: =Asset20 -> Motor Vehicle and plant Leases - short term | F192: =('RFM input'!F80-'RFM input'!F134-'RFM input'!F188)*(1+'RFM input'!$F$289)^0.5 -> 0 | G192: 0
C193: =Asset21 -> 0 | F193: =('RFM input'!F81-'RFM input'!F135-'RFM input'!F189)*(1+'RFM input'!$F$289)^0.5 -> 0 | G193: 0
C194: =Asset22 -> 0 | F194: =('RFM input'!F82-'RFM input'!F136-'RFM input'!F190)*(1+'RFM input'!$F$289)^0.5 -> 0 | G194: 0
C195: =Asset23 -> 0 | F195: =('RFM input'!F83-'RFM input'!F137-'RFM input'!F191)*(1+'RFM input'!$F$289)^0.5 -> 0 | G195: 0
C196: =Asset24 -> 0 | F196: =('RFM input'!F84-'RFM input'!F138-'RFM input'!F192)*(1+'RFM input'!$F$289)^0.5 -> 0 | G196: 0
C197: =Asset25 -> 0 | F197: =('RFM input'!F85-'RFM input'!F139-'RFM input'!F193)*(1+'RFM input'!$F$289)^0.5 -> 0 | G197: 0
C198: =Asset26 -> 0 | F198: =('RFM input'!F86-'RFM input'!F140-'RFM input'!F194)*(1+'RFM input'!$F$289)^0.5 -> 0 | G198: 0
C199: =Asset27 -> 0 | F199: =('RFM input'!F87-'RFM input'!F141-'RFM input'!F195)*(1+'RFM input'!$F$289)^0.5 -> 0 | G199: 0
C200: =Asset28 -> 0 | F200: =('RFM input'!F88-'RFM input'!F142-'RFM input'!F196)*(1+'RFM input'!$F$289)^0.5 -> 0 | G200: 0
C201: =Asset29 -> 0 | F201: =('RFM input'!F89-'RFM input'!F143-'RFM input'!F197)*(1+'RFM input'!$F$289)^0.5 -> 0 | G201: 0
C202: =Asset30 -> 0 | F202: =('RFM input'!F90-'RFM input'!F144-'RFM input'!F198)*(1+'RFM input'!$F$289)^0.5 -> 0 | G202: 0
C203: =Asset31 -> 0 | F203: =('RFM input'!F91-'RFM input'!F145-'RFM input'!F199)*(1+'RFM input'!$F$289)^0.5 -> 0 | G203: 0
C204: =Asset32 -> 0 | F204: =('RFM input'!F92-'RFM input'!F146-'RFM input'!F200)*(1+'RFM input'!$F$289)^0.5 -> 0 | G204: 0
C205: =Asset33 -> 0 | F205: =('RFM input'!F93-'RFM input'!F147-'RFM input'!F201)*(1+'RFM input'!$F$289)^0.5 -> 0 | G205: 0
C206: =Asset34 -> 0 | F206: =('RFM input'!F94-'RFM input'!F148-'RFM input'!F202)*(1+'RFM input'!$F$289)^0.5 -> 0 | G206: 0
C207: =Asset35 -> 0 | F207: =('RFM input'!F95-'RFM input'!F149-'RFM input'!F203)*(1+'RFM input'!$F$289)^0.5 -> 0 | G207: 0
C208: =Asset36 -> 0 | F208: =('RFM input'!F96-'RFM input'!F150-'RFM input'!F204)*(1+'RFM input'!$F$289)^0.5 -> 0 | G208: 0
C209: =Asset37 -> 0 | F209: =('RFM input'!F97-'RFM input'!F151-'RFM input'!F205)*(1+'RFM input'!$F$289)^0.5 -> 0 | G209: 0
C210: =Asset38 -> 0 | F210: =('RFM input'!F98-'RFM input'!F152-'RFM input'!F206)*(1+'RFM input'!$F$289)^0.5 -> 0 | G210: 0
C211: =Asset39 -> 0 | F211: =('RFM input'!F99-'RFM input'!F153-'RFM input'!F207)*(1+'RFM input'!$F$289)^0.5 -> 0 | G211: 0
... 267 more rows

Sheet RAB roll forward
C2: ='DMS input'!$C$16&" - Asset Roll Forward"&" - DNSP RFM - version "&Intro!$M$4 -> AusNet (D) - Asset Roll Forward - DNSP RFM - version 3
G3: 0 | H3: =G3+1 -> 1 | I3: 2 | J3: 3 | K3: 4 | L3: 5 | M3: 6 | N3: 7 | O3: 8 | P3: 9 | Q3: 10 | R3: 11
C4: Year | F4: ='RFM input'!F60 -> 2020 | G4: ='RFM input'!G60 -> HY2021 | H4: ='RFM input'!H60 -> 2021-22 | I4: ='RFM input'!I60 -> 2022-23 | J4: ='RFM input'!J60 -> 2023-24 | K4: ='RFM input'!K60 -> 2024-25 | L4: ='RFM input'!L60 -> 2025-26 | M4: ='RFM input'!M60 -> 2026-27 | N4: ='RFM input'!N60 -> 2027-28 | O4: ='RFM input'!O60 -> 2028-29 | P4: ='RFM input'!P60 -> 2029-30 | Q4: ='RFM input'!Q60 -> 2030-31 | R4: =IF(LEN(Q4)>4,CONCATENATE(LEFT(Q4, 4)+1 &"-" &IF(Q4>"2007-08",,"0") &RIGHT(Q4,2)+1),Q4+1) -> 2031-32
C6: Actual CPI Inflation Rate | F6: ='RFM input'!F282 -> 0.01592920354 | G6: ='RFM input'!G282 -> 0.01219512195 | H6: ='RFM input'!H282 -> 0.008605851979 | I6: ='RFM input'!I282 -> 0.03498293515 | J6: ='RFM input'!J282 -> 0.07831821929 | K6: ='RFM input'!K282 -> 0.04051987768 | L6: ='RFM input'!L282 -> 0.0242468773 | M6: ='RFM input'!M282 -> 0 | N6: ='RFM input'!N282 -> 0 | O6: ='RFM input'!O282 -> 0 | P6: ='RFM input'!P282 -> 0 | Q6: ='RFM input'!Q282 -> 0
C7: Actual CPI (one year lagged) | F7: ='RFM input'!F283 -> 0.9879518072 | G7: ='RFM input'!G283 -> 1 | H7: ='RFM input'!H283 -> 1.008605852 | I7: ='RFM input'!I283 -> 1.043889845 | J7: ='RFM input'!J283 -> 1.125645439 | K7: ='RFM input'!K283 -> 1.171256454 | L7: ='RFM input'!L283 -> 1.199655766 | M7: ='RFM input'!M283 -> 1.199655766 | N7: ='RFM input'!N283 -> 1.199655766 | O7: ='RFM input'!O283 -> 1.199655766 | P7: ='RFM input'!P283 -> 1.199655766 | Q7: ='RFM input'!Q283 -> 1.199655766
C9: ="Asset Values ($m Real "&G4&")" -> Asset Values ($m Real HY2021)
C11: Real Actual Net Capex - As Incurred | H11: =SUM(H12:H61) -> 341.0723554 | I11: =SUM(I12:I61) -> 319.5791837 | J11: 344.2727018 | K11: 418.3828635 | L11: 494.9415858 | M11: 0 | N11: 0 | O11: 0 | P11: 0 | Q11: 0
D12: =Asset1 -> Subtransmission | H12: ='RFM input'!H223*(1+vanilla1)^0.5 -> 84.8359846 | I12: ='RFM input'!I223*(1+vanilla2)^0.5 -> 85.64814156 | J12: ='RFM input'!J223*(1+vanilla3)^0.5 -> 52.87190759 | K12: ='RFM input'!K223*(1+vanilla4)^0.5 -> 60.3253209 | L12: ='RFM input'!L223*(1+vanilla5)^0.5 -> 53.36752509 | M12: ='RFM input'!M223*(1+vanilla6)^0.5 -> 0 | N12: ='RFM input'!N223*(1+vanilla7)^0.5 -> 0 | O12: ='RFM input'!O223*(1+vanilla8)^0.5 -> 0 | P12: ='RFM input'!P223*(1+vanilla9)^0.5 -> 0 | Q12: ='RFM input'!Q223*(1+vanilla10)^0.5 -> 0
D13: =Asset2 -> Distribution system assets | H13: ='RFM input'!H224*(1+vanilla1)^0.5 -> 142.9977956 | I13: ='RFM input'!I224*(1+vanilla2)^0.5 -> 157.6559225 | J13: ='RFM input'!J224*(1+vanilla3)^0.5 -> 200.8168681 | K13: ='RFM input'!K224*(1+vanilla4)^0.5 -> 251.13029 | L13: ='RFM input'!L224*(1+vanilla5)^0.5 -> 281.130545 | M13: ='RFM input'!M224*(1+vanilla6)^0.5 -> 0 | N13: ='RFM input'!N224*(1+vanilla7)^0.5 -> 0 | O13: ='RFM input'!O224*(1+vanilla8)^0.5 -> 0 | P13: ='RFM input'!P224*(1+vanilla9)^0.5 -> 0 | Q13: ='RFM input'!Q224*(1+vanilla10)^0.5 -> 0
D14: =Asset3 -> SCADA/Network control | H14: ='RFM input'!H225*(1+vanilla1)^0.5 -> 16.77550585 | I14: ='RFM input'!I225*(1+vanilla2)^0.5 -> 16.93826416 | J14: ='RFM input'!J225*(1+vanilla3)^0.5 -> 24.42721103 | K14: ='RFM input'!K225*(1+vanilla4)^0.5 -> 7.665527731 | L14: ='RFM input'!L225*(1+vanilla5)^0.5 -> 8.703724898 | M14: ='RFM input'!M225*(1+vanilla6)^0.5 -> 0 | N14: ='RFM input'!N225*(1+vanilla7)^0.5 -> 0 | O14: ='RFM input'!O225*(1+vanilla8)^0.5 -> 0 | P14: ='RFM input'!P225*(1+vanilla9)^0.5 -> 0 | Q14: ='RFM input'!Q225*(1+vanilla10)^0.5 -> 0
D15: =Asset4 -> Non-network general assets - IT | H15: ='RFM input'!H226*(1+vanilla1)^0.5 -> 4.068879548 | I15: ='RFM input'!I226*(1+vanilla2)^0.5 -> 7.420647599 | J15: ='RFM input'!J226*(1+vanilla3)^0.5 -> 14.13536678 | K15: ='RFM input'!K226*(1+vanilla4)^0.5 -> 13.59854079 | L15: ='RFM input'!L226*(1+vanilla5)^0.5 -> 12.9996278 | M15: ='RFM input'!M226*(1+vanilla6)^0.5 -> 0 | N15: ='RFM input'!N226*(1+vanilla7)^0.5 -> 0 | O15: ='RFM input'!O226*(1+vanilla8)^0.5 -> 0 | P15: ='RFM input'!P226*(1+vanilla9)^0.5 -> 0 | Q15: ='RFM input'!Q226*(1+vanilla10)^0.5 -> 0
D16: =Asset5 -> Non-network general assets - Other | H16: ='RFM input'!H227*(1+vanilla1)^0.5 -> 0.349791736 | I16: ='RFM input'!I227*(1+vanilla2)^0.5 -> 1.138349272 | J16: ='RFM input'!J227*(1+vanilla3)^0.5 -> 2.695237752 | K16: ='RFM input'!K227*(1+vanilla4)^0.5 -> 6.405091309 | L16: ='RFM input'!L227*(1+vanilla5)^0.5 -> 4.536030534 | M16: ='RFM input'!M227*(1+vanilla6)^0.5 -> 0 | N16: ='RFM input'!N227*(1+vanilla7)^0.5 -> 0 | O16: ='RFM input'!O227*(1+vanilla8)^0.5 -> 0 | P16: ='RFM input'!P227*(1+vanilla9)^0.5 -> 0 | Q16: ='RFM input'!Q227*(1+vanilla10)^0.5 -> 0
D17: =Asset6 -> Land | H17: ='RFM input'!H228*(1+vanilla1)^0.5 -> 16.01636832 | I17: ='RFM input'!I228*(1+vanilla2)^0.5 -> 2.986584863 | J17: ='RFM input'!J228*(1+vanilla3)^0.5 -> 0.5966575595 | K17: ='RFM input'!K228*(1+vanilla4)^0.5 -> 0 | L17: ='RFM input'!L228*(1+vanilla5)^0.5 -> 11.47748274 | M17: ='RFM input'!M228*(1+vanilla6)^0.5 -> 0 | N17: ='RFM input'!N228*(1+vanilla7)^0.5 -> 0 | O17: ='RFM input'!O228*(1+vanilla8)^0.5 -> 0 | P17: ='RFM input'!P228*(1+vanilla9)^0.5 -> 0 | Q17: ='RFM input'!Q228*(1+vanilla10)^0.5 -> 0
D18: =Asset7 -> Secondary systems (pre 2016) | H18: ='RFM input'!H229*(1+vanilla1)^0.5 -> 0 | I18: ='RFM input'!I229*(1+vanilla2)^0.5 -> 0 | J18: ='RFM input'!J229*(1+vanilla3)^0.5 -> 0 | K18: ='RFM input'!K229*(1+vanilla4)^0.5 -> 0 | L18: ='RFM input'!L229*(1+vanilla5)^0.5 -> 0 | M18: ='RFM input'!M229*(1+vanilla6)^0.5 -> 0 | N18: ='RFM input'!N229*(1+vanilla7)^0.5 -> 0 | O18: ='RFM input'!O229*(1+vanilla8)^0.5 -> 0 | P18: ='RFM input'!P229*(1+vanilla9)^0.5 -> 0 | Q18: ='RFM input'!Q229*(1+vanilla10)^0.5 -> 0
D19: =Asset8 -> Accelerated Depr - Subtr (forecast period) | H19: ='RFM input'!H230*(1+vanilla1)^0.5 -> 0 | I19: ='RFM input'!I230*(1+vanilla2)^0.5 -> 0 | J19: ='RFM input'!J230*(1+vanilla3)^0.5 -> 0 | K19: ='RFM input'!K230*(1+vanilla4)^0.5 -> 0 | L19: ='RFM input'!L230*(1+vanilla5)^0.5 -> 0 | M19: ='RFM input'!M230*(1+vanilla6)^0.5 -> 0 | N19: ='RFM input'!N230*(1+vanilla7)^0.5 -> 0 | O19: ='RFM input'!O230*(1+vanilla8)^0.5 -> 0 | P19: ='RFM input'!P230*(1+vanilla9)^0.5 -> 0 | Q19: ='RFM input'!Q230*(1+vanilla10)^0.5 -> 0
D20: =Asset9 -> Accelerated Depr - Distr (forecast period) | H20: ='RFM input'!H231*(1+vanilla1)^0.5 -> 0 | I20: ='RFM input'!I231*(1+vanilla2)^0.5 -> 0 | J20: ='RFM input'!J231*(1+vanilla3)^0.5 -> 0 | K20: ='RFM input'!K231*(1+vanilla4)^0.5 -> 0 | L20: ='RFM input'!L231*(1+vanilla5)^0.5 -> 0 | M20: ='RFM input'!M231*(1+vanilla6)^0.5 -> 0 | N20: ='RFM input'!N231*(1+vanilla7)^0.5 -> 0 | O20: ='RFM input'!O231*(1+vanilla8)^0.5 -> 0 | P20: ='RFM input'!P231*(1+vanilla9)^0.5 -> 0 | Q20: ='RFM input'!Q231*(1+vanilla10)^0.5 -> 0
D21: =Asset10 -> Accelerated Depr - Distr assets (Contingent Project 1) | H21: ='RFM input'!H232*(1+vanilla1)^0.5 -> 0 | I21: ='RFM input'!I232*(1+vanilla2)^0.5 -> 0 | J21: ='RFM input'!J232*(1+vanilla3)^0.5 -> 0 | K21: ='RFM input'!K232*(1+vanilla4)^0.5 -> 0 | L21: ='RFM input'!L232*(1+vanilla5)^0.5 -> 0 | M21: ='RFM input'!M232*(1+vanilla6)^0.5 -> 0 | N21: ='RFM input'!N232*(1+vanilla7)^0.5 -> 0 | O21: ='RFM input'!O232*(1+vanilla8)^0.5 -> 0 | P21: ='RFM input'!P232*(1+vanilla9)^0.5 -> 0 | Q21: ='RFM input'!Q232*(1+vanilla10)^0.5 -> 0
D22: =Asset11 -> Accelerated Depr - Distr assets (Contingent Project 2) | H22: ='RFM input'!H233*(1+vanilla1)^0.5 -> 0 | I22: ='RFM input'!I233*(1+vanilla2)^0.5 -> 0 | J22: ='RFM input'!J233*(1+vanilla3)^0.5 -> 0 | K22: ='RFM input'!K233*(1+vanilla4)^0.5 -> 0 | L22: ='RFM input'!L233*(1+vanilla5)^0.5 -> 0 | M22: ='RFM input'!M233*(1+vanilla6)^0.5 -> 0 | N22: ='RFM input'!N233*(1+vanilla7)^0.5 -> 0 | O22: ='RFM input'!O233*(1+vanilla8)^0.5 -> 0 | P22: ='RFM input'!P233*(1+vanilla9)^0.5 -> 0 | Q22: ='RFM input'!Q233*(1+vanilla10)^0.5 -> 0
D23: =Asset12 -> Accelerated Depr - Distr assets (Contingent Project 3) | H23: ='RFM input'!H234*(1+vanilla1)^0.5 -> 0 | I23: ='RFM input'!I234*(1+vanilla2)^0.5 -> 0 | J23: ='RFM input'!J234*(1+vanilla3)^0.5 -> 0 | K23: ='RFM input'!K234*(1+vanilla4)^0.5 -> 0 | L23: ='RFM input'!L234*(1+vanilla5)^0.5 -> 0 | M23: ='RFM input'!M234*(1+vanilla6)^0.5 -> 0 | N23: ='RFM input'!N234*(1+vanilla7)^0.5 -> 0 | O23: ='RFM input'!O234*(1+vanilla8)^0.5 -> 0 | P23: ='RFM input'!P234*(1+vanilla9)^0.5 -> 0 | Q23: ='RFM input'!Q234*(1+vanilla10)^0.5 -> 0
D24: =Asset13 -> Accelerated Depr - Distr assets (Other) | H24: ='RFM input'!H235*(1+vanilla1)^0.5 -> 0 | I24: ='RFM input'!I235*(1+vanilla2)^0.5 -> 0 | J24: ='RFM input'!J235*(1+vanilla3)^0.5 -> 0 | K24: ='RFM input'!K235*(1+vanilla4)^0.5 -> 0 | L24: ='RFM input'!L235*(1+vanilla5)^0.5 -> 0 | M24: ='RFM input'!M235*(1+vanilla6)^0.5 -> 0 | N24: ='RFM input'!N235*(1+vanilla7)^0.5 -> 0 | O24: ='RFM input'!O235*(1+vanilla8)^0.5 -> 0 | P24: ='RFM input'!P235*(1+vanilla9)^0.5 -> 0 | Q24: ='RFM input'!Q235*(1+vanilla10)^0.5 -> 0
D25: =Asset14 -> Non-network leasehold land & buildings - 1 July 2021 | H25: ='RFM input'!H236*(1+vanilla1)^0.5 -> 0 | I25: ='RFM input'!I236*(1+vanilla2)^0.5 -> 0 | J25: ='RFM input'!J236*(1+vanilla3)^0.5 -> 0 | K25: ='RFM input'!K236*(1+vanilla4)^0.5 -> 0 | L25: ='RFM input'!L236*(1+vanilla5)^0.5 -> 0 | M25: ='RFM input'!M236*(1+vanilla6)^0.5 -> 0 | N25: ='RFM input'!N236*(1+vanilla7)^0.5 -> 0 | O25: ='RFM input'!O236*(1+vanilla8)^0.5 -> 0 | P25: ='RFM input'!P236*(1+vanilla9)^0.5 -> 0 | Q25: ='RFM input'!Q236*(1+vanilla10)^0.5 -> 0
D26: =Asset15 -> Non- Network Leasehold Land & Buildings - 2021-22 | H26: ='RFM input'!H237*(1+vanilla1)^0.5 -> 0 | I26: ='RFM input'!I237*(1+vanilla2)^0.5 -> 0 | J26: ='RFM input'!J237*(1+vanilla3)^0.5 -> 0.2271570943 | K26: ='RFM input'!K237*(1+vanilla4)^0.5 -> 0 | L26: ='RFM input'!L237*(1+vanilla5)^0.5 -> 47.78879683 | M26: ='RFM input'!M237*(1+vanilla6)^0.5 -> 0 | N26: ='RFM input'!N237*(1+vanilla7)^0.5 -> 0 | O26: ='RFM input'!O237*(1+vanilla8)^0.5 -> 0 | P26: ='RFM input'!P237*(1+vanilla9)^0.5 -> 0 | Q26: ='RFM input'!Q237*(1+vanilla10)^0.5 -> 0
D27: =Asset16 -> Non- Network Leasehold Land & Buildings - 2025-26 | H27: ='RFM input'!H238*(1+vanilla1)^0.5 -> 0 | I27: ='RFM input'!I238*(1+vanilla2)^0.5 -> 0.1681115731 | J27: ='RFM input'!J238*(1+vanilla3)^0.5 -> 0 | K27: ='RFM input'!K238*(1+vanilla4)^0.5 -> 0.3331398155 | L27: ='RFM input'!L238*(1+vanilla5)^0.5 -> 7.139795053 | M27: ='RFM input'!M238*(1+vanilla6)^0.5 -> 0 | N27: ='RFM input'!N238*(1+vanilla7)^0.5 -> 0 | O27: ='RFM input'!O238*(1+vanilla8)^0.5 -> 0 | P27: ='RFM input'!P238*(1+vanilla9)^0.5 -> 0 | Q27: ='RFM input'!Q238*(1+vanilla10)^0.5 -> 0
D28: =Asset17 -> Heavy vehicles and plant | H28: ='RFM input'!H239*(1+vanilla1)^0.5 -> 0 | I28: ='RFM input'!I239*(1+vanilla2)^0.5 -> 0 | J28: ='RFM input'!J239*(1+vanilla3)^0.5 -> 0 | K28: ='RFM input'!K239*(1+vanilla4)^0.5 -> 0 | L28: ='RFM input'!L239*(1+vanilla5)^0.5 -> 0 | M28: ='RFM input'!M239*(1+vanilla6)^0.5 -> 0 | N28: ='RFM input'!N239*(1+vanilla7)^0.5 -> 0 | O28: ='RFM input'!O239*(1+vanilla8)^0.5 -> 0 | P28: ='RFM input'!P239*(1+vanilla9)^0.5 -> 0 | Q28: ='RFM input'!Q239*(1+vanilla10)^0.5 -> 0
D29: =Asset18 -> Critical spares - network assets | H29: ='RFM input'!H240*(1+vanilla1)^0.5 -> 0 | I29: ='RFM input'!I240*(1+vanilla2)^0.5 -> 0 | J29: ='RFM input'!J240*(1+vanilla3)^0.5 -> 0 | K29: ='RFM input'!K240*(1+vanilla4)^0.5 -> 0 | L29: ='RFM input'!L240*(1+vanilla5)^0.5 -> 0 | M29: ='RFM input'!M240*(1+vanilla6)^0.5 -> 0 | N29: ='RFM input'!N240*(1+vanilla7)^0.5 -> 0 | O29: ='RFM input'!O240*(1+vanilla8)^0.5 -> 0 | P29: ='RFM input'!P240*(1+vanilla9)^0.5 -> 0 | Q29: ='RFM input'!Q240*(1+vanilla10)^0.5 -> 0
D30: =Asset19 -> Non-Network Leasehold Land & Buildings – short term | H30: ='RFM input'!H241*(1+vanilla1)^0.5 -> 0 | I30: ='RFM input'!I241*(1+vanilla2)^0.5 -> 0 | J30: ='RFM input'!J241*(1+vanilla3)^0.5 -> 0 | K30: ='RFM input'!K241*(1+vanilla4)^0.5 -> 0 | L30: ='RFM input'!L241*(1+vanilla5)^0.5 -> 0 | M30: ='RFM input'!M241*(1+vanilla6)^0.5 -> 0 | N30: ='RFM input'!N241*(1+vanilla7)^0.5 -> 0 | O30: ='RFM input'!O241*(1+vanilla8)^0.5 -> 0 | P30: ='RFM input'!P241*(1+vanilla9)^0.5 -> 0 | Q30: ='RFM input'!Q241*(1+vanilla10)^0.5 -> 0
D31: =Asset20 -> Motor Vehicle and plant Leases - short term | H31: ='RFM input'!H242*(1+vanilla1)^0.5 -> 0 | I31: ='RFM input'!I242*(1+vanilla2)^0.5 -> 0 | J31: ='RFM input'!J242*(1+vanilla3)^0.5 -> 0 | K31: ='RFM input'!K242*(1+vanilla4)^0.5 -> 0 | L31: ='RFM input'!L242*(1+vanilla5)^0.5 -> 0 | M31: ='RFM input'!M242*(1+vanilla6)^0.5 -> 0 | N31: ='RFM input'!N242*(1+vanilla7)^0.5 -> 0 | O31: ='RFM input'!O242*(1+vanilla8)^0.5 -> 0 | P31: ='RFM input'!P242*(1+vanilla9)^0.5 -> 0 | Q31: ='RFM input'!Q242*(1+vanilla10)^0.5 -> 0
D32: =Asset21 -> 0 | H32: ='RFM input'!H243*(1+vanilla1)^0.5 -> 0 | I32: ='RFM input'!I243*(1+vanilla2)^0.5 -> 0 | J32: ='RFM input'!J243*(1+vanilla3)^0.5 -> 0 | K32: ='RFM input'!K243*(1+vanilla4)^0.5 -> 0 | L32: ='RFM input'!L243*(1+vanilla5)^0.5 -> 0 | M32: ='RFM input'!M243*(1+vanilla6)^0.5 -> 0 | N32: ='RFM input'!N243*(1+vanilla7)^0.5 -> 0 | O32: ='RFM input'!O243*(1+vanilla8)^0.5 -> 0 | P32: ='RFM input'!P243*(1+vanilla9)^0.5 -> 0 | Q32: ='RFM input'!Q243*(1+vanilla10)^0.5 -> 0
D33: =Asset22 -> 0 | H33: ='RFM input'!H244*(1+vanilla1)^0.5 -> 0 | I33: ='RFM input'!I244*(1+vanilla2)^0.5 -> 0 | J33: ='RFM input'!J244*(1+vanilla3)^0.5 -> 0 | K33: ='RFM input'!K244*(1+vanilla4)^0.5 -> 0 | L33: ='RFM input'!L244*(1+vanilla5)^0.5 -> 0 | M33: ='RFM input'!M244*(1+vanilla6)^0.5 -> 0 | N33: ='RFM input'!N244*(1+vanilla7)^0.5 -> 0 | O33: ='RFM input'!O244*(1+vanilla8)^0.5 -> 0 | P33: ='RFM input'!P244*(1+vanilla9)^0.5 -> 0 | Q33: ='RFM input'!Q244*(1+vanilla10)^0.5 -> 0
D34: =Asset23 -> 0 | H34: ='RFM input'!H245*(1+vanilla1)^0.5 -> 0 | I34: ='RFM input'!I245*(1+vanilla2)^0.5 -> 0 | J34: ='RFM input'!J245*(1+vanilla3)^0.5 -> 0 | K34: ='RFM input'!K245*(1+vanilla4)^0.5 -> 0 | L34: ='RFM input'!L245*(1+vanilla5)^0.5 -> 0 | M34: ='RFM input'!M245*(1+vanilla6)^0.5 -> 0 | N34: ='RFM input'!N245*(1+vanilla7)^0.5 -> 0 | O34: ='RFM input'!O245*(1+vanilla8)^0.5 -> 0 | P34: ='RFM input'!P245*(1+vanilla9)^0.5 -> 0 | Q34: ='RFM input'!Q245*(1+vanilla10)^0.5 -> 0
D35: =Asset24 -> 0 | H35: ='RFM input'!H246*(1+vanilla1)^0.5 -> 0 | I35: ='RFM input'!I246*(1+vanilla2)^0.5 -> 0 | J35: ='RFM input'!J246*(1+vanilla3)^0.5 -> 0 | K35: ='RFM input'!K246*(1+vanilla4)^0.5 -> 0 | L35: ='RFM input'!L246*(1+vanilla5)^0.5 -> 0 | M35: ='RFM input'!M246*(1+vanilla6)^0.5 -> 0 | N35: ='RFM input'!N246*(1+vanilla7)^0.5 -> 0 | O35: ='RFM input'!O246*(1+vanilla8)^0.5 -> 0 | P35: ='RFM input'!P246*(1+vanilla9)^0.5 -> 0 | Q35: ='RFM input'!Q246*(1+vanilla10)^0.5 -> 0
D36: =Asset25 -> 0 | H36: ='RFM input'!H247*(1+vanilla1)^0.5 -> 0 | I36: ='RFM input'!I247*(1+vanilla2)^0.5 -> 0 | J36: ='RFM input'!J247*(1+vanilla3)^0.5 -> 0 | K36: ='RFM input'!K247*(1+vanilla4)^0.5 -> 0 | L36: ='RFM input'!L247*(1+vanilla5)^0.5 -> 0 | M36: ='RFM input'!M247*(1+vanilla6)^0.5 -> 0 | N36: ='RFM input'!N247*(1+vanilla7)^0.5 -> 0 | O36: ='RFM input'!O247*(1+vanilla8)^0.5 -> 0 | P36: ='RFM input'!P247*(1+vanilla9)^0.5 -> 0 | Q36: ='RFM input'!Q247*(1+vanilla10)^0.5 -> 0
D37: =Asset26 -> 0 | H37: ='RFM input'!H248*(1+vanilla1)^0.5 -> 0 | I37: ='RFM input'!I248*(1+vanilla2)^0.5 -> 0 | J37: ='RFM input'!J248*(1+vanilla3)^0.5 -> 0 | K37: ='RFM input'!K248*(1+vanilla4)^0.5 -> 0 | L37: ='RFM input'!L248*(1+vanilla5)^0.5 -> 0 | M37: ='RFM input'!M248*(1+vanilla6)^0.5 -> 0 | N37: ='RFM input'!N248*(1+vanilla7)^0.5 -> 0 | O37: ='RFM input'!O248*(1+vanilla8)^0.5 -> 0 | P37: ='RFM input'!P248*(1+vanilla9)^0.5 -> 0 | Q37: ='RFM input'!Q248*(1+vanilla10)^0.5 -> 0
D38: =Asset27 -> 0 | H38: ='RFM input'!H249*(1+vanilla1)^0.5 -> 0 | I38: ='RFM input'!I249*(1+vanilla2)^0.5 -> 0 | J38: ='RFM input'!J249*(1+vanilla3)^0.5 -> 0 | K38: ='RFM input'!K249*(1+vanilla4)^0.5 -> 0 | L38: ='RFM input'!L249*(1+vanilla5)^0.5 -> 0 | M38: ='RFM input'!M249*(1+vanilla6)^0.5 -> 0 | N38: ='RFM input'!N249*(1+vanilla7)^0.5 -> 0 | O38: ='RFM input'!O249*(1+vanilla8)^0.5 -> 0 | P38: ='RFM input'!P249*(1+vanilla9)^0.5 -> 0 | Q38: ='RFM input'!Q249*(1+vanilla10)^0.5 -> 0
D39: =Asset28 -> 0 | H39: ='RFM input'!H250*(1+vanilla1)^0.5 -> 0 | I39: ='RFM input'!I250*(1+vanilla2)^0.5 -> 0 | J39: ='RFM input'!J250*(1+vanilla3)^0.5 -> 0 | K39: ='RFM input'!K250*(1+vanilla4)^0.5 -> 0 | L39: ='RFM input'!L250*(1+vanilla5)^0.5 -> 0 | M39: ='RFM input'!M250*(1+vanilla6)^0.5 -> 0 | N39: ='RFM input'!N250*(1+vanilla7)^0.5 -> 0 | O39: ='RFM input'!O250*(1+vanilla8)^0.5 -> 0 | P39: ='RFM input'!P250*(1+vanilla9)^0.5 -> 0 | Q39: ='RFM input'!Q250*(1+vanilla10)^0.5 -> 0
D40: =Asset29 -> 0 | H40: ='RFM input'!H251*(1+vanilla1)^0.5 -> 0 | I40: ='RFM input'!I251*(1+vanilla2)^0.5 -> 0 | J40: ='RFM input'!J251*(1+vanilla3)^0.5 -> 0 | K40: ='RFM input'!K251*(1+vanilla4)^0.5 -> 0 | L40: ='RFM input'!L251*(1+vanilla5)^0.5 -> 0 | M40: ='RFM input'!M251*(1+vanilla6)^0.5 -> 0 | N40: ='RFM input'!N251*(1+vanilla7)^0.5 -> 0 | O40: ='RFM input'!O251*(1+vanilla8)^0.5 -> 0 | P40: ='RFM input'!P251*(1+vanilla9)^0.5 -> 0 | Q40: ='RFM input'!Q251*(1+vanilla10)^0.5 -> 0
D41: =Asset30 -> 0 | H41: ='RFM input'!H252*(1+vanilla1)^0.5 -> 0 | I41: ='RFM input'!I252*(1+vanilla2)^0.5 -> 0 | J41: ='RFM input'!J252*(1+vanilla3)^0.5 -> 0 | K41: ='RFM input'!K252*(1+vanilla4)^0.5 -> 0 | L41: ='RFM input'!L252*(1+vanilla5)^0.5 -> 0 | M41: ='RFM input'!M252*(1+vanilla6)^0.5 -> 0 | N41: ='RFM input'!N252*(1+vanilla7)^0.5 -> 0 | O41: ='RFM input'!O252*(1+vanilla8)^0.5 -> 0 | P41: ='RFM input'!P252*(1+vanilla9)^0.5 -> 0 | Q41: ='RFM input'!Q252*(1+vanilla10)^0.5 -> 0
D42: =Asset31 -> 0 | H42: ='RFM input'!H253*(1+vanilla1)^0.5 -> 0 | I42: ='RFM input'!I253*(1+vanilla2)^0.5 -> 0 | J42: ='RFM input'!J253*(1+vanilla3)^0.5 -> 0 | K42: ='RFM input'!K253*(1+vanilla4)^0.5 -> 0 | L42: ='RFM input'!L253*(1+vanilla5)^0.5 -> 0 | M42: ='RFM input'!M253*(1+vanilla6)^0.5 -> 0 | N42: ='RFM input'!N253*(1+vanilla7)^0.5 -> 0 | O42: ='RFM input'!O253*(1+vanilla8)^0.5 -> 0 | P42: ='RFM input'!P253*(1+vanilla9)^0.5 -> 0 | Q42: ='RFM input'!Q253*(1+vanilla10)^0.5 -> 0
D43: =Asset32 -> 0 | H43: ='RFM input'!H254*(1+vanilla1)^0.5 -> 0 | I43: ='RFM input'!I254*(1+vanilla2)^0.5 -> 0 | J43: ='RFM input'!J254*(1+vanilla3)^0.5 -> 0 | K43: ='RFM input'!K254*(1+vanilla4)^0.5 -> 0 | L43: ='RFM input'!L254*(1+vanilla5)^0.5 -> 0 | M43: ='RFM input'!M254*(1+vanilla6)^0.5 -> 0 | N43: ='RFM input'!N254*(1+vanilla7)^0.5 -> 0 | O43: ='RFM input'!O254*(1+vanilla8)^0.5 -> 0 | P43: ='RFM input'!P254*(1+vanilla9)^0.5 -> 0 | Q43: ='RFM input'!Q254*(1+vanilla10)^0.5 -> 0
D44: =Asset33 -> 0 | H44: ='RFM input'!H255*(1+vanilla1)^0.5 -> 0 | I44: ='RFM input'!I255*(1+vanilla2)^0.5 -> 0 | J44: ='RFM input'!J255*(1+vanilla3)^0.5 -> 0 | K44: ='RFM input'!K255*(1+vanilla4)^0.5 -> 0 | L44: ='RFM input'!L255*(1+vanilla5)^0.5 -> 0 | M44: ='RFM input'!M255*(1+vanilla6)^0.5 -> 0 | N44: ='RFM input'!N255*(1+vanilla7)^0.5 -> 0 | O44: ='RFM input'!O255*(1+vanilla8)^0.5 -> 0 | P44: ='RFM input'!P255*(1+vanilla9)^0.5 -> 0 | Q44: ='RFM input'!Q255*(1+vanilla10)^0.5 -> 0
D45: =Asset34 -> 0 | H45: ='RFM input'!H256*(1+vanilla1)^0.5 -> 0 | I45: ='RFM input'!I256*(1+vanilla2)^0.5 -> 0 | J45: ='RFM input'!J256*(1+vanilla3)^0.5 -> 0 | K45: ='RFM input'!K256*(1+vanilla4)^0.5 -> 0 | L45: ='RFM input'!L256*(1+vanilla5)^0.5 -> 0 | M45: ='RFM input'!M256*(1+vanilla6)^0.5 -> 0 | N45: ='RFM input'!N256*(1+vanilla7)^0.5 -> 0 | O45: ='RFM input'!O256*(1+vanilla8)^0.5 -> 0 | P45: ='RFM input'!P256*(1+vanilla9)^0.5 -> 0 | Q45: ='RFM input'!Q256*(1+vanilla10)^0.5 -> 0
D46: =Asset35 -> 0 | H46: ='RFM input'!H257*(1+vanilla1)^0.5 -> 0 | I46: ='RFM input'!I257*(1+vanilla2)^0.5 -> 0 | J46: ='RFM input'!J257*(1+vanilla3)^0.5 -> 0 | K46: ='RFM input'!K257*(1+vanilla4)^0.5 -> 0 | L46: ='RFM input'!L257*(1+vanilla5)^0.5 -> 0 | M46: ='RFM input'!M257*(1+vanilla6)^0.5 -> 0 | N46: ='RFM input'!N257*(1+vanilla7)^0.5 -> 0 | O46: ='RFM input'!O257*(1+vanilla8)^0.5 -> 0 | P46: ='RFM input'!P257*(1+vanilla9)^0.5 -> 0 | Q46: ='RFM input'!Q257*(1+vanilla10)^0.5 -> 0
D47: =Asset36 -> 0 | H47: ='RFM input'!H258*(1+vanilla1)^0.5 -> 0 | I47: ='RFM input'!I258*(1+vanilla2)^0.5 -> 0 | J47: ='RFM input'!J258*(1+vanilla3)^0.5 -> 0 | K47: ='RFM input'!K258*(1+vanilla4)^0.5 -> 0 | L47: ='RFM input'!L258*(1+vanilla5)^0.5 -> 0 | M47: ='RFM input'!M258*(1+vanilla6)^0.5 -> 0 | N47: ='RFM input'!N258*(1+vanilla7)^0.5 -> 0 | O47: ='RFM input'!O258*(1+vanilla8)^0.5 -> 0 | P47: ='RFM input'!P258*(1+vanilla9)^0.5 -> 0 | Q47: ='RFM input'!Q258*(1+vanilla10)^0.5 -> 0
D48: =Asset37 -> 0 | H48: ='RFM input'!H259*(1+vanilla1)^0.5 -> 0 | I48: ='RFM input'!I259*(1+vanilla2)^0.5 -> 0 | J48: ='RFM input'!J259*(1+vanilla3)^0.5 -> 0 | K48: ='RFM input'!K259*(1+vanilla4)^0.5 -> 0 | L48: ='RFM input'!L259*(1+vanilla5)^0.5 -> 0 | M48: ='RFM input'!M259*(1+vanilla6)^0.5 -> 0 | N48: ='RFM input'!N259*(1+vanilla7)^0.5 -> 0 | O48: ='RFM input'!O259*(1+vanilla8)^0.5 -> 0 | P48: ='RFM input'!P259*(1+vanilla9)^0.5 -> 0 | Q48: ='RFM input'!Q259*(1+vanilla10)^0.5 -> 0
D49: =Asset38 -> 0 | H49: ='RFM input'!H260*(1+vanilla1)^0.5 -> 0 | I49: ='RFM input'!I260*(1+vanilla2)^0.5 -> 0 | J49: ='RFM input'!J260*(1+vanilla3)^0.5 -> 0 | K49: ='RFM input'!K260*(1+vanilla4)^0.5 -> 0 | L49: ='RFM input'!L260*(1+vanilla5)^0.5 -> 0 | M49: ='RFM input'!M260*(1+vanilla6)^0.5 -> 0 | N49: ='RFM input'!N260*(1+vanilla7)^0.5 -> 0 | O49: ='RFM input'!O260*(1+vanilla8)^0.5 -> 0 | P49: ='RFM input'!P260*(1+vanilla9)^0.5 -> 0 | Q49: ='RFM input'!Q260*(1+vanilla10)^0.5 -> 0
D50: =Asset39 -> 0 | H50: ='RFM input'!H261*(1+vanilla1)^0.5 -> 0 | I50: ='RFM input'!I261*(1+vanilla2)^0.5 -> 0 | J50: ='RFM input'!J261*(1+vanilla3)^0.5 -> 0 | K50: ='RFM input'!K261*(1+vanilla4)^0.5 -> 0 | L50: ='RFM input'!L261*(1+vanilla5)^0.5 -> 0 | M50: ='RFM input'!M261*(1+vanilla6)^0.5 -> 0 | N50: ='RFM input'!N261*(1+vanilla7)^0.5 -> 0 | O50: ='RFM input'!O261*(1+vanilla8)^0.5 -> 0 | P50: ='RFM input'!P261*(1+vanilla9)^0.5 -> 0 | Q50: ='RFM input'!Q261*(1+vanilla10)^0.5 -> 0
D51: =Asset40 -> 0 | H51: ='RFM input'!H262*(1+vanilla1)^0.5 -> 0 | I51: ='RFM input'!I262*(1+vanilla2)^0.5 -> 0 | J51: ='RFM input'!J262*(1+vanilla3)^0.5 -> 0 | K51: ='RFM input'!K262*(1+vanilla4)^0.5 -> 0 | L51: ='RFM input'!L262*(1+vanilla5)^0.5 -> 0 | M51: ='RFM input'!M262*(1+vanilla6)^0.5 -> 0 | N51: ='RFM input'!N262*(1+vanilla7)^0.5 -> 0 | O51: ='RFM input'!O262*(1+vanilla8)^0.5 -> 0 | P51: ='RFM input'!P262*(1+vanilla9)^0.5 -> 0 | Q51: ='RFM input'!Q262*(1+vanilla10)^0.5 -> 0
D52: =Asset41 -> 0 | H52: ='RFM input'!H263*(1+vanilla1)^0.5 -> 0 | I52: ='RFM input'!I263*(1+vanilla2)^0.5 -> 0 | J52: ='RFM input'!J263*(1+vanilla3)^0.5 -> 0 | K52: ='RFM input'!K263*(1+vanilla4)^0.5 -> 0 | L52: ='RFM input'!L263*(1+vanilla5)^0.5 -> 0 | M52: ='RFM input'!M263*(1+vanilla6)^0.5 -> 0 | N52: ='RFM input'!N263*(1+vanilla7)^0.5 -> 0 | O52: ='RFM input'!O263*(1+vanilla8)^0.5 -> 0 | P52: ='RFM input'!P263*(1+vanilla9)^0.5 -> 0 | Q52: ='RFM input'!Q263*(1+vanilla10)^0.5 -> 0
D53: =Asset42 -> 0 | H53: ='RFM input'!H264*(1+vanilla1)^0.5 -> 0 | I53: ='RFM input'!I264*(1+vanilla2)^0.5 -> 0 | J53: ='RFM input'!J264*(1+vanilla3)^0.5 -> 0 | K53: ='RFM input'!K264*(1+vanilla4)^0.5 -> 0 | L53: ='RFM input'!L264*(1+vanilla5)^0.5 -> 0 | M53: ='RFM input'!M264*(1+vanilla6)^0.5 -> 0 | N53: ='RFM input'!N264*(1+vanilla7)^0.5 -> 0 | O53: ='RFM input'!O264*(1+vanilla8)^0.5 -> 0 | P53: ='RFM input'!P264*(1+vanilla9)^0.5 -> 0 | Q53: ='RFM input'!Q264*(1+vanilla10)^0.5 -> 0
D54: =Asset43 -> 0 | H54: ='RFM input'!H265*(1+vanilla1)^0.5 -> 0 | I54: ='RFM input'!I265*(1+vanilla2)^0.5 -> 0 | J54: ='RFM input'!J265*(1+vanilla3)^0.5 -> 0 | K54: ='RFM input'!K265*(1+vanilla4)^0.5 -> 0 | L54: ='RFM input'!L265*(1+vanilla5)^0.5 -> 0 | M54: ='RFM input'!M265*(1+vanilla6)^0.5 -> 0 | N54: ='RFM input'!N265*(1+vanilla7)^0.5 -> 0 | O54: ='RFM input'!O265*(1+vanilla8)^0.5 -> 0 | P54: ='RFM input'!P265*(1+vanilla9)^0.5 -> 0 | Q54: ='RFM input'!Q265*(1+vanilla10)^0.5 -> 0
D55: =Asset44 -> 0 | H55: ='RFM input'!H266*(1+vanilla1)^0.5 -> 0 | I55: ='RFM input'!I266*(1+vanilla2)^0.5 -> 0 | J55: ='RFM input'!J266*(1+vanilla3)^0.5 -> 0 | K55: ='RFM input'!K266*(1+vanilla4)^0.5 -> 0 | L55: ='RFM input'!L266*(1+vanilla5)^0.5 -> 0 | M55: ='RFM input'!M266*(1+vanilla6)^0.5 -> 0 | N55: ='RFM input'!N266*(1+vanilla7)^0.5 -> 0 | O55: ='RFM input'!O266*(1+vanilla8)^0.5 -> 0 | P55: ='RFM input'!P266*(1+vanilla9)^0.5 -> 0 | Q55: ='RFM input'!Q266*(1+vanilla10)^0.5 -> 0
D56: =Asset45 -> 0 | H56: ='RFM input'!H267*(1+vanilla1)^0.5 -> 0 | I56: ='RFM input'!I267*(1+vanilla2)^0.5 -> 0 | J56: ='RFM input'!J267*(1+vanilla3)^0.5 -> 0 | K56: ='RFM input'!K267*(1+vanilla4)^0.5 -> 0 | L56: ='RFM input'!L267*(1+vanilla5)^0.5 -> 0 | M56: ='RFM input'!M267*(1+vanilla6)^0.5 -> 0 | N56: ='RFM input'!N267*(1+vanilla7)^0.5 -> 0 | O56: ='RFM input'!O267*(1+vanilla8)^0.5 -> 0 | P56: ='RFM input'!P267*(1+vanilla9)^0.5 -> 0 | Q56: ='RFM input'!Q267*(1+vanilla10)^0.5 -> 0
D57: =Asset46 -> 0 | H57: ='RFM input'!H268*(1+vanilla1)^0.5 -> 0 | I57: ='RFM input'!I268*(1+vanilla2)^0.5 -> 0 | J57: ='RFM input'!J268*(1+vanilla3)^0.5 -> 0 | K57: ='RFM input'!K268*(1+vanilla4)^0.5 -> 0 | L57: ='RFM input'!L268*(1+vanilla5)^0.5 -> 0 | M57: ='RFM input'!M268*(1+vanilla6)^0.5 -> 0 | N57: ='RFM input'!N268*(1+vanilla7)^0.5 -> 0 | O57: ='RFM input'!O268*(1+vanilla8)^0.5 -> 0 | P57: ='RFM input'!P268*(1+vanilla9)^0.5 -> 0 | Q57: ='RFM input'!Q268*(1+vanilla10)^0.5 -> 0
D58: =Asset47 -> 0 | H58: ='RFM input'!H269*(1+vanilla1)^0.5 -> 0 | I58: ='RFM input'!I269*(1+vanilla2)^0.5 -> 0 | J58: ='RFM input'!J269*(1+vanilla3)^0.5 -> 0 | K58: ='RFM input'!K269*(1+vanilla4)^0.5 -> 0 | L58: ='RFM input'!L269*(1+vanilla5)^0.5 -> 0 | M58: ='RFM input'!M269*(1+vanilla6)^0.5 -> 0 | N58: ='RFM input'!N269*(1+vanilla7)^0.5 -> 0 | O58: ='RFM input'!O269*(1+vanilla8)^0.5 -> 0 | P58: ='RFM input'!P269*(1+vanilla9)^0.5 -> 0 | Q58: ='RFM input'!Q269*(1+vanilla10)^0.5 -> 0
D59: =Asset48 -> Buildings - capital works | H59: ='RFM input'!H270*(1+vanilla1)^0.5 -> 16.06790243 | I59: ='RFM input'!I270*(1+vanilla2)^0.5 -> 1.634539491 | J59: ='RFM input'!J270*(1+vanilla3)^0.5 -> 0.008323200472 | K59: ='RFM input'!K270*(1+vanilla4)^0.5 -> 0.6097303165 | L59: ='RFM input'!L270*(1+vanilla5)^0.5 -> 0.104327416 | M59: ='RFM input'!M270*(1+vanilla6)^0.5 -> 0 | N59: ='RFM input'!N270*(1+vanilla7)^0.5 -> 0 | O59: ='RFM input'!O270*(1+vanilla8)^0.5 -> 0 | P59: ='RFM input'!P270*(1+vanilla9)^0.5 -> 0 | Q59: ='RFM input'!Q270*(1+vanilla10)^0.5 -> 0
D60: =Asset49 -> in-house software | H60: ='RFM input'!H271*(1+vanilla1)^0.5 -> 59.96012728 | I60: ='RFM input'!I271*(1+vanilla2)^0.5 -> 45.98862272 | J60: ='RFM input'!J271*(1+vanilla3)^0.5 -> 48.49397272 | K60: ='RFM input'!K271*(1+vanilla4)^0.5 -> 78.31522262 | L60: ='RFM input'!L271*(1+vanilla5)^0.5 -> 67.69373045 | M60: ='RFM input'!M271*(1+vanilla6)^0.5 -> 0 | N60: ='RFM input'!N271*(1+vanilla7)^0.5 -> 0 | O60: ='RFM input'!O271*(1+vanilla8)^0.5 -> 0 | P60: ='RFM input'!P271*(1+vanilla9)^0.5 -> 0 | Q60: ='RFM input'!Q271*(1+vanilla10)^0.5 -> 0
D61: =Asset50 -> Equity raising costs | H61: ='RFM input'!H272*(1+vanilla1)^0.5 -> 0 | I61: ='RFM input'!I272*(1+vanilla2)^0.5 -> 0 | J61: ='RFM input'!J272*(1+vanilla3)^0.5 -> 0 | K61: ='RFM input'!K272*(1+vanilla4)^0.5 -> 0 | L61: ='RFM input'!L272*(1+vanilla5)^0.5 -> 0 | M61: ='RFM input'!M272*(1+vanilla6)^0.5 -> 0 | N61: ='RFM input'!N272*(1+vanilla7)^0.5 -> 0 | O61: ='RFM input'!O272*(1+vanilla8)^0.5 -> 0 | P61: ='RFM input'!P272*(1+vanilla9)^0.5 -> 0 | Q61: ='RFM input'!Q272*(1+vanilla10)^0.5 -> 0
C63: ="Real "&'RFM input'!$G$295& " Straight-line Depreciation" -> Real Forecast Straight-line Depreciation | H63: =H76+H89+H102+H115+H128+H141+H154+H167+H180+H193+H206+H219+H232+H245+H258+H271+H284+H297+H310+H323+H336+H349+H362+H375+H388+H401+H414+H427+H440+H453+H466+H479+H492+H505+H518+H531+H544+H557+H570+H583+H596+H609+H622+H635+H648+H661+H674+H687+H700+H713 -> -273.0154848 | I63: =I76+I89+I102+I115+I128+I141+I154+I167+I180+I193+I206+I219+I232+I245+I258+I271+I284+I297+I310+I323+I336+I349+I362+I375+I388+I401+I414+I427+I440+I453+I466+I479+I492+I505+I518+I531+I544+I557+I570+I583+I596+I609+I622+I635+I648+I661+I674+I687+I700+I713 -> -250.0584232 | J63: -248.2209286 | K63: -254.5358571 | L63: -254.0420481 | M63: 0 | N63: =N76+N89+N102+N115+N128+N141+N154+N167+N180+N193+N206+N219+N232+N245+N258+N271+N284+N297+N310+N323+N336+N349+N362+N375+N388+N401+N414+N427+N440+N453+N466+N479+N492+N505+N518+N531+N544+N557+N570+N583+N596+N609+N622+N635+N648+N661+N674+N687+N700+N713 -> 0 | O63: 0 | P63: 0 | Q63: 0
C64: =Asset1 -> Subtransmission | E64: Opening RAB | H64: =IF(H$3>A1remlife,A1value-SUM($G64:G64),IF(A1remlife="N/A","n/a",A1value/A1remlife)) -> n/a | I64: =IF(I$3>A1remlife,A1value-SUM($G64:H64),IF(A1remlife="N/A","n/a",A1value/A1remlife)) -> n/a | J64: =IF(J$3>A1remlife,A1value-SUM($G64:I64),IF(A1remlife="N/A","n/a",A1value/A1remlife)) -> n/a | K64: =IF(K$3>A1remlife,A1value-SUM($G64:J64),IF(A1remlife="N/A","n/a",A1value/A1remlife)) -> n/a | L64: =IF(L$3>A1remlife,A1value-SUM($G64:K64),IF(A1remlife="N/A","n/a",A1value/A1remlife)) -> n/a | M64: =IF(M$3>A1remlife,A1value-SUM($G64:L64),IF(A1remlife="N/A","n/a",A1value/A1remlife)) -> n/a | N64: =IF(N$3>A1remlife,A1value-SUM($G64:M64),IF(A1remlife="N/A","n/a",A1value/A1remlife)) -> n/a | O64: =IF(O$3>A1remlife,A1value-SUM($G64:N64),IF(A1remlife="N/A","n/a",A1value/A1remlife)) -> n/a | P64: =IF(P$3>A1remlife,A1value-SUM($G64:O64),IF(A1remlife="N/A","n/a",A1value/A1remlife)) -> n/a | Q64: =IF(Q$3>A1remlife,A1value-SUM($G64:P64),IF(A1remlife="N/A","n/a",A1value/A1remlife)) -> n/a
E65: Capex in year
F66: 1 | I66: =IF(A1stdlife="n/a","n/a",IF(I$3>(A1stdlife+$F66),('RFM input'!$H$223*(1+vanilla1)^0.5)-SUM($H66:H66),('RFM input'!$H$223*(1+vanilla1)^0.5)/A1stdlife)) -> 1.885244102 | J66: =IF(A1stdlife="n/a","n/a",IF(J$3>(A1stdlife+$F66),('RFM input'!$H$223*(1+vanilla1)^0.5)-SUM($H66:I66),('RFM input'!$H$223*(1+vanilla1)^0.5)/A1stdlife)) -> 1.885244102 | K66: =IF(A1stdlife="n/a","n/a",IF(K$3>(A1stdlife+$F66),('RFM input'!$H$223*(1+vanilla1)^0.5)-SUM($H66:J66),('RFM input'!$H$223*(1+vanilla1)^0.5)/A1stdlife)) -> 1.885244102 | L66: =IF(A1stdlife="n/a","n/a",IF(L$3>(A1stdlife+$F66),('RFM input'!$H$223*(1+vanilla1)^0.5)-SUM($H66:K66),('RFM input'!$H$223*(1+vanilla1)^0.5)/A1stdlife)) -> 1.885244102 | M66: =IF(A1stdlife="n/a","n/a",IF(M$3>(A1stdlife+$F66),('RFM input'!$H$223*(1+vanilla1)^0.5)-SUM($H66:L66),('RFM input'!$H$223*(1+vanilla1)^0.5)/A1stdlife)) -> 1.885244102 | N66: =IF(A1stdlife="n/a","n/a",IF(N$3>(A1stdlife+$F66),('RFM input'!$H$223*(1+vanilla1)^0.5)-SUM($H66:M66),('RFM input'!$H$223*(1+vanilla1)^0.5)/A1stdlife)) -> 1.885244102 | O66: =IF(A1stdlife="n/a","n/a",IF(O$3>(A1stdlife+$F66),('RFM input'!$H$223*(1+vanilla1)^0.5)-SUM($H66:N66),('RFM input'!$H$223*(1+vanilla1)^0.5)/A1stdlife)) -> 1.885244102 | P66: =IF(A1stdlife="n/a","n/a",IF(P$3>(A1stdlife+$F66),('RFM input'!$H$223*(1+vanilla1)^0.5)-SUM($H66:O66),('RFM input'!$H$223*(1+vanilla1)^0.5)/A1stdlife)) -> 1.885244102 | Q66: =IF(A1stdlife="n/a","n/a",IF(Q$3>(A1stdlife+$F66),('RFM input'!$H$223*(1+vanilla1)^0.5)-SUM($H66:P66),('RFM input'!$H$223*(1+vanilla1)^0.5)/A1stdlife)) -> 1.885244102
F67: 2 | J67: =IF(A1stdlife="n/a","n/a",IF(J$3>(A1stdlife+$F67),('RFM input'!$I$223*(1+vanilla2)^0.5)-SUM($I67:I67),('RFM input'!$I$223*(1+vanilla2)^0.5)/A1stdlife)) -> 1.903292035 | K67: =IF(A1stdlife="n/a","n/a",IF(K$3>(A1stdlife+$F67),('RFM input'!$I$223*(1+vanilla2)^0.5)-SUM($I67:J67),('RFM input'!$I$223*(1+vanilla2)^0.5)/A1stdlife)) -> 1.903292035 | L67: =IF(A1stdlife="n/a","n/a",IF(L$3>(A1stdlife+$F67),('RFM input'!$I$223*(1+vanilla2)^0.5)-SUM($I67:K67),('RFM input'!$I$223*(1+vanilla2)^0.5)/A1stdlife)) -> 1.903292035 | M67: =IF(A1stdlife="n/a","n/a",IF(M$3>(A1stdlife+$F67),('RFM input'!$I$223*(1+vanilla2)^0.5)-SUM($I67:L67),('RFM input'!$I$223*(1+vanilla2)^0.5)/A1stdlife)) -> 1.903292035 | N67: =IF(A1stdlife="n/a","n/a",IF(N$3>(A1stdlife+$F67),('RFM input'!$I$223*(1+vanilla2)^0.5)-SUM($I67:M67),('RFM input'!$I$223*(1+vanilla2)^0.5)/A1stdlife)) -> 1.903292035 | O67: =IF(A1stdlife="n/a","n/a",IF(O$3>(A1stdlife+$F67),('RFM input'!$I$223*(1+vanilla2)^0.5)-SUM($I67:N67),('RFM input'!$I$223*(1+vanilla2)^0.5)/A1stdlife)) -> 1.903292035 | P67: =IF(A1stdlife="n/a","n/a",IF(P$3>(A1stdlife+$F67),('RFM input'!$I$223*(1+vanilla2)^0.5)-SUM($I67:O67),('RFM input'!$I$223*(1+vanilla2)^0.5)/A1stdlife)) -> 1.903292035 | Q67: =IF(A1stdlife="n/a","n/a",IF(Q$3>(A1stdlife+$F67),('RFM input'!$I$223*(1+vanilla2)^0.5)-SUM($I67:P67),('RFM input'!$I$223*(1+vanilla2)^0.5)/A1stdlife)) -> 1.903292035
F68: 3 | K68: =IF(A1stdlife="n/a","n/a",IF(K$3>(A1stdlife+$F68),('RFM input'!$J$223*(1+vanilla3)^0.5)-SUM($J68:J68),('RFM input'!$J$223*(1+vanilla3)^0.5)/A1stdlife)) -> 1.17493128 | L68: =IF(A1stdlife="n/a","n/a",IF(L$3>(A1stdlife+$F68),('RFM input'!$J$223*(1+vanilla3)^0.5)-SUM($J68:K68),('RFM input'!$J$223*(1+vanilla3)^0.5)/A1stdlife)) -> 1.17493128 | M68: =IF(A1stdlife="n/a","n/a",IF(M$3>(A1stdlife+$F68),('RFM input'!$J$223*(1+vanilla3)^0.5)-SUM($J68:L68),('RFM input'!$J$223*(1+vanilla3)^0.5)/A1stdlife)) -> 1.17493128 | N68: =IF(A1stdlife="n/a","n/a",IF(N$3>(A1stdlife+$F68),('RFM input'!$J$223*(1+vanilla3)^0.5)-SUM($J68:M68),('RFM input'!$J$223*(1+vanilla3)^0.5)/A1stdlife)) -> 1.17493128 | O68: =IF(A1stdlife="n/a","n/a",IF(O$3>(A1stdlife+$F68),('RFM input'!$J$223*(1+vanilla3)^0.5)-SUM($J68:N68),('RFM input'!$J$223*(1+vanilla3)^0.5)/A1stdlife)) -> 1.17493128 | P68: =IF(A1stdlife="n/a","n/a",IF(P$3>(A1stdlife+$F68),('RFM input'!$J$223*(1+vanilla3)^0.5)-SUM($J68:O68),('RFM input'!$J$223*(1+vanilla3)^0.5)/A1stdlife)) -> 1.17493128 | Q68: =IF(A1stdlife="n/a","n/a",IF(Q$3>(A1stdlife+$F68),('RFM input'!$J$223*(1+vanilla3)^0.5)-SUM($J68:P68),('RFM input'!$J$223*(1+vanilla3)^0.5)/A1stdlife)) -> 1.17493128
F69: 4 | L69: =IF(A1stdlife="n/a","n/a",IF(L$3>(A1stdlife+$F69),('RFM input'!$K$223*(1+vanilla4)^0.5)-SUM($K69:K69),('RFM input'!$K$223*(1+vanilla4)^0.5)/A1stdlife)) -> 1.340562687 | M69: =IF(A1stdlife="n/a","n/a",IF(M$3>(A1stdlife+$F69),('RFM input'!$K$223*(1+vanilla4)^0.5)-SUM($K69:L69),('RFM input'!$K$223*(1+vanilla4)^0.5)/A1stdlife)) -> 1.340562687 | N69: =IF(A1stdlife="n/a","n/a",IF(N$3>(A1stdlife+$F69),('RFM input'!$K$223*(1+vanilla4)^0.5)-SUM($K69:M69),('RFM input'!$K$223*(1+vanilla4)^0.5)/A1stdlife)) -> 1.340562687 | O69: =IF(A1stdlife="n/a","n/a",IF(O$3>(A1stdlife+$F69),('RFM input'!$K$223*(1+vanilla4)^0.5)-SUM($K69:N69),('RFM input'!$K$223*(1+vanilla4)^0.5)/A1stdlife)) -> 1.340562687 | P69: =IF(A1stdlife="n/a","n/a",IF(P$3>(A1stdlife+$F69),('RFM input'!$K$223*(1+vanilla4)^0.5)-SUM($K69:O69),('RFM input'!$K$223*(1+vanilla4)^0.5)/A1stdlife)) -> 1.340562687 | Q69: =IF(A1stdlife="n/a","n/a",IF(Q$3>(A1stdlife+$F69),('RFM input'!$K$223*(1+vanilla4)^0.5)-SUM($K69:P69),('RFM input'!$K$223*(1+vanilla4)^0.5)/A1stdlife)) -> 1.340562687
F70: 5 | M70: =IF(A1stdlife="n/a","n/a",IF(M$3>(A1stdlife+$F70),('RFM input'!$L$223*(1+vanilla5)^0.5)-SUM($L70:L70),('RFM input'!$L$223*(1+vanilla5)^0.5)/A1stdlife)) -> 1.185945002 | N70: =IF(A1stdlife="n/a","n/a",IF(N$3>(A1stdlife+$F70),('RFM input'!$L$223*(1+vanilla5)^0.5)-SUM($L70:M70),('RFM input'!$L$223*(1+vanilla5)^0.5)/A1stdlife)) -> 1.185945002 | O70: =IF(A1stdlife="n/a","n/a",IF(O$3>(A1stdlife+$F70),('RFM input'!$L$223*(1+vanilla5)^0.5)-SUM($L70:N70),('RFM input'!$L$223*(1+vanilla5)^0.5)/A1stdlife)) -> 1.185945002 | P70: =IF(A1stdlife="n/a","n/a",IF(P$3>(A1stdlife+$F70),('RFM input'!$L$223*(1+vanilla5)^0.5)-SUM($L70:O70),('RFM input'!$L$223*(1+vanilla5)^0.5)/A1stdlife)) -> 1.185945002 | Q70: =IF(A1stdlife="n/a","n/a",IF(Q$3>(A1stdlife+$F70),('RFM input'!$L$223*(1+vanilla5)^0.5)-SUM($L70:P70),('RFM input'!$L$223*(1+vanilla5)^0.5)/A1stdlife)) -> 1.185945002
F71: 6 | N71: =IF(A1stdlife="n/a","n/a",IF(N$3>(A1stdlife+$F71),('RFM input'!$M$223*(1+vanilla6)^0.5)-SUM($M71:M71),('RFM input'!$M$223*(1+vanilla6)^0.5)/A1stdlife)) -> 0 | O71: =IF(A1stdlife="n/a","n/a",IF(O$3>(A1stdlife+$F71),('RFM input'!$M$223*(1+vanilla6)^0.5)-SUM($M71:N71),('RFM input'!$M$223*(1+vanilla6)^0.5)/A1stdlife)) -> 0 | P71: =IF(A1stdlife="n/a","n/a",IF(P$3>(A1stdlife+$F71),('RFM input'!$M$223*(1+vanilla6)^0.5)-SUM($M71:O71),('RFM input'!$M$223*(1+vanilla6)^0.5)/A1stdlife)) -> 0 | Q71: =IF(A1stdlife="n/a","n/a",IF(Q$3>(A1stdlife+$F71),('RFM input'!$M$223*(1+vanilla6)^0.5)-SUM($M71:P71),('RFM input'!$M$223*(1+vanilla6)^0.5)/A1stdlife)) -> 0
F72: 7 | O72: =IF(A1stdlife="n/a","n/a",IF(O$3>(A1stdlife+$F72),('RFM input'!$N$223*(1+vanilla7)^0.5)-SUM($N72:N72),('RFM input'!$N$223*(1+vanilla7)^0.5)/A1stdlife)) -> 0 | P72: =IF(A1stdlife="n/a","n/a",IF(P$3>(A1stdlife+$F72),('RFM input'!$N$223*(1+vanilla7)^0.5)-SUM($N72:O72),('RFM input'!$N$223*(1+vanilla7)^0.5)/A1stdlife)) -> 0 | Q72: =IF(A1stdlife="n/a","n/a",IF(Q$3>(A1stdlife+$F72),('RFM input'!$N$223*(1+vanilla7)^0.5)-SUM($N72:P72),('RFM input'!$N$223*(1+vanilla7)^0.5)/A1stdlife)) -> 0
F73: 8 | P73: =IF(A1stdlife="n/a","n/a",IF(P$3>(A1stdlife+$F73),('RFM input'!$O$223*(1+vanilla8)^0.5)-SUM($O73:O73),('RFM input'!$O$223*(1+vanilla8)^0.5)/A1stdlife)) -> 0 | Q73: =IF(A1stdlife="n/a","n/a",IF(Q$3>(A1stdlife+$F73),('RFM input'!$O$223*(1+vanilla8)^0.5)-SUM($O73:P73),('RFM input'!$O$223*(1+vanilla8)^0.5)/A1stdlife)) -> 0
F74: 9 | Q74: =IF(A1stdlife="n/a","n/a",IF(Q$3>(A1stdlife+$F74),('RFM input'!$P$223*(1+vanilla9)^0.5)-SUM($P74:P74),('RFM input'!$P$223*(1+vanilla9)^0.5)/A1stdlife)) -> 0
F75: 10
D76: =Asset1 -> Subtransmission | H76: =IF(OR('RFM input'!$E$293='RFM input'!$G$292,'RFM input'!$E$293='RFM input'!$G$293),-INDEX('RFM input'!H$299:H$348,MATCH($D76,'RFM input'!$E$299:$E$348,0),1),-SUM(H64:H75)) -> -17.75644955 | I76: =IF(OR('RFM input'!$E$293='RFM input'!$G$292,'RFM input'!$E$293='RFM input'!$G$293),-INDEX('RFM input'!I$299:I$348,MATCH($D76,'RFM input'!$E$299:$E$348,0),1),-SUM(I64:I75)) -> -19.440547 | J76: =IF(COUNT($H76:I76)>='RFM input'!$Z$7, 0, IF(OR('RFM input'!$E$293='RFM input'!$G$292,'RFM input'!$E$293='RFM input'!$G$293), -INDEX('RFM input'!J$299:J$348,MATCH($D76,'RFM input'!$E$299:$E$348,0),1), -SUM(J64:J75))) -> -21.28786151 | K76: =IF(COUNT($H76:J76)>='RFM input'!$Z$7, 0, IF(OR('RFM input'!$E$293='RFM input'!$G$292,'RFM input'!$E$293='RFM input'!$G$293), -INDEX('RFM input'!K$299:K$348,MATCH($D76,'RFM input'!$E$299:$E$348,0),1), -SUM(K64:K75))) -> -22.32168415 | L76: =IF(COUNT($H76:K76)>='RFM input'!$Z$7, 0, IF(OR('RFM input'!$E$293='RFM input'!$G$292,'RFM input'!$E$293='RFM input'!$G$293), -INDEX('RFM input'!L$299:L$348,MATCH($D76,'RFM input'!$E$299:$E$348,0),1), -SUM(L64:L75))) -> -22.79561072 | M76: =IF(COUNT($H76:L76)>='RFM input'!$Z$7, 0, IF(OR('RFM input'!$E$293='RFM input'!$G$292,'RFM input'!$E$293='RFM input'!$G$293), -INDEX('RFM input'!M$299:M$348,MATCH($D76,'RFM input'!$E$299:$E$348,0),1), -SUM(M64:M75))) -> 0 | N76: =IF(COUNT($H76:M76)>='RFM input'!$Z$7, 0, IF(OR('RFM input'!$E$293='RFM input'!$G$292,'RFM input'!$E$293='RFM input'!$G$293), -INDEX('RFM input'!N$299:N$348,MATCH($D76,'RFM input'!$E$299:$E$348,0),1), -SUM(N64:N75))) -> 0 | O76: =IF(COUNT($H76:N76)>='RFM input'!$Z$7, 0, IF(OR('RFM input'!$E$293='RFM input'!$G$292,'RFM input'!$E$293='RFM input'!$G$293), -INDEX('RFM input'!O$299:O$348,MATCH($D76,'RFM input'!$E$299:$E$348,0),1), -SUM(O64:O75))) -> 0 | P76: =IF(COUNT($H76:O76)>='RFM input'!$Z$7, 0, IF(OR('RFM input'!$E$293='RFM input'!$G$292,'RFM input'!$E$293='RFM input'!$G$293), -INDEX('RFM input'!P$299:P$348,MATCH($D76,'RFM input'!$E$299:$E$348,0),1), -SUM(P64:P75))) -> 0 | Q76: =IF(COUNT($H76:P76)>='RFM input'!$Z$7, 0, IF(OR('RFM input'!$E$293='RFM input'!$G$292,'RFM input'!$E$293='RFM input'!$G$293), -INDEX('RFM input'!Q$299:Q$348,MATCH($D76,'RFM input'!$E$299:$E$348,0),1), -SUM(Q64:Q75))) -> 0
C77: =Asset2 -> Distribution system assets | E77: Opening RAB | H77: =IF(H$3>A2remlife,A2value-SUM($G77:G77),IF(A2remlife="N/A","n/a",A2value/A2remlife)) -> n/a | I77: =IF(I$3>A2remlife,A2value-SUM($G77:H77),IF(A2remlife="N/A","n/a",A2value/A2remlife)) -> n/a | J77: =IF(J$3>A2remlife,A2value-SUM($G77:I77),IF(A2remlife="N/A","n/a",A2value/A2remlife)) -> n/a | K77: =IF(K$3>A2remlife,A2value-SUM($G77:J77),IF(A2remlife="N/A","n/a",A2value/A2remlife)) -> n/a | L77: =IF(L$3>A2remlife,A2value-SUM($G77:K77),IF(A2remlife="N/A","n/a",A2value/A2remlife)) -> n/a | M77: =IF(M$3>A2remlife,A2value-SUM($G77:L77),IF(A2remlife="N/A","n/a",A2value/A2remlife)) -> n/a | N77: =IF(N$3>A2remlife,A2value-SUM($G77:M77),IF(A2remlife="N/A","n/a",A2value/A2remlife)) -> n/a | O77: =IF(O$3>A2remlife,A2value-SUM($G77:N77),IF(A2remlife="N/A","n/a",A2value/A2remlife)) -> n/a | P77: =IF(P$3>A2remlife,A2value-SUM($G77:O77),IF(A2remlife="N/A","n/a",A2value/A2remlife)) -> n/a | Q77: =IF(Q$3>A2remlife,A2value-SUM($G77:P77),IF(A2remlife="N/A","n/a",A2value/A2remlife)) -> n/a
E78: Capex in year
F79: 1 | I79: =IF(A2stdlife="n/a","n/a",IF(I$3>(A2stdlife+$F79),('RFM input'!$H$224*(1+vanilla1)^0.5)-SUM($H79:H79),('RFM input'!$H$224*(1+vanilla1)^0.5)/A2stdlife)) -> 2.859955912 | J79: =IF(A2stdlife="n/a","n/a",IF(J$3>(A2stdlife+$F79),('RFM input'!$H$224*(1+vanilla1)^0.5)-SUM($H79:I79),('RFM input'!$H$224*(1+vanilla1)^0.5)/A2stdlife)) -> 2.859955912 | K79: =IF(A2stdlife="n/a","n/a",IF(K$3>(A2stdlife+$F79),('RFM input'!$H$224*(1+vanilla1)^0.5)-SUM($H79:J79),('RFM input'!$H$224*(1+vanilla1)^0.5)/A2stdlife)) -> 2.859955912 | L79: =IF(A2stdlife="n/a","n/a",IF(L$3>(A2stdlife+$F79),('RFM input'!$H$224*(1+vanilla1)^0.5)-SUM($H79:K79),('RFM input'!$H$224*(1+vanilla1)^0.5)/A2stdlife)) -> 2.859955912 | M79: =IF(A2stdlife="n/a","n/a",IF(M$3>(A2stdlife+$F79),('RFM input'!$H$224*(1+vanilla1)^0.5)-SUM($H79:L79),('RFM input'!$H$224*(1+vanilla1)^0.5)/A2stdlife)) -> 2.859955912 | N79: =IF(A2stdlife="n/a","n/a",IF(N$3>(A2stdlife+$F79),('RFM input'!$H$224*(1+vanilla1)^0.5)-SUM($H79:M79),('RFM input'!$H$224*(1+vanilla1)^0.5)/A2stdlife)) -> 2.859955912 | O79: =IF(A2stdlife="n/a","n/a",IF(O$3>(A2stdlife+$F79),('RFM input'!$H$224*(1+vanilla1)^0.5)-SUM($H79:N79),('RFM input'!$H$224*(1+vanilla1)^0.5)/A2stdlife)) -> 2.859955912 | P79: =IF(A2stdlife="n/a","n/a",IF(P$3>(A2stdlife+$F79),('RFM input'!$H$224*(1+vanilla1)^0.5)-SUM($H79:O79),('RFM input'!$H$224*(1+vanilla1)^0.5)/A2stdlife)) -> 2.859955912 | Q79: =IF(A2stdlife="n/a","n/a",IF(Q$3>(A2stdlife+$F79),('RFM input'!$H$224*(1+vanilla1)^0.5)-SUM($H79:P79),('RFM input'!$H$224*(1+vanilla1)^0.5)/A2stdlife)) -> 2.859955912
F80: 2 | J80: =IF(A2stdlife="n/a","n/a",IF(J$3>(A2stdlife+$F80),('RFM input'!$I$224*(1+vanilla2)^0.5)-SUM($I80:I80),('RFM input'!$I$224*(1+vanilla2)^0.5)/A2stdlife)) -> 3.15311845 | K80: =IF(A2stdlife="n/a","n/a",IF(K$3>(A2stdlife+$F80),('RFM input'!$I$224*(1+vanilla2)^0.5)-SUM($I80:J80),('RFM input'!$I$224*(1+vanilla2)^0.5)/A2stdlife)) -> 3.15311845 | L80: =IF(A2stdlife="n/a","n/a",IF(L$3>(A2stdlife+$F80),('RFM input'!$I$224*(1+vanilla2)^0.5)-SUM($I80:K80),('RFM input'!$I$224*(1+vanilla2)^0.5)/A2stdlife)) -> 3.15311845 | M80: =IF(A2stdlife="n/a","n/a",IF(M$3>(A2stdlife+$F80),('RFM input'!$I$224*(1+vanilla2)^0.5)-SUM($I80:L80),('RFM input'!$I$224*(1+vanilla2)^0.5)/A2stdlife)) -> 3.15311845 | N80: =IF(A2stdlife="n/a","n/a",IF(N$3>(A2stdlife+$F80),('RFM input'!$I$224*(1+vanilla2)^0.5)-SUM($I80:M80),('RFM input'!$I$224*(1+vanilla2)^0.5)/A2stdlife)) -> 3.15311845 | O80: =IF(A2stdlife="n/a","n/a",IF(O$3>(A2stdlife+$F80),('RFM input'!$I$224*(1+vanilla2)^0.5)-SUM($I80:N80),('RFM input'!$I$224*(1+vanilla2)^0.5)/A2stdlife)) -> 3.15311845 | P80: =IF(A2stdlife="n/a","n/a",IF(P$3>(A2stdlife+$F80),('RFM input'!$I$224*(1+vanilla2)^0.5)-SUM($I80:O80),('RFM input'!$I$224*(1+vanilla2)^0.5)/A2stdlife)) -> 3.15311845 | Q80: =IF(A2stdlife="n/a","n/a",IF(Q$3>(A2stdlife+$F80),('RFM input'!$I$224*(1+vanilla2)^0.5)-SUM($I80:P80),('RFM input'!$I$224*(1+vanilla2)^0.5)/A2stdlife)) -> 3.15311845
F81: 3 | K81: =IF(A2stdlife="n/a","n/a",IF(K$3>(A2stdlife+$F81),('RFM input'!$J$224*(1+vanilla3)^0.5)-SUM($J81:J81),('RFM input'!$J$224*(1+vanilla3)^0.5)/A2stdlife)) -> 4.016337362 | L81: =IF(A2stdlife="n/a","n/a",IF(L$3>(A2stdlife+$F81),('RFM input'!$J$224*(1+vanilla3)^0.5)-SUM($J81:K81),('RFM input'!$J$224*(1+vanilla3)^0.5)/A2stdlife)) -> 4.016337362 | M81: =IF(A2stdlife="n/a","n/a",IF(M$3>(A2stdlife+$F81),('RFM input'!$J$224*(1+vanilla3)^0.5)-SUM($J81:L81),('RFM input'!$J$224*(1+vanilla3)^0.5)/A2stdlife)) -> 4.016337362 | N81: =IF(A2stdlife="n/a","n/a",IF(N$3>(A2stdlife+$F81),('RFM input'!$J$224*(1+vanilla3)^0.5)-SUM($J81:M81),('RFM input'!$J$224*(1+vanilla3)^0.5)/A2stdlife)) -> 4.016337362 | O81: =IF(A2stdlife="n/a","n/a",IF(O$3>(A2stdlife+$F81),('RFM input'!$J$224*(1+vanilla3)^0.5)-SUM($J81:N81),('RFM input'!$J$224*(1+vanilla3)^0.5)/A2stdlife)) -> 4.016337362 | P81: =IF(A2stdlife="n/a","n/a",IF(P$3>(A2stdlife+$F81),('RFM input'!$J$224*(1+vanilla3)^0.5)-SUM($J81:O81),('RFM input'!$J$224*(1+vanilla3)^0.5)/A2stdlife)) -> 4.016337362 | Q81: =IF(A2stdlife="n/a","n/a",IF(Q$3>(A2stdlife+$F81),('RFM input'!$J$224*(1+vanilla3)^0.5)-SUM($J81:P81),('RFM input'!$J$224*(1+vanilla3)^0.5)/A2stdlife)) -> 4.016337362
F82: 4 | L82: =IF(A2stdlife="n/a","n/a",IF(L$3>(A2stdlife+$F82),('RFM input'!$K$224*(1+vanilla4)^0.5)-SUM($K82:K82),('RFM input'!$K$224*(1+vanilla4)^0.5)/A2stdlife)) -> 5.022605801 | M82: =IF(A2stdlife="n/a","n/a",IF(M$3>(A2stdlife+$F82),('RFM input'!$K$224*(1+vanilla4)^0.5)-SUM($K82:L82),('RFM input'!$K$224*(1+vanilla4)^0.5)/A2stdlife)) -> 5.022605801 | N82: =IF(A2stdlife="n/a","n/a",IF(N$3>(A2stdlife+$F82),('RFM input'!$K$224*(1+vanilla4)^0.5)-SUM($K82:M82),('RFM input'!$K$224*(1+vanilla4)^0.5)/A2stdlife)) -> 5.022605801 | O82: =IF(A2stdlife="n/a","n/a",IF(O$3>(A2stdlife+$F82),('RFM input'!$K$224*(1+vanilla4)^0.5)-SUM($K82:N82),('RFM input'!$K$224*(1+vanilla4)^0.5)/A2stdlife)) -> 5.022605801 | P82: =IF(A2stdlife="n/a","n/a",IF(P$3>(A2stdlife+$F82),('RFM input'!$K$224*(1+vanilla4)^0.5)-SUM($K82:O82),('RFM input'!$K$224*(1+vanilla4)^0.5)/A2stdlife)) -> 5.022605801 | Q82: =IF(A2stdlife="n/a","n/a",IF(Q$3>(A2stdlife+$F82),('RFM input'!$K$224*(1+vanilla4)^0.5)-SUM($K82:P82),('RFM input'!$K$224*(1+vanilla4)^0.5)/A2stdlife)) -> 5.022605801
F83: 5 | M83: =IF(A2stdlife="n/a","n/a",IF(M$3>(A2stdlife+$F83),('RFM input'!$L$224*(1+vanilla5)^0.5)-SUM($L83:L83),('RFM input'!$L$224*(1+vanilla5)^0.5)/A2stdlife)) -> 5.6226109 | N83: =IF(A2stdlife="n/a","n/a",IF(N$3>(A2stdlife+$F83),('RFM input'!$L$224*(1+vanilla5)^0.5)-SUM($L83:M83),('RFM input'!$L$224*(1+vanilla5)^0.5)/A2stdlife)) -> 5.6226109 | O83: =IF(A2stdlife="n/a","n/a",IF(O$3>(A2stdlife+$F83),('RFM input'!$L$224*(1+vanilla5)^0.5)-SUM($L83:N83),('RFM input'!$L$224*(1+vanilla5)^0.5)/A2stdlife)) -> 5.6226109 | P83: =IF(A2stdlife="n/a","n/a",IF(P$3>(A2stdlife+$F83),('RFM input'!$L$224*(1+vanilla5)^0.5)-SUM($L83:O83),('RFM input'!$L$224*(1+vanilla5)^0.5)/A2stdlife)) -> 5.6226109 | Q83: =IF(A2stdlife="n/a","n/a",IF(Q$3>(A2stdlife+$F83),('RFM input'!$L$224*(1+vanilla5)^0.5)-SUM($L83:P83),('RFM input'!$L$224*(1+vanilla5)^0.5)/A2stdlife)) -> 5.6226109
F84: 6 | N84: =IF(A2stdlife="n/a","n/a",IF(N$3>(A2stdlife+$F84),('RFM input'!$M$224*(1+vanilla6)^0.5)-SUM($M84:M84),('RFM input'!$M$224*(1+vanilla6)^0.5)/A2stdlife)) -> 0 | O84: =IF(A2stdlife="n/a","n/a",IF(O$3>(A2stdlife+$F84),('RFM input'!$M$224*(1+vanilla6)^0.5)-SUM($M84:N84),('RFM input'!$M$224*(1+vanilla6)^0.5)/A2stdlife)) -> 0 | P84: =IF(A2stdlife="n/a","n/a",IF(P$3>(A2stdlife+$F84),('RFM input'!$M$224*(1+vanilla6)^0.5)-SUM($M84:O84),('RFM input'!$M$224*(1+vanilla6)^0.5)/A2stdlife)) -> 0 | Q84: =IF(A2stdlife="n/a","n/a",IF(Q$3>(A2stdlife+$F84),('RFM input'!$M$224*(1+vanilla6)^0.5)-SUM($M84:P84),('RFM input'!$M$224*(1+vanilla6)^0.5)/A2stdlife)) -> 0
F85: 7 | O85: =IF(A2stdlife="n/a","n/a",IF(O$3>(A2stdlife+$F85),('RFM input'!$N$224*(1+vanilla7)^0.5)-SUM($N85:N85),('RFM input'!$N$224*(1+vanilla7)^0.5)/A2stdlife)) -> 0 | P85: =IF(A2stdlife="n/a","n/a",IF(P$3>(A2stdlife+$F85),('RFM input'!$N$224*(1+vanilla7)^0.5)-SUM($N85:O85),('RFM input'!$N$224*(1+vanilla7)^0.5)/A2stdlife)) -> 0 | Q85: =IF(A2stdlife="n/a","n/a",IF(Q$3>(A2stdlife+$F85),('RFM input'!$N$224*(1+vanilla7)^0.5)-SUM($N85:P85),('RFM input'!$N$224*(1+vanilla7)^0.5)/A2stdlife)) -> 0
F86: 8 | P86: =IF(A2stdlife="n/a","n/a",IF(P$3>(A2stdlife+$F86),('RFM input'!$O$224*(1+vanilla8)^0.5)-SUM($O86:O86),('RFM input'!$O$224*(1+vanilla8)^0.5)/A2stdlife)) -> 0 | Q86: =IF(A2stdlife="n/a","n/a",IF(Q$3>(A2stdlife+$F86),('RFM input'!$O$224*(1+vanilla8)^0.5)-SUM($O86:P86),('RFM input'!$O$224*(1+vanilla8)^0.5)/A2stdlife)) -> 0
F87: 9 | Q87: =IF(A2stdlife="n/a","n/a",IF(Q$3>(A2stdlife+$F87),('RFM input'!$P$224*(1+vanilla9)^0.5)-SUM($P87:P87),('RFM input'!$P$224*(1+vanilla9)^0.5)/A2stdlife)) -> 0
F88: 10
D89: =Asset2 -> Distribution system assets | H89: =IF(OR('RFM input'!$E$293='RFM input'!$G$292,'RFM input'!$E$293='RFM input'!$G$293),-INDEX('RFM input'!H$299:H$348,MATCH($D89,'RFM input'!$E$299:$E$348,0),1),-SUM(H77:H88)) -> -119.0097048 | I89: =IF(OR('RFM input'!$E$293='RFM input'!$G$292,'RFM input'!$E$293='RFM input'!$G$293),-INDEX('RFM input'!I$299:I$348,MATCH($D89,'RFM input'!$E$299:$E$348,0),1),-SUM(I77:I88)) -> -122.5241171 | J89: =IF(COUNT($H89:I89)>='RFM input'!$Z$7, 0, IF(OR('RFM input'!$E$293='RFM input'!$G$292,'RFM input'!$E$293='RFM input'!$G$293), -INDEX('RFM input'!J$299:J$348,MATCH($D89,'RFM input'!$E$299:$E$348,0),1), -SUM(J77:J88))) -> -126.0576565 | K89: =IF(COUNT($H89:J89)>='RFM input'!$Z$7, 0, IF(OR('RFM input'!$E$293='RFM input'!$G$292,'RFM input'!$E$293='RFM input'!$G$293), -INDEX('RFM input'!K$299:K$348,MATCH($D89,'RFM input'!$E$299:$E$348,0),1), -SUM(K77:K88))) -> -129.5022054 | L89: =IF(COUNT($H89:K89)>='RFM input'!$Z$7, 0, IF(OR('RFM input'!$E$293='RFM input'!$G$292,'RFM input'!$E$293='RFM input'!$G$293), -INDEX('RFM input'!L$299:L$348,MATCH($D89,'RFM input'!$E$299:$E$348,0),1), -SUM(L77:L88))) -> -132.9762988 | M89: =IF(COUNT($H89:L89)>='RFM input'!$Z$7, 0, IF(OR('RFM input'!$E$293='RFM input'!$G$292,'RFM input'!$E$293='RFM input'!$G$293), -INDEX('RFM input'!M$299:M$348,MATCH($D89,'RFM input'!$E$299:$E$348,0),1), -SUM(M77:M88))) -> 0 | N89: =IF(COUNT($H89:M89)>='RFM input'!$Z$7, 0, IF(OR('RFM input'!$E$293='RFM input'!$G$292,'RFM input'!$E$293='RFM input'!$G$293), -INDEX('RFM input'!N$299:N$348,MATCH($D89,'RFM input'!$E$299:$E$348,0),1), -SUM(N77:N88))) -> 0 | O89: =IF(COUNT($H89:N89)>='RFM input'!$Z$7, 0, IF(OR('RFM input'!$E$293='RFM input'!$G$292,'RFM input'!$E$293='RFM input'!$G$293), -INDEX('RFM input'!O$299:O$348,MATCH($D89,'RFM input'!$E$299:$E$348,0),1), -SUM(O77:O88))) -> 0 | P89: =IF(COUNT($H89:O89)>='RFM input'!$Z$7, 0, IF(OR('RFM input'!$E$293='RFM input'!$G$292,'RFM input'!$E$293='RFM input'!$G$293), -INDEX('RFM input'!P$299:P$348,MATCH($D89,'RFM input'!$E$299:$E$348,0),1), -SUM(P77:P88))) -> 0 | Q89: =IF(COUNT($H89:P89)>='RFM input'!$Z$7, 0, IF(OR('RFM input'!$E$293='RFM input'!$G$292,'RFM input'!$E$293='RFM input'!$G$293), -INDEX('RFM input'!Q$299:Q$348,MATCH($D89,'RFM input'!$E$299:$E$348,0),1), -SUM(Q77:Q88))) -> 0
C90: =Asset3 -> SCADA/Network control | E90: Opening RAB | H90: =IF(H$3>A3remlife,A3value-SUM($G90:G90),IF(A3remlife="N/A","n/a",A3value/A3remlife)) -> n/a | I90: =IF(I$3>A3remlife,A3value-SUM($G90:H90),IF(A3remlife="N/A","n/a",A3value/A3remlife)) -> n/a | J90: =IF(J$3>A3remlife,A3value-SUM($G90:I90),IF(A3remlife="N/A","n/a",A3value/A3remlife)) -> n/a | K90: =IF(K$3>A3remlife,A3value-SUM($G90:J90),IF(A3remlife="N/A","n/a",A3value/A3remlife)) -> n/a | L90: =IF(L$3>A3remlife,A3value-SUM($G90:K90),IF(A3remlife="N/A","n/a",A3value/A3remlife)) -> n/a | M90: =IF(M$3>A3remlife,A3value-SUM($G90:L90),IF(A3remlife="N/A","n/a",A3value/A3remlife)) -> n/a | N90: =IF(N$3>A3remlife,A3value-SUM($G90:M90),IF(A3remlife="N/A","n/a",A3value/A3remlife)) -> n/a | O90: =IF(O$3>A3remlife,A3value-SUM($G90:N90),IF(A3remlife="N/A","n/a",A3value/A3remlife)) -> n/a | P90: =IF(P$3>A3remlife,A3value-SUM($G90:O90),IF(A3remlife="N/A","n/a",A3value/A3remlife)) -> n/a | Q90: =IF(Q$3>A3remlife,A3value-SUM($G90:P90),IF(A3remlife="N/A","n/a",A3value/A3remlife)) -> n/a
E91: Capex in year
F92: 1 | I92: =IF(A3stdlife="n/a","n/a",IF(I$3>(A3stdlife+$F92),('RFM input'!$H$225*(1+vanilla1)^0.5)-SUM($H92:H92),('RFM input'!$H$225*(1+vanilla1)^0.5)/A3stdlife)) -> 1.677550585 | J92: =IF(A3stdlife="n/a","n/a",IF(J$3>(A3stdlife+$F92),('RFM input'!$H$225*(1+vanilla1)^0.5)-SUM($H92:I92),('RFM input'!$H$225*(1+vanilla1)^0.5)/A3stdlife)) -> 1.677550585 | K92: =IF(A3stdlife="n/a","n/a",IF(K$3>(A3stdlife+$F92),('RFM input'!$H$225*(1+vanilla1)^0.5)-SUM($H92:J92),('RFM input'!$H$225*(1+vanilla1)^0.5)/A3stdlife)) -> 1.677550585 | L92: =IF(A3stdlife="n/a","n/a",IF(L$3>(A3stdlife+$F92),('RFM input'!$H$225*(1+vanilla1)^0.5)-SUM($H92:K92),('RFM input'!$H$225*(1+vanilla1)^0.5)/A3stdlife)) -> 1.677550585 | M92: =IF(A3stdlife="n/a","n/a",IF(M$3>(A3stdlife+$F92),('RFM input'!$H$225*(1+vanilla1)^0.5)-SUM($H92:L92),('RFM input'!$H$225*(1+vanilla1)^0.5)/A3stdlife)) -> 1.677550585 | N92: =IF(A3stdlife="n/a","n/a",IF(N$3>(A3stdlife+$F92),('RFM input'!$H$225*(1+vanilla1)^0.5)-SUM($H92:M92),('RFM input'!$H$225*(1+vanilla1)^0.5)/A3stdlife)) -> 1.677550585 | O92: =IF(A3stdlife="n/a","n/a",IF(O$3>(A3stdlife+$F92),('RFM input'!$H$225*(1+vanilla1)^0.5)-SUM($H92:N92),('RFM input'!$H$225*(1+vanilla1)^0.5)/A3stdlife)) -> 1.677550585 | P92: =IF(A3stdlife="n/a","n/a",IF(P$3>(A3stdlife+$F92),('RFM input'!$H$225*(1+vanilla1)^0.5)-SUM($H92:O92),('RFM input'!$H$225*(1+vanilla1)^0.5)/A3stdlife)) -> 1.677550585 | Q92: =IF(A3stdlife="n/a","n/a",IF(Q$3>(A3stdlife+$F92),('RFM input'!$H$225*(1+vanilla1)^0.5)-SUM($H92:P92),('RFM input'!$H$225*(1+vanilla1)^0.5)/A3stdlife)) -> 1.677550585
F93: 2 | J93: =IF(A3stdlife="n/a","n/a",IF(J$3>(A3stdlife+$F93),('RFM input'!$I$225*(1+vanilla2)^0.5)-SUM($I93:I93),('RFM input'!$I$225*(1+vanilla2)^0.5)/A3stdlife)) -> 1.693826416 | K93: =IF(A3stdlife="n/a","n/a",IF(K$3>(A3stdlife+$F93),('RFM input'!$I$225*(1+vanilla2)^0.5)-SUM($I93:J93),('RFM input'!$I$225*(1+vanilla2)^0.5)/A3stdlife)) -> 1.693826416 | L93: =IF(A3stdlife="n/a","n/a",IF(L$3>(A3stdlife+$F93),('RFM input'!$I$225*(1+vanilla2)^0.5)-SUM($I93:K93),('RFM input'!$I$225*(1+vanilla2)^0.5)/A3stdlife)) -> 1.693826416 | M93: =IF(A3stdlife="n/a","n/a",IF(M$3>(A3stdlife+$F93),('RFM input'!$I$225*(1+vanilla2)^0.5)-SUM($I93:L93),('RFM input'!$I$225*(1+vanilla2)^0.5)/A3stdlife)) -> 1.693826416 | N93: =IF(A3stdlife="n/a","n/a",IF(N$3>(A3stdlife+$F93),('RFM input'!$I$225*(1+vanilla2)^0.5)-SUM($I93:M93),('RFM input'!$I$225*(1+vanilla2)^0.5)/A3stdlife)) -> 1.693826416 | O93: =IF(A3stdlife="n/a","n/a",IF(O$3>(A3stdlife+$F93),('RFM input'!$I$225*(1+vanilla2)^0.5)-SUM($I93:N93),('RFM input'!$I$225*(1+vanilla2)^0.5)/A3stdlife)) -> 1.693826416 | P93: =IF(A3stdlife="n/a","n/a",IF(P$3>(A3stdlife+$F93),('RFM input'!$I$225*(1+vanilla2)^0.5)-SUM($I93:O93),('RFM input'!$I$225*(1+vanilla2)^0.5)/A3stdlife)) -> 1.693826416 | Q93: =IF(A3stdlife="n/a","n/a",IF(Q$3>(A3stdlife+$F93),('RFM input'!$I$225*(1+vanilla2)^0.5)-SUM($I93:P93),('RFM input'!$I$225*(1+vanilla2)^0.5)/A3stdlife)) -> 1.693826416
F94: 3 | K94: =IF(A3stdlife="n/a","n/a",IF(K$3>(A3stdlife+$F94),('RFM input'!$J$225*(1+vanilla3)^0.5)-SUM($J94:J94),('RFM input'!$J$225*(1+vanilla3)^0.5)/A3stdlife)) -> 2.442721103 | L94: =IF(A3stdlife="n/a","n/a",IF(L$3>(A3stdlife+$F94),('RFM input'!$J$225*(1+vanilla3)^0.5)-SUM($J94:K94),('RFM input'!$J$225*(1+vanilla3)^0.5)/A3stdlife)) -> 2.442721103 | M94: =IF(A3stdlife="n/a","n/a",IF(M$3>(A3stdlife+$F94),('RFM input'!$J$225*(1+vanilla3)^0.5)-SUM($J94:L94),('RFM input'!$J$225*(1+vanilla3)^0.5)/A3stdlife)) -> 2.442721103 | N94: =IF(A3stdlife="n/a","n/a",IF(N$3>(A3stdlife+$F94),('RFM input'!$J$225*(1+vanilla3)^0.5)-SUM($J94:M94),('RFM input'!$J$225*(1+vanilla3)^0.5)/A3stdlife)) -> 2.442721103 | O94: =IF(A3stdlife="n/a","n/a",IF(O$3>(A3stdlife+$F94),('RFM input'!$J$225*(1+vanilla3)^0.5)-SUM($J94:N94),('RFM input'!$J$225*(1+vanilla3)^0.5)/A3stdlife)) -> 2.442721103 | P94: =IF(A3stdlife="n/a","n/a",IF(P$3>(A3stdlife+$F94),('RFM input'!$J$225*(1+vanilla3)^0.5)-SUM($J94:O94),('RFM input'!$J$225*(1+vanilla3)^0.5)/A3stdlife)) -> 2.442721103 | Q94: =IF(A3stdlife="n/a","n/a",IF(Q$3>(A3stdlife+$F94),('RFM input'!$J$225*(1+vanilla3)^0.5)-SUM($J94:P94),('RFM input'!$J$225*(1+vanilla3)^0.5)/A3stdlife)) -> 2.442721103
F95: 4 | L95: =IF(A3stdlife="n/a","n/a",IF(L$3>(A3stdlife+$F95),('RFM input'!$K$225*(1+vanilla4)^0.5)-SUM($K95:K95),('RFM input'!$K$225*(1+vanilla4)^0.5)/A3stdlife)) -> 0.7665527731 | M95: =IF(A3stdlife="n/a","n/a",IF(M$3>(A3stdlife+$F95),('RFM input'!$K$225*(1+vanilla4)^0.5)-SUM($K95:L95),('RFM input'!$K$225*(1+vanilla4)^0.5)/A3stdlife)) -> 0.7665527731 | N95: =IF(A3stdlife="n/a","n/a",IF(N$3>(A3stdlife+$F95),('RFM input'!$K$225*(1+vanilla4)^0.5)-SUM($K95:M95),('RFM input'!$K$225*(1+vanilla4)^0.5)/A3stdlife)) -> 0.7665527731 | O95: =IF(A3stdlife="n/a","n/a",IF(O$3>(A3stdlife+$F95),('RFM input'!$K$225*(1+vanilla4)^0.5)-SUM($K95:N95),('RFM input'!$K$225*(1+vanilla4)^0.5)/A3stdlife)) -> 0.7665527731 | P95: =IF(A3stdlife="n/a","n/a",IF(P$3>(A3stdlife+$F95),('RFM input'!$K$225*(1+vanilla4)^0.5)-SUM($K95:O95),('RFM input'!$K$225*(1+vanilla4)^0.5)/A3stdlife)) -> 0.7665527731 | Q95: =IF(A3stdlife="n/a","n/a",IF(Q$3>(A3stdlife+$F95),('RFM input'!$K$225*(1+vanilla4)^0.5)-SUM($K95:P95),('RFM input'!$K$225*(1+vanilla4)^0.5)/A3stdlife)) -> 0.7665527731
F96: 5 | M96: =IF(A3stdlife="n/a","n/a",IF(M$3>(A3stdlife+$F96),('RFM input'!$L$225*(1+vanilla5)^0.5)-SUM($L96:L96),('RFM input'!$L$225*(1+vanilla5)^0.5)/A3stdlife)) -> 0.8703724898 | N96: =IF(A3stdlife="n/a","n/a",IF(N$3>(A3stdlife+$F96),('RFM input'!$L$225*(1+vanilla5)^0.5)-SUM($L96:M96),('RFM input'!$L$225*(1+vanilla5)^0.5)/A3stdlife)) -> 0.8703724898 | O96: =IF(A3stdlife="n/a","n/a",IF(O$3>(A3stdlife+$F96),('RFM input'!$L$225*(1+vanilla5)^0.5)-SUM($L96:N96),('RFM input'!$L$225*(1+vanilla5)^0.5)/A3stdlife)) -> 0.8703724898 | P96: =IF(A3stdlife="n/a","n/a",IF(P$3>(A3stdlife+$F96),('RFM input'!$L$225*(1+vanilla5)^0.5)-SUM($L96:O96),('RFM input'!$L$225*(1+vanilla5)^0.5)/A3stdlife)) -> 0.8703724898 | Q96: =IF(A3stdlife="n/a","n/a",IF(Q$3>(A3stdlife+$F96),('RFM input'!$L$225*(1+vanilla5)^0.5)-SUM($L96:P96),('RFM input'!$L$225*(1+vanilla5)^0.5)/A3stdlife)) -> 0.8703724898
F97: 6 | N97: =IF(A3stdlife="n/a","n/a",IF(N$3>(A3stdlife+$F97),('RFM input'!$M$225*(1+vanilla6)^0.5)-SUM($M97:M97),('RFM input'!$M$225*(1+vanilla6)^0.5)/A3stdlife)) -> 0 | O97: =IF(A3stdlife="n/a","n/a",IF(O$3>(A3stdlife+$F97),('RFM input'!$M$225*(1+vanilla6)^0.5)-SUM($M97:N97),('RFM input'!$M$225*(1+vanilla6)^0.5)/A3stdlife)) -> 0 | P97: =IF(A3stdlife="n/a","n/a",IF(P$3>(A3stdlife+$F97),('RFM input'!$M$225*(1+vanilla6)^0.5)-SUM($M97:O97),('RFM input'!$M$225*(1+vanilla6)^0.5)/A3stdlife)) -> 0 | Q97: =IF(A3stdlife="n/a","n/a",IF(Q$3>(A3stdlife+$F97),('RFM input'!$M$225*(1+vanilla6)^0.5)-SUM($M97:P97),('RFM input'!$M$225*(1+vanilla6)^0.5)/A3stdlife)) -> 0
F98: 7 | O98: =IF(A3stdlife="n/a","n/a",IF(O$3>(A3stdlife+$F98),('RFM input'!$N$225*(1+vanilla7)^0.5)-SUM($N98:N98),('RFM input'!$N$225*(1+vanilla7)^0.5)/A3stdlife)) -> 0 | P98: =IF(A3stdlife="n/a","n/a",IF(P$3>(A3stdlife+$F98),('RFM input'!$N$225*(1+vanilla7)^0.5)-SUM($N98:O98),('RFM input'!$N$225*(1+vanilla7)^0.5)/A3stdlife)) -> 0 | Q98: =IF(A3stdlife="n/a","n/a",IF(Q$3>(A3stdlife+$F98),('RFM input'!$N$225*(1+vanilla7)^0.5)-SUM($N98:P98),('RFM input'!$N$225*(1+vanilla7)^0.5)/A3stdlife)) -> 0
F99: 8 | P99: =IF(A3stdlife="n/a","n/a",IF(P$3>(A3stdlife+$F99),('RFM input'!$O$225*(1+vanilla8)^0.5)-SUM($O99:O99),('RFM input'!$O$225*(1+vanilla8)^0.5)/A3stdlife)) -> 0 | Q99: =IF(A3stdlife="n/a","n/a",IF(Q$3>(A3stdlife+$F99),('RFM input'!$O$225*(1+vanilla8)^0.5)-SUM($O99:P99),('RFM input'!$O$225*(1+vanilla8)^0.5)/A3stdlife)) -> 0
F100: 9 | Q100: =IF(A3stdlife="n/a","n/a",IF(Q$3>(A3stdlife+$F100),('RFM input'!$P$225*(1+vanilla9)^0.5)-SUM($P100:P100),('RFM input'!$P$225*(1+vanilla9)^0.5)/A3stdlife)) -> 0
F101: 10
D102: =Asset3 -> SCADA/Network control | H102: =IF(OR('RFM input'!$E$293='RFM input'!$G$292,'RFM input'!$E$293='RFM input'!$G$293),-INDEX('RFM input'!H$299:H$348,MATCH($D102,'RFM input'!$E$299:$E$348,0),1),-SUM(H90:H101)) -> -13.95535404 | I102: =IF(OR('RFM input'!$E$293='RFM input'!$G$292,'RFM input'!$E$293='RFM input'!$G$293),-INDEX('RFM input'!I$299:I$348,MATCH($D102,'RFM input'!$E$299:$E$348,0),1),-SUM(I90:I101)) -> -18.19030915 | J102: =IF(COUNT($H102:I102)>='RFM input'!$Z$7, 0, IF(OR('RFM input'!$E$293='RFM input'!$G$292,'RFM input'!$E$293='RFM input'!$G$293), -INDEX('RFM input'!J$299:J$348,MATCH($D102,'RFM input'!$E$299:$E$348,0),1), -SUM(J90:J101))) -> -20.80546009 | K102: =IF(COUNT($H102:J102)>='RFM input'!$Z$7, 0, IF(OR('RFM input'!$E$293='RFM input'!$G$292,'RFM input'!$E$293='RFM input'!$G$293), -INDEX('RFM input'!K$299:K$348,MATCH($D102,'RFM input'!$E$299:$E$348,0),1), -SUM(K90:K101))) -> -22.33625066 | L102: =IF(COUNT($H102:K102)>='RFM input'!$Z$7, 0, IF(OR('RFM input'!$E$293='RFM input'!$G$292,'RFM input'!$E$293='RFM input'!$G$293), -INDEX('RFM input'!L$299:L$348,MATCH($D102,'RFM input'!$E$299:$E$348,0),1), -SUM(L90:L101))) -> -23.62484924 | M102: =IF(COUNT($H102:L102)>='RFM input'!$Z$7, 0, IF(OR('RFM input'!$E$293='RFM input'!$G$292,'RFM input'!$E$293='RFM input'!$G$293), -INDEX('RFM input'!M$299:M$348,MATCH($D102,'RFM input'!$E$299:$E$348,0),1), -SUM(M90:M101))) -> 0 | N102: =IF(COUNT($H102:M102)>='RFM input'!$Z$7, 0, IF(OR('RFM input'!$E$293='RFM input'!$G$292,'RFM input'!$E$293='RFM input'!$G$293), -INDEX('RFM input'!N$299:N$348,MATCH($D102,'RFM input'!$E$299:$E$348,0),1), -SUM(N90:N101))) -> 0 | O102: =IF(COUNT($H102:N102)>='RFM input'!$Z$7, 0, IF(OR('RFM input'!$E$293='RFM input'!$G$292,'RFM input'!$E$293='RFM input'!$G$293), -INDEX('RFM input'!O$299:O$348,MATCH($D102,'RFM input'!$E$299:$E$348,0),1), -SUM(O90:O101))) -> 0 | P102: =IF(COUNT($H102:O102)>='RFM input'!$Z$7, 0, IF(OR('RFM input'!$E$293='RFM input'!$G$292,'RFM input'!$E$293='RFM input'!$G$293), -INDEX('RFM input'!P$299:P$348,MATCH($D102,'RFM input'!$E$299:$E$348,0),1), -SUM(P90:P101))) -> 0 | Q102: =IF(COUNT($H102:P102)>='RFM input'!$Z$7, 0, IF(OR('RFM input'!$E$293='RFM input'!$G$292,'RFM input'!$E$293='RFM input'!$G$293), -INDEX('RFM input'!Q$299:Q$348,MATCH($D102,'RFM input'!$E$299:$E$348,0),1), -SUM(Q90:Q101))) -> 0
C103: =Asset4 -> Non-network general assets - IT | E103: Opening RAB | H103: =IF(H$3>A4remlife,A4value-SUM($G103:G103),IF(A4remlife="N/A","n/a",A4value/A4remlife)) -> n/a | I103: =IF(I$3>A4remlife,A4value-SUM($G103:H103),IF(A4remlife="N/A","n/a",A4value/A4remlife)) -> n/a | J103: =IF(J$3>A4remlife,A4value-SUM($G103:I103),IF(A4remlife="N/A","n/a",A4value/A4remlife)) -> n/a | K103: =IF(K$3>A4remlife,A4value-SUM($G103:J103),IF(A4remlife="N/A","n/a",A4value/A4remlife)) -> n/a | L103: =IF(L$3>A4remlife,A4value-SUM($G103:K103),IF(A4remlife="N/A","n/a",A4value/A4remlife)) -> n/a | M103: =IF(M$3>A4remlife,A4value-SUM($G103:L103),IF(A4remlife="N/A","n/a",A4value/A4remlife)) -> n/a | N103: =IF(N$3>A4remlife,A4value-SUM($G103:M103),IF(A4remlife="N/A","n/a",A4value/A4remlife)) -> n/a | O103: =IF(O$3>A4remlife,A4value-SUM($G103:N103),IF(A4remlife="N/A","n/a",A4value/A4remlife)) -> n/a | P103: =IF(P$3>A4remlife,A4value-SUM($G103:O103),IF(A4remlife="N/A","n/a",A4value/A4remlife)) -> n/a | Q103: =IF(Q$3>A4remlife,A4value-SUM($G103:P103),IF(A4remlife="N/A","n/a",A4value/A4remlife)) -> n/a
E104: Capex in year
F105: 1 | I105: =IF(A4stdlife="n/a","n/a",IF(I$3>(A4stdlife+$F105),('RFM input'!$H$226*(1+vanilla1)^0.5)-SUM($H105:H105),('RFM input'!$H$226*(1+vanilla1)^0.5)/A4stdlife)) -> 0.8137759097 | J105: =IF(A4stdlife="n/a","n/a",IF(J$3>(A4stdlife+$F105),('RFM input'!$H$226*(1+vanilla1)^0.5)-SUM($H105:I105),('RFM input'!$H$226*(1+vanilla1)^0.5)/A4stdlife)) -> 0.8137759097 | K105: =IF(A4stdlife="n/a","n/a",IF(K$3>(A4stdlife+$F105),('RFM input'!$H$226*(1+vanilla1)^0.5)-SUM($H105:J105),('RFM input'!$H$226*(1+vanilla1)^0.5)/A4stdlife)) -> 0.8137759097 | L105: =IF(A4stdlife="n/a","n/a",IF(L$3>(A4stdlife+$F105),('RFM input'!$H$226*(1+vanilla1)^0.5)-SUM($H105:K105),('RFM input'!$H$226*(1+vanilla1)^0.5)/A4stdlife)) -> 0.8137759097 | M105: =IF(A4stdlife="n/a","n/a",IF(M$3>(A4stdlife+$F105),('RFM input'!$H$226*(1+vanilla1)^0.5)-SUM($H105:L105),('RFM input'!$H$226*(1+vanilla1)^0.5)/A4stdlife)) -> 0.8137759097 | N105: =IF(A4stdlife="n/a","n/a",IF(N$3>(A4stdlife+$F105),('RFM input'!$H$226*(1+vanilla1)^0.5)-SUM($H105:M105),('RFM input'!$H$226*(1+vanilla1)^0.5)/A4stdlife)) -> 0 | O105: =IF(A4stdlife="n/a","n/a",IF(O$3>(A4stdlife+$F105),('RFM input'!$H$226*(1+vanilla1)^0.5)-SUM($H105:N105),('RFM input'!$H$226*(1+vanilla1)^0.5)/A4stdlife)) -> 0 | P105: =IF(A4stdlife="n/a","n/a",IF(P$3>(A4stdlife+$F105),('RFM input'!$H$226*(1+vanilla1)^0.5)-SUM($H105:O105),('RFM input'!$H$226*(1+vanilla1)^0.5)/A4stdlife)) -> 0 | Q105: =IF(A4stdlife="n/a","n/a",IF(Q$3>(A4stdlife+$F105),('RFM input'!$H$226*(1+vanilla1)^0.5)-SUM($H105:P105),('RFM input'!$H$226*(1+vanilla1)^0.5)/A4stdlife)) -> 0
F106: 2 | J106: =IF(A4stdlife="n/a","n/a",IF(J$3>(A4stdlife+$F106),('RFM input'!$I$226*(1+vanilla2)^0.5)-SUM($I106:I106),('RFM input'!$I$226*(1+vanilla2)^0.5)/A4stdlife)) -> 1.48412952 | K106: =IF(A4stdlife="n/a","n/a",IF(K$3>(A4stdlife+$F106),('RFM input'!$I$226*(1+vanilla2)^0.5)-SUM($I106:J106),('RFM input'!$I$226*(1+vanilla2)^0.5)/A4stdlife)) -> 1.48412952 | L106: =IF(A4stdlife="n/a","n/a",IF(L$3>(A4stdlife+$F106),('RFM input'!$I$226*(1+vanilla2)^0.5)-SUM($I106:K106),('RFM input'!$I$226*(1+vanilla2)^0.5)/A4stdlife)) -> 1.48412952 | M106: =IF(A4stdlife="n/a","n/a",IF(M$3>(A4stdlife+$F106),('RFM input'!$I$226*(1+vanilla2)^0.5)-SUM($I106:L106),('RFM input'!$I$226*(1+vanilla2)^0.5)/A4stdlife)) -> 1.48412952 | N106: =IF(A4stdlife="n/a","n/a",IF(N$3>(A4stdlife+$F106),('RFM input'!$I$226*(1+vanilla2)^0.5)-SUM($I106:M106),('RFM input'!$I$226*(1+vanilla2)^0.5)/A4stdlife)) -> 1.48412952 | O106: =IF(A4stdlife="n/a","n/a",IF(O$3>(A4stdlife+$F106),('RFM input'!$I$226*(1+vanilla2)^0.5)-SUM($I106:N106),('RFM input'!$I$226*(1+vanilla2)^0.5)/A4stdlife)) -> 8.881784197e-16 | P106: =IF(A4stdlife="n/a","n/a",IF(P$3>(A4stdlife+$F106),('RFM input'!$I$226*(1+vanilla2)^0.5)-SUM($I106:O106),('RFM input'!$I$226*(1+vanilla2)^0.5)/A4stdlife)) -> 0 | Q106: =IF(A4stdlife="n/a","n/a",IF(Q$3>(A4stdlife+$F106),('RFM input'!$I$226*(1+vanilla2)^0.5)-SUM($I106:P106),('RFM input'!$I$226*(1+vanilla2)^0.5)/A4stdlife)) -> 0
F107: 3 | K107: =IF(A4stdlife="n/a","n/a",IF(K$3>(A4stdlife+$F107),('RFM input'!$J$226*(1+vanilla3)^0.5)-SUM($J107:J107),('RFM input'!$J$226*(1+vanilla3)^0.5)/A4stdlife)) -> 2.827073355 | L107: =IF(A4stdlife="n/a","n/a",IF(L$3>(A4stdlife+$F107),('RFM input'!$J$226*(1+vanilla3)^0.5)-SUM($J107:K107),('RFM input'!$J$226*(1+vanilla3)^0.5)/A4stdlife)) -> 2.827073355 | M107: =IF(A4stdlife="n/a","n/a",IF(M$3>(A4stdlife+$F107),('RFM input'!$J$226*(1+vanilla3)^0.5)-SUM($J107:L107),('RFM input'!$J$226*(1+vanilla3)^0.5)/A4stdlife)) -> 2.827073355 | N107: =IF(A4stdlife="n/a","n/a",IF(N$3>(A4stdlife+$F107),('RFM input'!$J$226*(1+vanilla3)^0.5)-SUM($J107:M107),('RFM input'!$J$226*(1+vanilla3)^0.5)/A4stdlife)) -> 2.827073355 | O107: =IF(A4stdlife="n/a","n/a",IF(O$3>(A4stdlife+$F107),('RFM input'!$J$226*(1+vanilla3)^0.5)-SUM($J107:N107),('RFM input'!$J$226*(1+vanilla3)^0.5)/A4stdlife)) -> 2.827073355 | P107: =IF(A4stdlife="n/a","n/a",IF(P$3>(A4stdlife+$F107),('RFM input'!$J$226*(1+vanilla3)^0.5)-SUM($J107:O107),('RFM input'!$J$226*(1+vanilla3)^0.5)/A4stdlife)) -> 0 | Q107: =IF(A4stdlife="n/a","n/a",IF(Q$3>(A4stdlife+$F107),('RFM input'!$J$226*(1+vanilla3)^0.5)-SUM($J107:P107),('RFM input'!$J$226*(1+vanilla3)^0.5)/A4stdlife)) -> 0
F108: 4 | L108: =IF(A4stdlife="n/a","n/a",IF(L$3>(A4stdlife+$F108),('RFM input'!$K$226*(1+vanilla4)^0.5)-SUM($K108:K108),('RFM input'!$K$226*(1+vanilla4)^0.5)/A4stdlife)) -> 2.719708158 | M108: =IF(A4stdlife="n/a","n/a",IF(M$3>(A4stdlife+$F108),('RFM input'!$K$226*(1+vanilla4)^0.5)-SUM($K108:L108),('RFM input'!$K$226*(1+vanilla4)^0.5)/A4stdlife)) -> 2.719708158 | N108: =IF(A4stdlife="n/a","n/a",IF(N$3>(A4stdlife+$F108),('RFM input'!$K$226*(1+vanilla4)^0.5)-SUM($K108:M108),('RFM input'!$K$226*(1+vanilla4)^0.5)/A4stdlife)) -> 2.719708158 | O108: =IF(A4stdlife="n/a","n/a",IF(O$3>(A4stdlife+$F108),('RFM input'!$K$226*(1+vanilla4)^0.5)-SUM($K108:N108),('RFM input'!$K$226*(1+vanilla4)^0.5)/A4stdlife)) -> 2.719708158 | P108: =IF(A4stdlife="n/a","n/a",IF(P$3>(A4stdlife+$F108),('RFM input'!$K$226*(1+vanilla4)^0.5)-SUM($K108:O108),('RFM input'!$K$226*(1+vanilla4)^0.5)/A4stdlife)) -> 2.719708158 | Q108: =IF(A4stdlife="n/a","n/a",IF(Q$3>(A4stdlife+$F108),('RFM input'!$K$226*(1+vanilla4)^0.5)-SUM($K108:P108),('RFM input'!$K$226*(1+vanilla4)^0.5)/A4stdlife)) -> 0
F109: 5 | M109: =IF(A4stdlife="n/a","n/a",IF(M$3>(A4stdlife+$F109),('RFM input'!$L$226*(1+vanilla5)^0.5)-SUM($L109:L109),('RFM input'!$L$226*(1+vanilla5)^0.5)/A4stdlife)) -> 2.59992556 | N109: =IF(A4stdlife="n/a","n/a",IF(N$3>(A4stdlife+$F109),('RFM input'!$L$226*(1+vanilla5)^0.5)-SUM($L109:M109),('RFM input'!$L$226*(1+vanilla5)^0.5)/A4stdlife)) -> 2.59992556 | O109: =IF(A4stdlife="n/a","n/a",IF(O$3>(A4stdlife+$F109),('RFM input'!$L$226*(1+vanilla5)^0.5)-SUM($L109:N109),('RFM input'!$L$226*(1+vanilla5)^0.5)/A4stdlife)) -> 2.59992556 | P109: =IF(A4stdlife="n/a","n/a",IF(P$3>(A4stdlife+$F109),('RFM input'!$L$226*(1+vanilla5)^0.5)-SUM($L109:O109),('RFM input'!$L$226*(1+vanilla5)^0.5)/A4stdlife)) -> 2.59992556 | Q109: =IF(A4stdlife="n/a","n/a",IF(Q$3>(A4stdlife+$F109),('RFM input'!$L$226*(1+vanilla5)^0.5)-SUM($L109:P109),('RFM input'!$L$226*(1+vanilla5)^0.5)/A4stdlife)) -> 2.59992556
F110: 6 | N110: =IF(A4stdlife="n/a","n/a",IF(N$3>(A4stdlife+$F110),('RFM input'!$M$226*(1+vanilla6)^0.5)-SUM($M110:M110),('RFM input'!$M$226*(1+vanilla6)^0.5)/A4stdlife)) -> 0 | O110: =IF(A4stdlife="n/a","n/a",IF(O$3>(A4stdlife+$F110),('RFM input'!$M$226*(1+vanilla6)^0.5)-SUM($M110:N110),('RFM input'!$M$226*(1+vanilla6)^0.5)/A4stdlife)) -> 0 | P110: =IF(A4stdlife="n/a","n/a",IF(P$3>(A4stdlife+$F110),('RFM input'!$M$226*(1+vanilla6)^0.5)-SUM($M110:O110),('RFM input'!$M$226*(1+vanilla6)^0.5)/A4stdlife)) -> 0 | Q110: =IF(A4stdlife="n/a","n/a",IF(Q$3>(A4stdlife+$F110),('RFM input'!$M$226*(1+vanilla6)^0.5)-SUM($M110:P110),('RFM input'!$M$226*(1+vanilla6)^0.5)/A4stdlife)) -> 0
F111: 7 | O111: =IF(A4stdlife="n/a","n/a",IF(O$3>(A4stdlife+$F111),('RFM input'!$N$226*(1+vanilla7)^0.5)-SUM($N111:N111),('RFM input'!$N$226*(1+vanilla7)^0.5)/A4stdlife)) -> 0 | P111: =IF(A4stdlife="n/a","n/a",IF(P$3>(A4stdlife+$F111),('RFM input'!$N$226*(1+vanilla7)^0.5)-SUM($N111:O111),('RFM input'!$N$226*(1+vanilla7)^0.5)/A4stdlife)) -> 0 | Q111: =IF(A4stdlife="n/a","n/a",IF(Q$3>(A4stdlife+$F111),('RFM input'!$N$226*(1+vanilla7)^0.5)-SUM($N111:P111),('RFM input'!$N$226*(1+vanilla7)^0.5)/A4stdlife)) -> 0
F112: 8 | P112: =IF(A4stdlife="n/a","n/a",IF(P$3>(A4stdlife+$F112),('RFM input'!$O$226*(1+vanilla8)^0.5)-SUM($O112:O112),('RFM input'!$O$226*(1+vanilla8)^0.5)/A4stdlife)) -> 0 | Q112: =IF(A4stdlife="n/a","n/a",IF(Q$3>(A4stdlife+$F112),('RFM input'!$O$226*(1+vanilla8)^0.5)-SUM($O112:P112),('RFM input'!$O$226*(1+vanilla8)^0.5)/A4stdlife)) -> 0
F113: 9 | Q113: =IF(A4stdlife="n/a","n/a",IF(Q$3>(A4stdlife+$F113),('RFM input'!$P$226*(1+vanilla9)^0.5)-SUM($P113:P113),('RFM input'!$P$226*(1+vanilla9)^0.5)/A4stdlife)) -> 0
F114: 10
D115: =Asset4 -> Non-network general assets - IT | H115: =IF(OR('RFM input'!$E$293='RFM input'!$G$292,'RFM input'!$E$293='RFM input'!$G$293),-INDEX('RFM input'!H$299:H$348,MATCH($D115,'RFM input'!$E$299:$E$348,0),1),-SUM(H103:H114)) -> -46.3697411 | I115: =IF(OR('RFM input'!$E$293='RFM input'!$G$292,'RFM input'!$E$293='RFM input'!$G$293),-INDEX('RFM input'!I$299:I$348,MATCH($D115,'RFM input'!$E$299:$E$348,0),1),-SUM(I103:I114)) -> -40.33589036 | J115: =IF(COUNT($H115:I115)>='RFM input'!$Z$7, 0, IF(OR('RFM input'!$E$293='RFM input'!$G$292,'RFM input'!$E$293='RFM input'!$G$293), -INDEX('RFM input'!J$299:J$348,MATCH($D115,'RFM input'!$E$299:$E$348,0),1), -SUM(J103:J114))) -> -34.47907863 | K115: =IF(COUNT($H115:J115)>='RFM input'!$Z$7, 0, IF(OR('RFM input'!$E$293='RFM input'!$G$292,'RFM input'!$E$293='RFM input'!$G$293), -INDEX('RFM input'!K$299:K$348,MATCH($D115,'RFM input'!$E$299:$E$348,0),1), -SUM(K103:K114))) -> -29.25841252 | L115: =IF(COUNT($H115:K115)>='RFM input'!$Z$7, 0, IF(OR('RFM input'!$E$293='RFM input'!$G$292,'RFM input'!$E$293='RFM input'!$G$293), -INDEX('RFM input'!L$299:L$348,MATCH($D115,'RFM input'!$E$299:$E$348,0),1), -SUM(L103:L114))) -> -19.94707721 | M115: =IF(COUNT($H115:L115)>='RFM input'!$Z$7, 0, IF(OR('RFM input'!$E$293='RFM input'!$G$292,'RFM input'!$E$293='RFM input'!$G$293), -INDEX('RFM input'!M$299:M$348,MATCH($D115,'RFM input'!$E$299:$E$348,0),1), -SUM(M103:M114))) -> 0 | N115: =IF(COUNT($H115:M115)>='RFM input'!$Z$7, 0, IF(OR('RFM input'!$E$293='RFM input'!$G$292,'RFM input'!$E$293='RFM input'!$G$293), -INDEX('RFM input'!N$299:N$348,MATCH($D115,'RFM input'!$E$299:$E$348,0),1), -SUM(N103:N114))) -> 0 | O115: =IF(COUNT($H115:N115)>='RFM input'!$Z$7, 0, IF(OR('RFM input'!$E$293='RFM input'!$G$292,'RFM input'!$E$293='RFM input'!$G$293), -INDEX('RFM input'!O$299:O$348,MATCH($D115,'RFM input'!$E$299:$E$348,0),1), -SUM(O103:O114))) -> 0 | P115: =IF(COUNT($H115:O115)>='RFM input'!$Z$7, 0, IF(OR('RFM input'!$E$293='RFM input'!$G$292,'RFM input'!$E$293='RFM input'!$G$293), -INDEX('RFM input'!P$299:P$348,MATCH($D115,'RFM input'!$E$299:$E$348,0),1), -SUM(P103:P114))) -> 0 | Q115: =IF(COUNT($H115:P115)>='RFM input'!$Z$7, 0, IF(OR('RFM input'!$E$293='RFM input'!$G$292,'RFM input'!$E$293='RFM input'!$G$293), -INDEX('RFM input'!Q$299:Q$348,MATCH($D115,'RFM input'!$E$299:$E$348,0),1), -SUM(Q103:Q114))) -> 0
C116: =Asset5 -> Non-network general assets - Other | E116: Opening RAB | H116: =IF(H$3>A5remlife,A5value-SUM($G116:G116),IF(A5remlife="N/A","n/a",A5value/A5remlife)) -> n/a | I116: =IF(I$3>A5remlife,A5value-SUM($G116:H116),IF(A5remlife="N/A","n/a",A5value/A5remlife)) -> n/a | J116: =IF(J$3>A5remlife,A5value-SUM($G116:I116),IF(A5remlife="N/A","n/a",A5value/A5remlife)) -> n/a | K116: =IF(K$3>A5remlife,A5value-SUM($G116:J116),IF(A5remlife="N/A","n/a",A5value/A5remlife)) -> n/a | L116: =IF(L$3>A5remlife,A5value-SUM($G116:K116),IF(A5remlife="N/A","n/a",A5value/A5remlife)) -> n/a | M116: =IF(M$3>A5remlife,A5value-SUM($G116:L116),IF(A5remlife="N/A","n/a",A5value/A5remlife)) -> n/a | N116: =IF(N$3>A5remlife,A5value-SUM($G116:M116),IF(A5remlife="N/A","n/a",A5value/A5remlife)) -> n/a | O116: =IF(O$3>A5remlife,A5value-SUM($G116:N116),IF(A5remlife="N/A","n/a",A5value/A5remlife)) -> n/a | P116: =IF(P$3>A5remlife,A5value-SUM($G116:O116),IF(A5remlife="N/A","n/a",A5value/A5remlife)) -> n/a | Q116: =IF(Q$3>A5remlife,A5value-SUM($G116:P116),IF(A5remlife="N/A","n/a",A5value/A5remlife)) -> n/a
E117: Capex in year
F118: 1 | I118: =IF(A5stdlife="n/a","n/a",IF(I$3>(A5stdlife+$F118),('RFM input'!$H$227*(1+vanilla1)^0.5)-SUM($H118:H118),('RFM input'!$H$227*(1+vanilla1)^0.5)/A5stdlife)) -> 0.0699583472 | J118: =IF(A5stdlife="n/a","n/a",IF(J$3>(A5stdlife+$F118),('RFM input'!$H$227*(1+vanilla1)^0.5)-SUM($H118:I118),('RFM input'!$H$227*(1+vanilla1)^0.5)/A5stdlife)) -> 0.0699583472 | K118: =IF(A5stdlife="n/a","n/a",IF(K$3>(A5stdlife+$F118),('RFM input'!$H$227*(1+vanilla1)^0.5)-SUM($H118:J118),('RFM input'!$H$227*(1+vanilla1)^0.5)/A5stdlife)) -> 0.0699583472 | L118: =IF(A5stdlife="n/a","n/a",IF(L$3>(A5stdlife+$F118),('RFM input'!$H$227*(1+vanilla1)^0.5)-SUM($H118:K118),('RFM input'!$H$227*(1+vanilla1)^0.5)/A5stdlife)) -> 0.0699583472 | M118: =IF(A5stdlife="n/a","n/a",IF(M$3>(A5stdlife+$F118),('RFM input'!$H$227*(1+vanilla1)^0.5)-SUM($H118:L118),('RFM input'!$H$227*(1+vanilla1)^0.5)/A5stdlife)) -> 0.0699583472 | N118: =IF(A5stdlife="n/a","n/a",IF(N$3>(A5stdlife+$F118),('RFM input'!$H$227*(1+vanilla1)^0.5)-SUM($H118:M118),('RFM input'!$H$227*(1+vanilla1)^0.5)/A5stdlife)) -> 0 | O118: =IF(A5stdlife="n/a","n/a",IF(O$3>(A5stdlife+$F118),('RFM input'!$H$227*(1+vanilla1)^0.5)-SUM($H118:N118),('RFM input'!$H$227*(1+vanilla1)^0.5)/A5stdlife)) -> 0 | P118: =IF(A5stdlife="n/a","n/a",IF(P$3>(A5stdlife+$F118),('RFM input'!$H$227*(1+vanilla1)^0.5)-SUM($H118:O118),('RFM input'!$H$227*(1+vanilla1)^0.5)/A5stdlife)) -> 0 | Q118: =IF(A5stdlife="n/a","n/a",IF(Q$3>(A5stdlife+$F118),('RFM input'!$H$227*(1+vanilla1)^0.5)-SUM($H118:P118),('RFM input'!$H$227*(1+vanilla1)^0.5)/A5stdlife)) -> 0
F119: 2 | J119: =IF(A5stdlife="n/a","n/a",IF(J$3>(A5stdlife+$F119),('RFM input'!$I$227*(1+vanilla2)^0.5)-SUM($I119:I119),('RFM input'!$I$227*(1+vanilla2)^0.5)/A5stdlife)) -> 0.2276698543 | K119: =IF(A5stdlife="n/a","n/a",IF(K$3>(A5stdlife+$F119),('RFM input'!$I$227*(1+vanilla2)^0.5)-SUM($I119:J119),('RFM input'!$I$227*(1+vanilla2)^0.5)/A5stdlife)) -> 0.2276698543 | L119: =IF(A5stdlife="n/a","n/a",IF(L$3>(A5stdlife+$F119),('RFM input'!$I$227*(1+vanilla2)^0.5)-SUM($I119:K119),('RFM input'!$I$227*(1+vanilla2)^0.5)/A5stdlife)) -> 0.2276698543 | M119: =IF(A5stdlife="n/a","n/a",IF(M$3>(A5stdlife+$F119),('RFM input'!$I$227*(1+vanilla2)^0.5)-SUM($I119:L119),('RFM input'!$I$227*(1+vanilla2)^0.5)/A5stdlife)) -> 0.2276698543 | N119: =IF(A5stdlife="n/a","n/a",IF(N$3>(A5stdlife+$F119),('RFM input'!$I$227*(1+vanilla2)^0.5)-SUM($I119:M119),('RFM input'!$I$227*(1+vanilla2)^0.5)/A5stdlife)) -> 0.2276698543 | O119: =IF(A5stdlife="n/a","n/a",IF(O$3>(A5stdlife+$F119),('RFM input'!$I$227*(1+vanilla2)^0.5)-SUM($I119:N119),('RFM input'!$I$227*(1+vanilla2)^0.5)/A5stdlife)) -> 0 | P119: =IF(A5stdlife="n/a","n/a",IF(P$3>(A5stdlife+$F119),('RFM input'!$I$227*(1+vanilla2)^0.5)-SUM($I119:O119),('RFM input'!$I$227*(1+vanilla2)^0.5)/A5stdlife)) -> 0 | Q119: =IF(A5stdlife="n/a","n/a",IF(Q$3>(A5stdlife+$F119),('RFM input'!$I$227*(1+vanilla2)^0.5)-SUM($I119:P119),('RFM input'!$I$227*(1+vanilla2)^0.5)/A5stdlife)) -> 0
F120: 3 | K120: =IF(A5stdlife="n/a","n/a",IF(K$3>(A5stdlife+$F120),('RFM input'!$J$227*(1+vanilla3)^0.5)-SUM($J120:J120),('RFM input'!$J$227*(1+vanilla3)^0.5)/A5stdlife)) -> 0.5390475504 | L120: =IF(A5stdlife="n/a","n/a",IF(L$3>(A5stdlife+$F120),('RFM input'!$J$227*(1+vanilla3)^0.5)-SUM($J120:K120),('RFM input'!$J$227*(1+vanilla3)^0.5)/A5stdlife)) -> 0.5390475504 | M120: =IF(A5stdlife="n/a","n/a",IF(M$3>(A5stdlife+$F120),('RFM input'!$J$227*(1+vanilla3)^0.5)-SUM($J120:L120),('RFM input'!$J$227*(1+vanilla3)^0.5)/A5stdlife)) -> 0.5390475504 | N120: =IF(A5stdlife="n/a","n/a",IF(N$3>(A5stdlife+$F120),('RFM input'!$J$227*(1+vanilla3)^0.5)-SUM($J120:M120),('RFM input'!$J$227*(1+vanilla3)^0.5)/A5stdlife)) -> 0.5390475504 | O120: =IF(A5stdlife="n/a","n/a",IF(O$3>(A5stdlife+$F120),('RFM input'!$J$227*(1+vanilla3)^0.5)-SUM($J120:N120),('RFM input'!$J$227*(1+vanilla3)^0.5)/A5stdlife)) -> 0.5390475504 | P120: =IF(A5stdlife="n/a","n/a",IF(P$3>(A5stdlife+$F120),('RFM input'!$J$227*(1+vanilla3)^0.5)-SUM($J120:O120),('RFM input'!$J$227*(1+vanilla3)^0.5)/A5stdlife)) -> 0 | Q120: =IF(A5stdlife="n/a","n/a",IF(Q$3>(A5stdlife+$F120),('RFM input'!$J$227*(1+vanilla3)^0.5)-SUM($J120:P120),('RFM input'!$J$227*(1+vanilla3)^0.5)/A5stdlife)) -> 0
F121: 4 | L121: =IF(A5stdlife="n/a","n/a",IF(L$3>(A5stdlife+$F121),('RFM input'!$K$227*(1+vanilla4)^0.5)-SUM($K121:K121),('RFM input'!$K$227*(1+vanilla4)^0.5)/A5stdlife)) -> 1.281018262 | M121: =IF(A5stdlife="n/a","n/a",IF(M$3>(A5stdlife+$F121),('RFM input'!$K$227*(1+vanilla4)^0.5)-SUM($K121:L121),('RFM input'!$K$227*(1+vanilla4)^0.5)/A5stdlife)) -> 1.281018262 | N121: =IF(A5stdlife="n/a","n/a",IF(N$3>(A5stdlife+$F121),('RFM input'!$K$227*(1+vanilla4)^0.5)-SUM($K121:M121),('RFM input'!$K$227*(1+vanilla4)^0.5)/A5stdlife)) -> 1.281018262 | O121: =IF(A5stdlife="n/a","n/a",IF(O$3>(A5stdlife+$F121),('RFM input'!$K$227*(1+vanilla4)^0.5)-SUM($K121:N121),('RFM input'!$K$227*(1+vanilla4)^0.5)/A5stdlife)) -> 1.281018262 | P121: =IF(A5stdlife="n/a","n/a",IF(P$3>(A5stdlife+$F121),('RFM input'!$K$227*(1+vanilla4)^0.5)-SUM($K121:O121),('RFM input'!$K$227*(1+vanilla4)^0.5)/A5stdlife)) -> 1.281018262 | Q121: =IF(A5stdlife="n/a","n/a",IF(Q$3>(A5stdlife+$F121),('RFM input'!$K$227*(1+vanilla4)^0.5)-SUM($K121:P121),('RFM input'!$K$227*(1+vanilla4)^0.5)/A5stdlife)) -> 0
F122: 5 | M122: =IF(A5stdlife="n/a","n/a",IF(M$3>(A5stdlife+$F122),('RFM input'!$L$227*(1+vanilla5)^0.5)-SUM($L122:L122),('RFM input'!$L$227*(1+vanilla5)^0.5)/A5stdlife)) -> 0.9072061069 | N122: =IF(A5stdlife="n/a","n/a",IF(N$3>(A5stdlife+$F122),('RFM input'!$L$227*(1+vanilla5)^0.5)-SUM($L122:M122),('RFM input'!$L$227*(1+vanilla5)^0.5)/A5stdlife)) -> 0.9072061069 | O122: =IF(A5stdlife="n/a","n/a",IF(O$3>(A5stdlife+$F122),('RFM input'!$L$227*(1+vanilla5)^0.5)-SUM($L122:N122),('RFM input'!$L$227*(1+vanilla5)^0.5)/A5stdlife)) -> 0.9072061069 | P122: =IF(A5stdlife="n/a","n/a",IF(P$3>(A5stdlife+$F122),('RFM input'!$L$227*(1+vanilla5)^0.5)-SUM($L122:O122),('RFM input'!$L$227*(1+vanilla5)^0.5)/A5stdlife)) -> 0.9072061069 | Q122: =IF(A5stdlife="n/a","n/a",IF(Q$3>(A5stdlife+$F122),('RFM input'!$L$227*(1+vanilla5)^0.5)-SUM($L122:P122),('RFM input'!$L$227*(1+vanilla5)^0.5)/A5stdlife)) -> 0.9072061069
F123: 6 | N123: =IF(A5stdlife="n/a","n/a",IF(N$3>(A5stdlife+$F123),('RFM input'!$M$227*(1+vanilla6)^0.5)-SUM($M123:M123),('RFM input'!$M$227*(1+vanilla6)^0.5)/A5stdlife)) -> 0 | O123: =IF(A5stdlife="n/a","n/a",IF(O$3>(A5stdlife+$F123),('RFM input'!$M$227*(1+vanilla6)^0.5)-SUM($M123:N123),('RFM input'!$M$227*(1+vanilla6)^0.5)/A5stdlife)) -> 0 | P123: =IF(A5stdlife="n/a","n/a",IF(P$3>(A5stdlife+$F123),('RFM input'!$M$227*(1+vanilla6)^0.5)-SUM($M123:O123),('RFM input'!$M$227*(1+vanilla6)^0.5)/A5stdlife)) -> 0 | Q123: =IF(A5stdlife="n/a","n/a",IF(Q$3>(A5stdlife+$F123),('RFM input'!$M$227*(1+vanilla6)^0.5)-SUM($M123:P123),('RFM input'!$M$227*(1+vanilla6)^0.5)/A5stdlife)) -> 0
F124: 7 | O124: =IF(A5stdlife="n/a","n/a",IF(O$3>(A5stdlife+$F124),('RFM input'!$N$227*(1+vanilla7)^0.5)-SUM($N124:N124),('RFM input'!$N$227*(1+vanilla7)^0.5)/A5stdlife)) -> 0 | P124: =IF(A5stdlife="n/a","n/a",IF(P$3>(A5stdlife+$F124),('RFM input'!$N$227*(1+vanilla7)^0.5)-SUM($N124:O124),('RFM input'!$N$227*(1+vanilla7)^0.5)/A5stdlife)) -> 0 | Q124: =IF(A5stdlife="n/a","n/a",IF(Q$3>(A5stdlife+$F124),('RFM input'!$N$227*(1+vanilla7)^0.5)-SUM($N124:P124),('RFM input'!$N$227*(1+vanilla7)^0.5)/A5stdlife)) -> 0
F125: 8 | P125: =IF(A5stdlife="n/a","n/a",IF(P$3>(A5stdlife+$F125),('RFM input'!$O$227*(1+vanilla8)^0.5)-SUM($O125:O125),('RFM input'!$O$227*(1+vanilla8)^0.5)/A5stdlife)) -> 0 | Q125: =IF(A5stdlife="n/a","n/a",IF(Q$3>(A5stdlife+$F125),('RFM input'!$O$227*(1+vanilla8)^0.5)-SUM($O125:P125),('RFM input'!$O$227*(1+vanilla8)^0.5)/A5stdlife)) -> 0
F126: 9 | Q126: =IF(A5stdlife="n/a","n/a",IF(Q$3>(A5stdlife+$F126),('RFM input'!$P$227*(1+vanilla9)^0.5)-SUM($P126:P126),('RFM input'!$P$227*(1+vanilla9)^0.5)/A5stdlife)) -> 0
F127: 10
D128: =Asset5 -> Non-network general assets - Other | H128: =IF(OR('RFM input'!$E$293='RFM input'!$G$292,'RFM input'!$E$293='RFM input'!$G$293),-INDEX('RFM input'!H$299:H$348,MATCH($D128,'RFM input'!$E$299:$E$348,0),1),-SUM(H116:H127)) -> -6.666296458 | I128: =IF(OR('RFM input'!$E$293='RFM input'!$G$292,'RFM input'!$E$293='RFM input'!$G$293),-INDEX('RFM input'!I$299:I$348,MATCH($D128,'RFM input'!$E$299:$E$348,0),1),-SUM(I116:I127)) -> -5.326228862 | J128: =IF(COUNT($H128:I128)>='RFM input'!$Z$7, 0, IF(OR('RFM input'!$E$293='RFM input'!$G$292,'RFM input'!$E$293='RFM input'!$G$293), -INDEX('RFM input'!J$299:J$348,MATCH($D128,'RFM input'!$E$299:$E$348,0),1), -SUM(J116:J127))) -> -3.132646755 | K128: =IF(COUNT($H128:J128)>='RFM input'!$Z$7, 0, IF(OR('RFM input'!$E$293='RFM input'!$G$292,'RFM input'!$E$293='RFM input'!$G$293), -INDEX('RFM input'!K$299:K$348,MATCH($D128,'RFM input'!$E$299:$E$348,0),1), -SUM(K116:K127))) -> -2.796564784 | L128: =IF(COUNT($H128:K128)>='RFM input'!$Z$7, 0, IF(OR('RFM input'!$E$293='RFM input'!$G$292,'RFM input'!$E$293='RFM input'!$G$293), -INDEX('RFM input'!L$299:L$348,MATCH($D128,'RFM input'!$E$299:$E$348,0),1), -SUM(L116:L127))) -> -4.662134788 | M128: =IF(COUNT($H128:L128)>='RFM input'!$Z$7, 0, IF(OR('RFM input'!$E$293='RFM input'!$G$292,'RFM input'!$E$293='RFM input'!$G$293), -INDEX('RFM input'!M$299:M$348,MATCH($D128,'RFM input'!$E$299:$E$348,0),1), -SUM(M116:M127))) -> 0 | N128: =IF(COUNT($H128:M128)>='RFM input'!$Z$7, 0, IF(OR('RFM input'!$E$293='RFM input'!$G$292,'RFM input'!$E$293='RFM input'!$G$293), -INDEX('RFM input'!N$299:N$348,MATCH($D128,'RFM input'!$E$299:$E$348,0),1), -SUM(N116:N127))) -> 0 | O128: =IF(COUNT($H128:N128)>='RFM input'!$Z$7, 0, IF(OR('RFM input'!$E$293='RFM input'!$G$292,'RFM input'!$E$293='RFM input'!$G$293), -INDEX('RFM input'!O$299:O$348,MATCH($D128,'RFM input'!$E$299:$E$348,0),1), -SUM(O116:O127))) -> 0 | P128: =IF(COUNT($H128:O128)>='RFM input'!$Z$7, 0, IF(OR('RFM input'!$E$293='RFM input'!$G$292,'RFM input'!$E$293='RFM input'!$G$293), -INDEX('RFM input'!P$299:P$348,MATCH($D128,'RFM input'!$E$299:$E$348,0),1), -SUM(P116:P127))) -> 0 | Q128: =IF(COUNT($H128:P128)>='RFM input'!$Z$7, 0, IF(OR('RFM input'!$E$293='RFM input'!$G$292,'RFM input'!$E$293='RFM input'!$G$293), -INDEX('RFM input'!Q$299:Q$348,MATCH($D128,'RFM input'!$E$299:$E$348,0),1), -SUM(Q116:Q127))) -> 0
C129: =Asset6 -> Land | E129: Opening RAB | H129: =IF(H$3>A6remlife,A6value-SUM($G129:G129),IF(A6remlife="N/A","n/a",A6value/A6remlife)) -> n/a | I129: =IF(I$3>A6remlife,A6value-SUM($G129:H129),IF(A6remlife="N/A","n/a",A6value/A6remlife)) -> n/a | J129: =IF(J$3>A6remlife,A6value-SUM($G129:I129),IF(A6remlife="N/A","n/a",A6value/A6remlife)) -> n/a | K129: =IF(K$3>A6remlife,A6value-SUM($G129:J129),IF(A6remlife="N/A","n/a",A6value/A6remlife)) -> n/a | L129: =IF(L$3>A6remlife,A6value-SUM($G129:K129),IF(A6remlife="N/A","n/a",A6value/A6remlife)) -> n/a | M129: =IF(M$3>A6remlife,A6value-SUM($G129:L129),IF(A6remlife="N/A","n/a",A6value/A6remlife)) -> n/a | N129: =IF(N$3>A6remlife,A6value-SUM($G129:M129),IF(A6remlife="N/A","n/a",A6value/A6remlife)) -> n/a | O129: =IF(O$3>A6remlife,A6value-SUM($G129:N129),IF(A6remlife="N/A","n/a",A6value/A6remlife)) -> n/a | P129: =IF(P$3>A6remlife,A6value-SUM($G129:O129),IF(A6remlife="N/A","n/a",A6value/A6remlife)) -> n/a | Q129: =IF(Q$3>A6remlife,A6value-SUM($G129:P129),IF(A6remlife="N/A","n/a",A6value/A6remlife)) -> n/a
E130: Capex in year
F131: 1 | I131: =IF(A6stdlife="n/a","n/a",IF(I$3>(A6stdlife+$F131),('RFM input'!$H$228*(1+vanilla1)^0.5)-SUM($H131:H131),('RFM input'!$H$228*(1+vanilla1)^0.5)/A6stdlife)) -> n/a | J131: =IF(A6stdlife="n/a","n/a",IF(J$3>(A6stdlife+$F131),('RFM input'!$H$228*(1+vanilla1)^0.5)-SUM($H131:I131),('RFM input'!$H$228*(1+vanilla1)^0.5)/A6stdlife)) -> n/a | K131: =IF(A6stdlife="n/a","n/a",IF(K$3>(A6stdlife+$F131),('RFM input'!$H$228*(1+vanilla1)^0.5)-SUM($H131:J131),('RFM input'!$H$228*(1+vanilla1)^0.5)/A6stdlife)) -> n/a | L131: =IF(A6stdlife="n/a","n/a",IF(L$3>(A6stdlife+$F131),('RFM input'!$H$228*(1+vanilla1)^0.5)-SUM($H131:K131),('RFM input'!$H$228*(1+vanilla1)^0.5)/A6stdlife)) -> n/a | M131: =IF(A6stdlife="n/a","n/a",IF(M$3>(A6stdlife+$F131),('RFM input'!$H$228*(1+vanilla1)^0.5)-SUM($H131:L131),('RFM input'!$H$228*(1+vanilla1)^0.5)/A6stdlife)) -> n/a | N131: =IF(A6stdlife="n/a","n/a",IF(N$3>(A6stdlife+$F131),('RFM input'!$H$228*(1+vanilla1)^0.5)-SUM($H131:M131),('RFM input'!$H$228*(1+vanilla1)^0.5)/A6stdlife)) -> n/a | O131: =IF(A6stdlife="n/a","n/a",IF(O$3>(A6stdlife+$F131),('RFM input'!$H$228*(1+vanilla1)^0.5)-SUM($H131:N131),('RFM input'!$H$228*(1+vanilla1)^0.5)/A6stdlife)) -> n/a | P131: =IF(A6stdlife="n/a","n/a",IF(P$3>(A6stdlife+$F131),('RFM input'!$H$228*(1+vanilla1)^0.5)-SUM($H131:O131),('RFM input'!$H$228*(1+vanilla1)^0.5)/A6stdlife)) -> n/a | Q131: =IF(A6stdlife="n/a","n/a",IF(Q$3>(A6stdlife+$F131),('RFM input'!$H$228*(1+vanilla1)^0.5)-SUM($H131:P131),('RFM input'!$H$228*(1+vanilla1)^0.5)/A6stdlife)) -> n/a
F132: 2 | J132: =IF(A6stdlife="n/a","n/a",IF(J$3>(A6stdlife+$F132),('RFM input'!$I$228*(1+vanilla2)^0.5)-SUM($I132:I132),('RFM input'!$I$228*(1+vanilla2)^0.5)/A6stdlife)) -> n/a | K132: =IF(A6stdlife="n/a","n/a",IF(K$3>(A6stdlife+$F132),('RFM input'!$I$228*(1+vanilla2)^0.5)-SUM($I132:J132),('RFM input'!$I$228*(1+vanilla2)^0.5)/A6stdlife)) -> n/a | L132: =IF(A6stdlife="n/a","n/a",IF(L$3>(A6stdlife+$F132),('RFM input'!$I$228*(1+vanilla2)^0.5)-SUM($I132:K132),('RFM input'!$I$228*(1+vanilla2)^0.5)/A6stdlife)) -> n/a | M132: =IF(A6stdlife="n/a","n/a",IF(M$3>(A6stdlife+$F132),('RFM input'!$I$228*(1+vanilla2)^0.5)-SUM($I132:L132),('RFM input'!$I$228*(1+vanilla2)^0.5)/A6stdlife)) -> n/a | N132: =IF(A6stdlife="n/a","n/a",IF(N$3>(A6stdlife+$F132),('RFM input'!$I$228*(1+vanilla2)^0.5)-SUM($I132:M132),('RFM input'!$I$228*(1+vanilla2)^0.5)/A6stdlife)) -> n/a | O132: =IF(A6stdlife="n/a","n/a",IF(O$3>(A6stdlife+$F132),('RFM input'!$I$228*(1+vanilla2)^0.5)-SUM($I132:N132),('RFM input'!$I$228*(1+vanilla2)^0.5)/A6stdlife)) -> n/a | P132: =IF(A6stdlife="n/a","n/a",IF(P$3>(A6stdlife+$F132),('RFM input'!$I$228*(1+vanilla2)^0.5)-SUM($I132:O132),('RFM input'!$I$228*(1+vanilla2)^0.5)/A6stdlife)) -> n/a | Q132: =IF(A6stdlife="n/a","n/a",IF(Q$3>(A6stdlife+$F132),('RFM input'!$I$228*(1+vanilla2)^0.5)-SUM($I132:P132),('RFM input'!$I$228*(1+vanilla2)^0.5)/A6stdlife)) -> n/a
F133: 3 | K133: =IF(A6stdlife="n/a","n/a",IF(K$3>(A6stdlife+$F133),('RFM input'!$J$228*(1+vanilla3)^0.5)-SUM($J133:J133),('RFM input'!$J$228*(1+vanilla3)^0.5)/A6stdlife)) -> n/a | L133: =IF(A6stdlife="n/a","n/a",IF(L$3>(A6stdlife+$F133),('RFM input'!$J$228*(1+vanilla3)^0.5)-SUM($J133:K133),('RFM input'!$J$228*(1+vanilla3)^0.5)/A6stdlife)) -> n/a | M133: =IF(A6stdlife="n/a","n/a",IF(M$3>(A6stdlife+$F133),('RFM input'!$J$228*(1+vanilla3)^0.5)-SUM($J133:L133),('RFM input'!$J$228*(1+vanilla3)^0.5)/A6stdlife)) -> n/a | N133: =IF(A6stdlife="n/a","n/a",IF(N$3>(A6stdlife+$F133),('RFM input'!$J$228*(1+vanilla3)^0.5)-SUM($J133:M133),('RFM input'!$J$228*(1+vanilla3)^0.5)/A6stdlife)) -> n/a | O133: =IF(A6stdlife="n/a","n/a",IF(O$3>(A6stdlife+$F133),('RFM input'!$J$228*(1+vanilla3)^0.5)-SUM($J133:N133),('RFM input'!$J$228*(1+vanilla3)^0.5)/A6stdlife)) -> n/a | P133: =IF(A6stdlife="n/a","n/a",IF(P$3>(A6stdlife+$F133),('RFM input'!$J$228*(1+vanilla3)^0.5)-SUM($J133:O133),('RFM input'!$J$228*(1+vanilla3)^0.5)/A6stdlife)) -> n/a | Q133: =IF(A6stdlife="n/a","n/a",IF(Q$3>(A6stdlife+$F133),('RFM input'!$J$228*(1+vanilla3)^0.5)-SUM($J133:P133),('RFM input'!$J$228*(1+vanilla3)^0.5)/A6stdlife)) -> n/a
F134: 4 | L134: =IF(A6stdlife="n/a","n/a",IF(L$3>(A6stdlife+$F134),('RFM input'!$K$228*(1+vanilla4)^0.5)-SUM($K134:K134),('RFM input'!$K$228*(1+vanilla4)^0.5)/A6stdlife)) -> n/a | M134: =IF(A6stdlife="n/a","n/a",IF(M$3>(A6stdlife+$F134),('RFM input'!$K$228*(1+vanilla4)^0.5)-SUM($K134:L134),('RFM input'!$K$228*(1+vanilla4)^0.5)/A6stdlife)) -> n/a | N134: =IF(A6stdlife="n/a","n/a",IF(N$3>(A6stdlife+$F134),('RFM input'!$K$228*(1+vanilla4)^0.5)-SUM($K134:M134),('RFM input'!$K$228*(1+vanilla4)^0.5)/A6stdlife)) -> n/a | O134: =IF(A6stdlife="n/a","n/a",IF(O$3>(A6stdlife+$F134),('RFM input'!$K$228*(1+vanilla4)^0.5)-SUM($K134:N134),('RFM input'!$K$228*(1+vanilla4)^0.5)/A6stdlife)) -> n/a | P134: =IF(A6stdlife="n/a","n/a",IF(P$3>(A6stdlife+$F134),('RFM input'!$K$228*(1+vanilla4)^0.5)-SUM($K134:O134),('RFM input'!$K$228*(1+vanilla4)^0.5)/A6stdlife)) -> n/a | Q134: =IF(A6stdlife="n/a","n/a",IF(Q$3>(A6stdlife+$F134),('RFM input'!$K$228*(1+vanilla4)^0.5)-SUM($K134:P134),('RFM input'!$K$228*(1+vanilla4)^0.5)/A6stdlife)) -> n/a
F135: 5 | M135: =IF(A6stdlife="n/a","n/a",IF(M$3>(A6stdlife+$F135),('RFM input'!$L$228*(1+vanilla5)^0.5)-SUM($L135:L135),('RFM input'!$L$228*(1+vanilla5)^0.5)/A6stdlife)) -> n/a | N135: =IF(A6stdlife="n/a","n/a",IF(N$3>(A6stdlife+$F135),('RFM input'!$L$228*(1+vanilla5)^0.5)-SUM($L135:M135),('RFM input'!$L$228*(1+vanilla5)^0.5)/A6stdlife)) -> n/a | O135: =IF(A6stdlife="n/a","n/a",IF(O$3>(A6stdlife+$F135),('RFM input'!$L$228*(1+vanilla5)^0.5)-SUM($L135:N135),('RFM input'!$L$228*(1+vanilla5)^0.5)/A6stdlife)) -> n/a | P135: =IF(A6stdlife="n/a","n/a",IF(P$3>(A6stdlife+$F135),('RFM input'!$L$228*(1+vanilla5)^0.5)-SUM($L135:O135),('RFM input'!$L$228*(1+vanilla5)^0.5)/A6stdlife)) -> n/a | Q135: =IF(A6stdlife="n/a","n/a",IF(Q$3>(A6stdlife+$F135),('RFM input'!$L$228*(1+vanilla5)^0.5)-SUM($L135:P135),('RFM input'!$L$228*(1+vanilla5)^0.5)/A6stdlife)) -> n/a
F136: 6 | N136: =IF(A6stdlife="n/a","n/a",IF(N$3>(A6stdlife+$F136),('RFM input'!$M$228*(1+vanilla6)^0.5)-SUM($M136:M136),('RFM input'!$M$228*(1+vanilla6)^0.5)/A6stdlife)) -> n/a | O136: =IF(A6stdlife="n/a","n/a",IF(O$3>(A6stdlife+$F136),('RFM input'!$M$228*(1+vanilla6)^0.5)-SUM($M136:N136),('RFM input'!$M$228*(1+vanilla6)^0.5)/A6stdlife)) -> n/a | P136: =IF(A6stdlife="n/a","n/a",IF(P$3>(A6stdlife+$F136),('RFM input'!$M$228*(1+vanilla6)^0.5)-SUM($M136:O136),('RFM input'!$M$228*(1+vanilla6)^0.5)/A6stdlife)) -> n/a | Q136: =IF(A6stdlife="n/a","n/a",IF(Q$3>(A6stdlife+$F136),('RFM input'!$M$228*(1+vanilla6)^0.5)-SUM($M136:P136),('RFM input'!$M$228*(1+vanilla6)^0.5)/A6stdlife)) -> n/a
F137: 7 | O137: =IF(A6stdlife="n/a","n/a",IF(O$3>(A6stdlife+$F137),('RFM input'!$N$228*(1+vanilla7)^0.5)-SUM($N137:N137),('RFM input'!$N$228*(1+vanilla7)^0.5)/A6stdlife)) -> n/a | P137: =IF(A6stdlife="n/a","n/a",IF(P$3>(A6stdlife+$F137),('RFM input'!$N$228*(1+vanilla7)^0.5)-SUM($N137:O137),('RFM input'!$N$228*(1+vanilla7)^0.5)/A6stdlife)) -> n/a | Q137: =IF(A6stdlife="n/a","n/a",IF(Q$3>(A6stdlife+$F137),('RFM input'!$N$228*(1+vanilla7)^0.5)-SUM($N137:P137),('RFM input'!$N$228*(1+vanilla7)^0.5)/A6stdlife)) -> n/a
F138: 8 | P138: =IF(A6stdlife="n/a","n/a",IF(P$3>(A6stdlife+$F138),('RFM input'!$O$228*(1+vanilla8)^0.5)-SUM($O138:O138),('RFM input'!$O$228*(1+vanilla8)^0.5)/A6stdlife)) -> n/a | Q138: =IF(A6stdlife="n/a","n/a",IF(Q$3>(A6stdlife+$F138),('RFM input'!$O$228*(1+vanilla8)^0.5)-SUM($O138:P138),('RFM input'!$O$228*(1+vanilla8)^0.5)/A6stdlife)) -> n/a
F139: 9 | Q139: =IF(A6stdlife="n/a","n/a",IF(Q$3>(A6stdlife+$F139),('RFM input'!$P$228*(1+vanilla9)^0.5)-SUM($P139:P139),('RFM input'!$P$228*(1+vanilla9)^0.5)/A6stdlife)) -> n/a
F140: 10
D141: =Asset6 -> Land | H141: =IF(OR('RFM input'!$E$293='RFM input'!$G$292,'RFM input'!$E$293='RFM input'!$G$293),-INDEX('RFM input'!H$299:H$348,MATCH($D141,'RFM input'!$E$299:$E$348,0),1),-SUM(H129:H140)) -> 0 | I141: =IF(OR('RFM input'!$E$293='RFM input'!$G$292,'RFM input'!$E$293='RFM input'!$G$293),-INDEX('RFM input'!I$299:I$348,MATCH($D141,'RFM input'!$E$299:$E$348,0),1),-SUM(I129:I140)) -> 0 | J141: =IF(COUNT($H141:I141)>='RFM input'!$Z$7, 0, IF(OR('RFM input'!$E$293='RFM input'!$G$292,'RFM input'!$E$293='RFM input'!$G$293), -INDEX('RFM input'!J$299:J$348,MATCH($D141,'RFM input'!$E$299:$E$348,0),1), -SUM(J129:J140))) -> 0 | K141: =IF(COUNT($H141:J141)>='RFM input'!$Z$7, 0, IF(OR('RFM input'!$E$293='RFM input'!$G$292,'RFM input'!$E$293='RFM input'!$G$293), -INDEX('RFM input'!K$299:K$348,MATCH($D141,'RFM input'!$E$299:$E$348,0),1), -SUM(K129:K140))) -> 0 | L141: =IF(COUNT($H141:K141)>='RFM input'!$Z$7, 0, IF(OR('RFM input'!$E$293='RFM input'!$G$292,'RFM input'!$E$293='RFM input'!$G$293), -INDEX('RFM input'!L$299:L$348,MATCH($D141,'RFM input'!$E$299:$E$348,0),1), -SUM(L129:L140))) -> 0 | M141: =IF(COUNT($H141:L141)>='RFM input'!$Z$7, 0, IF(OR('RFM input'!$E$293='RFM input'!$G$292,'RFM input'!$E$293='RFM input'!$G$293), -INDEX('RFM input'!M$299:M$348,MATCH($D141,'RFM input'!$E$299:$E$348,0),1), -SUM(M129:M140))) -> 0 | N141: =IF(COUNT($H141:M141)>='RFM input'!$Z$7, 0, IF(OR('RFM input'!$E$293='RFM input'!$G$292,'RFM input'!$E$293='RFM input'!$G$293), -INDEX('RFM input'!N$299:N$348,MATCH($D141,'RFM input'!$E$299:$E$348,0),1), -SUM(N129:N140))) -> 0 | O141: =IF(COUNT($H141:N141)>='RFM input'!$Z$7, 0, IF(OR('RFM input'!$E$293='RFM input'!$G$292,'RFM input'!$E$293='RFM input'!$G$293), -INDEX('RFM input'!O$299:O$348,MATCH($D141,'RFM input'!$E$299:$E$348,0),1), -SUM(O129:O140))) -> 0 | P141: =IF(COUNT($H141:O141)>='RFM input'!$Z$7, 0, IF(OR('RFM input'!$E$293='RFM input'!$G$292,'RFM input'!$E$293='RFM input'!$G$293), -INDEX('RFM input'!P$299:P$348,MATCH($D141,'RFM input'!$E$299:$E$348,0),1), -SUM(P129:P140))) -> 0 | Q141: =IF(COUNT($H141:P141)>='RFM input'!$Z$7, 0, IF(OR('RFM input'!$E$293='RFM input'!$G$292,'RFM input'!$E$293='RFM input'!$G$293), -INDEX('RFM input'!Q$299:Q$348,MATCH($D141,'RFM input'!$E$299:$E$348,0),1), -SUM(Q129:Q140))) -> 0
C142: =Asset7 -> Secondary systems (pre 2016) | E142: Opening RAB | H142: =IF(H$3>A7remlife,A7value-SUM($G142:G142),IF(A7remlife="N/A","n/a",A7value/A7remlife)) -> n/a | I142: =IF(I$3>A7remlife,A7value-SUM($G142:H142),IF(A7remlife="N/A","n/a",A7value/A7remlife)) -> n/a | J142: =IF(J$3>A7remlife,A7value-SUM($G142:I142),IF(A7remlife="N/A","n/a",A7value/A7remlife)) -> n/a | K142: =IF(K$3>A7remlife,A7value-SUM($G142:J142),IF(A7remlife="N/A","n/a",A7value/A7remlife)) -> n/a | L142: =IF(L$3>A7remlife,A7value-SUM($G142:K142),IF(A7remlife="N/A","n/a",A7value/A7remlife)) -> n/a | M142: =IF(M$3>A7remlife,A7value-SUM($G142:L142),IF(A7remlife="N/A","n/a",A7value/A7remlife)) -> n/a | N142: =IF(N$3>A7remlife,A7value-SUM($G142:M142),IF(A7remlife="N/A","n/a",A7value/A7remlife)) -> n/a | O142: =IF(O$3>A7remlife,A7value-SUM($G142:N142),IF(A7remlife="N/A","n/a",A7value/A7remlife)) -> n/a | P142: =IF(P$3>A7remlife,A7value-SUM($G142:O142),IF(A7remlife="N/A","n/a",A7value/A7remlife)) -> n/a | Q142: =IF(Q$3>A7remlife,A7value-SUM($G142:P142),IF(A7remlife="N/A","n/a",A7value/A7remlife)) -> n/a
E143: Capex in year
F144: 1 | I144: =IF(A7stdlife="n/a","n/a",IF(I$3>(A7stdlife+$F144),('RFM input'!$H$229*(1+vanilla1)^0.5)-SUM($H144:H144),('RFM input'!$H$229*(1+vanilla1)^0.5)/A7stdlife)) -> 0 | J144: =IF(A7stdlife="n/a","n/a",IF(J$3>(A7stdlife+$F144),('RFM input'!$H$229*(1+vanilla1)^0.5)-SUM($H144:I144),('RFM input'!$H$229*(1+vanilla1)^0.5)/A7stdlife)) -> 0 | K144: =IF(A7stdlife="n/a","n/a",IF(K$3>(A7stdlife+$F144),('RFM input'!$H$229*(1+vanilla1)^0.5)-SUM($H144:J144),('RFM input'!$H$229*(1+vanilla1)^0.5)/A7stdlife)) -> 0 | L144: =IF(A7stdlife="n/a","n/a",IF(L$3>(A7stdlife+$F144),('RFM input'!$H$229*(1+vanilla1)^0.5)-SUM($H144:K144),('RFM input'!$H$229*(1+vanilla1)^0.5)/A7stdlife)) -> 0 | M144: =IF(A7stdlife="n/a","n/a",IF(M$3>(A7stdlife+$F144),('RFM input'!$H$229*(1+vanilla1)^0.5)-SUM($H144:L144),('RFM input'!$H$229*(1+vanilla1)^0.5)/A7stdlife)) -> 0 | N144: =IF(A7stdlife="n/a","n/a",IF(N$3>(A7stdlife+$F144),('RFM input'!$H$229*(1+vanilla1)^0.5)-SUM($H144:M144),('RFM input'!$H$229*(1+vanilla1)^0.5)/A7stdlife)) -> 0 | O144: =IF(A7stdlife="n/a","n/a",IF(O$3>(A7stdlife+$F144),('RFM input'!$H$229*(1+vanilla1)^0.5)-SUM($H144:N144),('RFM input'!$H$229*(1+vanilla1)^0.5)/A7stdlife)) -> 0 | P144: =IF(A7stdlife="n/a","n/a",IF(P$3>(A7stdlife+$F144),('RFM input'!$H$229*(1+vanilla1)^0.5)-SUM($H144:O144),('RFM input'!$H$229*(1+vanilla1)^0.5)/A7stdlife)) -> 0 | Q144: =IF(A7stdlife="n/a","n/a",IF(Q$3>(A7stdlife+$F144),('RFM input'!$H$229*(1+vanilla1)^0.5)-SUM($H144:P144),('RFM input'!$H$229*(1+vanilla1)^0.5)/A7stdlife)) -> 0
F145: 2 | J145: =IF(A7stdlife="n/a","n/a",IF(J$3>(A7stdlife+$F145),('RFM input'!$I$229*(1+vanilla2)^0.5)-SUM($I145:I145),('RFM input'!$I$229*(1+vanilla2)^0.5)/A7stdlife)) -> 0 | K145: =IF(A7stdlife="n/a","n/a",IF(K$3>(A7stdlife+$F145),('RFM input'!$I$229*(1+vanilla2)^0.5)-SUM($I145:J145),('RFM input'!$I$229*(1+vanilla2)^0.5)/A7stdlife)) -> 0 | L145: =IF(A7stdlife="n/a","n/a",IF(L$3>(A7stdlife+$F145),('RFM input'!$I$229*(1+vanilla2)^0.5)-SUM($I145:K145),('RFM input'!$I$229*(1+vanilla2)^0.5)/A7stdlife)) -> 0 | M145: =IF(A7stdlife="n/a","n/a",IF(M$3>(A7stdlife+$F145),('RFM input'!$I$229*(1+vanilla2)^0.5)-SUM($I145:L145),('RFM input'!$I$229*(1+vanilla2)^0.5)/A7stdlife)) -> 0 | N145: =IF(A7stdlife="n/a","n/a",IF(N$3>(A7stdlife+$F145),('RFM input'!$I$229*(1+vanilla2)^0.5)-SUM($I145:M145),('RFM input'!$I$229*(1+vanilla2)^0.5)/A7stdlife)) -> 0 | O145: =IF(A7stdlife="n/a","n/a",IF(O$3>(A7stdlife+$F145),('RFM input'!$I$229*(1+vanilla2)^0.5)-SUM($I145:N145),('RFM input'!$I$229*(1+vanilla2)^0.5)/A7stdlife)) -> 0 | P145: =IF(A7stdlife="n/a","n/a",IF(P$3>(A7stdlife+$F145),('RFM input'!$I$229*(1+vanilla2)^0.5)-SUM($I145:O145),('RFM input'!$I$229*(1+vanilla2)^0.5)/A7stdlife)) -> 0 | Q145: =IF(A7stdlife="n/a","n/a",IF(Q$3>(A7stdlife+$F145),('RFM input'!$I$229*(1+vanilla2)^0.5)-SUM($I145:P145),('RFM input'!$I$229*(1+vanilla2)^0.5)/A7stdlife)) -> 0
F146: 3 | K146: =IF(A7stdlife="n/a","n/a",IF(K$3>(A7stdlife+$F146),('RFM input'!$J$229*(1+vanilla3)^0.5)-SUM($J146:J146),('RFM input'!$J$229*(1+vanilla3)^0.5)/A7stdlife)) -> 0 | L146: =IF(A7stdlife="n/a","n/a",IF(L$3>(A7stdlife+$F146),('RFM input'!$J$229*(1+vanilla3)^0.5)-SUM($J146:K146),('RFM input'!$J$229*(1+vanilla3)^0.5)/A7stdlife)) -> 0 | M146: =IF(A7stdlife="n/a","n/a",IF(M$3>(A7stdlife+$F146),('RFM input'!$J$229*(1+vanilla3)^0.5)-SUM($J146:L146),('RFM input'!$J$229*(1+vanilla3)^0.5)/A7stdlife)) -> 0 | N146: =IF(A7stdlife="n/a","n/a",IF(N$3>(A7stdlife+$F146),('RFM input'!$J$229*(1+vanilla3)^0.5)-SUM($J146:M146),('RFM input'!$J$229*(1+vanilla3)^0.5)/A7stdlife)) -> 0 | O146: =IF(A7stdlife="n/a","n/a",IF(O$3>(A7stdlife+$F146),('RFM input'!$J$229*(1+vanilla3)^0.5)-SUM($J146:N146),('RFM input'!$J$229*(1+vanilla3)^0.5)/A7stdlife)) -> 0 | P146: =IF(A7stdlife="n/a","n/a",IF(P$3>(A7stdlife+$F146),('RFM input'!$J$229*(1+vanilla3)^0.5)-SUM($J146:O146),('RFM input'!$J$229*(1+vanilla3)^0.5)/A7stdlife)) -> 0 | Q146: =IF(A7stdlife="n/a","n/a",IF(Q$3>(A7stdlife+$F146),('RFM input'!$J$229*(1+vanilla3)^0.5)-SUM($J146:P146),('RFM input'!$J$229*(1+vanilla3)^0.5)/A7stdlife)) -> 0
F147: 4 | L147: =IF(A7stdlife="n/a","n/a",IF(L$3>(A7stdlife+$F147),('RFM input'!$K$229*(1+vanilla4)^0.5)-SUM($K147:K147),('RFM input'!$K$229*(1+vanilla4)^0.5)/A7stdlife)) -> 0 | M147: =IF(A7stdlife="n/a","n/a",IF(M$3>(A7stdlife+$F147),('RFM input'!$K$229*(1+vanilla4)^0.5)-SUM($K147:L147),('RFM input'!$K$229*(1+vanilla4)^0.5)/A7stdlife)) -> 0 | N147: =IF(A7stdlife="n/a","n/a",IF(N$3>(A7stdlife+$F147),('RFM input'!$K$229*(1+vanilla4)^0.5)-SUM($K147:M147),('RFM input'!$K$229*(1+vanilla4)^0.5)/A7stdlife)) -> 0 | O147: =IF(A7stdlife="n/a","n/a",IF(O$3>(A7stdlife+$F147),('RFM input'!$K$229*(1+vanilla4)^0.5)-SUM($K147:N147),('RFM input'!$K$229*(1+vanilla4)^0.5)/A7stdlife)) -> 0 | P147: =IF(A7stdlife="n/a","n/a",IF(P$3>(A7stdlife+$F147),('RFM input'!$K$229*(1+vanilla4)^0.5)-SUM($K147:O147),('RFM input'!$K$229*(1+vanilla4)^0.5)/A7stdlife)) -> 0 | Q147: =IF(A7stdlife="n/a","n/a",IF(Q$3>(A7stdlife+$F147),('RFM input'!$K$229*(1+vanilla4)^0.5)-SUM($K147:P147),('RFM input'!$K$229*(1+vanilla4)^0.5)/A7stdlife)) -> 0
F148: 5 | M148: =IF(A7stdlife="n/a","n/a",IF(M$3>(A7stdlife+$F148),('RFM input'!$L$229*(1+vanilla5)^0.5)-SUM($L148:L148),('RFM input'!$L$229*(1+vanilla5)^0.5)/A7stdlife)) -> 0 | N148: =IF(A7stdlife="n/a","n/a",IF(N$3>(A7stdlife+$F148),('RFM input'!$L$229*(1+vanilla5)^0.5)-SUM($L148:M148),('RFM input'!$L$229*(1+vanilla5)^0.5)/A7stdlife)) -> 0 | O148: =IF(A7stdlife="n/a","n/a",IF(O$3>(A7stdlife+$F148),('RFM input'!$L$229*(1+vanilla5)^0.5)-SUM($L148:N148),('RFM input'!$L$229*(1+vanilla5)^0.5)/A7stdlife)) -> 0 | P148: =IF(A7stdlife="n/a","n/a",IF(P$3>(A7stdlife+$F148),('RFM input'!$L$229*(1+vanilla5)^0.5)-SUM($L148:O148),('RFM input'!$L$229*(1+vanilla5)^0.5)/A7stdlife)) -> 0 | Q148: =IF(A7stdlife="n/a","n/a",IF(Q$3>(A7stdlife+$F148),('RFM input'!$L$229*(1+vanilla5)^0.5)-SUM($L148:P148),('RFM input'!$L$229*(1+vanilla5)^0.5)/A7stdlife)) -> 0
F149: 6 | N149: =IF(A7stdlife="n/a","n/a",IF(N$3>(A7stdlife+$F149),('RFM input'!$M$229*(1+vanilla6)^0.5)-SUM($M149:M149),('RFM input'!$M$229*(1+vanilla6)^0.5)/A7stdlife)) -> 0 | O149: =IF(A7stdlife="n/a","n/a",IF(O$3>(A7stdlife+$F149),('RFM input'!$M$229*(1+vanilla6)^0.5)-SUM($M149:N149),('RFM input'!$M$229*(1+vanilla6)^0.5)/A7stdlife)) -> 0 | P149: =IF(A7stdlife="n/a","n/a",IF(P$3>(A7stdlife+$F149),('RFM input'!$M$229*(1+vanilla6)^0.5)-SUM($M149:O149),('RFM input'!$M$229*(1+vanilla6)^0.5)/A7stdlife)) -> 0 | Q149: =IF(A7stdlife="n/a","n/a",IF(Q$3>(A7stdlife+$F149),('RFM input'!$M$229*(1+vanilla6)^0.5)-SUM($M149:P149),('RFM input'!$M$229*(1+vanilla6)^0.5)/A7stdlife)) -> 0
F150: 7 | O150: =IF(A7stdlife="n/a","n/a",IF(O$3>(A7stdlife+$F150),('RFM input'!$N$229*(1+vanilla7)^0.5)-SUM($N150:N150),('RFM input'!$N$229*(1+vanilla7)^0.5)/A7stdlife)) -> 0 | P150: =IF(A7stdlife="n/a","n/a",IF(P$3>(A7stdlife+$F150),('RFM input'!$N$229*(1+vanilla7)^0.5)-SUM($N150:O150),('RFM input'!$N$229*(1+vanilla7)^0.5)/A7stdlife)) -> 0 | Q150: =IF(A7stdlife="n/a","n/a",IF(Q$3>(A7stdlife+$F150),('RFM input'!$N$229*(1+vanilla7)^0.5)-SUM($N150:P150),('RFM input'!$N$229*(1+vanilla7)^0.5)/A7stdlife)) -> 0
F151: 8 | P151: =IF(A7stdlife="n/a","n/a",IF(P$3>(A7stdlife+$F151),('RFM input'!$O$229*(1+vanilla8)^0.5)-SUM($O151:O151),('RFM input'!$O$229*(1+vanilla8)^0.5)/A7stdlife)) -> 0 | Q151: =IF(A7stdlife="n/a","n/a",IF(Q$3>(A7stdlife+$F151),('RFM input'!$O$229*(1+vanilla8)^0.5)-SUM($O151:P151),('RFM input'!$O$229*(1+vanilla8)^0.5)/A7stdlife)) -> 0
F152: 9 | Q152: =IF(A7stdlife="n/a","n/a",IF(Q$3>(A7stdlife+$F152),('RFM input'!$P$229*(1+vanilla9)^0.5)-SUM($P152:P152),('RFM input'!$P$229*(1+vanilla9)^0.5)/A7stdlife)) -> 0
F153: 10
D154: =Asset7 -> Secondary systems (pre 2016) | H154: =IF(OR('RFM input'!$E$293='RFM input'!$G$292,'RFM input'!$E$293='RFM input'!$G$293),-INDEX('RFM input'!H$299:H$348,MATCH($D154,'RFM input'!$E$299:$E$348,0),1),-SUM(H142:H153)) -> -62.7822681 | I154: =IF(OR('RFM input'!$E$293='RFM input'!$G$292,'RFM input'!$E$293='RFM input'!$G$293),-INDEX('RFM input'!I$299:I$348,MATCH($D154,'RFM input'!$E$299:$E$348,0),1),-SUM(I142:I153)) -> -30.09397916 | J154: =IF(COUNT($H154:I154)>='RFM input'!$Z$7, 0, IF(OR('RFM input'!$E$293='RFM input'!$G$292,'RFM input'!$E$293='RFM input'!$G$293), -INDEX('RFM input'!J$299:J$348,MATCH($D154,'RFM input'!$E$299:$E$348,0),1), -SUM(J142:J153))) -> -24.60088994 | K154: =IF(COUNT($H154:J154)>='RFM input'!$Z$7, 0, IF(OR('RFM input'!$E$293='RFM input'!$G$292,'RFM input'!$E$293='RFM input'!$G$293), -INDEX('RFM input'!K$299:K$348,MATCH($D154,'RFM input'!$E$299:$E$348,0),1), -SUM(K142:K153))) -> -20.93035335 | L154: =IF(COUNT($H154:K154)>='RFM input'!$Z$7, 0, IF(OR('RFM input'!$E$293='RFM input'!$G$292,'RFM input'!$E$293='RFM input'!$G$293), -INDEX('RFM input'!L$299:L$348,MATCH($D154,'RFM input'!$E$299:$E$348,0),1), -SUM(L142:L153))) -> -16.91829087 | M154: =IF(COUNT($H154:L154)>='RFM input'!$Z$7, 0, IF(OR('RFM input'!$E$293='RFM input'!$G$292,'RFM input'!$E$293='RFM input'!$G$293), -INDEX('RFM input'!M$299:M$348,MATCH($D154,'RFM input'!$E$299:$E$348,0),1), -SUM(M142:M153))) -> 0 | N154: =IF(COUNT($H154:M154)>='RFM input'!$Z$7, 0, IF(OR('RFM input'!$E$293='RFM input'!$G$292,'RFM input'!$E$293='RFM input'!$G$293), -INDEX('RFM input'!N$299:N$348,MATCH($D154,'RFM input'!$E$299:$E$348,0),1), -SUM(N142:N153))) -> 0 | O154: =IF(COUNT($H154:N154)>='RFM input'!$Z$7, 0, IF(OR('RFM input'!$E$293='RFM input'!$G$292,'RFM input'!$E$293='RFM input'!$G$293), -INDEX('RFM input'!O$299:O$348,MATCH($D154,'RFM input'!$E$299:$E$348,0),1), -SUM(O142:O153))) -> 0 | P154: =IF(COUNT($H154:O154)>='RFM input'!$Z$7, 0, IF(OR('RFM input'!$E$293='RFM input'!$G$292,'RFM input'!$E$293='RFM input'!$G$293), -INDEX('RFM input'!P$299:P$348,MATCH($D154,'RFM input'!$E$299:$E$348,0),1), -SUM(P142:P153))) -> 0 | Q154: =IF(COUNT($H154:P154)>='RFM input'!$Z$7, 0, IF(OR('RFM input'!$E$293='RFM input'!$G$292,'RFM input'!$E$293='RFM input'!$G$293), -INDEX('RFM input'!Q$299:Q$348,MATCH($D154,'RFM input'!$E$299:$E$348,0),1), -SUM(Q142:Q153))) -> 0
C155: =Asset8 -> Accelerated Depr - Subtr (forecast period) | E155: Opening RAB | H155: =IF(H$3>A8remlife,A8value-SUM($G155:G155),IF(A8remlife="N/A","n/a",A8value/A8remlife)) -> n/a | I155: =IF(I$3>A8remlife,A8value-SUM($G155:H155),IF(A8remlife="N/A","n/a",A8value/A8remlife)) -> n/a | J155: =IF(J$3>A8remlife,A8value-SUM($G155:I155),IF(A8remlife="N/A","n/a",A8value/A8remlife)) -> n/a | K155: =IF(K$3>A8remlife,A8value-SUM($G155:J155),IF(A8remlife="N/A","n/a",A8value/A8remlife)) -> n/a | L155: =IF(L$3>A8remlife,A8value-SUM($G155:K155),IF(A8remlife="N/A","n/a",A8value/A8remlife)) -> n/a | M155: =IF(M$3>A8remlife,A8value-SUM($G155:L155),IF(A8remlife="N/A","n/a",A8value/A8remlife)) -> n/a | N155: =IF(N$3>A8remlife,A8value-SUM($G155:M155),IF(A8remlife="N/A","n/a",A8value/A8remlife)) -> n/a | O155: =IF(O$3>A8remlife,A8value-SUM($G155:N155),IF(A8remlife="N/A","n/a",A8value/A8remlife)) -> n/a | P155: =IF(P$3>A8remlife,A8value-SUM($G155:O155),IF(A8remlife="N/A","n/a",A8value/A8remlife)) -> n/a | Q155: =IF(Q$3>A8remlife,A8value-SUM($G155:P155),IF(A8remlife="N/A","n/a",A8value/A8remlife)) -> n/a
E156: Capex in year
F157: 1 | I157: =IF(A8stdlife="n/a","n/a",IF(I$3>(A8stdlife+$F157),('RFM input'!$H$230*(1+vanilla1)^0.5)-SUM($H157:H157),('RFM input'!$H$230*(1+vanilla1)^0.5)/A8stdlife)) -> n/a | J157: =IF(A8stdlife="n/a","n/a",IF(J$3>(A8stdlife+$F157),('RFM input'!$H$230*(1+vanilla1)^0.5)-SUM($H157:I157),('RFM input'!$H$230*(1+vanilla1)^0.5)/A8stdlife)) -> n/a | K157: =IF(A8stdlife="n/a","n/a",IF(K$3>(A8stdlife+$F157),('RFM input'!$H$230*(1+vanilla1)^0.5)-SUM($H157:J157),('RFM input'!$H$230*(1+vanilla1)^0.5)/A8stdlife)) -> n/a | L157: =IF(A8stdlife="n/a","n/a",IF(L$3>(A8stdlife+$F157),('RFM input'!$H$230*(1+vanilla1)^0.5)-SUM($H157:K157),('RFM input'!$H$230*(1+vanilla1)^0.5)/A8stdlife)) -> n/a | M157: =IF(A8stdlife="n/a","n/a",IF(M$3>(A8stdlife+$F157),('RFM input'!$H$230*(1+vanilla1)^0.5)-SUM($H157:L157),('RFM input'!$H$230*(1+vanilla1)^0.5)/A8stdlife)) -> n/a | N157: =IF(A8stdlife="n/a","n/a",IF(N$3>(A8stdlife+$F157),('RFM input'!$H$230*(1+vanilla1)^0.5)-SUM($H157:M157),('RFM input'!$H$230*(1+vanilla1)^0.5)/A8stdlife)) -> n/a | O157: =IF(A8stdlife="n/a","n/a",IF(O$3>(A8stdlife+$F157),('RFM input'!$H$230*(1+vanilla1)^0.5)-SUM($H157:N157),('RFM input'!$H$230*(1+vanilla1)^0.5)/A8stdlife)) -> n/a | P157: =IF(A8stdlife="n/a","n/a",IF(P$3>(A8stdlife+$F157),('RFM input'!$H$230*(1+vanilla1)^0.5)-SUM($H157:O157),('RFM input'!$H$230*(1+vanilla1)^0.5)/A8stdlife)) -> n/a | Q157: =IF(A8stdlife="n/a","n/a",IF(Q$3>(A8stdlife+$F157),('RFM input'!$H$230*(1+vanilla1)^0.5)-SUM($H157:P157),('RFM input'!$H$230*(1+vanilla1)^0.5)/A8stdlife)) -> n/a
F158: 2 | J158: =IF(A8stdlife="n/a","n/a",IF(J$3>(A8stdlife+$F158),('RFM input'!$I$230*(1+vanilla2)^0.5)-SUM($I158:I158),('RFM input'!$I$230*(1+vanilla2)^0.5)/A8stdlife)) -> n/a | K158: =IF(A8stdlife="n/a","n/a",IF(K$3>(A8stdlife+$F158),('RFM input'!$I$230*(1+vanilla2)^0.5)-SUM($I158:J158),('RFM input'!$I$230*(1+vanilla2)^0.5)/A8stdlife)) -> n/a | L158: =IF(A8stdlife="n/a","n/a",IF(L$3>(A8stdlife+$F158),('RFM input'!$I$230*(1+vanilla2)^0.5)-SUM($I158:K158),('RFM input'!$I$230*(1+vanilla2)^0.5)/A8stdlife)) -> n/a | M158: =IF(A8stdlife="n/a","n/a",IF(M$3>(A8stdlife+$F158),('RFM input'!$I$230*(1+vanilla2)^0.5)-SUM($I158:L158),('RFM input'!$I$230*(1+vanilla2)^0.5)/A8stdlife)) -> n/a | N158: =IF(A8stdlife="n/a","n/a",IF(N$3>(A8stdlife+$F158),('RFM input'!$I$230*(1+vanilla2)^0.5)-SUM($I158:M158),('RFM input'!$I$230*(1+vanilla2)^0.5)/A8stdlife)) -> n/a | O158: =IF(A8stdlife="n/a","n/a",IF(O$3>(A8stdlife+$F158),('RFM input'!$I$230*(1+vanilla2)^0.5)-SUM($I158:N158),('RFM input'!$I$230*(1+vanilla2)^0.5)/A8stdlife)) -> n/a | P158: =IF(A8stdlife="n/a","n/a",IF(P$3>(A8stdlife+$F158),('RFM input'!$I$230*(1+vanilla2)^0.5)-SUM($I158:O158),('RFM input'!$I$230*(1+vanilla2)^0.5)/A8stdlife)) -> n/a | Q158: =IF(A8stdlife="n/a","n/a",IF(Q$3>(A8stdlife+$F158),('RFM input'!$I$230*(1+vanilla2)^0.5)-SUM($I158:P158),('RFM input'!$I$230*(1+vanilla2)^0.5)/A8stdlife)) -> n/a
F159: 3 | K159: =IF(A8stdlife="n/a","n/a",IF(K$3>(A8stdlife+$F159),('RFM input'!$J$230*(1+vanilla3)^0.5)-SUM($J159:J159),('RFM input'!$J$230*(1+vanilla3)^0.5)/A8stdlife)) -> n/a | L159: =IF(A8stdlife="n/a","n/a",IF(L$3>(A8stdlife+$F159),('RFM input'!$J$230*(1+vanilla3)^0.5)-SUM($J159:K159),('RFM input'!$J$230*(1+vanilla3)^0.5)/A8stdlife)) -> n/a | M159: =IF(A8stdlife="n/a","n/a",IF(M$3>(A8stdlife+$F159),('RFM input'!$J$230*(1+vanilla3)^0.5)-SUM($J159:L159),('RFM input'!$J$230*(1+vanilla3)^0.5)/A8stdlife)) -> n/a | N159: =IF(A8stdlife="n/a","n/a",IF(N$3>(A8stdlife+$F159),('RFM input'!$J$230*(1+vanilla3)^0.5)-SUM($J159:M159),('RFM input'!$J$230*(1+vanilla3)^0.5)/A8stdlife)) -> n/a | O159: =IF(A8stdlife="n/a","n/a",IF(O$3>(A8stdlife+$F159),('RFM input'!$J$230*(1+vanilla3)^0.5)-SUM($J159:N159),('RFM input'!$J$230*(1+vanilla3)^0.5)/A8stdlife)) -> n/a | P159: =IF(A8stdlife="n/a","n/a",IF(P$3>(A8stdlife+$F159),('RFM input'!$J$230*(1+vanilla3)^0.5)-SUM($J159:O159),('RFM input'!$J$230*(1+vanilla3)^0.5)/A8stdlife)) -> n/a | Q159: =IF(A8stdlife="n/a","n/a",IF(Q$3>(A8stdlife+$F159),('RFM input'!$J$230*(1+vanilla3)^0.5)-SUM($J159:P159),('RFM input'!$J$230*(1+vanilla3)^0.5)/A8stdlife)) -> n/a
F160: 4 | L160: =IF(A8stdlife="n/a","n/a",IF(L$3>(A8stdlife+$F160),('RFM input'!$K$230*(1+vanilla4)^0.5)-SUM($K160:K160),('RFM input'!$K$230*(1+vanilla4)^0.5)/A8stdlife)) -> n/a | M160: =IF(A8stdlife="n/a","n/a",IF(M$3>(A8stdlife+$F160),('RFM input'!$K$230*(1+vanilla4)^0.5)-SUM($K160:L160),('RFM input'!$K$230*(1+vanilla4)^0.5)/A8stdlife)) -> n/a | N160: =IF(A8stdlife="n/a","n/a",IF(N$3>(A8stdlife+$F160),('RFM input'!$K$230*(1+vanilla4)^0.5)-SUM($K160:M160),('RFM input'!$K$230*(1+vanilla4)^0.5)/A8stdlife)) -> n/a | O160: =IF(A8stdlife="n/a","n/a",IF(O$3>(A8stdlife+$F160),('RFM input'!$K$230*(1+vanilla4)^0.5)-SUM($K160:N160),('RFM input'!$K$230*(1+vanilla4)^0.5)/A8stdlife)) -> n/a | P160: =IF(A8stdlife="n/a","n/a",IF(P$3>(A8stdlife+$F160),('RFM input'!$K$230*(1+vanilla4)^0.5)-SUM($K160:O160),('RFM input'!$K$230*(1+vanilla4)^0.5)/A8stdlife)) -> n/a | Q160: =IF(A8stdlife="n/a","n/a",IF(Q$3>(A8stdlife+$F160),('RFM input'!$K$230*(1+vanilla4)^0.5)-SUM($K160:P160),('RFM input'!$K$230*(1+vanilla4)^0.5)/A8stdlife)) -> n/a
F161: 5 | M161: =IF(A8stdlife="n/a","n/a",IF(M$3>(A8stdlife+$F161),('RFM input'!$L$230*(1+vanilla5)^0.5)-SUM($L161:L161),('RFM input'!$L$230*(1+vanilla5)^0.5)/A8stdlife)) -> n/a | N161: =IF(A8stdlife="n/a","n/a",IF(N$3>(A8stdlife+$F161),('RFM input'!$L$230*(1+vanilla5)^0.5)-SUM($L161:M161),('RFM input'!$L$230*(1+vanilla5)^0.5)/A8stdlife)) -> n/a | O161: =IF(A8stdlife="n/a","n/a",IF(O$3>(A8stdlife+$F161),('RFM input'!$L$230*(1+vanilla5)^0.5)-SUM($L161:N161),('RFM input'!$L$230*(1+vanilla5)^0.5)/A8stdlife)) -> n/a | P161: =IF(A8stdlife="n/a","n/a",IF(P$3>(A8stdlife+$F161),('RFM input'!$L$230*(1+vanilla5)^0.5)-SUM($L161:O161),('RFM input'!$L$230*(1+vanilla5)^0.5)/A8stdlife)) -> n/a | Q161: =IF(A8stdlife="n/a","n/a",IF(Q$3>(A8stdlife+$F161),('RFM input'!$L$230*(1+vanilla5)^0.5)-SUM($L161:P161),('RFM input'!$L$230*(1+vanilla5)^0.5)/A8stdlife)) -> n/a
F162: 6 | N162: =IF(A8stdlife="n/a","n/a",IF(N$3>(A8stdlife+$F162),('RFM input'!$M$230*(1+vanilla6)^0.5)-SUM($M162:M162),('RFM input'!$M$230*(1+vanilla6)^0.5)/A8stdlife)) -> n/a | O162: =IF(A8stdlife="n/a","n/a",IF(O$3>(A8stdlife+$F162),('RFM input'!$M$230*(1+vanilla6)^0.5)-SUM($M162:N162),('RFM input'!$M$230*(1+vanilla6)^0.5)/A8stdlife)) -> n/a | P162: =IF(A8stdlife="n/a","n/a",IF(P$3>(A8stdlife+$F162),('RFM input'!$M$230*(1+vanilla6)^0.5)-SUM($M162:O162),('RFM input'!$M$230*(1+vanilla6)^0.5)/A8stdlife)) -> n/a | Q162: =IF(A8stdlife="n/a","n/a",IF(Q$3>(A8stdlife+$F162),('RFM input'!$M$230*(1+vanilla6)^0.5)-SUM($M162:P162),('RFM input'!$M$230*(1+vanilla6)^0.5)/A8stdlife)) -> n/a
F163: 7 | O163: =IF(A8stdlife="n/a","n/a",IF(O$3>(A8stdlife+$F163),('RFM input'!$N$230*(1+vanilla7)^0.5)-SUM($N163:N163),('RFM input'!$N$230*(1+vanilla7)^0.5)/A8stdlife)) -> n/a | P163: =IF(A8stdlife="n/a","n/a",IF(P$3>(A8stdlife+$F163),('RFM input'!$N$230*(1+vanilla7)^0.5)-SUM($N163:O163),('RFM input'!$N$230*(1+vanilla7)^0.5)/A8stdlife)) -> n/a | Q163: =IF(A8stdlife="n/a","n/a",IF(Q$3>(A8stdlife+$F163),('RFM input'!$N$230*(1+vanilla7)^0.5)-SUM($N163:P163),('RFM input'!$N$230*(1+vanilla7)^0.5)/A8stdlife)) -> n/a
F164: 8 | P164: =IF(A8stdlife="n/a","n/a",IF(P$3>(A8stdlife+$F164),('RFM input'!$O$230*(1+vanilla8)^0.5)-SUM($O164:O164),('RFM input'!$O$230*(1+vanilla8)^0.5)/A8stdlife)) -> n/a | Q164: =IF(A8stdlife="n/a","n/a",IF(Q$3>(A8stdlife+$F164),('RFM input'!$O$230*(1+vanilla8)^0.5)-SUM($O164:P164),('RFM input'!$O$230*(1+vanilla8)^0.5)/A8stdlife)) -> n/a
F165: 9 | Q165: =IF(A8stdlife="n/a","n/a",IF(Q$3>(A8stdlife+$F165),('RFM input'!$P$230*(1+vanilla9)^0.5)-SUM($P165:P165),('RFM input'!$P$230*(1+vanilla9)^0.5)/A8stdlife)) -> n/a
F166: 10
D167: =Asset8 -> Accelerated Depr - Subtr (forecast period) | H167: =IF(OR('RFM input'!$E$293='RFM input'!$G$292,'RFM input'!$E$293='RFM input'!$G$293),-INDEX('RFM input'!H$299:H$348,MATCH($D167,'RFM input'!$E$299:$E$348,0),1),-SUM(H155:H166)) -> 0 | I167: =IF(OR('RFM input'!$E$293='RFM input'!$G$292,'RFM input'!$E$293='RFM input'!$G$293),-INDEX('RFM input'!I$299:I$348,MATCH($D167,'RFM input'!$E$299:$E$348,0),1),-SUM(I155:I166)) -> 0 | J167: =IF(COUNT($H167:I167)>='RFM input'!$Z$7, 0, IF(OR('RFM input'!$E$293='RFM input'!$G$292,'RFM input'!$E$293='RFM input'!$G$293), -INDEX('RFM input'!J$299:J$348,MATCH($D167,'RFM input'!$E$299:$E$348,0),1), -SUM(J155:J166))) -> 0 | K167: =IF(COUNT($H167:J167)>='RFM input'!$Z$7, 0, IF(OR('RFM input'!$E$293='RFM input'!$G$292,'RFM input'!$E$293='RFM input'!$G$293), -INDEX('RFM input'!K$299:K$348,MATCH($D167,'RFM input'!$E$299:$E$348,0),1), -SUM(K155:K166))) -> 0 | L167: =IF(COUNT($H167:K167)>='RFM input'!$Z$7, 0, IF(OR('RFM input'!$E$293='RFM input'!$G$292,'RFM input'!$E$293='RFM input'!$G$293), -INDEX('RFM input'!L$299:L$348,MATCH($D167,'RFM input'!$E$299:$E$348,0),1), -SUM(L155:L166))) -> 0 | M167: =IF(COUNT($H167:L167)>='RFM input'!$Z$7, 0, IF(OR('RFM input'!$E$293='RFM input'!$G$292,'RFM input'!$E$293='RFM input'!$G$293), -INDEX('RFM input'!M$299:M$348,MATCH($D167,'RFM input'!$E$299:$E$348,0),1), -SUM(M155:M166))) -> 0 | N167: =IF(COUNT($H167:M167)>='RFM input'!$Z$7, 0, IF(OR('RFM input'!$E$293='RFM input'!$G$292,'RFM input'!$E$293='RFM input'!$G$293), -INDEX('RFM input'!N$299:N$348,MATCH($D167,'RFM input'!$E$299:$E$348,0),1), -SUM(N155:N166))) -> 0 | O167: =IF(COUNT($H167:N167)>='RFM input'!$Z$7, 0, IF(OR('RFM input'!$E$293='RFM input'!$G$292,'RFM input'!$E$293='RFM input'!$G$293), -INDEX('RFM input'!O$299:O$348,MATCH($D167,'RFM input'!$E$299:$E$348,0),1), -SUM(O155:O166))) -> 0 | P167: =IF(COUNT($H167:O167)>='RFM input'!$Z$7, 0, IF(OR('RFM input'!$E$293='RFM input'!$G$292,'RFM input'!$E$293='RFM input'!$G$293), -INDEX('RFM input'!P$299:P$348,MATCH($D167,'RFM input'!$E$299:$E$348,0),1), -SUM(P155:P166))) -> 0 | Q167: =IF(COUNT($H167:P167)>='RFM input'!$Z$7, 0, IF(OR('RFM input'!$E$293='RFM input'!$G$292,'RFM input'!$E$293='RFM input'!$G$293), -INDEX('RFM input'!Q$299:Q$348,MATCH($D167,'RFM input'!$E$299:$E$348,0),1), -SUM(Q155:Q166))) -> 0
C168: =Asset9 -> Accelerated Depr - Distr (forecast period) | E168: Opening RAB | H168: =IF(H$3>A9remlife,A9value-SUM($G168:G168),IF(A9remlife="N/A","n/a",A9value/A9remlife)) -> n/a | I168: =IF(I$3>A9remlife,A9value-SUM($G168:H168),IF(A9remlife="N/A","n/a",A9value/A9remlife)) -> n/a | J168: =IF(J$3>A9remlife,A9value-SUM($G168:I168),IF(A9remlife="N/A","n/a",A9value/A9remlife)) -> n/a | K168: =IF(K$3>A9remlife,A9value-SUM($G168:J168),IF(A9remlife="N/A","n/a",A9value/A9remlife)) -> n/a | L168: =IF(L$3>A9remlife,A9value-SUM($G168:K168),IF(A9remlife="N/A","n/a",A9value/A9remlife)) -> n/a | M168: =IF(M$3>A9remlife,A9value-SUM($G168:L168),IF(A9remlife="N/A","n/a",A9value/A9remlife)) -> n/a | N168: =IF(N$3>A9remlife,A9value-SUM($G168:M168),IF(A9remlife="N/A","n/a",A9value/A9remlife)) -> n/a | O168: =IF(O$3>A9remlife,A9value-SUM($G168:N168),IF(A9remlife="N/A","n/a",A9value/A9remlife)) -> n/a | P168: =IF(P$3>A9remlife,A9value-SUM($G168:O168),IF(A9remlife="N/A","n/a",A9value/A9remlife)) -> n/a | Q168: =IF(Q$3>A9remlife,A9value-SUM($G168:P168),IF(A9remlife="N/A","n/a",A9value/A9remlife)) -> n/a
E169: Capex in year
F170: 1 | I170: =IF(A9stdlife="n/a","n/a",IF(I$3>(A9stdlife+$F170),('RFM input'!$H$231*(1+vanilla1)^0.5)-SUM($H170:H170),('RFM input'!$H$231*(1+vanilla1)^0.5)/A9stdlife)) -> n/a | J170: =IF(A9stdlife="n/a","n/a",IF(J$3>(A9stdlife+$F170),('RFM input'!$H$231*(1+vanilla1)^0.5)-SUM($H170:I170),('RFM input'!$H$231*(1+vanilla1)^0.5)/A9stdlife)) -> n/a | K170: =IF(A9stdlife="n/a","n/a",IF(K$3>(A9stdlife+$F170),('RFM input'!$H$231*(1+vanilla1)^0.5)-SUM($H170:J170),('RFM input'!$H$231*(1+vanilla1)^0.5)/A9stdlife)) -> n/a | L170: =IF(A9stdlife="n/a","n/a",IF(L$3>(A9stdlife+$F170),('RFM input'!$H$231*(1+vanilla1)^0.5)-SUM($H170:K170),('RFM input'!$H$231*(1+vanilla1)^0.5)/A9stdlife)) -> n/a | M170: =IF(A9stdlife="n/a","n/a",IF(M$3>(A9stdlife+$F170),('RFM input'!$H$231*(1+vanilla1)^0.5)-SUM($H170:L170),('RFM input'!$H$231*(1+vanilla1)^0.5)/A9stdlife)) -> n/a | N170: =IF(A9stdlife="n/a","n/a",IF(N$3>(A9stdlife+$F170),('RFM input'!$H$231*(1+vanilla1)^0.5)-SUM($H170:M170),('RFM input'!$H$231*(1+vanilla1)^0.5)/A9stdlife)) -> n/a | O170: =IF(A9stdlife="n/a","n/a",IF(O$3>(A9stdlife+$F170),('RFM input'!$H$231*(1+vanilla1)^0.5)-SUM($H170:N170),('RFM input'!$H$231*(1+vanilla1)^0.5)/A9stdlife)) -> n/a | P170: =IF(A9stdlife="n/a","n/a",IF(P$3>(A9stdlife+$F170),('RFM input'!$H$231*(1+vanilla1)^0.5)-SUM($H170:O170),('RFM input'!$H$231*(1+vanilla1)^0.5)/A9stdlife)) -> n/a | Q170: =IF(A9stdlife="n/a","n/a",IF(Q$3>(A9stdlife+$F170),('RFM input'!$H$231*(1+vanilla1)^0.5)-SUM($H170:P170),('RFM input'!$H$231*(1+vanilla1)^0.5)/A9stdlife)) -> n/a
F171: 2 | J171: =IF(A9stdlife="n/a","n/a",IF(J$3>(A9stdlife+$F171),('RFM input'!$I$231*(1+vanilla2)^0.5)-SUM($I171:I171),('RFM input'!$I$231*(1+vanilla2)^0.5)/A9stdlife)) -> n/a | K171: =IF(A9stdlife="n/a","n/a",IF(K$3>(A9stdlife+$F171),('RFM input'!$I$231*(1+vanilla2)^0.5)-SUM($I171:J171),('RFM input'!$I$231*(1+vanilla2)^0.5)/A9stdlife)) -> n/a | L171: =IF(A9stdlife="n/a","n/a",IF(L$3>(A9stdlife+$F171),('RFM input'!$I$231*(1+vanilla2)^0.5)-SUM($I171:K171),('RFM input'!$I$231*(1+vanilla2)^0.5)/A9stdlife)) -> n/a | M171: =IF(A9stdlife="n/a","n/a",IF(M$3>(A9stdlife+$F171),('RFM input'!$I$231*(1+vanilla2)^0.5)-SUM($I171:L171),('RFM input'!$I$231*(1+vanilla2)^0.5)/A9stdlife)) -> n/a | N171: =IF(A9stdlife="n/a","n/a",IF(N$3>(A9stdlife+$F171),('RFM input'!$I$231*(1+vanilla2)^0.5)-SUM($I171:M171),('RFM input'!$I$231*(1+vanilla2)^0.5)/A9stdlife)) -> n/a | O171: =IF(A9stdlife="n/a","n/a",IF(O$3>(A9stdlife+$F171),('RFM input'!$I$231*(1+vanilla2)^0.5)-SUM($I171:N171),('RFM input'!$I$231*(1+vanilla2)^0.5)/A9stdlife)) -> n/a | P171: =IF(A9stdlife="n/a","n/a",IF(P$3>(A9stdlife+$F171),('RFM input'!$I$231*(1+vanilla2)^0.5)-SUM($I171:O171),('RFM input'!$I$231*(1+vanilla2)^0.5)/A9stdlife)) -> n/a | Q171: =IF(A9stdlife="n/a","n/a",IF(Q$3>(A9stdlife+$F171),('RFM input'!$I$231*(1+vanilla2)^0.5)-SUM($I171:P171),('RFM input'!$I$231*(1+vanilla2)^0.5)/A9stdlife)) -> n/a
F172: 3 | K172: =IF(A9stdlife="n/a","n/a",IF(K$3>(A9stdlife+$F172),('RFM input'!$J$231*(1+vanilla3)^0.5)-SUM($J172:J172),('RFM input'!$J$231*(1+vanilla3)^0.5)/A9stdlife)) -> n/a | L172: =IF(A9stdlife="n/a","n/a",IF(L$3>(A9stdlife+$F172),('RFM input'!$J$231*(1+vanilla3)^0.5)-SUM($J172:K172),('RFM input'!$J$231*(1+vanilla3)^0.5)/A9stdlife)) -> n/a | M172: =IF(A9stdlife="n/a","n/a",IF(M$3>(A9stdlife+$F172),('RFM input'!$J$231*(1+vanilla3)^0.5)-SUM($J172:L172),('RFM input'!$J$231*(1+vanilla3)^0.5)/A9stdlife)) -> n/a | N172: =IF(A9stdlife="n/a","n/a",IF(N$3>(A9stdlife+$F172),('RFM input'!$J$231*(1+vanilla3)^0.5)-SUM($J172:M172),('RFM input'!$J$231*(1+vanilla3)^0.5)/A9stdlife)) -> n/a | O172: =IF(A9stdlife="n/a","n/a",IF(O$3>(A9stdlife+$F172),('RFM input'!$J$231*(1+vanilla3)^0.5)-SUM($J172:N172),('RFM input'!$J$231*(1+vanilla3)^0.5)/A9stdlife)) -> n/a | P172: =IF(A9stdlife="n/a","n/a",IF(P$3>(A9stdlife+$F172),('RFM input'!$J$231*(1+vanilla3)^0.5)-SUM($J172:O172),('RFM input'!$J$231*(1+vanilla3)^0.5)/A9stdlife)) -> n/a | Q172: =IF(A9stdlife="n/a","n/a",IF(Q$3>(A9stdlife+$F172),('RFM input'!$J$231*(1+vanilla3)^0.5)-SUM($J172:P172),('RFM input'!$J$231*(1+vanilla3)^0.5)/A9stdlife)) -> n/a
F173: 4 | L173: =IF(A9stdlife="n/a","n/a",IF(L$3>(A9stdlife+$F173),('RFM input'!$K$231*(1+vanilla4)^0.5)-SUM($K173:K173),('RFM input'!$K$231*(1+vanilla4)^0.5)/A9stdlife)) -> n/a | M173: =IF(A9stdlife="n/a","n/a",IF(M$3>(A9stdlife+$F173),('RFM input'!$K$231*(1+vanilla4)^0.5)-SUM($K173:L173),('RFM input'!$K$231*(1+vanilla4)^0.5)/A9stdlife)) -> n/a | N173: =IF(A9stdlife="n/a","n/a",IF(N$3>(A9stdlife+$F173),('RFM input'!$K$231*(1+vanilla4)^0.5)-SUM($K173:M173),('RFM input'!$K$231*(1+vanilla4)^0.5)/A9stdlife)) -> n/a | O173: =IF(A9stdlife="n/a","n/a",IF(O$3>(A9stdlife+$F173),('RFM input'!$K$231*(1+vanilla4)^0.5)-SUM($K173:N173),('RFM input'!$K$231*(1+vanilla4)^0.5)/A9stdlife)) -> n/a | P173: =IF(A9stdlife="n/a","n/a",IF(P$3>(A9stdlife+$F173),('RFM input'!$K$231*(1+vanilla4)^0.5)-SUM($K173:O173),('RFM input'!$K$231*(1+vanilla4)^0.5)/A9stdlife)) -> n/a | Q173: =IF(A9stdlife="n/a","n/a",IF(Q$3>(A9stdlife+$F173),('RFM input'!$K$231*(1+vanilla4)^0.5)-SUM($K173:P173),('RFM input'!$K$231*(1+vanilla4)^0.5)/A9stdlife)) -> n/a
F174: 5 | M174: =IF(A9stdlife="n/a","n/a",IF(M$3>(A9stdlife+$F174),('RFM input'!$L$231*(1+vanilla5)^0.5)-SUM($L174:L174),('RFM input'!$L$231*(1+vanilla5)^0.5)/A9stdlife)) -> n/a | N174: =IF(A9stdlife="n/a","n/a",IF(N$3>(A9stdlife+$F174),('RFM input'!$L$231*(1+vanilla5)^0.5)-SUM($L174:M174),('RFM input'!$L$231*(1+vanilla5)^0.5)/A9stdlife)) -> n/a | O174: =IF(A9stdlife="n/a","n/a",IF(O$3>(A9stdlife+$F174),('RFM input'!$L$231*(1+vanilla5)^0.5)-SUM($L174:N174),('RFM input'!$L$231*(1+vanilla5)^0.5)/A9stdlife)) -> n/a | P174: =IF(A9stdlife="n/a","n/a",IF(P$3>(A9stdlife+$F174),('RFM input'!$L$231*(1+vanilla5)^0.5)-SUM($L174:O174),('RFM input'!$L$231*(1+vanilla5)^0.5)/A9stdlife)) -> n/a | Q174: =IF(A9stdlife="n/a","n/a",IF(Q$3>(A9stdlife+$F174),('RFM input'!$L$231*(1+vanilla5)^0.5)-SUM($L174:P174),('RFM input'!$L$231*(1+vanilla5)^0.5)/A9stdlife)) -> n/a
F175: 6 | N175: =IF(A9stdlife="n/a","n/a",IF(N$3>(A9stdlife+$F175),('RFM input'!$M$231*(1+vanilla6)^0.5)-SUM($M175:M175),('RFM input'!$M$231*(1+vanilla6)^0.5)/A9stdlife)) -> n/a | O175: =IF(A9stdlife="n/a","n/a",IF(O$3>(A9stdlife+$F175),('RFM input'!$M$231*(1+vanilla6)^0.5)-SUM($M175:N175),('RFM input'!$M$231*(1+vanilla6)^0.5)/A9stdlife)) -> n/a | P175: =IF(A9stdlife="n/a","n/a",IF(P$3>(A9stdlife+$F175),('RFM input'!$M$231*(1+vanilla6)^0.5)-SUM($M175:O175),('RFM input'!$M$231*(1+vanilla6)^0.5)/A9stdlife)) -> n/a | Q175: =IF(A9stdlife="n/a","n/a",IF(Q$3>(A9stdlife+$F175),('RFM input'!$M$231*(1+vanilla6)^0.5)-SUM($M175:P175),('RFM input'!$M$231*(1+vanilla6)^0.5)/A9stdlife)) -> n/a
F176: 7 | O176: =IF(A9stdlife="n/a","n/a",IF(O$3>(A9stdlife+$F176),('RFM input'!$N$231*(1+vanilla7)^0.5)-SUM($N176:N176),('RFM input'!$N$231*(1+vanilla7)^0.5)/A9stdlife)) -> n/a | P176: =IF(A9stdlife="n/a","n/a",IF(P$3>(A9stdlife+$F176),('RFM input'!$N$231*(1+vanilla7)^0.5)-SUM($N176:O176),('RFM input'!$N$231*(1+vanilla7)^0.5)/A9stdlife)) -> n/a | Q176: =IF(A9stdlife="n/a","n/a",IF(Q$3>(A9stdlife+$F176),('RFM input'!$N$231*(1+vanilla7)^0.5)-SUM($N176:P176),('RFM input'!$N$231*(1+vanilla7)^0.5)/A9stdlife)) -> n/a
F177: 8 | P177: =IF(A9stdlife="n/a","n/a",IF(P$3>(A9stdlife+$F177),('RFM input'!$O$231*(1+vanilla8)^0.5)-SUM($O177:O177),('RFM input'!$O$231*(1+vanilla8)^0.5)/A9stdlife)) -> n/a | Q177: =IF(A9stdlife="n/a","n/a",IF(Q$3>(A9stdlife+$F177),('RFM input'!$O$231*(1+vanilla8)^0.5)-SUM($O177:P177),('RFM input'!$O$231*(1+vanilla8)^0.5)/A9stdlife)) -> n/a
F178: 9 | Q178: =IF(A9stdlife="n/a","n/a",IF(Q$3>(A9stdlife+$F178),('RFM input'!$P$231*(1+vanilla9)^0.5)-SUM($P178:P178),('RFM input'!$P$231*(1+vanilla9)^0.5)/A9stdlife)) -> n/a
F179: 10
D180: =Asset9 -> Accelerated Depr - Distr (forecast period) | H180: =IF(OR('RFM input'!$E$293='RFM input'!$G$292,'RFM input'!$E$293='RFM input'!$G$293),-INDEX('RFM input'!H$299:H$348,MATCH($D180,'RFM input'!$E$299:$E$348,0),1),-SUM(H168:H179)) -> 0 | I180: =IF(OR('RFM input'!$E$293='RFM input'!$G$292,'RFM input'!$E$293='RFM input'!$G$293),-INDEX('RFM input'!I$299:I$348,MATCH($D180,'RFM input'!$E$299:$E$348,0),1),-SUM(I168:I179)) -> 0 | J180: =IF(COUNT($H180:I180)>='RFM input'!$Z$7, 0, IF(OR('RFM input'!$E$293='RFM input'!$G$292,'RFM input'!$E$293='RFM input'!$G$293), -INDEX('RFM input'!J$299:J$348,MATCH($D180,'RFM input'!$E$299:$E$348,0),1), -SUM(J168:J179))) -> 0 | K180: =IF(COUNT($H180:J180)>='RFM input'!$Z$7, 0, IF(OR('RFM input'!$E$293='RFM input'!$G$292,'RFM input'!$E$293='RFM input'!$G$293), -INDEX('RFM input'!K$299:K$348,MATCH($D180,'RFM input'!$E$299:$E$348,0),1), -SUM(K168:K179))) -> 0 | L180: =IF(COUNT($H180:K180)>='RFM input'!$Z$7, 0, IF(OR('RFM input'!$E$293='RFM input'!$G$292,'RFM input'!$E$293='RFM input'!$G$293), -INDEX('RFM input'!L$299:L$348,MATCH($D180,'RFM input'!$E$299:$E$348,0),1), -SUM(L168:L179))) -> 0 | M180: =IF(COUNT($H180:L180)>='RFM input'!$Z$7, 0, IF(OR('RFM input'!$E$293='RFM input'!$G$292,'RFM input'!$E$293='RFM input'!$G$293), -INDEX('RFM input'!M$299:M$348,MATCH($D180,'RFM input'!$E$299:$E$348,0),1), -SUM(M168:M179))) -> 0 | N180: =IF(COUNT($H180:M180)>='RFM input'!$Z$7, 0, IF(OR('RFM input'!$E$293='RFM input'!$G$292,'RFM input'!$E$293='RFM input'!$G$293), -INDEX('RFM input'!N$299:N$348,MATCH($D180,'RFM input'!$E$299:$E$348,0),1), -SUM(N168:N179))) -> 0 | O180: =IF(COUNT($H180:N180)>='RFM input'!$Z$7, 0, IF(OR('RFM input'!$E$293='RFM input'!$G$292,'RFM input'!$E$293='RFM input'!$G$293), -INDEX('RFM input'!O$299:O$348,MATCH($D180,'RFM input'!$E$299:$E$348,0),1), -SUM(O168:O179))) -> 0 | P180: =IF(COUNT($H180:O180)>='RFM input'!$Z$7, 0, IF(OR('RFM input'!$E$293='RFM input'!$G$292,'RFM input'!$E$293='RFM input'!$G$293), -INDEX('RFM input'!P$299:P$348,MATCH($D180,'RFM input'!$E$299:$E$348,0),1), -SUM(P168:P179))) -> 0 | Q180: =IF(COUNT($H180:P180)>='RFM input'!$Z$7, 0, IF(OR('RFM input'!$E$293='RFM input'!$G$292,'RFM input'!$E$293='RFM input'!$G$293), -INDEX('RFM input'!Q$299:Q$348,MATCH($D180,'RFM input'!$E$299:$E$348,0),1), -SUM(Q168:Q179))) -> 0
C181: =Asset10 -> Accelerated Depr - Distr assets (Contingent Project 1) | E181: Opening RAB | H181: =IF(H$3>A10remlife,A10value-SUM($G181:G181),IF(A10remlife="N/A","n/a",A10value/A10remlife)) -> n/a | I181: =IF(I$3>A10remlife,A10value-SUM($G181:H181),IF(A10remlife="N/A","n/a",A10value/A10remlife)) -> n/a | J181: =IF(J$3>A10remlife,A10value-SUM($G181:I181),IF(A10remlife="N/A","n/a",A10value/A10remlife)) -> n/a | K181: =IF(K$3>A10remlife,A10value-SUM($G181:J181),IF(A10remlife="N/A","n/a",A10value/A10remlife)) -> n/a | L181: =IF(L$3>A10remlife,A10value-SUM($G181:K181),IF(A10remlife="N/A","n/a",A10value/A10remlife)) -> n/a | M181: =IF(M$3>A10remlife,A10value-SUM($G181:L181),IF(A10remlife="N/A","n/a",A10value/A10remlife)) -> n/a | N181: =IF(N$3>A10remlife,A10value-SUM($G181:M181),IF(A10remlife="N/A","n/a",A10value/A10remlife)) -> n/a | O181: =IF(O$3>A10remlife,A10value-SUM($G181:N181),IF(A10remlife="N/A","n/a",A10value/A10remlife)) -> n/a | P181: =IF(P$3>A10remlife,A10value-SUM($G181:O181),IF(A10remlife="N/A","n/a",A10value/A10remlife)) -> n/a | Q181: =IF(Q$3>A10remlife,A10value-SUM($G181:P181),IF(A10remlife="N/A","n/a",A10value/A10remlife)) -> n/a
E182: Capex in year
F183: 1 | I183: =IF(A10stdlife="n/a","n/a",IF(I$3>(A10stdlife+$F183),('RFM input'!$H$232*(1+vanilla1)^0.5)-SUM($H183:H183),('RFM input'!$H$232*(1+vanilla1)^0.5)/A10stdlife)) -> n/a | J183: =IF(A10stdlife="n/a","n/a",IF(J$3>(A10stdlife+$F183),('RFM input'!$H$232*(1+vanilla1)^0.5)-SUM($H183:I183),('RFM input'!$H$232*(1+vanilla1)^0.5)/A10stdlife)) -> n/a | K183: =IF(A10stdlife="n/a","n/a",IF(K$3>(A10stdlife+$F183),('RFM input'!$H$232*(1+vanilla1)^0.5)-SUM($H183:J183),('RFM input'!$H$232*(1+vanilla1)^0.5)/A10stdlife)) -> n/a | L183: =IF(A10stdlife="n/a","n/a",IF(L$3>(A10stdlife+$F183),('RFM input'!$H$232*(1+vanilla1)^0.5)-SUM($H183:K183),('RFM input'!$H$232*(1+vanilla1)^0.5)/A10stdlife)) -> n/a | M183: =IF(A10stdlife="n/a","n/a",IF(M$3>(A10stdlife+$F183),('RFM input'!$H$232*(1+vanilla1)^0.5)-SUM($H183:L183),('RFM input'!$H$232*(1+vanilla1)^0.5)/A10stdlife)) -> n/a | N183: =IF(A10stdlife="n/a","n/a",IF(N$3>(A10stdlife+$F183),('RFM input'!$H$232*(1+vanilla1)^0.5)-SUM($H183:M183),('RFM input'!$H$232*(1+vanilla1)^0.5)/A10stdlife)) -> n/a | O183: =IF(A10stdlife="n/a","n/a",IF(O$3>(A10stdlife+$F183),('RFM input'!$H$232*(1+vanilla1)^0.5)-SUM($H183:N183),('RFM input'!$H$232*(1+vanilla1)^0.5)/A10stdlife)) -> n/a | P183: =IF(A10stdlife="n/a","n/a",IF(P$3>(A10stdlife+$F183),('RFM input'!$H$232*(1+vanilla1)^0.5)-SUM($H183:O183),('RFM input'!$H$232*(1+vanilla1)^0.5)/A10stdlife)) -> n/a | Q183: =IF(A10stdlife="n/a","n/a",IF(Q$3>(A10stdlife+$F183),('RFM input'!$H$232*(1+vanilla1)^0.5)-SUM($H183:P183),('RFM input'!$H$232*(1+vanilla1)^0.5)/A10stdlife)) -> n/a
F184: 2 | J184: =IF(A10stdlife="n/a","n/a",IF(J$3>(A10stdlife+$F184),('RFM input'!$I$232*(1+vanilla2)^0.5)-SUM($I184:I184),('RFM input'!$I$232*(1+vanilla2)^0.5)/A10stdlife)) -> n/a | K184: =IF(A10stdlife="n/a","n/a",IF(K$3>(A10stdlife+$F184),('RFM input'!$I$232*(1+vanilla2)^0.5)-SUM($I184:J184),('RFM input'!$I$232*(1+vanilla2)^0.5)/A10stdlife)) -> n/a | L184: =IF(A10stdlife="n/a","n/a",IF(L$3>(A10stdlife+$F184),('RFM input'!$I$232*(1+vanilla2)^0.5)-SUM($I184:K184),('RFM input'!$I$232*(1+vanilla2)^0.5)/A10stdlife)) -> n/a | M184: =IF(A10stdlife="n/a","n/a",IF(M$3>(A10stdlife+$F184),('RFM input'!$I$232*(1+vanilla2)^0.5)-SUM($I184:L184),('RFM input'!$I$232*(1+vanilla2)^0.5)/A10stdlife)) -> n/a | N184: =IF(A10stdlife="n/a","n/a",IF(N$3>(A10stdlife+$F184),('RFM input'!$I$232*(1+vanilla2)^0.5)-SUM($I184:M184),('RFM input'!$I$232*(1+vanilla2)^0.5)/A10stdlife)) -> n/a | O184: =IF(A10stdlife="n/a","n/a",IF(O$3>(A10stdlife+$F184),('RFM input'!$I$232*(1+vanilla2)^0.5)-SUM($I184:N184),('RFM input'!$I$232*(1+vanilla2)^0.5)/A10stdlife)) -> n/a | P184: =IF(A10stdlife="n/a","n/a",IF(P$3>(A10stdlife+$F184),('RFM input'!$I$232*(1+vanilla2)^0.5)-SUM($I184:O184),('RFM input'!$I$232*(1+vanilla2)^0.5)/A10stdlife)) -> n/a | Q184: =IF(A10stdlife="n/a","n/a",IF(Q$3>(A10stdlife+$F184),('RFM input'!$I$232*(1+vanilla2)^0.5)-SUM($I184:P184),('RFM input'!$I$232*(1+vanilla2)^0.5)/A10stdlife)) -> n/a
F185: 3 | K185: =IF(A10stdlife="n/a","n/a",IF(K$3>(A10stdlife+$F185),('RFM input'!$J$232*(1+vanilla3)^0.5)-SUM($J185:J185),('RFM input'!$J$232*(1+vanilla3)^0.5)/A10stdlife)) -> n/a | L185: =IF(A10stdlife="n/a","n/a",IF(L$3>(A10stdlife+$F185),('RFM input'!$J$232*(1+vanilla3)^0.5)-SUM($J185:K185),('RFM input'!$J$232*(1+vanilla3)^0.5)/A10stdlife)) -> n/a | M185: =IF(A10stdlife="n/a","n/a",IF(M$3>(A10stdlife+$F185),('RFM input'!$J$232*(1+vanilla3)^0.5)-SUM($J185:L185),('RFM input'!$J$232*(1+vanilla3)^0.5)/A10stdlife)) -> n/a | N185: =IF(A10stdlife="n/a","n/a",IF(N$3>(A10stdlife+$F185),('RFM input'!$J$232*(1+vanilla3)^0.5)-SUM($J185:M185),('RFM input'!$J$232*(1+vanilla3)^0.5)/A10stdlife)) -> n/a | O185: =IF(A10stdlife="n/a","n/a",IF(O$3>(A10stdlife+$F185),('RFM input'!$J$232*(1+vanilla3)^0.5)-SUM($J185:N185),('RFM input'!$J$232*(1+vanilla3)^0.5)/A10stdlife)) -> n/a | P185: =IF(A10stdlife="n/a","n/a",IF(P$3>(A10stdlife+$F185),('RFM input'!$J$232*(1+vanilla3)^0.5)-SUM($J185:O185),('RFM input'!$J$232*(1+vanilla3)^0.5)/A10stdlife)) -> n/a | Q185: =IF(A10stdlife="n/a","n/a",IF(Q$3>(A10stdlife+$F185),('RFM input'!$J$232*(1+vanilla3)^0.5)-SUM($J185:P185),('RFM input'!$J$232*(1+vanilla3)^0.5)/A10stdlife)) -> n/a
F186: 4 | L186: =IF(A10stdlife="n/a","n/a",IF(L$3>(A10stdlife+$F186),('RFM input'!$K$232*(1+vanilla4)^0.5)-SUM($K186:K186),('RFM input'!$K$232*(1+vanilla4)^0.5)/A10stdlife)) -> n/a | M186: =IF(A10stdlife="n/a","n/a",IF(M$3>(A10stdlife+$F186),('RFM input'!$K$232*(1+vanilla4)^0.5)-SUM($K186:L186),('RFM input'!$K$232*(1+vanilla4)^0.5)/A10stdlife)) -> n/a | N186: =IF(A10stdlife="n/a","n/a",IF(N$3>(A10stdlife+$F186),('RFM input'!$K$232*(1+vanilla4)^0.5)-SUM($K186:M186),('RFM input'!$K$232*(1+vanilla4)^0.5)/A10stdlife)) -> n/a | O186: =IF(A10stdlife="n/a","n/a",IF(O$3>(A10stdlife+$F186),('RFM input'!$K$232*(1+vanilla4)^0.5)-SUM($K186:N186),('RFM input'!$K$232*(1+vanilla4)^0.5)/A10stdlife)) -> n/a | P186: =IF(A10stdlife="n/a","n/a",IF(P$3>(A10stdlife+$F186),('RFM input'!$K$232*(1+vanilla4)^0.5)-SUM($K186:O186),('RFM input'!$K$232*(1+vanilla4)^0.5)/A10stdlife)) -> n/a | Q186: =IF(A10stdlife="n/a","n/a",IF(Q$3>(A10stdlife+$F186),('RFM input'!$K$232*(1+vanilla4)^0.5)-SUM($K186:P186),('RFM input'!$K$232*(1+vanilla4)^0.5)/A10stdlife)) -> n/a
F187: 5 | M187: =IF(A10stdlife="n/a","n/a",IF(M$3>(A10stdlife+$F187),('RFM input'!$L$232*(1+vanilla5)^0.5)-SUM($L187:L187),('RFM input'!$L$232*(1+vanilla5)^0.5)/A10stdlife)) -> n/a | N187: =IF(A10stdlife="n/a","n/a",IF(N$3>(A10stdlife+$F187),('RFM input'!$L$232*(1+vanilla5)^0.5)-SUM($L187:M187),('RFM input'!$L$232*(1+vanilla5)^0.5)/A10stdlife)) -> n/a | O187: =IF(A10stdlife="n/a","n/a",IF(O$3>(A10stdlife+$F187),('RFM input'!$L$232*(1+vanilla5)^0.5)-SUM($L187:N187),('RFM input'!$L$232*(1+vanilla5)^0.5)/A10stdlife)) -> n/a | P187: =IF(A10stdlife="n/a","n/a",IF(P$3>(A10stdlife+$F187),('RFM input'!$L$232*(1+vanilla5)^0.5)-SUM($L187:O187),('RFM input'!$L$232*(1+vanilla5)^0.5)/A10stdlife)) -> n/a | Q187: =IF(A10stdlife="n/a","n/a",IF(Q$3>(A10stdlife+$F187),('RFM input'!$L$232*(1+vanilla5)^0.5)-SUM($L187:P187),('RFM input'!$L$232*(1+vanilla5)^0.5)/A10stdlife)) -> n/a
F188: 6 | N188: =IF(A10stdlife="n/a","n/a",IF(N$3>(A10stdlife+$F188),('RFM input'!$M$232*(1+vanilla6)^0.5)-SUM($M188:M188),('RFM input'!$M$232*(1+vanilla6)^0.5)/A10stdlife)) -> n/a | O188: =IF(A10stdlife="n/a","n/a",IF(O$3>(A10stdlife+$F188),('RFM input'!$M$232*(1+vanilla6)^0.5)-SUM($M188:N188),('RFM input'!$M$232*(1+vanilla6)^0.5)/A10stdlife)) -> n/a | P188: =IF(A10stdlife="n/a","n/a",IF(P$3>(A10stdlife+$F188),('RFM input'!$M$232*(1+vanilla6)^0.5)-SUM($M188:O188),('RFM input'!$M$232*(1+vanilla6)^0.5)/A10stdlife)) -> n/a | Q188: =IF(A10stdlife="n/a","n/a",IF(Q$3>(A10stdlife+$F188),('RFM input'!$M$232*(1+vanilla6)^0.5)-SUM($M188:P188),('RFM input'!$M$232*(1+vanilla6)^0.5)/A10stdlife)) -> n/a
F189: 7 | O189: =IF(A10stdlife="n/a","n/a",IF(O$3>(A10stdlife+$F189),('RFM input'!$N$232*(1+vanilla7)^0.5)-SUM($N189:N189),('RFM input'!$N$232*(1+vanilla7)^0.5)/A10stdlife)) -> n/a | P189: =IF(A10stdlife="n/a","n/a",IF(P$3>(A10stdlife+$F189),('RFM input'!$N$232*(1+vanilla7)^0.5)-SUM($N189:O189),('RFM input'!$N$232*(1+vanilla7)^0.5)/A10stdlife)) -> n/a | Q189: =IF(A10stdlife="n/a","n/a",IF(Q$3>(A10stdlife+$F189),('RFM input'!$N$232*(1+vanilla7)^0.5)-SUM($N189:P189),('RFM input'!$N$232*(1+vanilla7)^0.5)/A10stdlife)) -> n/a
F190: 8 | P190: =IF(A10stdlife="n/a","n/a",IF(P$3>(A10stdlife+$F190),('RFM input'!$O$232*(1+vanilla8)^0.5)-SUM($O190:O190),('RFM input'!$O$232*(1+vanilla8)^0.5)/A10stdlife)) -> n/a | Q190: =IF(A10stdlife="n/a","n/a",IF(Q$3>(A10stdlife+$F190),('RFM input'!$O$232*(1+vanilla8)^0.5)-SUM($O190:P190),('RFM input'!$O$232*(1+vanilla8)^0.5)/A10stdlife)) -> n/a
F191: 9 | Q191: =IF(A10stdlife="n/a","n/a",IF(Q$3>(A10stdlife+$F191),('RFM input'!$P$232*(1+vanilla9)^0.5)-SUM($P191:P191),('RFM input'!$P$232*(1+vanilla9)^0.5)/A10stdlife)) -> n/a
F192: 10
D193: =Asset10 -> Accelerated Depr - Distr assets (Contingent Project 1) | H193: =IF(OR('RFM input'!$E$293='RFM input'!$G$292,'RFM input'!$E$293='RFM input'!$G$293),-INDEX('RFM input'!H$299:H$348,MATCH($D193,'RFM input'!$E$299:$E$348,0),1),-SUM(H181:H192)) -> 0 | I193: =IF(OR('RFM input'!$E$293='RFM input'!$G$292,'RFM input'!$E$293='RFM input'!$G$293),-INDEX('RFM input'!I$299:I$348,MATCH($D193,'RFM input'!$E$299:$E$348,0),1),-SUM(I181:I192)) -> 0 | J193: =IF(COUNT($H193:I193)>='RFM input'!$Z$7, 0, IF(OR('RFM input'!$E$293='RFM input'!$G$292,'RFM input'!$E$293='RFM input'!$G$293), -INDEX('RFM input'!J$299:J$348,MATCH($D193,'RFM input'!$E$299:$E$348,0),1), -SUM(J181:J192))) -> 0 | K193: =IF(COUNT($H193:J193)>='RFM input'!$Z$7, 0, IF(OR('RFM input'!$E$293='RFM input'!$G$292,'RFM input'!$E$293='RFM input'!$G$293), -INDEX('RFM input'!K$299:K$348,MATCH($D193,'RFM input'!$E$299:$E$348,0),1), -SUM(K181:K192))) -> 0 | L193: =IF(COUNT($H193:K193)>='RFM input'!$Z$7, 0, IF(OR('RFM input'!$E$293='RFM input'!$G$292,'RFM input'!$E$293='RFM input'!$G$293), -INDEX('RFM input'!L$299:L$348,MATCH($D193,'RFM input'!$E$299:$E$348,0),1), -SUM(L181:L192))) -> 0 | M193: =IF(COUNT($H193:L193)>='RFM input'!$Z$7, 0, IF(OR('RFM input'!$E$293='RFM input'!$G$292,'RFM input'!$E$293='RFM input'!$G$293), -INDEX('RFM input'!M$299:M$348,MATCH($D193,'RFM input'!$E$299:$E$348,0),1), -SUM(M181:M192))) -> 0 | N193: =IF(COUNT($H193:M193)>='RFM input'!$Z$7, 0, IF(OR('RFM input'!$E$293='RFM input'!$G$292,'RFM input'!$E$293='RFM input'!$G$293), -INDEX('RFM input'!N$299:N$348,MATCH($D193,'RFM input'!$E$299:$E$348,0),1), -SUM(N181:N192))) -> 0 | O193: =IF(COUNT($H193:N193)>='RFM input'!$Z$7, 0, IF(OR('RFM input'!$E$293='RFM input'!$G$292,'RFM input'!$E$293='RFM input'!$G$293), -INDEX('RFM input'!O$299:O$348,MATCH($D193,'RFM input'!$E$299:$E$348,0),1), -SUM(O181:O192))) -> 0 | P193: =IF(COUNT($H193:O193)>='RFM input'!$Z$7, 0, IF(OR('RFM input'!$E$293='RFM input'!$G$292,'RFM input'!$E$293='RFM input'!$G$293), -INDEX('RFM input'!P$299:P$348,MATCH($D193,'RFM input'!$E$299:$E$348,0),1), -SUM(P181:P192))) -> 0 | Q193: =IF(COUNT($H193:P193)>='RFM input'!$Z$7, 0, IF(OR('RFM input'!$E$293='RFM input'!$G$292,'RFM input'!$E$293='RFM input'!$G$293), -INDEX('RFM input'!Q$299:Q$348,MATCH($D193,'RFM input'!$E$299:$E$348,0),1), -SUM(Q181:Q192))) -> 0
C194: =Asset11 -> Accelerated Depr - Distr assets (Contingent Project 2) | E194: Opening RAB | H194: =IF(H$3>A11remlife,A11value-SUM($G194:G194),IF(A11remlife="N/A","n/a",A11value/A11remlife)) -> n/a | I194: =IF(I$3>A11remlife,A11value-SUM($G194:H194),IF(A11remlife="N/A","n/a",A11value/A11remlife)) -> n/a | J194: =IF(J$3>A11remlife,A11value-SUM($G194:I194),IF(A11remlife="N/A","n/a",A11value/A11remlife)) -> n/a | K194: =IF(K$3>A11remlife,A11value-SUM($G194:J194),IF(A11remlife="N/A","n/a",A11value/A11remlife)) -> n/a | L194: =IF(L$3>A11remlife,A11value-SUM($G194:K194),IF(A11remlife="N/A","n/a",A11value/A11remlife)) -> n/a | M194: =IF(M$3>A11remlife,A11value-SUM($G194:L194),IF(A11remlife="N/A","n/a",A11value/A11remlife)) -> n/a | N194: =IF(N$3>A11remlife,A11value-SUM($G194:M194),IF(A11remlife="N/A","n/a",A11value/A11remlife)) -> n/a | O194: =IF(O$3>A11remlife,A11value-SUM($G194:N194),IF(A11remlife="N/A","n/a",A11value/A11remlife)) -> n/a | P194: =IF(P$3>A11remlife,A11value-SUM($G194:O194),IF(A11remlife="N/A","n/a",A11value/A11remlife)) -> n/a | Q194: =IF(Q$3>A11remlife,A11value-SUM($G194:P194),IF(A11remlife="N/A","n/a",A11value/A11remlife)) -> n/a
E195: Capex in year
F196: 1 | I196: =IF(A11stdlife="n/a","n/a",IF(I$3>(A11stdlife+$F196),('RFM input'!$H$233*(1+vanilla1)^0.5)-SUM($H196:H196),('RFM input'!$H$233*(1+vanilla1)^0.5)/A11stdlife)) -> n/a | J196: =IF(A11stdlife="n/a","n/a",IF(J$3>(A11stdlife+$F196),('RFM input'!$H$233*(1+vanilla1)^0.5)-SUM($H196:I196),('RFM input'!$H$233*(1+vanilla1)^0.5)/A11stdlife)) -> n/a | K196: =IF(A11stdlife="n/a","n/a",IF(K$3>(A11stdlife+$F196),('RFM input'!$H$233*(1+vanilla1)^0.5)-SUM($H196:J196),('RFM input'!$H$233*(1+vanilla1)^0.5)/A11stdlife)) -> n/a | L196: =IF(A11stdlife="n/a","n/a",IF(L$3>(A11stdlife+$F196),('RFM input'!$H$233*(1+vanilla1)^0.5)-SUM($H196:K196),('RFM input'!$H$233*(1+vanilla1)^0.5)/A11stdlife)) -> n/a | M196: =IF(A11stdlife="n/a","n/a",IF(M$3>(A11stdlife+$F196),('RFM input'!$H$233*(1+vanilla1)^0.5)-SUM($H196:L196),('RFM input'!$H$233*(1+vanilla1)^0.5)/A11stdlife)) -> n/a | N196: =IF(A11stdlife="n/a","n/a",IF(N$3>(A11stdlife+$F196),('RFM input'!$H$233*(1+vanilla1)^0.5)-SUM($H196:M196),('RFM input'!$H$233*(1+vanilla1)^0.5)/A11stdlife)) -> n/a | O196: =IF(A11stdlife="n/a","n/a",IF(O$3>(A11stdlife+$F196),('RFM input'!$H$233*(1+vanilla1)^0.5)-SUM($H196:N196),('RFM input'!$H$233*(1+vanilla1)^0.5)/A11stdlife)) -> n/a | P196: =IF(A11stdlife="n/a","n/a",IF(P$3>(A11stdlife+$F196),('RFM input'!$H$233*(1+vanilla1)^0.5)-SUM($H196:O196),('RFM input'!$H$233*(1+vanilla1)^0.5)/A11stdlife)) -> n/a | Q196: =IF(A11stdlife="n/a","n/a",IF(Q$3>(A11stdlife+$F196),('RFM input'!$H$233*(1+vanilla1)^0.5)-SUM($H196:P196),('RFM input'!$H$233*(1+vanilla1)^0.5)/A11stdlife)) -> n/a
F197: 2 | J197: =IF(A11stdlife="n/a","n/a",IF(J$3>(A11stdlife+$F197),('RFM input'!$I$233*(1+vanilla2)^0.5)-SUM($I197:I197),('RFM input'!$I$233*(1+vanilla2)^0.5)/A11stdlife)) -> n/a | K197: =IF(A11stdlife="n/a","n/a",IF(K$3>(A11stdlife+$F197),('RFM input'!$I$233*(1+vanilla2)^0.5)-SUM($I197:J197),('RFM input'!$I$233*(1+vanilla2)^0.5)/A11stdlife)) -> n/a | L197: =IF(A11stdlife="n/a","n/a",IF(L$3>(A11stdlife+$F197),('RFM input'!$I$233*(1+vanilla2)^0.5)-SUM($I197:K197),('RFM input'!$I$233*(1+vanilla2)^0.5)/A11stdlife)) -> n/a | M197: =IF(A11stdlife="n/a","n/a",IF(M$3>(A11stdlife+$F197),('RFM input'!$I$233*(1+vanilla2)^0.5)-SUM($I197:L197),('RFM input'!$I$233*(1+vanilla2)^0.5)/A11stdlife)) -> n/a | N197: =IF(A11stdlife="n/a","n/a",IF(N$3>(A11stdlife+$F197),('RFM input'!$I$233*(1+vanilla2)^0.5)-SUM($I197:M197),('RFM input'!$I$233*(1+vanilla2)^0.5)/A11stdlife)) -> n/a | O197: =IF(A11stdlife="n/a","n/a",IF(O$3>(A11stdlife+$F197),('RFM input'!$I$233*(1+vanilla2)^0.5)-SUM($I197:N197),('RFM input'!$I$233*(1+vanilla2)^0.5)/A11stdlife)) -> n/a | P197: =IF(A11stdlife="n/a","n/a",IF(P$3>(A11stdlife+$F197),('RFM input'!$I$233*(1+vanilla2)^0.5)-SUM($I197:O197),('RFM input'!$I$233*(1+vanilla2)^0.5)/A11stdlife)) -> n/a | Q197: =IF(A11stdlife="n/a","n/a",IF(Q$3>(A11stdlife+$F197),('RFM input'!$I$233*(1+vanilla2)^0.5)-SUM($I197:P197),('RFM input'!$I$233*(1+vanilla2)^0.5)/A11stdlife)) -> n/a
F198: 3 | K198: =IF(A11stdlife="n/a","n/a",IF(K$3>(A11stdlife+$F198),('RFM input'!$J$233*(1+vanilla3)^0.5)-SUM($J198:J198),('RFM input'!$J$233*(1+vanilla3)^0.5)/A11stdlife)) -> n/a | L198: =IF(A11stdlife="n/a","n/a",IF(L$3>(A11stdlife+$F198),('RFM input'!$J$233*(1+vanilla3)^0.5)-SUM($J198:K198),('RFM input'!$J$233*(1+vanilla3)^0.5)/A11stdlife)) -> n/a | M198: =IF(A11stdlife="n/a","n/a",IF(M$3>(A11stdlife+$F198),('RFM input'!$J$233*(1+vanilla3)^0.5)-SUM($J198:L198),('RFM input'!$J$233*(1+vanilla3)^0.5)/A11stdlife)) -> n/a | N198: =IF(A11stdlife="n/a","n/a",IF(N$3>(A11stdlife+$F198),('RFM input'!$J$233*(1+vanilla3)^0.5)-SUM($J198:M198),('RFM input'!$J$233*(1+vanilla3)^0.5)/A11stdlife)) -> n/a | O198: =IF(A11stdlife="n/a","n/a",IF(O$3>(A11stdlife+$F198),('RFM input'!$J$233*(1+vanilla3)^0.5)-SUM($J198:N198),('RFM input'!$J$233*(1+vanilla3)^0.5)/A11stdlife)) -> n/a | P198: =IF(A11stdlife="n/a","n/a",IF(P$3>(A11stdlife+$F198),('RFM input'!$J$233*(1+vanilla3)^0.5)-SUM($J198:O198),('RFM input'!$J$233*(1+vanilla3)^0.5)/A11stdlife)) -> n/a | Q198: =IF(A11stdlife="n/a","n/a",IF(Q$3>(A11stdlife+$F198),('RFM input'!$J$233*(1+vanilla3)^0.5)-SUM($J198:P198),('RFM input'!$J$233*(1+vanilla3)^0.5)/A11stdlife)) -> n/a
F199: 4 | L199: =IF(A11stdlife="n/a","n/a",IF(L$3>(A11stdlife+$F199),('RFM input'!$K$233*(1+vanilla4)^0.5)-SUM($K199:K199),('RFM input'!$K$233*(1+vanilla4)^0.5)/A11stdlife)) -> n/a | M199: =IF(A11stdlife="n/a","n/a",IF(M$3>(A11stdlife+$F199),('RFM input'!$K$233*(1+vanilla4)^0.5)-SUM($K199:L199),('RFM input'!$K$233*(1+vanilla4)^0.5)/A11stdlife)) -> n/a | N199: =IF(A11stdlife="n/a","n/a",IF(N$3>(A11stdlife+$F199),('RFM input'!$K$233*(1+vanilla4)^0.5)-SUM($K199:M199),('RFM input'!$K$233*(1+vanilla4)^0.5)/A11stdlife)) -> n/a | O199: =IF(A11stdlife="n/a","n/a",IF(O$3>(A11stdlife+$F199),('RFM input'!$K$233*(1+vanilla4)^0.5)-SUM($K199:N199),('RFM input'!$K$233*(1+vanilla4)^0.5)/A11stdlife)) -> n/a | P199: =IF(A11stdlife="n/a","n/a",IF(P$3>(A11stdlife+$F199),('RFM input'!$K$233*(1+vanilla4)^0.5)-SUM($K199:O199),('RFM input'!$K$233*(1+vanilla4)^0.5)/A11stdlife)) -> n/a | Q199: =IF(A11stdlife="n/a","n/a",IF(Q$3>(A11stdlife+$F199),('RFM input'!$K$233*(1+vanilla4)^0.5)-SUM($K199:P199),('RFM input'!$K$233*(1+vanilla4)^0.5)/A11stdlife)) -> n/a
F200: 5 | M200: =IF(A11stdlife="n/a","n/a",IF(M$3>(A11stdlife+$F200),('RFM input'!$L$233*(1+vanilla5)^0.5)-SUM($L200:L200),('RFM input'!$K233*(1+vanilla5)^0.5)/A11stdlife)) -> n/a | N200: =IF(A11stdlife="n/a","n/a",IF(N$3>(A11stdlife+$F200),('RFM input'!$L$233*(1+vanilla5)^0.5)-SUM($L200:M200),('RFM input'!$K233*(1+vanilla5)^0.5)/A11stdlife)) -> n/a | O200: =IF(A11stdlife="n/a","n/a",IF(O$3>(A11stdlife+$F200),('RFM input'!$L$233*(1+vanilla5)^0.5)-SUM($L200:N200),('RFM input'!$K233*(1+vanilla5)^0.5)/A11stdlife)) -> n/a | P200: =IF(A11stdlife="n/a","n/a",IF(P$3>(A11stdlife+$F200),('RFM input'!$L$233*(1+vanilla5)^0.5)-SUM($L200:O200),('RFM input'!$K233*(1+vanilla5)^0.5)/A11stdlife)) -> n/a | Q200: =IF(A11stdlife="n/a","n/a",IF(Q$3>(A11stdlife+$F200),('RFM input'!$L$233*(1+vanilla5)^0.5)-SUM($L200:P200),('RFM input'!$K233*(1+vanilla5)^0.5)/A11stdlife)) -> n/a
F201: 6 | N201: =IF(A11stdlife="n/a","n/a",IF(N$3>(A11stdlife+$F201),('RFM input'!$M$233*(1+vanilla6)^0.5)-SUM($M201:M201),('RFM input'!$M$233*(1+vanilla6)^0.5)/A11stdlife)) -> n/a | O201: =IF(A11stdlife="n/a","n/a",IF(O$3>(A11stdlife+$F201),('RFM input'!$M$233*(1+vanilla6)^0.5)-SUM($M201:N201),('RFM input'!$M$233*(1+vanilla6)^0.5)/A11stdlife)) -> n/a | P201: =IF(A11stdlife="n/a","n/a",IF(P$3>(A11stdlife+$F201),('RFM input'!$M$233*(1+vanilla6)^0.5)-SUM($M201:O201),('RFM input'!$M$233*(1+vanilla6)^0.5)/A11stdlife)) -> n/a | Q201: =IF(A11stdlife="n/a","n/a",IF(Q$3>(A11stdlife+$F201),('RFM input'!$M$233*(1+vanilla6)^0.5)-SUM($M201:P201),('RFM input'!$M$233*(1+vanilla6)^0.5)/A11stdlife)) -> n/a
F202: 7 | O202: =IF(A11stdlife="n/a","n/a",IF(O$3>(A11stdlife+$F202),('RFM input'!$N$233*(1+vanilla7)^0.5)-SUM($N202:N202),('RFM input'!$N$233*(1+vanilla7)^0.5)/A11stdlife)) -> n/a | P202: =IF(A11stdlife="n/a","n/a",IF(P$3>(A11stdlife+$F202),('RFM input'!$N$233*(1+vanilla7)^0.5)-SUM($N202:O202),('RFM input'!$N$233*(1+vanilla7)^0.5)/A11stdlife)) -> n/a | Q202: =IF(A11stdlife="n/a","n/a",IF(Q$3>(A11stdlife+$F202),('RFM input'!$N$233*(1+vanilla7)^0.5)-SUM($N202:P202),('RFM input'!$N$233*(1+vanilla7)^0.5)/A11stdlife)) -> n/a
F203: 8 | P203: =IF(A11stdlife="n/a","n/a",IF(P$3>(A11stdlife+$F203),('RFM input'!$O$233*(1+vanilla8)^0.5)-SUM($O203:O203),('RFM input'!$O$233*(1+vanilla8)^0.5)/A11stdlife)) -> n/a | Q203: =IF(A11stdlife="n/a","n/a",IF(Q$3>(A11stdlife+$F203),('RFM input'!$O$233*(1+vanilla8)^0.5)-SUM($O203:P203),('RFM input'!$O$233*(1+vanilla8)^0.5)/A11stdlife)) -> n/a
F204: 9 | Q204: =IF(A11stdlife="n/a","n/a",IF(Q$3>(A11stdlife+$F204),('RFM input'!$P$233*(1+vanilla9)^0.5)-SUM($P204:P204),('RFM input'!$P$233*(1+vanilla9)^0.5)/A11stdlife)) -> n/a
F205: 10
... 917 more rows

Sheet Total RAB roll forward
C2: ='DMS input'!$C$16&" - Total Asset Roll Forward"&" - DNSP RFM - version "&Intro!$M$4 -> AusNet (D) - Total Asset Roll Forward - DNSP RFM - version 3
G3: 0 | H3: =G3+1 -> 1 | I3: 2 | J3: 3 | K3: 4 | L3: 5 | M3: 6
C4: Year | F4: ='RFM input'!F60 -> 2020 | G4: ='RFM input'!G60 -> HY2021 | H4: ='RFM input'!H60 -> 2021-22 | I4: ='RFM input'!I60 -> 2022-23 | J4: ='RFM input'!J60 -> 2023-24 | K4: ='RFM input'!K60 -> 2024-25 | L4: ='RFM input'!L60 -> 2025-26 | M4: ='RFM input'!M60 -> 2026-27 | N4: ='RFM input'!N60 -> 2027-28 | O4: ='RFM input'!O60 -> 2028-29 | P4: ='RFM input'!P60 -> 2029-30 | Q4: ='RFM input'!Q60 -> 2030-31
C5: Asset Values ($m Nominal)
C7: Nominal Opening Regulatory Asset Base | F7: =SUM(F8:F57) -> 4308.073817 | G7: =SUM(G8:G57) -> 4517.038884 | H7: =SUM(H8:H57) -> 4657.449399 | I7: 4766.173277 | J7: 5005.480024 | K7: 5505.620546 | L7: 5920.614481 | M7: 0 | N7: 0 | O7: 0 | P7: 0 | Q7: 0
D8: =Asset1 -> Subtransmission | F8: ='RAB roll forward'!F718 -> 600.3583924 | G8: ='RAB roll forward'!G718 -> 656.094746 | H8: =G8+G60+G112+G164+G216+G268 -> 563.5399341 | I8: =H8+H60+H112 -> 636.0464869 | J8: =IF(COUNT($H8:I8)>='RFM input'!$Z$7,0,I8+I60+I112) -> 727.4106956 | K8: =IF(COUNT($H8:J8)>='RFM input'!$Z$7,0,J8+J60+J112) -> 819.9326434 | L8: =IF(COUNT($H8:K8)>='RFM input'!$Z$7,0,K8+K60+K112) -> 897.6682186 | M8: =IF(COUNT($H8:L8)>='RFM input'!$Z$7,0,L8+L60+L112) -> 0 | N8: =IF(COUNT($H8:M8)>='RFM input'!$Z$7,0,M8+M60+M112) -> 0 | O8: =IF(COUNT($H8:N8)>='RFM input'!$Z$7,0,N8+N60+N112) -> 0 | P8: =IF(COUNT($H8:O8)>='RFM input'!$Z$7,0,O8+O60+O112) -> 0 | Q8: =IF(COUNT($H8:P8)>='RFM input'!$Z$7,0,P8+P60+P112) -> 0
D9: =Asset2 -> Distribution system assets | F9: ='RAB roll forward'!F719 -> 3518.810572 | G9: ='RAB roll forward'!G719 -> 3627.391405 | H9: =G9+G61+G113+G165+G217+G269 -> 3554.078893 | I9: 3608.859298 | J9: =IF(COUNT($H9:I9)>='RFM input'!$Z$7,0,I9+I61+I113) -> 3771.781524 | K9: =IF(COUNT($H9:J9)>='RFM input'!$Z$7,0,J9+J61+J113) -> 4151.333102 | L9: =IF(COUNT($H9:K9)>='RFM input'!$Z$7,0,K9+K61+K113) -> 4462.002291 | M9: =IF(COUNT($H9:L9)>='RFM input'!$Z$7,0,L9+L61+L113) -> 0 | N9: =IF(COUNT($H9:M9)>='RFM input'!$Z$7,0,M9+M61+M113) -> 0 | O9: =IF(COUNT($H9:N9)>='RFM input'!$Z$7,0,N9+N61+N113) -> 0 | P9: =IF(COUNT($H9:O9)>='RFM input'!$Z$7,0,O9+O61+O113) -> 0 | Q9: =IF(COUNT($H9:P9)>='RFM input'!$Z$7,0,P9+P61+P113) -> 0
D10: =Asset3 -> SCADA/Network control | F10: ='RAB roll forward'!F720 -> 79.64960265 | G10: ='RAB roll forward'!G720 -> 112.0180365 | H10: 120.4974222 | I10: 124.3788268 | J10: =IF(COUNT($H10:I10)>='RFM input'!$Z$7,0,I10+I62+I114) -> 127.4229662 | K10: =IF(COUNT($H10:J10)>='RFM input'!$Z$7,0,J10+J62+J114) -> 141.4793134 | L10: =IF(COUNT($H10:K10)>='RFM input'!$Z$7,0,K10+K62+K114) -> 130.028859 | M10: =IF(COUNT($H10:L10)>='RFM input'!$Z$7,0,L10+L62+L114) -> 0 | N10: =IF(COUNT($H10:M10)>='RFM input'!$Z$7,0,M10+M62+M114) -> 0 | O10: =IF(COUNT($H10:N10)>='RFM input'!$Z$7,0,N10+N62+N114) -> 0 | P10: =IF(COUNT($H10:O10)>='RFM input'!$Z$7,0,O10+O62+O114) -> 0 | Q10: =IF(COUNT($H10:P10)>='RFM input'!$Z$7,0,P10+P62+P114) -> 0
D11: =Asset4 -> Non-network general assets - IT | F11: ='RAB roll forward'!F721 -> 82.53134486 | G11: ='RAB roll forward'!G721 -> 107.7454116 | H11: 155.3612544 | I11: 114.0333739 | J11: =IF(COUNT($H11:I11)>='RFM input'!$Z$7,0,I11+I63+I115) -> 83.66270832 | K11: =IF(COUNT($H11:J11)>='RFM input'!$Z$7,0,J11+J63+J115) -> 67.31521619 | L11: =IF(COUNT($H11:K11)>='RFM input'!$Z$7,0,K11+K63+K115) -> 51.70109469 | M11: =IF(COUNT($H11:L11)>='RFM input'!$Z$7,0,L11+L63+L115) -> 0 | N11: =IF(COUNT($H11:M11)>='RFM input'!$Z$7,0,M11+M63+M115) -> 0 | O11: =IF(COUNT($H11:N11)>='RFM input'!$Z$7,0,N11+N63+N115) -> 0 | P11: =IF(COUNT($H11:O11)>='RFM input'!$Z$7,0,O11+O63+O115) -> 0 | Q11: =IF(COUNT($H11:P11)>='RFM input'!$Z$7,0,P11+P63+P115) -> 0
D12: =Asset5 -> Non-network general assets - Other | F12: ='RAB roll forward'!F722 -> 11.65156776 | G12: ='RAB roll forward'!G722 -> 10.00818137 | H12: 14.90433175 | I12: 8.661732599 | J12: =IF(COUNT($H12:I12)>='RFM input'!$Z$7,0,I12+I64+I116) -> 4.593060452 | K12: =IF(COUNT($H12:J12)>='RFM input'!$Z$7,0,J12+J64+J116) -> 4.460413319 | L12: =IF(COUNT($H12:K12)>='RFM input'!$Z$7,0,K12+K64+K116) -> 8.867658704 | M12: =IF(COUNT($H12:L12)>='RFM input'!$Z$7,0,L12+L64+L116) -> 0 | N12: =IF(COUNT($H12:M12)>='RFM input'!$Z$7,0,M12+M64+M116) -> 0 | O12: =IF(COUNT($H12:N12)>='RFM input'!$Z$7,0,N12+N64+N116) -> 0 | P12: =IF(COUNT($H12:O12)>='RFM input'!$Z$7,0,O12+O64+O116) -> 0 | Q12: =IF(COUNT($H12:P12)>='RFM input'!$Z$7,0,P12+P64+P116) -> 0
D13: =Asset6 -> Land | F13: ='RAB roll forward'!F723 -> 0.05772524373 | G13: ='RAB roll forward'!G723 -> 0.05864476088 | H13: 0.08011528226 | I13: 16.23500755 | J13: =IF(COUNT($H13:I13)>='RFM input'!$Z$7,0,I13+I65+I117) -> 19.92062138 | K13: =IF(COUNT($H13:J13)>='RFM input'!$Z$7,0,J13+J65+J117) -> 22.15239383 | L13: =IF(COUNT($H13:K13)>='RFM input'!$Z$7,0,K13+K65+K117) -> 23.05000612 | M13: =IF(COUNT($H13:L13)>='RFM input'!$Z$7,0,L13+L65+L117) -> 0 | N13: =IF(COUNT($H13:M13)>='RFM input'!$Z$7,0,M13+M65+M117) -> 0 | O13: =IF(COUNT($H13:N13)>='RFM input'!$Z$7,0,N13+N65+N117) -> 0 | P13: =IF(COUNT($H13:O13)>='RFM input'!$Z$7,0,O13+O65+O117) -> 0 | Q13: =IF(COUNT($H13:P13)>='RFM input'!$Z$7,0,P13+P65+P117) -> 0
D14: =Asset7 -> Secondary systems (pre 2016) | F14: ='RAB roll forward'!F724 -> 0 | G14: ='RAB roll forward'!G724 -> 0 | H14: 196.6445137 | I14: 135.0142442 | J14: =IF(COUNT($H14:I14)>='RFM input'!$Z$7,0,I14+I66+I118) -> 108.3226395 | K14: =IF(COUNT($H14:J14)>='RFM input'!$Z$7,0,J14+J66+J118) -> 89.11439622 | L14: =IF(COUNT($H14:K14)>='RFM input'!$Z$7,0,K14+K66+K118) -> 68.2104892 | M14: =IF(COUNT($H14:L14)>='RFM input'!$Z$7,0,L14+L66+L118) -> 0 | N14: =IF(COUNT($H14:M14)>='RFM input'!$Z$7,0,M14+M66+M118) -> 0 | O14: =IF(COUNT($H14:N14)>='RFM input'!$Z$7,0,N14+N66+N118) -> 0 | P14: =IF(COUNT($H14:O14)>='RFM input'!$Z$7,0,O14+O66+O118) -> 0 | Q14: =IF(COUNT($H14:P14)>='RFM input'!$Z$7,0,P14+P66+P118) -> 0
D15: =Asset8 -> Accelerated Depr - Subtr (forecast period) | F15: ='RAB roll forward'!F725 -> 0.1253509022 | G15: ='RAB roll forward'!G725 -> 0 | H15: -3.384826295e-19 | I15: -3.413955609e-19 | J15: =IF(COUNT($H15:I15)>='RFM input'!$Z$7,0,I15+I67+I119) -> -3.533385796e-19 | K15: =IF(COUNT($H15:J15)>='RFM input'!$Z$7,0,J15+J67+J119) -> -3.81011428e-19 | L15: =IF(COUNT($H15:K15)>='RFM input'!$Z$7,0,K15+K67+K119) -> -3.964499645e-19 | M15: =IF(COUNT($H15:L15)>='RFM input'!$Z$7,0,L15+L67+L119) -> 0 | N15: =IF(COUNT($H15:M15)>='RFM input'!$Z$7,0,M15+M67+M119) -> 0 | O15: =IF(COUNT($H15:N15)>='RFM input'!$Z$7,0,N15+N67+N119) -> 0 | P15: =IF(COUNT($H15:O15)>='RFM input'!$Z$7,0,O15+O67+O119) -> 0 | Q15: =IF(COUNT($H15:P15)>='RFM input'!$Z$7,0,P15+P67+P119) -> 0
D16: =Asset9 -> Accelerated Depr - Distr (forecast period) | F16: ='RAB roll forward'!F726 -> 7.515607366 | G16: ='RAB roll forward'!G726 -> 0 | H16: -1.083144414e-17 | I16: -1.092465795e-17 | J16: =IF(COUNT($H16:I16)>='RFM input'!$Z$7,0,I16+I68+I120) -> -1.130683455e-17 | K16: =IF(COUNT($H16:J16)>='RFM input'!$Z$7,0,J16+J68+J120) -> -1.21923657e-17 | L16: =IF(COUNT($H16:K16)>='RFM input'!$Z$7,0,K16+K68+K120) -> -1.268639886e-17 | M16: =IF(COUNT($H16:L16)>='RFM input'!$Z$7,0,L16+L68+L120) -> 0 | N16: =IF(COUNT($H16:M16)>='RFM input'!$Z$7,0,M16+M68+M120) -> 0 | O16: =IF(COUNT($H16:N16)>='RFM input'!$Z$7,0,N16+N68+N120) -> 0 | P16: =IF(COUNT($H16:O16)>='RFM input'!$Z$7,0,O16+O68+O120) -> 0 | Q16: =IF(COUNT($H16:P16)>='RFM input'!$Z$7,0,P16+P68+P120) -> 0
D17: =Asset10 -> Accelerated Depr - Distr assets (Contingent Project 1) | F17: ='RAB roll forward'!F727 -> -2.158771799 | G17: ='RAB roll forward'!G727 -> -2.924212419 | H17: 0 | I17: 0 | J17: =IF(COUNT($H17:I17)>='RFM input'!$Z$7,0,I17+I69+I121) -> 0 | K17: =IF(COUNT($H17:J17)>='RFM input'!$Z$7,0,J17+J69+J121) -> 0 | L17: =IF(COUNT($H17:K17)>='RFM input'!$Z$7,0,K17+K69+K121) -> 0 | M17: =IF(COUNT($H17:L17)>='RFM input'!$Z$7,0,L17+L69+L121) -> 0 | N17: =IF(COUNT($H17:M17)>='RFM input'!$Z$7,0,M17+M69+M121) -> 0 | O17: =IF(COUNT($H17:N17)>='RFM input'!$Z$7,0,N17+N69+N121) -> 0 | P17: =IF(COUNT($H17:O17)>='RFM input'!$Z$7,0,O17+O69+O121) -> 0 | Q17: =IF(COUNT($H17:P17)>='RFM input'!$Z$7,0,P17+P69+P121) -> 0
D18: =Asset11 -> Accelerated Depr - Distr assets (Contingent Project 2) | F18: ='RAB roll forward'!F728 -> -2.550481022 | G18: ='RAB roll forward'!G728 -> -5.182216307 | H18: 0 | I18: 0 | J18: =IF(COUNT($H18:I18)>='RFM input'!$Z$7,0,I18+I70+I122) -> 0 | K18: =IF(COUNT($H18:J18)>='RFM input'!$Z$7,0,J18+J70+J122) -> 0 | L18: =IF(COUNT($H18:K18)>='RFM input'!$Z$7,0,K18+K70+K122) -> 0 | M18: =IF(COUNT($H18:L18)>='RFM input'!$Z$7,0,L18+L70+L122) -> 0 | N18: =IF(COUNT($H18:M18)>='RFM input'!$Z$7,0,M18+M70+M122) -> 0 | O18: =IF(COUNT($H18:N18)>='RFM input'!$Z$7,0,N18+N70+N122) -> 0 | P18: =IF(COUNT($H18:O18)>='RFM input'!$Z$7,0,O18+O70+O122) -> 0 | Q18: =IF(COUNT($H18:P18)>='RFM input'!$Z$7,0,P18+P70+P122) -> 0
D19: =Asset12 -> Accelerated Depr - Distr assets (Contingent Project 3) | F19: ='RAB roll forward'!F729 -> -0.1612409061 | G19: ='RAB roll forward'!G729 -> -0.3276186906 | H19: 2.536607111 | I19: 1.279218388 | J19: =IF(COUNT($H19:I19)>='RFM input'!$Z$7,0,I19+I71+I123) -> -2.220446049e-16 | K19: =IF(COUNT($H19:J19)>='RFM input'!$Z$7,0,J19+J71+J123) -> -2.220446049e-16 | L19: =IF(COUNT($H19:K19)>='RFM input'!$Z$7,0,K19+K71+K123) -> -2.220446049e-16 | M19: =IF(COUNT($H19:L19)>='RFM input'!$Z$7,0,L19+L71+L123) -> 0 | N19: =IF(COUNT($H19:M19)>='RFM input'!$Z$7,0,M19+M71+M123) -> 0 | O19: =IF(COUNT($H19:N19)>='RFM input'!$Z$7,0,N19+N71+N123) -> 0 | P19: =IF(COUNT($H19:O19)>='RFM input'!$Z$7,0,O19+O71+O123) -> 0 | Q19: =IF(COUNT($H19:P19)>='RFM input'!$Z$7,0,P19+P71+P123) -> 0
D20: =Asset13 -> Accelerated Depr - Distr assets (Other) | F20: ='RAB roll forward'!F730 -> 0 | G20: ='RAB roll forward'!G730 -> 0 | H20: 1.382763522 | I20: 0.6973316899 | J20: =IF(COUNT($H20:I20)>='RFM input'!$Z$7,0,I20+I72+I124) -> 0 | K20: =IF(COUNT($H20:J20)>='RFM input'!$Z$7,0,J20+J72+J124) -> 0 | L20: =IF(COUNT($H20:K20)>='RFM input'!$Z$7,0,K20+K72+K124) -> 0 | M20: =IF(COUNT($H20:L20)>='RFM input'!$Z$7,0,L20+L72+L124) -> 0 | N20: =IF(COUNT($H20:M20)>='RFM input'!$Z$7,0,M20+M72+M124) -> 0 | O20: =IF(COUNT($H20:N20)>='RFM input'!$Z$7,0,N20+N72+N124) -> 0 | P20: =IF(COUNT($H20:O20)>='RFM input'!$Z$7,0,O20+O72+O124) -> 0 | Q20: =IF(COUNT($H20:P20)>='RFM input'!$Z$7,0,P20+P72+P124) -> 0
D21: =Asset14 -> Non-network leasehold land & buildings - 1 July 2021 | F21: ='RAB roll forward'!F731 -> 0 | G21: ='RAB roll forward'!G731 -> 0 | H21: 34.7891046 | I21: 30.85323585 | J21: =IF(COUNT($H21:I21)>='RFM input'!$Z$7,0,I21+I73+I125) -> 27.54915218 | K21: =IF(COUNT($H21:J21)>='RFM input'!$Z$7,0,J21+J73+J125) -> 24.98003062 | L21: =IF(COUNT($H21:K21)>='RFM input'!$Z$7,0,K21+K73+K125) -> 21.07397011 | M21: =IF(COUNT($H21:L21)>='RFM input'!$Z$7,0,L21+L73+L125) -> 0 | N21: =IF(COUNT($H21:M21)>='RFM input'!$Z$7,0,M21+M73+M125) -> 0 | O21: =IF(COUNT($H21:N21)>='RFM input'!$Z$7,0,N21+N73+N125) -> 0 | P21: =IF(COUNT($H21:O21)>='RFM input'!$Z$7,0,O21+O73+O125) -> 0 | Q21: =IF(COUNT($H21:P21)>='RFM input'!$Z$7,0,P21+P73+P125) -> 0
D22: =Asset15 -> Non- Network Leasehold Land & Buildings - 2021-22 | F22: ='RAB roll forward'!F732 -> 0 | G22: ='RAB roll forward'!G732 -> 0 | H22: 0 | I22: 0 | J22: =IF(COUNT($H22:I22)>='RFM input'!$Z$7,0,I22+I74+I126) -> -0.05871206293 | K22: =IF(COUNT($H22:J22)>='RFM input'!$Z$7,0,J22+J74+J126) -> 0.1290777728 | L22: =IF(COUNT($H22:K22)>='RFM input'!$Z$7,0,K22+K74+K126) -> 0.06843237614 | M22: =IF(COUNT($H22:L22)>='RFM input'!$Z$7,0,L22+L74+L126) -> 0 | N22: =IF(COUNT($H22:M22)>='RFM input'!$Z$7,0,M22+M74+M126) -> 0 | O22: =IF(COUNT($H22:N22)>='RFM input'!$Z$7,0,N22+N74+N126) -> 0 | P22: =IF(COUNT($H22:O22)>='RFM input'!$Z$7,0,O22+O74+O126) -> 0 | Q22: =IF(COUNT($H22:P22)>='RFM input'!$Z$7,0,P22+P74+P126) -> 0
D23: =Asset16 -> Non- Network Leasehold Land & Buildings - 2025-26 | F23: ='RAB roll forward'!F733 -> 0 | G23: ='RAB roll forward'!G733 -> 0 | H23: 0 | I23: 0 | J23: =IF(COUNT($H23:I23)>='RFM input'!$Z$7,0,I23+I75+I127) -> 0.175489964 | K23: =IF(COUNT($H23:J23)>='RFM input'!$Z$7,0,J23+J75+J127) -> 0.1892340255 | L23: =IF(COUNT($H23:K23)>='RFM input'!$Z$7,0,K23+K75+K127) -> 0.5870939242 | M23: =IF(COUNT($H23:L23)>='RFM input'!$Z$7,0,L23+L75+L127) -> 0 | N23: =IF(COUNT($H23:M23)>='RFM input'!$Z$7,0,M23+M75+M127) -> 0 | O23: =IF(COUNT($H23:N23)>='RFM input'!$Z$7,0,N23+N75+N127) -> 0 | P23: =IF(COUNT($H23:O23)>='RFM input'!$Z$7,0,O23+O75+O127) -> 0 | Q23: =IF(COUNT($H23:P23)>='RFM input'!$Z$7,0,P23+P75+P127) -> 0
D24: =Asset17 -> Heavy vehicles and plant | F24: ='RAB roll forward'!F734 -> 0 | G24: ='RAB roll forward'!G734 -> 0 | H24: 0 | I24: 0 | J24: =IF(COUNT($H24:I24)>='RFM input'!$Z$7,0,I24+I76+I128) -> 0 | K24: =IF(COUNT($H24:J24)>='RFM input'!$Z$7,0,J24+J76+J128) -> 0 | L24: =IF(COUNT($H24:K24)>='RFM input'!$Z$7,0,K24+K76+K128) -> 0 | M24: =IF(COUNT($H24:L24)>='RFM input'!$Z$7,0,L24+L76+L128) -> 0 | N24: =IF(COUNT($H24:M24)>='RFM input'!$Z$7,0,M24+M76+M128) -> 0 | O24: =IF(COUNT($H24:N24)>='RFM input'!$Z$7,0,N24+N76+N128) -> 0 | P24: =IF(COUNT($H24:O24)>='RFM input'!$Z$7,0,O24+O76+O128) -> 0 | Q24: =IF(COUNT($H24:P24)>='RFM input'!$Z$7,0,P24+P76+P128) -> 0
D25: =Asset18 -> Critical spares - network assets | F25: ='RAB roll forward'!F735 -> 0 | G25: ='RAB roll forward'!G735 -> 0 | H25: 0 | I25: 0 | J25: =IF(COUNT($H25:I25)>='RFM input'!$Z$7,0,I25+I77+I129) -> 0 | K25: =IF(COUNT($H25:J25)>='RFM input'!$Z$7,0,J25+J77+J129) -> 0 | L25: =IF(COUNT($H25:K25)>='RFM input'!$Z$7,0,K25+K77+K129) -> 0 | M25: =IF(COUNT($H25:L25)>='RFM input'!$Z$7,0,L25+L77+L129) -> 0 | N25: =IF(COUNT($H25:M25)>='RFM input'!$Z$7,0,M25+M77+M129) -> 0 | O25: =IF(COUNT($H25:N25)>='RFM input'!$Z$7,0,N25+N77+N129) -> 0 | P25: =IF(COUNT($H25:O25)>='RFM input'!$Z$7,0,O25+O77+O129) -> 0 | Q25: =IF(COUNT($H25:P25)>='RFM input'!$Z$7,0,P25+P77+P129) -> 0
D26: =Asset19 -> Non-Network Leasehold Land & Buildings – short term | F26: ='RAB roll forward'!F736 -> 0 | G26: ='RAB roll forward'!G736 -> 0 | H26: 0 | I26: 0 | J26: =IF(COUNT($H26:I26)>='RFM input'!$Z$7,0,I26+I78+I130) -> 0 | K26: =IF(COUNT($H26:J26)>='RFM input'!$Z$7,0,J26+J78+J130) -> 0 | L26: =IF(COUNT($H26:K26)>='RFM input'!$Z$7,0,K26+K78+K130) -> 0 | M26: =IF(COUNT($H26:L26)>='RFM input'!$Z$7,0,L26+L78+L130) -> 0 | N26: =IF(COUNT($H26:M26)>='RFM input'!$Z$7,0,M26+M78+M130) -> 0 | O26: =IF(COUNT($H26:N26)>='RFM input'!$Z$7,0,N26+N78+N130) -> 0 | P26: =IF(COUNT($H26:O26)>='RFM input'!$Z$7,0,O26+O78+O130) -> 0 | Q26: =IF(COUNT($H26:P26)>='RFM input'!$Z$7,0,P26+P78+P130) -> 0
D27: =Asset20 -> Motor Vehicle and plant Leases - short term | F27: ='RAB roll forward'!F737 -> 0 | G27: ='RAB roll forward'!G737 -> 0 | H27: 0 | I27: 0 | J27: =IF(COUNT($H27:I27)>='RFM input'!$Z$7,0,I27+I79+I131) -> 0 | K27: =IF(COUNT($H27:J27)>='RFM input'!$Z$7,0,J27+J79+J131) -> 0 | L27: =IF(COUNT($H27:K27)>='RFM input'!$Z$7,0,K27+K79+K131) -> 0 | M27: =IF(COUNT($H27:L27)>='RFM input'!$Z$7,0,L27+L79+L131) -> 0 | N27: =IF(COUNT($H27:M27)>='RFM input'!$Z$7,0,M27+M79+M131) -> 0 | O27: =IF(COUNT($H27:N27)>='RFM input'!$Z$7,0,N27+N79+N131) -> 0 | P27: =IF(COUNT($H27:O27)>='RFM input'!$Z$7,0,O27+O79+O131) -> 0 | Q27: =IF(COUNT($H27:P27)>='RFM input'!$Z$7,0,P27+P79+P131) -> 0
D28: =Asset21 -> 0 | F28: ='RAB roll forward'!F738 -> 0 | G28: ='RAB roll forward'!G738 -> 0 | H28: 0 | I28: 0 | J28: =IF(COUNT($H28:I28)>='RFM input'!$Z$7,0,I28+I80+I132) -> 0 | K28: =IF(COUNT($H28:J28)>='RFM input'!$Z$7,0,J28+J80+J132) -> 0 | L28: =IF(COUNT($H28:K28)>='RFM input'!$Z$7,0,K28+K80+K132) -> 0 | M28: =IF(COUNT($H28:L28)>='RFM input'!$Z$7,0,L28+L80+L132) -> 0 | N28: =IF(COUNT($H28:M28)>='RFM input'!$Z$7,0,M28+M80+M132) -> 0 | O28: =IF(COUNT($H28:N28)>='RFM input'!$Z$7,0,N28+N80+N132) -> 0 | P28: =IF(COUNT($H28:O28)>='RFM input'!$Z$7,0,O28+O80+O132) -> 0 | Q28: =IF(COUNT($H28:P28)>='RFM input'!$Z$7,0,P28+P80+P132) -> 0
D29: =Asset22 -> 0 | F29: ='RAB roll forward'!F739 -> 0 | G29: ='RAB roll forward'!G739 -> 0 | H29: 0 | I29: 0 | J29: =IF(COUNT($H29:I29)>='RFM input'!$Z$7,0,I29+I81+I133) -> 0 | K29: =IF(COUNT($H29:J29)>='RFM input'!$Z$7,0,J29+J81+J133) -> 0 | L29: =IF(COUNT($H29:K29)>='RFM input'!$Z$7,0,K29+K81+K133) -> 0 | M29: =IF(COUNT($H29:L29)>='RFM input'!$Z$7,0,L29+L81+L133) -> 0 | N29: =IF(COUNT($H29:M29)>='RFM input'!$Z$7,0,M29+M81+M133) -> 0 | O29: =IF(COUNT($H29:N29)>='RFM input'!$Z$7,0,N29+N81+N133) -> 0 | P29: =IF(COUNT($H29:O29)>='RFM input'!$Z$7,0,O29+O81+O133) -> 0 | Q29: =IF(COUNT($H29:P29)>='RFM input'!$Z$7,0,P29+P81+P133) -> 0
D30: =Asset23 -> 0 | F30: ='RAB roll forward'!F740 -> 0 | G30: ='RAB roll forward'!G740 -> 0 | H30: 0 | I30: 0 | J30: =IF(COUNT($H30:I30)>='RFM input'!$Z$7,0,I30+I82+I134) -> 0 | K30: =IF(COUNT($H30:J30)>='RFM input'!$Z$7,0,J30+J82+J134) -> 0 | L30: =IF(COUNT($H30:K30)>='RFM input'!$Z$7,0,K30+K82+K134) -> 0 | M30: =IF(COUNT($H30:L30)>='RFM input'!$Z$7,0,L30+L82+L134) -> 0 | N30: =IF(COUNT($H30:M30)>='RFM input'!$Z$7,0,M30+M82+M134) -> 0 | O30: =IF(COUNT($H30:N30)>='RFM input'!$Z$7,0,N30+N82+N134) -> 0 | P30: =IF(COUNT($H30:O30)>='RFM input'!$Z$7,0,O30+O82+O134) -> 0 | Q30: =IF(COUNT($H30:P30)>='RFM input'!$Z$7,0,P30+P82+P134) -> 0
D31: =Asset24 -> 0 | F31: ='RAB roll forward'!F741 -> 0 | G31: ='RAB roll forward'!G741 -> 0 | H31: 0 | I31: 0 | J31: =IF(COUNT($H31:I31)>='RFM input'!$Z$7,0,I31+I83+I135) -> 0 | K31: =IF(COUNT($H31:J31)>='RFM input'!$Z$7,0,J31+J83+J135) -> 0 | L31: =IF(COUNT($H31:K31)>='RFM input'!$Z$7,0,K31+K83+K135) -> 0 | M31: =IF(COUNT($H31:L31)>='RFM input'!$Z$7,0,L31+L83+L135) -> 0 | N31: =IF(COUNT($H31:M31)>='RFM input'!$Z$7,0,M31+M83+M135) -> 0 | O31: =IF(COUNT($H31:N31)>='RFM input'!$Z$7,0,N31+N83+N135) -> 0 | P31: =IF(COUNT($H31:O31)>='RFM input'!$Z$7,0,O31+O83+O135) -> 0 | Q31: =IF(COUNT($H31:P31)>='RFM input'!$Z$7,0,P31+P83+P135) -> 0
D32: =Asset25 -> 0 | F32: ='RAB roll forward'!F742 -> 0 | G32: ='RAB roll forward'!G742 -> 0 | H32: 0 | I32: 0 | J32: =IF(COUNT($H32:I32)>='RFM input'!$Z$7,0,I32+I84+I136) -> 0 | K32: =IF(COUNT($H32:J32)>='RFM input'!$Z$7,0,J32+J84+J136) -> 0 | L32: =IF(COUNT($H32:K32)>='RFM input'!$Z$7,0,K32+K84+K136) -> 0 | M32: =IF(COUNT($H32:L32)>='RFM input'!$Z$7,0,L32+L84+L136) -> 0 | N32: =IF(COUNT($H32:M32)>='RFM input'!$Z$7,0,M32+M84+M136) -> 0 | O32: =IF(COUNT($H32:N32)>='RFM input'!$Z$7,0,N32+N84+N136) -> 0 | P32: =IF(COUNT($H32:O32)>='RFM input'!$Z$7,0,O32+O84+O136) -> 0 | Q32: =IF(COUNT($H32:P32)>='RFM input'!$Z$7,0,P32+P84+P136) -> 0
D33: =Asset26 -> 0 | F33: ='RAB roll forward'!F743 -> 0 | G33: ='RAB roll forward'!G743 -> 0 | H33: 0 | I33: 0 | J33: =IF(COUNT($H33:I33)>='RFM input'!$Z$7,0,I33+I85+I137) -> 0 | K33: =IF(COUNT($H33:J33)>='RFM input'!$Z$7,0,J33+J85+J137) -> 0 | L33: =IF(COUNT($H33:K33)>='RFM input'!$Z$7,0,K33+K85+K137) -> 0 | M33: =IF(COUNT($H33:L33)>='RFM input'!$Z$7,0,L33+L85+L137) -> 0 | N33: =IF(COUNT($H33:M33)>='RFM input'!$Z$7,0,M33+M85+M137) -> 0 | O33: =IF(COUNT($H33:N33)>='RFM input'!$Z$7,0,N33+N85+N137) -> 0 | P33: =IF(COUNT($H33:O33)>='RFM input'!$Z$7,0,O33+O85+O137) -> 0 | Q33: =IF(COUNT($H33:P33)>='RFM input'!$Z$7,0,P33+P85+P137) -> 0
D34: =Asset27 -> 0 | F34: ='RAB roll forward'!F744 -> 0 | G34: ='RAB roll forward'!G744 -> 0 | H34: 0 | I34: 0 | J34: =IF(COUNT($H34:I34)>='RFM input'!$Z$7,0,I34+I86+I138) -> 0 | K34: =IF(COUNT($H34:J34)>='RFM input'!$Z$7,0,J34+J86+J138) -> 0 | L34: =IF(COUNT($H34:K34)>='RFM input'!$Z$7,0,K34+K86+K138) -> 0 | M34: =IF(COUNT($H34:L34)>='RFM input'!$Z$7,0,L34+L86+L138) -> 0 | N34: =IF(COUNT($H34:M34)>='RFM input'!$Z$7,0,M34+M86+M138) -> 0 | O34: =IF(COUNT($H34:N34)>='RFM input'!$Z$7,0,N34+N86+N138) -> 0 | P34: =IF(COUNT($H34:O34)>='RFM input'!$Z$7,0,O34+O86+O138) -> 0 | Q34: =IF(COUNT($H34:P34)>='RFM input'!$Z$7,0,P34+P86+P138) -> 0
D35: =Asset28 -> 0 | F35: ='RAB roll forward'!F745 -> 0 | G35: ='RAB roll forward'!G745 -> 0 | H35: 0 | I35: 0 | J35: =IF(COUNT($H35:I35)>='RFM input'!$Z$7,0,I35+I87+I139) -> 0 | K35: =IF(COUNT($H35:J35)>='RFM input'!$Z$7,0,J35+J87+J139) -> 0 | L35: =IF(COUNT($H35:K35)>='RFM input'!$Z$7,0,K35+K87+K139) -> 0 | M35: =IF(COUNT($H35:L35)>='RFM input'!$Z$7,0,L35+L87+L139) -> 0 | N35: =IF(COUNT($H35:M35)>='RFM input'!$Z$7,0,M35+M87+M139) -> 0 | O35: =IF(COUNT($H35:N35)>='RFM input'!$Z$7,0,N35+N87+N139) -> 0 | P35: =IF(COUNT($H35:O35)>='RFM input'!$Z$7,0,O35+O87+O139) -> 0 | Q35: =IF(COUNT($H35:P35)>='RFM input'!$Z$7,0,P35+P87+P139) -> 0
D36: =Asset29 -> 0 | F36: ='RAB roll forward'!F746 -> 0 | G36: ='RAB roll forward'!G746 -> 0 | H36: 0 | I36: 0 | J36: =IF(COUNT($H36:I36)>='RFM input'!$Z$7,0,I36+I88+I140) -> 0 | K36: =IF(COUNT($H36:J36)>='RFM input'!$Z$7,0,J36+J88+J140) -> 0 | L36: =IF(COUNT($H36:K36)>='RFM input'!$Z$7,0,K36+K88+K140) -> 0 | M36: =IF(COUNT($H36:L36)>='RFM input'!$Z$7,0,L36+L88+L140) -> 0 | N36: =IF(COUNT($H36:M36)>='RFM input'!$Z$7,0,M36+M88+M140) -> 0 | O36: =IF(COUNT($H36:N36)>='RFM input'!$Z$7,0,N36+N88+N140) -> 0 | P36: =IF(COUNT($H36:O36)>='RFM input'!$Z$7,0,O36+O88+O140) -> 0 | Q36: =IF(COUNT($H36:P36)>='RFM input'!$Z$7,0,P36+P88+P140) -> 0
D37: =Asset30 -> 0 | F37: ='RAB roll forward'!F747 -> 0 | G37: ='RAB roll forward'!G747 -> 0 | H37: 0 | I37: 0 | J37: =IF(COUNT($H37:I37)>='RFM input'!$Z$7,0,I37+I89+I141) -> 0 | K37: =IF(COUNT($H37:J37)>='RFM input'!$Z$7,0,J37+J89+J141) -> 0 | L37: =IF(COUNT($H37:K37)>='RFM input'!$Z$7,0,K37+K89+K141) -> 0 | M37: =IF(COUNT($H37:L37)>='RFM input'!$Z$7,0,L37+L89+L141) -> 0 | N37: =IF(COUNT($H37:M37)>='RFM input'!$Z$7,0,M37+M89+M141) -> 0 | O37: =IF(COUNT($H37:N37)>='RFM input'!$Z$7,0,N37+N89+N141) -> 0 | P37: =IF(COUNT($H37:O37)>='RFM input'!$Z$7,0,O37+O89+O141) -> 0 | Q37: =IF(COUNT($H37:P37)>='RFM input'!$Z$7,0,P37+P89+P141) -> 0
D38: =Asset31 -> 0 | F38: ='RAB roll forward'!F748 -> 0 | G38: ='RAB roll forward'!G748 -> 0 | H38: 0 | I38: =H38+H90+H142 -> 0 | J38: =IF(COUNT($H38:I38)>='RFM input'!$Z$7,0,I38+I90+I142) -> 0 | K38: =IF(COUNT($H38:J38)>='RFM input'!$Z$7,0,J38+J90+J142) -> 0 | L38: =IF(COUNT($H38:K38)>='RFM input'!$Z$7,0,K38+K90+K142) -> 0 | M38: =IF(COUNT($H38:L38)>='RFM input'!$Z$7,0,L38+L90+L142) -> 0 | N38: =IF(COUNT($H38:M38)>='RFM input'!$Z$7,0,M38+M90+M142) -> 0 | O38: =IF(COUNT($H38:N38)>='RFM input'!$Z$7,0,N38+N90+N142) -> 0 | P38: =IF(COUNT($H38:O38)>='RFM input'!$Z$7,0,O38+O90+O142) -> 0 | Q38: =IF(COUNT($H38:P38)>='RFM input'!$Z$7,0,P38+P90+P142) -> 0
D39: =Asset32 -> 0 | F39: ='RAB roll forward'!F749 -> 0 | G39: ='RAB roll forward'!G749 -> 0 | H39: 0 | I39: 0 | J39: =IF(COUNT($H39:I39)>='RFM input'!$Z$7,0,I39+I91+I143) -> 0 | K39: =IF(COUNT($H39:J39)>='RFM input'!$Z$7,0,J39+J91+J143) -> 0 | L39: =IF(COUNT($H39:K39)>='RFM input'!$Z$7,0,K39+K91+K143) -> 0 | M39: =IF(COUNT($H39:L39)>='RFM input'!$Z$7,0,L39+L91+L143) -> 0 | N39: =IF(COUNT($H39:M39)>='RFM input'!$Z$7,0,M39+M91+M143) -> 0 | O39: =IF(COUNT($H39:N39)>='RFM input'!$Z$7,0,N39+N91+N143) -> 0 | P39: =IF(COUNT($H39:O39)>='RFM input'!$Z$7,0,O39+O91+O143) -> 0 | Q39: =IF(COUNT($H39:P39)>='RFM input'!$Z$7,0,P39+P91+P143) -> 0
D40: =Asset33 -> 0 | F40: ='RAB roll forward'!F750 -> 0 | G40: ='RAB roll forward'!G750 -> 0 | H40: 0 | I40: 0 | J40: =IF(COUNT($H40:I40)>='RFM input'!$Z$7,0,I40+I92+I144) -> 0 | K40: =IF(COUNT($H40:J40)>='RFM input'!$Z$7,0,J40+J92+J144) -> 0 | L40: =IF(COUNT($H40:K40)>='RFM input'!$Z$7,0,K40+K92+K144) -> 0 | M40: =IF(COUNT($H40:L40)>='RFM input'!$Z$7,0,L40+L92+L144) -> 0 | N40: =IF(COUNT($H40:M40)>='RFM input'!$Z$7,0,M40+M92+M144) -> 0 | O40: =IF(COUNT($H40:N40)>='RFM input'!$Z$7,0,N40+N92+N144) -> 0 | P40: =IF(COUNT($H40:O40)>='RFM input'!$Z$7,0,O40+O92+O144) -> 0 | Q40: =IF(COUNT($H40:P40)>='RFM input'!$Z$7,0,P40+P92+P144) -> 0
D41: =Asset34 -> 0 | F41: ='RAB roll forward'!F751 -> 0 | G41: ='RAB roll forward'!G751 -> 0 | H41: 0 | I41: 0 | J41: =IF(COUNT($H41:I41)>='RFM input'!$Z$7,0,I41+I93+I145) -> 0 | K41: =IF(COUNT($H41:J41)>='RFM input'!$Z$7,0,J41+J93+J145) -> 0 | L41: =IF(COUNT($H41:K41)>='RFM input'!$Z$7,0,K41+K93+K145) -> 0 | M41: =IF(COUNT($H41:L41)>='RFM input'!$Z$7,0,L41+L93+L145) -> 0 | N41: =IF(COUNT($H41:M41)>='RFM input'!$Z$7,0,M41+M93+M145) -> 0 | O41: =IF(COUNT($H41:N41)>='RFM input'!$Z$7,0,N41+N93+N145) -> 0 | P41: =IF(COUNT($H41:O41)>='RFM input'!$Z$7,0,O41+O93+O145) -> 0 | Q41: =IF(COUNT($H41:P41)>='RFM input'!$Z$7,0,P41+P93+P145) -> 0
D42: =Asset35 -> 0 | F42: ='RAB roll forward'!F752 -> 0 | G42: ='RAB roll forward'!G752 -> 0 | H42: 0 | I42: 0 | J42: =IF(COUNT($H42:I42)>='RFM input'!$Z$7,0,I42+I94+I146) -> 0 | K42: =IF(COUNT($H42:J42)>='RFM input'!$Z$7,0,J42+J94+J146) -> 0 | L42: =IF(COUNT($H42:K42)>='RFM input'!$Z$7,0,K42+K94+K146) -> 0 | M42: =IF(COUNT($H42:L42)>='RFM input'!$Z$7,0,L42+L94+L146) -> 0 | N42: =IF(COUNT($H42:M42)>='RFM input'!$Z$7,0,M42+M94+M146) -> 0 | O42: =IF(COUNT($H42:N42)>='RFM input'!$Z$7,0,N42+N94+N146) -> 0 | P42: =IF(COUNT($H42:O42)>='RFM input'!$Z$7,0,O42+O94+O146) -> 0 | Q42: =IF(COUNT($H42:P42)>='RFM input'!$Z$7,0,P42+P94+P146) -> 0
D43: =Asset36 -> 0 | F43: ='RAB roll forward'!F753 -> 0 | G43: ='RAB roll forward'!G753 -> 0 | H43: 0 | I43: 0 | J43: =IF(COUNT($H43:I43)>='RFM input'!$Z$7,0,I43+I95+I147) -> 0 | K43: =IF(COUNT($H43:J43)>='RFM input'!$Z$7,0,J43+J95+J147) -> 0 | L43: =IF(COUNT($H43:K43)>='RFM input'!$Z$7,0,K43+K95+K147) -> 0 | M43: =IF(COUNT($H43:L43)>='RFM input'!$Z$7,0,L43+L95+L147) -> 0 | N43: =IF(COUNT($H43:M43)>='RFM input'!$Z$7,0,M43+M95+M147) -> 0 | O43: =IF(COUNT($H43:N43)>='RFM input'!$Z$7,0,N43+N95+N147) -> 0 | P43: =IF(COUNT($H43:O43)>='RFM input'!$Z$7,0,O43+O95+O147) -> 0 | Q43: =IF(COUNT($H43:P43)>='RFM input'!$Z$7,0,P43+P95+P147) -> 0
D44: =Asset37 -> 0 | F44: ='RAB roll forward'!F754 -> 0 | G44: ='RAB roll forward'!G754 -> 0 | H44: 0 | I44: 0 | J44: =IF(COUNT($H44:I44)>='RFM input'!$Z$7,0,I44+I96+I148) -> 0 | K44: =IF(COUNT($H44:J44)>='RFM input'!$Z$7,0,J44+J96+J148) -> 0 | L44: =IF(COUNT($H44:K44)>='RFM input'!$Z$7,0,K44+K96+K148) -> 0 | M44: =IF(COUNT($H44:L44)>='RFM input'!$Z$7,0,L44+L96+L148) -> 0 | N44: =IF(COUNT($H44:M44)>='RFM input'!$Z$7,0,M44+M96+M148) -> 0 | O44: =IF(COUNT($H44:N44)>='RFM input'!$Z$7,0,N44+N96+N148) -> 0 | P44: =IF(COUNT($H44:O44)>='RFM input'!$Z$7,0,O44+O96+O148) -> 0 | Q44: =IF(COUNT($H44:P44)>='RFM input'!$Z$7,0,P44+P96+P148) -> 0
D45: =Asset38 -> 0 | F45: ='RAB roll forward'!F755 -> 0 | G45: ='RAB roll forward'!G755 -> 0 | H45: 0 | I45: 0 | J45: =IF(COUNT($H45:I45)>='RFM input'!$Z$7,0,I45+I97+I149) -> 0 | K45: =IF(COUNT($H45:J45)>='RFM input'!$Z$7,0,J45+J97+J149) -> 0 | L45: =IF(COUNT($H45:K45)>='RFM input'!$Z$7,0,K45+K97+K149) -> 0 | M45: =IF(COUNT($H45:L45)>='RFM input'!$Z$7,0,L45+L97+L149) -> 0 | N45: =IF(COUNT($H45:M45)>='RFM input'!$Z$7,0,M45+M97+M149) -> 0 | O45: =IF(COUNT($H45:N45)>='RFM input'!$Z$7,0,N45+N97+N149) -> 0 | P45: =IF(COUNT($H45:O45)>='RFM input'!$Z$7,0,O45+O97+O149) -> 0 | Q45: =IF(COUNT($H45:P45)>='RFM input'!$Z$7,0,P45+P97+P149) -> 0
D46: =Asset39 -> 0 | F46: ='RAB roll forward'!F756 -> 0 | G46: ='RAB roll forward'!G756 -> 0 | H46: 0 | I46: 0 | J46: =IF(COUNT($H46:I46)>='RFM input'!$Z$7,0,I46+I98+I150) -> 0 | K46: =IF(COUNT($H46:J46)>='RFM input'!$Z$7,0,J46+J98+J150) -> 0 | L46: =IF(COUNT($H46:K46)>='RFM input'!$Z$7,0,K46+K98+K150) -> 0 | M46: =IF(COUNT($H46:L46)>='RFM input'!$Z$7,0,L46+L98+L150) -> 0 | N46: =IF(COUNT($H46:M46)>='RFM input'!$Z$7,0,M46+M98+M150) -> 0 | O46: =IF(COUNT($H46:N46)>='RFM input'!$Z$7,0,N46+N98+N150) -> 0 | P46: =IF(COUNT($H46:O46)>='RFM input'!$Z$7,0,O46+O98+O150) -> 0 | Q46: =IF(COUNT($H46:P46)>='RFM input'!$Z$7,0,P46+P98+P150) -> 0
D47: =Asset40 -> 0 | F47: ='RAB roll forward'!F757 -> 0 | G47: ='RAB roll forward'!G757 -> 0 | H47: 0 | I47: 0 | J47: =IF(COUNT($H47:I47)>='RFM input'!$Z$7,0,I47+I99+I151) -> 0 | K47: =IF(COUNT($H47:J47)>='RFM input'!$Z$7,0,J47+J99+J151) -> 0 | L47: =IF(COUNT($H47:K47)>='RFM input'!$Z$7,0,K47+K99+K151) -> 0 | M47: =IF(COUNT($H47:L47)>='RFM input'!$Z$7,0,L47+L99+L151) -> 0 | N47: =IF(COUNT($H47:M47)>='RFM input'!$Z$7,0,M47+M99+M151) -> 0 | O47: =IF(COUNT($H47:N47)>='RFM input'!$Z$7,0,N47+N99+N151) -> 0 | P47: =IF(COUNT($H47:O47)>='RFM input'!$Z$7,0,O47+O99+O151) -> 0 | Q47: =IF(COUNT($H47:P47)>='RFM input'!$Z$7,0,P47+P99+P151) -> 0
D48: =Asset41 -> 0 | F48: ='RAB roll forward'!F758 -> 0 | G48: ='RAB roll forward'!G758 -> 0 | H48: 0 | I48: 0 | J48: =IF(COUNT($H48:I48)>='RFM input'!$Z$7,0,I48+I100+I152) -> 0 | K48: =IF(COUNT($H48:J48)>='RFM input'!$Z$7,0,J48+J100+J152) -> 0 | L48: =IF(COUNT($H48:K48)>='RFM input'!$Z$7,0,K48+K100+K152) -> 0 | M48: =IF(COUNT($H48:L48)>='RFM input'!$Z$7,0,L48+L100+L152) -> 0 | N48: =IF(COUNT($H48:M48)>='RFM input'!$Z$7,0,M48+M100+M152) -> 0 | O48: =IF(COUNT($H48:N48)>='RFM input'!$Z$7,0,N48+N100+N152) -> 0 | P48: =IF(COUNT($H48:O48)>='RFM input'!$Z$7,0,O48+O100+O152) -> 0 | Q48: =IF(COUNT($H48:P48)>='RFM input'!$Z$7,0,P48+P100+P152) -> 0
D49: =Asset42 -> 0 | F49: ='RAB roll forward'!F759 -> 0 | G49: ='RAB roll forward'!G759 -> 0 | H49: 0 | I49: 0 | J49: =IF(COUNT($H49:I49)>='RFM input'!$Z$7,0,I49+I101+I153) -> 0 | K49: =IF(COUNT($H49:J49)>='RFM input'!$Z$7,0,J49+J101+J153) -> 0 | L49: =IF(COUNT($H49:K49)>='RFM input'!$Z$7,0,K49+K101+K153) -> 0 | M49: =IF(COUNT($H49:L49)>='RFM input'!$Z$7,0,L49+L101+L153) -> 0 | N49: =IF(COUNT($H49:M49)>='RFM input'!$Z$7,0,M49+M101+M153) -> 0 | O49: =IF(COUNT($H49:N49)>='RFM input'!$Z$7,0,N49+N101+N153) -> 0 | P49: =IF(COUNT($H49:O49)>='RFM input'!$Z$7,0,O49+O101+O153) -> 0 | Q49: =IF(COUNT($H49:P49)>='RFM input'!$Z$7,0,P49+P101+P153) -> 0
D50: =Asset43 -> 0 | F50: ='RAB roll forward'!F760 -> 0 | G50: ='RAB roll forward'!G760 -> 0 | H50: 0 | I50: 0 | J50: =IF(COUNT($H50:I50)>='RFM input'!$Z$7,0,I50+I102+I154) -> 0 | K50: =IF(COUNT($H50:J50)>='RFM input'!$Z$7,0,J50+J102+J154) -> 0 | L50: =IF(COUNT($H50:K50)>='RFM input'!$Z$7,0,K50+K102+K154) -> 0 | M50: =IF(COUNT($H50:L50)>='RFM input'!$Z$7,0,L50+L102+L154) -> 0 | N50: =IF(COUNT($H50:M50)>='RFM input'!$Z$7,0,M50+M102+M154) -> 0 | O50: =IF(COUNT($H50:N50)>='RFM input'!$Z$7,0,N50+N102+N154) -> 0 | P50: =IF(COUNT($H50:O50)>='RFM input'!$Z$7,0,O50+O102+O154) -> 0 | Q50: =IF(COUNT($H50:P50)>='RFM input'!$Z$7,0,P50+P102+P154) -> 0
D51: =Asset44 -> 0 | F51: ='RAB roll forward'!F761 -> 0 | G51: ='RAB roll forward'!G761 -> 0 | H51: 0 | I51: 0 | J51: =IF(COUNT($H51:I51)>='RFM input'!$Z$7,0,I51+I103+I155) -> 0 | K51: =IF(COUNT($H51:J51)>='RFM input'!$Z$7,0,J51+J103+J155) -> 0 | L51: =IF(COUNT($H51:K51)>='RFM input'!$Z$7,0,K51+K103+K155) -> 0 | M51: =IF(COUNT($H51:L51)>='RFM input'!$Z$7,0,L51+L103+L155) -> 0 | N51: =IF(COUNT($H51:M51)>='RFM input'!$Z$7,0,M51+M103+M155) -> 0 | O51: =IF(COUNT($H51:N51)>='RFM input'!$Z$7,0,N51+N103+N155) -> 0 | P51: =IF(COUNT($H51:O51)>='RFM input'!$Z$7,0,O51+O103+O155) -> 0 | Q51: =IF(COUNT($H51:P51)>='RFM input'!$Z$7,0,P51+P103+P155) -> 0
D52: =Asset45 -> 0 | F52: ='RAB roll forward'!F762 -> 0 | G52: ='RAB roll forward'!G762 -> 0 | H52: 0 | I52: 0 | J52: =IF(COUNT($H52:I52)>='RFM input'!$Z$7,0,I52+I104+I156) -> 0 | K52: =IF(COUNT($H52:J52)>='RFM input'!$Z$7,0,J52+J104+J156) -> 0 | L52: =IF(COUNT($H52:K52)>='RFM input'!$Z$7,0,K52+K104+K156) -> 0 | M52: =IF(COUNT($H52:L52)>='RFM input'!$Z$7,0,L52+L104+L156) -> 0 | N52: =IF(COUNT($H52:M52)>='RFM input'!$Z$7,0,M52+M104+M156) -> 0 | O52: =IF(COUNT($H52:N52)>='RFM input'!$Z$7,0,N52+N104+N156) -> 0 | P52: =IF(COUNT($H52:O52)>='RFM input'!$Z$7,0,O52+O104+O156) -> 0 | Q52: =IF(COUNT($H52:P52)>='RFM input'!$Z$7,0,P52+P104+P156) -> 0
D53: =Asset46 -> 0 | F53: ='RAB roll forward'!F763 -> 0 | G53: ='RAB roll forward'!G763 -> 0 | H53: 0 | I53: 0 | J53: =IF(COUNT($H53:I53)>='RFM input'!$Z$7,0,I53+I105+I157) -> 0 | K53: =IF(COUNT($H53:J53)>='RFM input'!$Z$7,0,J53+J105+J157) -> 0 | L53: =IF(COUNT($H53:K53)>='RFM input'!$Z$7,0,K53+K105+K157) -> 0 | M53: =IF(COUNT($H53:L53)>='RFM input'!$Z$7,0,L53+L105+L157) -> 0 | N53: =IF(COUNT($H53:M53)>='RFM input'!$Z$7,0,M53+M105+M157) -> 0 | O53: =IF(COUNT($H53:N53)>='RFM input'!$Z$7,0,N53+N105+N157) -> 0 | P53: =IF(COUNT($H53:O53)>='RFM input'!$Z$7,0,O53+O105+O157) -> 0 | Q53: =IF(COUNT($H53:P53)>='RFM input'!$Z$7,0,P53+P105+P157) -> 0
D54: =Asset47 -> 0 | F54: ='RAB roll forward'!F764 -> 0 | G54: ='RAB roll forward'!G764 -> 0 | H54: 0 | I54: 0 | J54: =IF(COUNT($H54:I54)>='RFM input'!$Z$7,0,I54+I106+I158) -> 0 | K54: =IF(COUNT($H54:J54)>='RFM input'!$Z$7,0,J54+J106+J158) -> 0 | L54: =IF(COUNT($H54:K54)>='RFM input'!$Z$7,0,K54+K106+K158) -> 0 | M54: =IF(COUNT($H54:L54)>='RFM input'!$Z$7,0,L54+L106+L158) -> 0 | N54: =IF(COUNT($H54:M54)>='RFM input'!$Z$7,0,M54+M106+M158) -> 0 | O54: =IF(COUNT($H54:N54)>='RFM input'!$Z$7,0,N54+N106+N158) -> 0 | P54: =IF(COUNT($H54:O54)>='RFM input'!$Z$7,0,O54+O106+O158) -> 0 | Q54: =IF(COUNT($H54:P54)>='RFM input'!$Z$7,0,P54+P106+P158) -> 0
D55: =Asset48 -> Buildings - capital works | F55: ='RAB roll forward'!F765 -> 0 | G55: ='RAB roll forward'!G765 -> 0 | H55: 0 | I55: 16.20618042 | J55: =IF(COUNT($H55:I55)>='RFM input'!$Z$7,0,I55+I107+I159) -> 18.38994216 | K55: =IF(COUNT($H55:J55)>='RFM input'!$Z$7,0,J55+J107+J159) -> 19.68248424 | L55: =IF(COUNT($H55:K55)>='RFM input'!$Z$7,0,K55+K107+K159) -> 21.00518132 | M55: =IF(COUNT($H55:L55)>='RFM input'!$Z$7,0,L55+L107+L159) -> 0 | N55: =IF(COUNT($H55:M55)>='RFM input'!$Z$7,0,M55+M107+M159) -> 0 | O55: =IF(COUNT($H55:N55)>='RFM input'!$Z$7,0,N55+N107+N159) -> 0 | P55: =IF(COUNT($H55:O55)>='RFM input'!$Z$7,0,O55+O107+O159) -> 0 | Q55: =IF(COUNT($H55:P55)>='RFM input'!$Z$7,0,P55+P107+P159) -> 0
D56: =Asset49 -> in-house software | F56: ='RAB roll forward'!F766 -> 0 | G56: ='RAB roll forward'!G766 -> 0 | H56: 0 | I56: 60.47613526 | J56: =IF(COUNT($H56:I56)>='RFM input'!$Z$7,0,I56+I108+I160) -> 102.7386039 | K56: =IF(COUNT($H56:J56)>='RFM input'!$Z$7,0,J56+J108+J160) -> 150.5747028 | L56: =IF(COUNT($H56:K56)>='RFM input'!$Z$7,0,K56+K108+K160) -> 221.8662527 | M56: =IF(COUNT($H56:L56)>='RFM input'!$Z$7,0,L56+L108+L160) -> 0 | N56: =IF(COUNT($H56:M56)>='RFM input'!$Z$7,0,M56+M108+M160) -> 0 | O56: =IF(COUNT($H56:N56)>='RFM input'!$Z$7,0,N56+N108+N160) -> 0 | P56: =IF(COUNT($H56:O56)>='RFM input'!$Z$7,0,O56+O108+O160) -> 0 | Q56: =IF(COUNT($H56:P56)>='RFM input'!$Z$7,0,P56+P108+P160) -> 0
D57: =Asset50 -> Equity raising costs | F57: ='RAB roll forward'!F767 -> 12.24414747 | G57: ='RAB roll forward'!G767 -> 12.15650633 | H57: 13.6344597 | I57: 13.4322051 | J57: =IF(COUNT($H57:I57)>='RFM input'!$Z$7,0,I57+I109+I161) -> 13.57133211 | K57: =IF(COUNT($H57:J57)>='RFM input'!$Z$7,0,J57+J109+J161) -> 14.27753832 | L57: =IF(COUNT($H57:K57)>='RFM input'!$Z$7,0,K57+K109+K161) -> 14.48493359 | M57: =IF(COUNT($H57:L57)>='RFM input'!$Z$7,0,L57+L109+L161) -> 0 | N57: =IF(COUNT($H57:M57)>='RFM input'!$Z$7,0,M57+M109+M161) -> 0 | O57: =IF(COUNT($H57:N57)>='RFM input'!$Z$7,0,N57+N109+N161) -> 0 | P57: =IF(COUNT($H57:O57)>='RFM input'!$Z$7,0,O57+O109+O161) -> 0 | Q57: =IF(COUNT($H57:P57)>='RFM input'!$Z$7,0,P57+P109+P161) -> 0
C59: Nominal Actual Net Capex | F59: =SUM(F60:F109) -> 348.5083855 | G59: =SUM(G60:G109) -> 200.1106382 | H59: =SUM(H60:H109) -> 344.0075736 | I59: 333.6054646 | J59: 387.5289965 | K59: 490.0336293 | L59: 593.7595272 | M59: 0 | N59: 0 | O59: 0 | P59: 0 | Q59: 0
D60: =Asset1 -> Subtransmission | F60: ='RAB roll forward'!F770 -> 67.241073 | G60: ='RAB roll forward'!G770 -> 30.04909793 | H60: ='RAB roll forward'!H770 -> 85.56607052 | I60: ='RAB roll forward'!I770 -> 89.40722523 | J60: ='RAB roll forward'!J770 -> 59.51502162 | K60: ='RAB roll forward'!K770 -> 70.65642146 | L60: ='RAB roll forward'!L770 -> 64.02265918 | M60: ='RAB roll forward'!M770 -> 0 | N60: ='RAB roll forward'!N770 -> 0 | O60: ='RAB roll forward'!O770 -> 0 | P60: ='RAB roll forward'!P770 -> 0 | Q60: ='RAB roll forward'!Q770 -> 0
D61: =Asset2 -> Distribution system assets | F61: ='RAB roll forward'!F771 -> 172.1389848 | G61: ='RAB roll forward'!G771 -> 100.832092 | H61: ='RAB roll forward'!H771 -> 144.2284135 | I61: ='RAB roll forward'!I771 -> 164.5754165 | J61: ='RAB roll forward'!J771 -> 226.0485916 | K61: ='RAB roll forward'!K771 -> 294.1379731 | L61: ='RAB roll forward'!L771 -> 337.2598793 | M61: ='RAB roll forward'!M771 -> 0 | N61: ='RAB roll forward'!N771 -> 0 | O61: ='RAB roll forward'!O771 -> 0 | P61: ='RAB roll forward'!P771 -> 0 | Q61: ='RAB roll forward'!Q771 -> 0
D62: =Asset3 -> SCADA/Network control | F62: ='RAB roll forward'!F772 -> 39.51483962 | G62: ='RAB roll forward'!G772 -> 16.63523412 | H62: ='RAB roll forward'!H772 -> 16.91987337 | I62: ='RAB roll forward'!I772 -> 17.68168195 | J62: ='RAB roll forward'!J772 -> 27.49637869 | K62: ='RAB roll forward'!K772 -> 8.978298831 | L62: ='RAB roll forward'!L772 -> 10.44147376 | M62: ='RAB roll forward'!M772 -> 0 | N62: ='RAB roll forward'!N772 -> 0 | O62: ='RAB roll forward'!O772 -> 0 | P62: ='RAB roll forward'!P772 -> 0 | Q62: ='RAB roll forward'!Q772 -> 0
D63: =Asset4 -> Non-network general assets - IT | F63: ='RAB roll forward'!F773 -> 66.05548783 | G63: ='RAB roll forward'!G773 -> 47.67890781 | H63: ='RAB roll forward'!H773 -> 4.103895723 | I63: ='RAB roll forward'!I773 -> 7.746338672 | J63: ='RAB roll forward'!J773 -> 15.91141114 | K63: ='RAB roll forward'!K773 -> 15.92737867 | L63: ='RAB roll forward'!L773 -> 15.59507844 | M63: ='RAB roll forward'!M773 -> 0 | N63: ='RAB roll forward'!N773 -> 0 | O63: ='RAB roll forward'!O773 -> 0 | P63: ='RAB roll forward'!P773 -> 0 | Q63: ='RAB roll forward'!Q773 -> 0
D64: =Asset5 -> Non-network general assets - Other | F64: ='RAB roll forward'!F774 -> 3.558000272 | G64: ='RAB roll forward'!G774 -> 3.421783725 | H64: ='RAB roll forward'!H774 -> 0.3528019919 | I64: ='RAB roll forward'!I774 -> 1.188311245 | J64: ='RAB roll forward'!J774 -> 3.033882082 | K64: ='RAB roll forward'!K774 -> 7.502004536 | L64: ='RAB roll forward'!L774 -> 5.441675185 | M64: ='RAB roll forward'!M774 -> 0 | N64: ='RAB roll forward'!N774 -> 0 | O64: ='RAB roll forward'!O774 -> 0 | P64: ='RAB roll forward'!P774 -> 0 | Q64: ='RAB roll forward'!Q774 -> 0
D65: =Asset6 -> Land | F65: ='RAB roll forward'!F775 -> 0 | G65: ='RAB roll forward'!G775 -> 0.02075534136 | H65: ='RAB roll forward'!H775 -> 16.15420281 | I65: ='RAB roll forward'!I775 -> 3.11766561 | J65: ='RAB roll forward'!J775 -> 0.6716248604 | K65: ='RAB roll forward'!K775 -> 0 | L65: ='RAB roll forward'!L775 -> 13.76902835 | M65: ='RAB roll forward'!M775 -> 0 | N65: ='RAB roll forward'!N775 -> 0 | O65: ='RAB roll forward'!O775 -> 0 | P65: ='RAB roll forward'!P775 -> 0 | Q65: ='RAB roll forward'!Q775 -> 0
D66: =Asset7 -> Secondary systems (pre 2016) | F66: ='RAB roll forward'!F776 -> 0 | G66: ='RAB roll forward'!G776 -> 0 | H66: ='RAB roll forward'!H776 -> 0 | I66: ='RAB roll forward'!I776 -> 0 | J66: ='RAB roll forward'!J776 -> 0 | K66: ='RAB roll forward'!K776 -> 0 | L66: ='RAB roll forward'!L776 -> 0 | M66: ='RAB roll forward'!M776 -> 0 | N66: ='RAB roll forward'!N776 -> 0 | O66: ='RAB roll forward'!O776 -> 0 | P66: ='RAB roll forward'!P776 -> 0 | Q66: ='RAB roll forward'!Q776 -> 0
D67: =Asset8 -> Accelerated Depr - Subtr (forecast period) | F67: ='RAB roll forward'!F777 -> 0 | G67: ='RAB roll forward'!G777 -> 0 | H67: ='RAB roll forward'!H777 -> 0 | I67: ='RAB roll forward'!I777 -> 0 | J67: ='RAB roll forward'!J777 -> 0 | K67: ='RAB roll forward'!K777 -> 0 | L67: ='RAB roll forward'!L777 -> 0 | M67: ='RAB roll forward'!M777 -> 0 | N67: ='RAB roll forward'!N777 -> 0 | O67: ='RAB roll forward'!O777 -> 0 | P67: ='RAB roll forward'!P777 -> 0 | Q67: ='RAB roll forward'!Q777 -> 0
D68: =Asset9 -> Accelerated Depr - Distr (forecast period) | F68: ='RAB roll forward'!F778 -> 0 | G68: ='RAB roll forward'!G778 -> 0 | H68: ='RAB roll forward'!H778 -> 0 | I68: ='RAB roll forward'!I778 -> 0 | J68: ='RAB roll forward'!J778 -> 0 | K68: ='RAB roll forward'!K778 -> 0 | L68: ='RAB roll forward'!L778 -> 0 | M68: ='RAB roll forward'!M778 -> 0 | N68: ='RAB roll forward'!N778 -> 0 | O68: ='RAB roll forward'!O778 -> 0 | P68: ='RAB roll forward'!P778 -> 0 | Q68: ='RAB roll forward'!Q778 -> 0
D69: =Asset10 -> Accelerated Depr - Distr assets (Contingent Project 1) | F69: ='RAB roll forward'!F779 -> 0 | G69: ='RAB roll forward'!G779 -> 0 | H69: ='RAB roll forward'!H779 -> 0 | I69: ='RAB roll forward'!I779 -> 0 | J69: ='RAB roll forward'!J779 -> 0 | K69: ='RAB roll forward'!K779 -> 0 | L69: ='RAB roll forward'!L779 -> 0 | M69: ='RAB roll forward'!M779 -> 0 | N69: ='RAB roll forward'!N779 -> 0 | O69: ='RAB roll forward'!O779 -> 0 | P69: ='RAB roll forward'!P779 -> 0 | Q69: ='RAB roll forward'!Q779 -> 0
D70: =Asset11 -> Accelerated Depr - Distr assets (Contingent Project 2) | F70: ='RAB roll forward'!F780 -> 0 | G70: ='RAB roll forward'!G780 -> 0 | H70: ='RAB roll forward'!H780 -> 0 | I70: ='RAB roll forward'!I780 -> 0 | J70: ='RAB roll forward'!J780 -> 0 | K70: ='RAB roll forward'!K780 -> 0 | L70: ='RAB roll forward'!L780 -> 0 | M70: ='RAB roll forward'!M780 -> 0 | N70: ='RAB roll forward'!N780 -> 0 | O70: ='RAB roll forward'!O780 -> 0 | P70: ='RAB roll forward'!P780 -> 0 | Q70: ='RAB roll forward'!Q780 -> 0
D71: =Asset12 -> Accelerated Depr - Distr assets (Contingent Project 3) | F71: ='RAB roll forward'!F781 -> 0 | G71: ='RAB roll forward'!G781 -> 0 | H71: ='RAB roll forward'!H781 -> 0 | I71: ='RAB roll forward'!I781 -> 0 | J71: ='RAB roll forward'!J781 -> 0 | K71: ='RAB roll forward'!K781 -> 0 | L71: ='RAB roll forward'!L781 -> 0 | M71: ='RAB roll forward'!M781 -> 0 | N71: ='RAB roll forward'!N781 -> 0 | O71: ='RAB roll forward'!O781 -> 0 | P71: ='RAB roll forward'!P781 -> 0 | Q71: ='RAB roll forward'!Q781 -> 0
D72: =Asset13 -> Accelerated Depr - Distr assets (Other) | F72: ='RAB roll forward'!F782 -> 0 | G72: ='RAB roll forward'!G782 -> 0 | H72: ='RAB roll forward'!H782 -> 0 | I72: ='RAB roll forward'!I782 -> 0 | J72: ='RAB roll forward'!J782 -> 0 | K72: ='RAB roll forward'!K782 -> 0 | L72: ='RAB roll forward'!L782 -> 0 | M72: ='RAB roll forward'!M782 -> 0 | N72: ='RAB roll forward'!N782 -> 0 | O72: ='RAB roll forward'!O782 -> 0 | P72: ='RAB roll forward'!P782 -> 0 | Q72: ='RAB roll forward'!Q782 -> 0
D73: =Asset14 -> Non-network leasehold land & buildings - 1 July 2021 | F73: ='RAB roll forward'!F783 -> 0 | G73: ='RAB roll forward'!G783 -> 0 | H73: ='RAB roll forward'!H783 -> 0 | I73: ='RAB roll forward'!I783 -> 0 | J73: ='RAB roll forward'!J783 -> 0 | K73: ='RAB roll forward'!K783 -> 0 | L73: ='RAB roll forward'!L783 -> 0 | M73: ='RAB roll forward'!M783 -> 0 | N73: ='RAB roll forward'!N783 -> 0 | O73: ='RAB roll forward'!O783 -> 0 | P73: ='RAB roll forward'!P783 -> 0 | Q73: ='RAB roll forward'!Q783 -> 0
D74: =Asset15 -> Non- Network Leasehold Land & Buildings - 2021-22 | F74: ='RAB roll forward'!F784 -> 0 | G74: ='RAB roll forward'!G784 -> 0 | H74: ='RAB roll forward'!H784 -> 0 | I74: ='RAB roll forward'!I784 -> 0 | J74: ='RAB roll forward'!J784 -> 0.2556983471 | K74: ='RAB roll forward'!K784 -> 0 | L74: ='RAB roll forward'!L784 -> 57.33010566 | M74: ='RAB roll forward'!M784 -> 0 | N74: ='RAB roll forward'!N784 -> 0 | O74: ='RAB roll forward'!O784 -> 0 | P74: ='RAB roll forward'!P784 -> 0 | Q74: ='RAB roll forward'!Q784 -> 0
D75: =Asset16 -> Non- Network Leasehold Land & Buildings - 2025-26 | F75: ='RAB roll forward'!F785 -> 0 | G75: ='RAB roll forward'!G785 -> 0 | H75: ='RAB roll forward'!H785 -> 0 | I75: ='RAB roll forward'!I785 -> 0.175489964 | J75: ='RAB roll forward'!J785 -> 0 | K75: ='RAB roll forward'!K785 -> 0.3901921592 | L75: ='RAB roll forward'!L785 -> 8.565296303 | M75: ='RAB roll forward'!M785 -> 0 | N75: ='RAB roll forward'!N785 -> 0 | O75: ='RAB roll forward'!O785 -> 0 | P75: ='RAB roll forward'!P785 -> 0 | Q75: ='RAB roll forward'!Q785 -> 0
D76: =Asset17 -> Heavy vehicles and plant | F76: ='RAB roll forward'!F786 -> 0 | G76: ='RAB roll forward'!G786 -> 0 | H76: ='RAB roll forward'!H786 -> 0 | I76: ='RAB roll forward'!I786 -> 0 | J76: ='RAB roll forward'!J786 -> 0 | K76: ='RAB roll forward'!K786 -> 0 | L76: ='RAB roll forward'!L786 -> 0 | M76: ='RAB roll forward'!M786 -> 0 | N76: ='RAB roll forward'!N786 -> 0 | O76: ='RAB roll forward'!O786 -> 0 | P76: ='RAB roll forward'!P786 -> 0 | Q76: ='RAB roll forward'!Q786 -> 0
D77: =Asset18 -> Critical spares - network assets | F77: ='RAB roll forward'!F787 -> 0 | G77: ='RAB roll forward'!G787 -> 0 | H77: ='RAB roll forward'!H787 -> 0 | I77: ='RAB roll forward'!I787 -> 0 | J77: ='RAB roll forward'!J787 -> 0 | K77: ='RAB roll forward'!K787 -> 0 | L77: ='RAB roll forward'!L787 -> 0 | M77: ='RAB roll forward'!M787 -> 0 | N77: ='RAB roll forward'!N787 -> 0 | O77: ='RAB roll forward'!O787 -> 0 | P77: ='RAB roll forward'!P787 -> 0 | Q77: ='RAB roll forward'!Q787 -> 0
D78: =Asset19 -> Non-Network Leasehold Land & Buildings – short term | F78: ='RAB roll forward'!F788 -> 0 | G78: ='RAB roll forward'!G788 -> 0 | H78: ='RAB roll forward'!H788 -> 0 | I78: ='RAB roll forward'!I788 -> 0 | J78: ='RAB roll forward'!J788 -> 0 | K78: ='RAB roll forward'!K788 -> 0 | L78: ='RAB roll forward'!L788 -> 0 | M78: ='RAB roll forward'!M788 -> 0 | N78: ='RAB roll forward'!N788 -> 0 | O78: ='RAB roll forward'!O788 -> 0 | P78: ='RAB roll forward'!P788 -> 0 | Q78: ='RAB roll forward'!Q788 -> 0
